{"text_format":"1","workbook":"xlsx","n_sheets":15,"sheets":["HOME","INSTRUCCIONES","INSCRIPCIONES","INSCRIPCIONES MIXTO","USUARIOS","NIVEL ACCESO","DATOS DEPORTISTAS","CLUBS","ENTRE_DELEG","CENTRO NATACION HELIOS","NAUTICO ZARAGOZA","OS NABATERS","CAPRI MEQUINENZA","REMO MEQUINENZA","REMO ZARAGOZA"],"not_rendered":{"charts":0,"images":13,"macros":1,"external_links":0,"defined_names":90,"comments":1,"pivot_tables":0},"unopened":[],"bounds":{"document_bytes":16777216,"sheet_cells":100000,"rows_first":2000,"rows_last":500,"rows_between":2000,"halvings":0,"cell_chars":16384,"cell_head_chars":4096},"cells_cut":0,"cells_raw":0,"read":"whole","date_system":"1900"}

{"sheet":"HOME","index":0,"n_rows":21,"n_cols":5,"rows_kept":21,"cut":false,"hidden":false,"merged":[[1,2,2,4],[12,6,12,7],[20,3,20,8],[14,6,14,7]]}
[]
[]
[]
[]
[]
[]
[]
[]
[]
[]
[]
[]
[null,null,null,null,"USUARIO"]
[]
[null,null,null,null,"CONTRASEÑA"]
[]
[]
[]
[]
[]
[null,null,null,{"$f":"IF($G$15=\"\",\"Introduzca Usuario y Contraseña\",IF(USUARIOS!$E$4=FALSE,\"El usuario Ingresado No Existe o la Contraseña Ingresada es Incorrecta\",\"Bienvenido al Sistema\"))","v":"Introduzca Usuario y Contraseña"}]

{"sheet":"INSTRUCCIONES","index":1,"n_rows":66,"n_cols":11,"rows_kept":66,"cut":false,"hidden":false,"merged":[[11,7,13,16],[43,7,45,17]]}
[]
[]
[]
[]
[]
[]
[]
[]
[]
[]
[]
[null,null,null,null,null,null,null,"INSTRUCCIONES RELLENAR HOJA DE INSCRIPCIONES (ir pinchando en cada una de las etiquetas)"]
[]
[]
[null,null,null,null,null,null,null,0,"NUMERACION",null,"SELECCIONE EL NUMERO DE HOJA SEGÚN LA CANTIDAD DE INSCRIPCIONES QUE VAYA A REALIZAR"]
[null,null,null,null,null,null,null,1,"CLUB",null,"EN LA HOJA DE INSCRIPCIONES APARECE AUTOMATICAMENTE"]
[null,null,null,null,null,null,null,2,"COMPETICION",null,"SELECCIONAR DEL DESPLEGABLE"]
[null,null,null,null,null,null,null,3,"LUGAR",null,"RELLENAR DATOS DEL LUGAR DE LA COMPETICION"]
[null,null,null,null,null,null,null,4,"UNIFORME",null,"EN LA HOJA DE INSCRIPCIONES APARECE AUTOMATICAMENTE"]
[null,null,null,null,null,null,null,5,"SELEC. CATEGORIA",null,"SELECCIONE DE ESTA COLUMNA LA CATEGORIA DEL DEPORTISTA"]
[null,null,null,null,null,null,null,6,"NOMBRE",null,"SELECCIONE AL DEPORTISTA"]
[null,null,null,null,null,null,null,7,"CATEGORIA",null,"EN LA HOJA DE INSCRIPCIONES APARECE AUTOMATICAMENTE"]
[null,null,null,null,null,null,null,8,"MODALIDAD",null,"SELECCIONAR DEL DESPLEGABLE"]
[null,null,null,null,null,null,null,9,"EDAD",null,"EN LA HOJA DE INSCRIPCIONES APARECE AUTOMATICAMENTE"]
[null,null,null,null,null,null,null,10,"PUESTO",null,"SELECCIONAR DEL DESPLEGABLE"]
[null,null,null,null,null,null,null,11,"EMBARCACIÓN",null,"SELECCIONAR DEL DESPLEGABLE"]
[null,null,null,null,null,null,null,12,"Nº FICHA",null,"EN LA HOJA DE INSCRIPCIONES APARECE AUTOMATICAMENTE"]
[null,null,null,null,null,null,null,13,"ENTRENADOR",null,"SELECCIONAR DEL DESPLEGABLE"]
[null,null,null,null,null,null,null,14,"D.N.I. ENTRENADOR",null,"EN LA HOJA DE INSCRIPCIONES APARECE AUTOMATICAMENTE"]
[null,null,null,null,null,null,null,15,"CATEGORIA ENTRENADOR",null,"SELECCIONAR DEL DESPLEGABLE"]
[null,null,null,null,null,null,null,16,"DELEGADO",null,"SELECCIONAR DEL DESPLEGABLE"]
[null,null,null,null,null,null,null,17,"D.N.I. DELEGADO",null,"EN LA HOJA DE INSCRIPCIONES APARECE AUTOMATICAMENTE"]
[null,null,null,null,null,null,null,18,"FIRMA Y FECHA",null,"RELLENE LOS DATOS DE FIRMA, LUGAR Y FECHA DE REALIZACION DE LA INSCRIPCION"]
[]
[]
[]
[]
[]
[]
[]
[]
[]
[]
[null,null,null,null,null,null,null,"INSTRUCCIONES RELLENAR HOJA DE INSCRIPCIONES MIXTO (ir pinchando en cada una de las etiquetas)"]
[]
[]
[null,null,null,null,null,null,null,0,"NUMERACION",null,"SELECCIONE EL NUMERO DE HOJA SEGÚN LA CANTIDAD DE INSCRIPCIONES QUE VAYA A REALIZAR"]
[null,null,null,null,null,null,null,1,"CLUB",null,"EN LA HOJA DE INSCRIPCIONES APARECE AUTOMATICAMENTE"]
[null,null,null,null,null,null,null,2,"COMPETICION",null,"SELECCIONAR DEL DESPLEGABLE"]
[null,null,null,null,null,null,null,3,"LUGAR",null,"RELLENAR DATOS DEL LUGAR DE LA COMPETICION"]
[null,null,null,null,null,null,null,4,"UNIFORME",null,"EN LA HOJA DE INSCRIPCIONES MIXTO RELLENAR"]
[null,null,null,null,null,null,null,5,"SELECCION CLUB",null,"SELECCIONE DE ESTA COLUMNA EL CLUB DEL DEPORTISTA"]
[null,null,null,null,null,null,null,6,"SELECCION CATEGORIA",null,"SELECCIONE DE ESTA COLUMNA LA CATEGORIA DEL DEPORTISTA"]
[null,null,null,null,null,null,null,7,"NOMBRE",null,"EN LA HOJA DE INSCRIPCIONES MIXTO SELECCIONE DEL DESPLEGABLE"]
[null,null,null,null,null,null,null,8,"CATEGORIA",null,"EN LA HOJA DE INSCRIPCIONES MIXTO APARECE AUTOMATICAMENTE"]
[null,null,null,null,null,null,null,9,"MODALIDAD",null,"EN LA HOJA DE INSCRIPCIONES MIXTO SELECCIONAR DEL DESPLEGABLE"]
[null,null,null,null,null,null,null,10,"EDAD",null,"EN LA HOJA DE INSCRIPCIONES MIXTO APARECE AUTOMATICAMENTE"]
[null,null,null,null,null,null,null,11,"PUESTO",null,"EN LA HOJA DE INSCRIPCIONES  MIXTO  SELECCIONAR DEL DESPLEGABLE"]
[null,null,null,null,null,null,null,12,"EMBARCACION",null,"EN LA HOJA DE INSCRIPCIONES  MIXTO SELECCIONAR DEL DESPLEGABLE"]
[null,null,null,null,null,null,null,13,"Nº FICHA",null,"EN LA HOJA DE INSCRIPCIONES MIXTO APARECE AUTOMATICAMENTE"]
[null,null,null,null,null,null,null,14,"ENTRENADOR",null,"EN LA HOJA DE INSCRIPCIONES MIXTO SELEECIONE DEL DESPLEGABLE"]
[null,null,null,null,null,null,null,15,"D.N.I. ENTRENADOR",null,"EN LA HOJA DE INSCRIPCIONES MIXTO APARECE AUTOMATICAMENTE"]
[null,null,null,null,null,null,null,16,"CATEGORIA ENTRENADOR",null,"SELECCIONAR DEL DESPLEGABLE"]
[null,null,null,null,null,null,null,17,"DELEGADO",null,"EN LA HOJA DE INSCRIPCIONES MIXTO SELECCIONE DEL DESPLEGABLE"]
[null,null,null,null,null,null,null,18,"D.N.I. DELEGADO",null,"EN LA HOJA DE INSCRIPCIONES MIXTO APARECE AUTOMATICAMENTE"]
[null,null,null,null,null,null,null,19,"FIRMA Y FECHA",null,"RELLENE LOS DATOS DE FIRMA, LUGAR Y FECHA DE REALIZACION DE LA INSCRIPCION"]

{"sheet":"INSCRIPCIONES","index":2,"n_rows":50,"n_cols":70,"rows_kept":50,"cut":false,"hidden":true,"merged":[[5,18,5,22],[5,9,5,12],[7,23,7,49],[9,9,9,49],[11,15,11,49],[13,12,13,27],[13,37,13,49],[17,11,17,26],[17,33,17,49],[20,45,20,50],[21,0,21,8],[21,9,21,15],[21,16,21,18],[21,19,21,20],[21,21,21,36],[21,37,21,44],[21,45,21,50],[20,0,20,8],[20,9,20,15],[20,16,20,18],[20,19,20,20],[20,21,20,36],[20,37,20,44],[21,53,21,63],[22,0,22,8],[22,9,22,15],[22,16,22,18],[22,19,22,20],[22,21,22,36],[22,37,22,44],[22,45,22,50],[22,53,22,63],[23,45,23,50],[23,53,23,63],[24,0,24,8],[24,9,24,15],[24,16,24,18],[24,19,24,20],[24,21,24,36],[24,37,24,44],[24,45,24,50],[24,53,24,63],[23,0,23,8],[23,9,23,15],[23,16,23,18],[23,19,23,20],[23,21,23,36],[23,37,23,44],[25,45,25,50],[25,53,25,63],[26,0,26,8],[26,9,26,15],[26,16,26,18],[26,19,26,20],[26,21,26,36],[26,37,26,44],[26,45,26,50],[26,53,26,63],[25,0,25,8],[25,9,25,15],[25,16,25,18],[25,19,25,20],[25,21,25,36],[25,37,25,44],[27,45,27,50],[27,53,27,63],[28,0,28,8],[28,9,28,15],[28,16,28,18],[28,19,28,20],[28,21,28,36],[28,37,28,44],[28,45,28,50],[28,53,28,63],[27,0,27,8],[27,9,27,15],[27,16,27,18],[27,19,27,20],[27,21,27,36],[27,37,27,44],[29,45,29,50],[29,53,29,63],[30,0,30,8],[30,9,30,15],[30,16,30,18],[30,19,30,20],[30,21,30,36],[30,37,30,44],[30,45,30,50],[30,53,30,63],[29,0,29,8],[29,9,29,15],[29,16,29,18],[29,19,29,20],[29,21,29,36],[29,37,29,44],[31,45,31,50],[31,53,31,63],[32,0,32,8],[32,9,32,15],[32,16,32,18],[32,19,32,20],[32,21,32,36],[32,37,32,44],[32,45,32,50],[32,53,32,63],[31,0,31,8],[31,9,31,15],[31,16,31,18],[31,19,31,20],[31,21,31,36],[31,37,31,44],[33,45,33,50],[33,53,33,63],[34,0,34,8],[34,9,34,15],[34,16,34,18],[34,19,34,20],[34,21,34,36],[34,37,34,44],[34,45,34,50],[34,53,34,63],[33,0,33,8],[33,9,33,15],[33,16,33,18],[33,19,33,20],[33,21,33,36],[33,37,33,44],[35,45,35,50],[35,53,35,63],[36,0,36,8],[36,9,36,15],[36,16,36,18],[36,19,36,20],[36,21,36,36],[36,37,36,44],[36,45,36,50],[36,53,36,63],[35,0,35,8],[35,9,35,15],[35,16,35,18],[35,19,35,20],[35,21,35,36],[35,37,35,44],[47,20,47,30],[47,32,47,33],[47,34,47,35],[47,36,47,45],[47,47,47,49],[37,45,37,50],[37,53,37,63],[40,7,40,30],[40,37,40,49],[42,7,42,33],[44,7,44,30],[44,37,44,49],[37,0,37,8],[37,9,37,15],[37,16,37,18],[37,19,37,20],[37,21,37,36],[37,37,37,44],[40,53,40,63]]}
[]
[null,null,null,null,null,null,null,null,null,null,null,null,null,null,null,null,null,null,null,null,null,null,null,null,"FEDERACIÓN ARAGONESA DE REMO"]
[null,null,null,null,null,null,null,null,null,null,null,null,null,null,"Hoja de inscripción oficial"]
[]
[]
[null,null,null,"Nº DE HOJA",null,null,null,null,null,1,null,null,null,null,null,"DE",null,null,1,null,null,null,null,null,null,null,null,null,null,null,null,null,null,null,null,null,null,null,null,null,null,null,null,null,null,null,null,null,null,null,null,null,null,null,null,null,null,null,null,null,null,null,null,null,null,null,null,null,null,{"$f":"IF(X8=\"CENTRO NATACION HELIOS\",\"TECNICOS_HELIOS\",IF(X8=\"NAUTICO ZARAGOZA\",\"TECNICOS_NAUTICO_ZARAGOZA\",IF(X8=\"OS NABATERS D.F.\",\"TECNICOS_OS_NABATERS_D._F.\",IF(X8=\"REMO ZARAGOZA\",\"TECNICOS_REMO_ZARAGOZA\",IF(X8=\"CAPRI MEQUINENZA\",\"TECNICOS_CAPRI_MEQUINENZA\",IF(X8=\"ARAGON REMO\",\"TECNICOS_ARAGON_REMO\",IF(X8=\"REMO MEQUINENZA\",\"TECNICOS_REMO_MEQUINENZA\")))))))","v":false}]
[]
[null,"Hoja de Inscripción que formula el Club:",null,null,null,null,null,null,null,null,null,null,null,null,null,null,null,null,null,null,null,null,null,{"$f":"HOME!G13","v":0},null,null,null,null,null,null,null,null,null,null,null,null,null,null,null,null,null,null,null,null,null,null,null,null,null,null,null,null,null,null,null,null,null,null,null,null,null,null,null,null,null,null,null,null,null,{"$f":"IF(X8=\"CENTRO NATACION HELIOS\",\"DELEGADOS_HELIOS\",IF(X8=\"NAUTICO ZARAGOZA\",\"DELEGADO_NAUTICO_ZARAGOZA\",IF(X8=\"OS NABATERS D.F.\",\"DELEGADOS_OS_NABATERS_D._F.\",IF(X8=\"REMO ZARAGOZA\",\"DELEGADOS_REMO_ZARAGOZA\",IF(X8=\"CAPRI MEQUINENZA\",\"DELEGADOS_CAPRI_MEQUINENZA\",IF(X8=\"ARAGON REMO\",\"DELEGADOS_ARAGON_REMO\",IF(X8=\"REMO MEQUINENZA\",\"DELEGADOS_REMO_MEQUINENZA\")))))))","v":false}]
[]
[null,"Adscrito a la,",null,null,null,null,null,null,null,"FEDERACIÓN ARAGONESA DE REMO"]
[]
[null,"para PARTICIPAR en la, "]
[]
[null,"que se celebrará en "]
[]
[null,"INSCRIBE a los equipos más abajo indicados"]
[]
[null,"Colores: Uniforme:",null,null,null,null,null,null,null,null,null,{"$f":"IF(X8=\"ARAGON REMO\",\"AMARILLO Y ROJO\",IF(X8=\"CAPRI MEQUINENZA\",\"ROJO Y BLANCO\",IF(X8=\"CENTRO NATACION HELIOS\",\"AZUL Y BLANCO\",IF(X8=\"NAUTICO ZARAGOZA\",\"ROJO\",IF(X8=\"OS NABATERS D.F.\",\"AMARILLO Y VERDE\",IF(X8=\"REMO MEQUINENZA\",\"ROJO Y BLANCO\",IF(X8=\"REMO ZARAGOZA\",\"ROJO Y BLANCO\"\"\")))))))","v":false},null,null,null,null,null,null,null,null,null,null,null,null,null,null,null,null,null,null,null,null,null,{"$f":"IF(X8=\"ARAGON REMO\",\"AMARILLO Y ROJO\",IF(X8=\"CAPRI MEQUINENZA\",\"ROJO Y BLANCO\",IF(X8=\"CENTRO NATACION HELIOS\",\"AZUL Y BLANCO\",IF(X8=\"NAUTICO ZARAGOZA\",\"ROJO\",IF(X8=\"OS NABATERS D.F.\",\"AMARILLO Y VERDE\",IF(X8=\"REMO MEQUINENZA\",\"ROJO Y BLANCO\",IF(X8=\"REMO ZARAGOZA\",\"ROJO Y BLANCO\"\"\")))))))","v":false}]
[]
[]
["CATEGORIA",null,null,null,null,null,null,null,null,"Modalidad",null,null,null,null,null,null,"Edad",null,null,"Pto",null,"NOMBRE, APELLIDOS",null,null,null,null,null,null,null,null,null,null,null,null,null,null,null,"embarcación",null,null,null,null,null,null,null,"Nº FICHA."]
[{"$f":"IF(BB22=\"BENJAMIN\",\"BENJAMIN\",IF(BB22=\"ALEVIN\",\"ALEVIN\",IF(BB22=\"INFANTIL\",\"INFANTIL\",IF(BB22=\"CADETE\",\"CADETE\",IF(BB22=\"JUVENIL\",\"JUVENIL\",IF(BB22=\"SENIOR\",\"SENIOR\",IF(BB22=\"VETERANO\",\"VETERANO\",IF(BB22=\"BENJAMIN_NZ\",\"BENJAMIN\",IF(BB22=\"ALEVIN_NZ\",\"ALEVIN\",IF(BB22=\"INFANTIL_NZ\",\"INFANTIL\",IF(BB22=\"CADETE_NZ\",\"CADETE\",IF(BB22=\"JUVENIL_NZ\",\"JUVENIL\",IF(BB22=\"SENIOR_NZ\",\"SENIOR\",IF(BB22=\"VETERANO_NZ\",\"VETERANO\",IF(BB22=\"ALEVIN_NB\",\"ALEVIN\",IF(BB22=\"INFANTIL_NB\",\"INFANTIL\",IF(BB22=\"CADETE_NB\",\"CADETE\",IF(BB22=\"JUVENIL_NB\",\"JUVENIL\",IF(BB22=\"SENIOR_NB\",\"SENIOR\",IF(BB22=\"VETERANO_NB\",\"VETERANO\",IF(BB22=\"BENJAMIN_CM\",\"BENJAMIN\",IF(BB22=\"ALEVIN_CM\",\"ALEVIN\",IF(BB22=\"INFANTIL_CM\",\"INFANTIL\",IF(BB22=\"CADETE_CM\",\"CADETE\",IF(BB22=\"JUVENIL_CM\",\"JUVENIL\",IF(BB22=\"SENIOR_CM\",\"SENIOR\",IF(BB22=\"VETERANO_CM\",\"VETERANO\",IF(BB22=\"BENJAMIN_RM\",\"BENJAMIN\",IF(BB22=\"ALEVIN_RM\",\"ALEVIN\",IF(BB22=\"INFANTIL_RM\",\"INFANTIL\",IF(BB22=\"CADETE_RM\",\"CADETE\",IF(BB22=\"JUVENIL_RM\",\"JUVENIL\",IF(BB22=\"SENIOR_RM\",\"SENIOR\",IF(BB22=\"VETERANO_RM\",\"VETERANO\",IF(BB22=\"BENJAMIN_RZ\",\"BENJAMIN\",IF(BB22=\"ALEVIN_RZ\",\"ALEVIN\",IF(BB22=\"INFANTIL_RZ\",\"INFANTIL\",IF(BB22=\"CADETE_RZ\",\"CADETE\",IF(BB22=\"JUVENIL_RZ\",\"JUVENIL\",IF(BB22=\"SENIOR_RZ\",\"SENIOR\",IF(BB22=\"VETERANO_RZ\",\"VETERANO\",\"\")))))))))))))))))))))))))))))))))))))))))","v":""},null,null,null,null,null,null,null,null,null,null,null,null,null,null,null,{"$f":"IF(_xlfn.XLOOKUP(V22,'DATOS DEPORTISTAS'!$M$24:$M$506,'DATOS DEPORTISTAS'!$Q$24:$Q$506,\"\")<30,\"\",(_xlfn.XLOOKUP(V22,'DATOS DEPORTISTAS'!$M$24:$M$506,'DATOS DEPORTISTAS'!$Q$24:$Q$506,\"\")))","v":""},null,null,null,null,null,null,null,null,null,null,null,null,null,null,null,null,null,null,null,null,null,null,null,null,null,null,null,null,{"$f":"_xlfn.XLOOKUP(V22,'DATOS DEPORTISTAS'!$M$24:$M$506,'DATOS DEPORTISTAS'!$U$24:$U$506,\"\")","v":""}]
[{"$f":"IF(BB23=\"BENJAMIN\",\"BENJAMIN\",IF(BB23=\"ALEVIN\",\"ALEVIN\",IF(BB23=\"INFANTIL\",\"INFANTIL\",IF(BB23=\"CADETE\",\"CADETE\",IF(BB23=\"JUVENIL\",\"JUVENIL\",IF(BB23=\"SENIOR\",\"SENIOR\",IF(BB23=\"VETERANO\",\"VETERANO\",IF(BB23=\"BENJAMIN_NZ\",\"BENJAMIN\",IF(BB23=\"ALEVIN_NZ\",\"ALEVIN\",IF(BB23=\"INFANTIL_NZ\",\"INFANTIL\",IF(BB23=\"CADETE_NZ\",\"CADETE\",IF(BB23=\"JUVENIL_NZ\",\"JUVENIL\",IF(BB23=\"SENIOR_NZ\",\"SENIOR\",IF(BB23=\"VETERANO_NZ\",\"VETERANO\",IF(BB23=\"ALEVIN_NB\",\"ALEVIN\",IF(BB23=\"INFANTIL_NB\",\"INFANTIL\",IF(BB23=\"CADETE_NB\",\"CADETE\",IF(BB23=\"JUVENIL_NB\",\"JUVENIL\",IF(BB23=\"SENIOR_NB\",\"SENIOR\",IF(BB23=\"VETERANO_NB\",\"VETERANO\",IF(BB23=\"BENJAMIN_CM\",\"BENJAMIN\",IF(BB23=\"ALEVIN_CM\",\"ALEVIN\",IF(BB23=\"INFANTIL_CM\",\"INFANTIL\",IF(BB23=\"CADETE_CM\",\"CADETE\",IF(BB23=\"JUVENIL_CM\",\"JUVENIL\",IF(BB23=\"SENIOR_CM\",\"SENIOR\",IF(BB23=\"VETERANO_CM\",\"VETERANO\",IF(BB23=\"BENJAMIN_RM\",\"BENJAMIN\",IF(BB23=\"ALEVIN_RM\",\"ALEVIN\",IF(BB23=\"INFANTIL_RM\",\"INFANTIL\",IF(BB23=\"CADETE_RM\",\"CADETE\",IF(BB23=\"JUVENIL_RM\",\"JUVENIL\",IF(BB23=\"SENIOR_RM\",\"SENIOR\",IF(BB23=\"VETERANO_RM\",\"VETERANO\",IF(BB23=\"BENJAMIN_RZ\",\"BENJAMIN\",IF(BB23=\"ALEVIN_RZ\",\"ALEVIN\",IF(BB23=\"INFANTIL_RZ\",\"INFANTIL\",IF(BB23=\"CADETE_RZ\",\"CADETE\",IF(BB23=\"JUVENIL_RZ\",\"JUVENIL\",IF(BB23=\"SENIOR_RZ\",\"SENIOR\",IF(BB23=\"VETERANO_RZ\",\"VETERANO\",\"\")))))))))))))))))))))))))))))))))))))))))","v":""},null,null,null,null,null,null,null,null,null,null,null,null,null,null,null,{"$f":"IF(_xlfn.XLOOKUP(V23,'DATOS DEPORTISTAS'!$M$24:$M$506,'DATOS DEPORTISTAS'!$Q$24:$Q$506,\"\")<30,\"\",(_xlfn.XLOOKUP(V23,'DATOS DEPORTISTAS'!$M$24:$M$506,'DATOS DEPORTISTAS'!$Q$24:$Q$506,\"\")))","v":""},null,null,null,null,null,null,null,null,null,null,null,null,null,null,null,null,null,null,null,null,null,null,null,null,null,null,null,null,{"$f":"_xlfn.XLOOKUP(V23,'DATOS DEPORTISTAS'!$M$24:$M$506,'DATOS DEPORTISTAS'!$U$24:$U$506,\"\")","v":""}]
["",null,null,null,null,null,null,null,null,null,null,null,null,null,null,null,{"$f":"IF(_xlfn.XLOOKUP(V24,'DATOS DEPORTISTAS'!$M$24:$M$506,'DATOS DEPORTISTAS'!$Q$24:$Q$506,\"\")<30,\"\",(_xlfn.XLOOKUP(V24,'DATOS DEPORTISTAS'!$M$24:$M$506,'DATOS DEPORTISTAS'!$Q$24:$Q$506,\"\")))","v":""},null,null,null,null,null,null,null,null,null,null,null,null,null,null,null,null,null,null,null,null,null,null,null,null,null,null,null,null,{"$f":"_xlfn.XLOOKUP(V24,'DATOS DEPORTISTAS'!$M$24:$M$506,'DATOS DEPORTISTAS'!$U$24:$U$506,\"\")","v":""}]
["",null,null,null,null,null,null,null,null,null,null,null,null,null,null,null,{"$f":"IF(_xlfn.XLOOKUP(V25,'DATOS DEPORTISTAS'!$M$24:$M$506,'DATOS DEPORTISTAS'!$Q$24:$Q$506,\"\")<30,\"\",(_xlfn.XLOOKUP(V25,'DATOS DEPORTISTAS'!$M$24:$M$506,'DATOS DEPORTISTAS'!$Q$24:$Q$506,\"\")))","v":""},null,null,null,null,null,null,null,null,null,null,null,null,null,null,null,null,null,null,null,null,null,null,null,null,null,null,null,null,{"$f":"_xlfn.XLOOKUP(V25,'DATOS DEPORTISTAS'!$M$24:$M$506,'DATOS DEPORTISTAS'!$U$24:$U$506,\"\")","v":""}]
["",null,null,null,null,null,null,null,null,null,null,null,null,null,null,null,{"$f":"IF(_xlfn.XLOOKUP(V26,'DATOS DEPORTISTAS'!$M$24:$M$506,'DATOS DEPORTISTAS'!$Q$24:$Q$506,\"\")<30,\"\",(_xlfn.XLOOKUP(V26,'DATOS DEPORTISTAS'!$M$24:$M$506,'DATOS DEPORTISTAS'!$Q$24:$Q$506,\"\")))","v":""},null,null,null,null,null,null,null,null,null,null,null,null,null,null,null,null,null,null,null,null,null,null,null,null,null,null,null,null,{"$f":"_xlfn.XLOOKUP(V26,'DATOS DEPORTISTAS'!$M$24:$M$506,'DATOS DEPORTISTAS'!$U$24:$U$506,\"\")","v":""}]
["",null,null,null,null,null,null,null,null,null,null,null,null,null,null,null,{"$f":"IF(_xlfn.XLOOKUP(V27,'DATOS DEPORTISTAS'!$M$24:$M$506,'DATOS DEPORTISTAS'!$Q$24:$Q$506,\"\")<30,\"\",(_xlfn.XLOOKUP(V27,'DATOS DEPORTISTAS'!$M$24:$M$506,'DATOS DEPORTISTAS'!$Q$24:$Q$506,\"\")))","v":""},null,null,null,null,null,null,null,null,null,null,null,null,null,null,null,null,null,null,null,null,null,null,null,null,null,null,null,null,{"$f":"_xlfn.XLOOKUP(V27,'DATOS DEPORTISTAS'!$M$24:$M$506,'DATOS DEPORTISTAS'!$U$24:$U$506,\"\")","v":""}]
["",null,null,null,null,null,null,null,null,null,null,null,null,null,null,null,{"$f":"IF(_xlfn.XLOOKUP(V28,'DATOS DEPORTISTAS'!$M$24:$M$506,'DATOS DEPORTISTAS'!$Q$24:$Q$506,\"\")<30,\"\",(_xlfn.XLOOKUP(V28,'DATOS DEPORTISTAS'!$M$24:$M$506,'DATOS DEPORTISTAS'!$Q$24:$Q$506,\"\")))","v":""},null,null,null,null,null,null,null,null,null,null,null,null,null,null,null,null,null,null,null,null,null,null,null,null,null,null,null,null,{"$f":"_xlfn.XLOOKUP(V28,'DATOS DEPORTISTAS'!$M$24:$M$506,'DATOS DEPORTISTAS'!$U$24:$U$506,\"\")","v":""}]
["",null,null,null,null,null,null,null,null,null,null,null,null,null,null,null,{"$f":"IF(_xlfn.XLOOKUP(V29,'DATOS DEPORTISTAS'!$M$24:$M$506,'DATOS DEPORTISTAS'!$Q$24:$Q$506,\"\")<30,\"\",(_xlfn.XLOOKUP(V29,'DATOS DEPORTISTAS'!$M$24:$M$506,'DATOS DEPORTISTAS'!$Q$24:$Q$506,\"\")))","v":""},null,null,null,null,null,null,null,null,null,null,null,null,null,null,null,null,null,null,null,null,null,null,null,null,null,null,null,null,{"$f":"_xlfn.XLOOKUP(V29,'DATOS DEPORTISTAS'!$M$24:$M$506,'DATOS DEPORTISTAS'!$U$24:$U$506,\"\")","v":""}]
["",null,null,null,null,null,null,null,null,null,null,null,null,null,null,null,{"$f":"IF(_xlfn.XLOOKUP(V30,'DATOS DEPORTISTAS'!$M$24:$M$506,'DATOS DEPORTISTAS'!$Q$24:$Q$506,\"\")<30,\"\",(_xlfn.XLOOKUP(V30,'DATOS DEPORTISTAS'!$M$24:$M$506,'DATOS DEPORTISTAS'!$Q$24:$Q$506,\"\")))","v":""},null,null,null,null,null,null,null,null,null,null,null,null,null,null,null,null,null,null,null,null,null,null,null,null,null,null,null,null,{"$f":"_xlfn.XLOOKUP(V30,'DATOS DEPORTISTAS'!$M$24:$M$506,'DATOS DEPORTISTAS'!$U$24:$U$506,\"\")","v":""}]
["",null,null,null,null,null,null,null,null,null,null,null,null,null,null,null,{"$f":"IF(_xlfn.XLOOKUP(V31,'DATOS DEPORTISTAS'!$M$24:$M$506,'DATOS DEPORTISTAS'!$Q$24:$Q$506,\"\")<30,\"\",(_xlfn.XLOOKUP(V31,'DATOS DEPORTISTAS'!$M$24:$M$506,'DATOS DEPORTISTAS'!$Q$24:$Q$506,\"\")))","v":""},null,null,null,null,null,null,null,null,null,null,null,null,null,null,null,null,null,null,null,null,null,null,null,null,null,null,null,null,{"$f":"_xlfn.XLOOKUP(V31,'DATOS DEPORTISTAS'!$M$24:$M$506,'DATOS DEPORTISTAS'!$U$24:$U$506,\"\")","v":""}]
["",null,null,null,null,null,null,null,null,null,null,null,null,null,null,null,{"$f":"IF(_xlfn.XLOOKUP(V32,'DATOS DEPORTISTAS'!$M$24:$M$506,'DATOS DEPORTISTAS'!$Q$24:$Q$506,\"\")<30,\"\",(_xlfn.XLOOKUP(V32,'DATOS DEPORTISTAS'!$M$24:$M$506,'DATOS DEPORTISTAS'!$Q$24:$Q$506,\"\")))","v":""},null,null,null,null,null,null,null,null,null,null,null,null,null,null,null,null,null,null,null,null,null,null,null,null,null,null,null,null,{"$f":"_xlfn.XLOOKUP(V32,'DATOS DEPORTISTAS'!$M$24:$M$506,'DATOS DEPORTISTAS'!$U$24:$U$506,\"\")","v":""}]
["",null,null,null,null,null,null,null,null,null,null,null,null,null,null,null,{"$f":"IF(_xlfn.XLOOKUP(V33,'DATOS DEPORTISTAS'!$M$24:$M$506,'DATOS DEPORTISTAS'!$Q$24:$Q$506,\"\")<30,\"\",(_xlfn.XLOOKUP(V33,'DATOS DEPORTISTAS'!$M$24:$M$506,'DATOS DEPORTISTAS'!$Q$24:$Q$506,\"\")))","v":""},null,null,null,null,null,null,null,null,null,null,null,null,null,null,null,null,null,null,null,null,null,null,null,null,null,null,null,null,{"$f":"_xlfn.XLOOKUP(V33,'DATOS DEPORTISTAS'!$M$24:$M$506,'DATOS DEPORTISTAS'!$U$24:$U$506,\"\")","v":""}]
["",null,null,null,null,null,null,null,null,null,null,null,null,null,null,null,{"$f":"IF(_xlfn.XLOOKUP(V34,'DATOS DEPORTISTAS'!$M$24:$M$506,'DATOS DEPORTISTAS'!$Q$24:$Q$506,\"\")<30,\"\",(_xlfn.XLOOKUP(V34,'DATOS DEPORTISTAS'!$M$24:$M$506,'DATOS DEPORTISTAS'!$Q$24:$Q$506,\"\")))","v":""},null,null,null,null,null,null,null,null,null,null,null,null,null,null,null,null,null,null,null,null,null,null,null,null,null,null,null,null,{"$f":"_xlfn.XLOOKUP(V34,'DATOS DEPORTISTAS'!$M$24:$M$506,'DATOS DEPORTISTAS'!$U$24:$U$506,\"\")","v":""}]
["",null,null,null,null,null,null,null,null,null,null,null,null,null,null,null,{"$f":"IF(_xlfn.XLOOKUP(V35,'DATOS DEPORTISTAS'!$M$24:$M$506,'DATOS DEPORTISTAS'!$Q$24:$Q$506,\"\")<30,\"\",(_xlfn.XLOOKUP(V35,'DATOS DEPORTISTAS'!$M$24:$M$506,'DATOS DEPORTISTAS'!$Q$24:$Q$506,\"\")))","v":""},null,null,null,null,null,null,null,null,null,null,null,null,null,null,null,null,null,null,null,null,null,null,null,null,null,null,null,null,{"$f":"_xlfn.XLOOKUP(V35,'DATOS DEPORTISTAS'!$M$24:$M$506,'DATOS DEPORTISTAS'!$U$24:$U$506,\"\")","v":""}]
["",null,null,null,null,null,null,null,null,null,null,null,null,null,null,null,{"$f":"IF(_xlfn.XLOOKUP(V36,'DATOS DEPORTISTAS'!$M$24:$M$506,'DATOS DEPORTISTAS'!$Q$24:$Q$506,\"\")<30,\"\",(_xlfn.XLOOKUP(V36,'DATOS DEPORTISTAS'!$M$24:$M$506,'DATOS DEPORTISTAS'!$Q$24:$Q$506,\"\")))","v":""},null,null,null,null,null,null,null,null,null,null,null,null,null,null,null,null,null,null,null,null,null,null,null,null,null,null,null,null,{"$f":"_xlfn.XLOOKUP(V36,'DATOS DEPORTISTAS'!$M$24:$M$506,'DATOS DEPORTISTAS'!$U$24:$U$506,\"\")","v":""}]
["",null,null,null,null,null,null,null,null,null,null,null,null,null,null,null,{"$f":"IF(_xlfn.XLOOKUP(V37,'DATOS DEPORTISTAS'!$M$24:$M$506,'DATOS DEPORTISTAS'!$Q$24:$Q$506,\"\")<30,\"\",(_xlfn.XLOOKUP(V37,'DATOS DEPORTISTAS'!$M$24:$M$506,'DATOS DEPORTISTAS'!$Q$24:$Q$506,\"\")))","v":""},null,null,null,null,null,null,null,null,null,null,null,null,null,null,null,null,null,null,null,null,null,null,null,null,null,null,null,null,{"$f":"_xlfn.XLOOKUP(V37,'DATOS DEPORTISTAS'!$M$24:$M$506,'DATOS DEPORTISTAS'!$U$24:$U$506,\"\")","v":""}]
["",null,null,null,null,null,null,null,null,null,null,null,null,null,null,null,{"$f":"IF(_xlfn.XLOOKUP(V38,'DATOS DEPORTISTAS'!$M$24:$M$506,'DATOS DEPORTISTAS'!$Q$24:$Q$506,\"\")<30,\"\",(_xlfn.XLOOKUP(V38,'DATOS DEPORTISTAS'!$M$24:$M$506,'DATOS DEPORTISTAS'!$Q$24:$Q$506,\"\")))","v":""},null,null,null,null,null,null,null,null,null,null,null,null,null,null,null,null,null,null,null,null,null,null,null,null,null,null,null,null,{"$f":"_xlfn.XLOOKUP(V38,'DATOS DEPORTISTAS'!$M$24:$M$506,'DATOS DEPORTISTAS'!$U$24:$U$506,\"\")","v":""}]
[]
[]
[null,"Entrenador: D. ",null,null,null,null,null,null,null,null,null,null,null,null,null,null,null,null,null,null,null,null,null,null,null,null,null,null,null,null,null,null,"Nº D.N.I:",null,null,null,null,{"$f":"_xlfn.XLOOKUP(H41,'DATOS DEPORTISTAS'!$M$4:$M$506,'DATOS DEPORTISTAS'!$N$4:$N$506,\"\")","v":""}]
[]
[null,"Categoría:"]
[]
[null,"Delegado: D.",null,null,null,null,null,null,null,null,null,null,null,null,null,null,null,null,null,null,null,null,null,null,null,null,null,null,null,null,null,null,"Nº D.N.I:",null,null,null,null,{"$f":"_xlfn.XLOOKUP(H45,'DATOS DEPORTISTAS'!$M$4:$M$506,'DATOS DEPORTISTAS'!$N$4:$N$506,\"\")","v":""}]
[]
[]
[]
[]
[null,null,null,null,null,null,null,null,null,null,null,null,null,null,null,null,null,null,null,null,null,null,null,null,null,null,null,null,null,null,"WEB:",null," www.farremo.es",null,null,null,null,null,null,null,"email: ",null,null,"farremo@farremo.es"]

{"sheet":"INSCRIPCIONES MIXTO","index":3,"n_rows":50,"n_cols":47,"rows_kept":50,"cut":false,"hidden":true,"merged":[[5,9,5,12],[5,18,5,22],[47,20,47,30],[47,32,47,33],[47,34,47,35],[47,36,47,45],[47,47,47,49],[37,45,37,50],[37,53,37,63],[40,7,40,30],[40,37,40,49],[42,7,42,33],[44,7,44,30],[44,37,44,49],[37,0,37,8],[37,9,37,15],[37,16,37,18],[37,19,37,20],[37,21,37,36],[37,37,37,44],[35,45,35,50],[35,53,35,63],[36,0,36,8],[36,9,36,15],[36,16,36,18],[36,19,36,20],[36,21,36,36],[36,37,36,44],[36,45,36,50],[36,53,36,63],[35,0,35,8],[35,9,35,15],[35,16,35,18],[35,19,35,20],[35,21,35,36],[35,37,35,44],[33,45,33,50],[33,53,33,63],[34,0,34,8],[34,9,34,15],[34,16,34,18],[34,19,34,20],[34,21,34,36],[34,37,34,44],[34,45,34,50],[34,53,34,63],[33,0,33,8],[33,9,33,15],[33,16,33,18],[33,19,33,20],[33,21,33,36],[33,37,33,44],[31,45,31,50],[31,53,31,63],[32,0,32,8],[32,9,32,15],[32,16,32,18],[32,19,32,20],[32,21,32,36],[32,37,32,44],[32,45,32,50],[32,53,32,63],[31,0,31,8],[31,9,31,15],[31,16,31,18],[31,19,31,20],[31,21,31,36],[31,37,31,44],[29,45,29,50],[29,53,29,63],[30,0,30,8],[30,9,30,15],[30,16,30,18],[30,19,30,20],[30,21,30,36],[30,37,30,44],[30,45,30,50],[30,53,30,63],[29,0,29,8],[29,9,29,15],[29,16,29,18],[29,19,29,20],[29,21,29,36],[29,37,29,44],[27,45,27,50],[27,53,27,63],[28,0,28,8],[28,9,28,15],[28,16,28,18],[28,19,28,20],[28,21,28,36],[28,37,28,44],[28,45,28,50],[28,53,28,63],[27,0,27,8],[27,9,27,15],[27,16,27,18],[27,19,27,20],[27,21,27,36],[27,37,27,44],[25,45,25,50],[25,53,25,63],[26,0,26,8],[26,9,26,15],[26,16,26,18],[26,19,26,20],[26,21,26,36],[26,37,26,44],[26,45,26,50],[26,53,26,63],[25,0,25,8],[25,9,25,15],[25,16,25,18],[25,19,25,20],[25,21,25,36],[25,37,25,44],[23,45,23,50],[23,53,23,63],[24,0,24,8],[24,9,24,15],[24,16,24,18],[24,19,24,20],[24,21,24,36],[24,37,24,44],[24,45,24,50],[24,53,24,63],[23,0,23,8],[23,9,23,15],[23,16,23,18],[23,19,23,20],[23,21,23,36],[23,37,23,44],[21,53,21,63],[22,0,22,8],[22,9,22,15],[22,16,22,18],[22,19,22,20],[22,21,22,36],[22,37,22,44],[22,45,22,50],[22,53,22,63],[7,23,7,49],[9,9,9,49],[11,15,11,49],[13,12,13,27],[13,37,13,49],[17,11,17,26],[17,33,17,49],[20,45,20,50],[21,0,21,8],[21,9,21,15],[21,16,21,18],[21,19,21,20],[21,21,21,36],[21,37,21,44],[21,45,21,50],[20,0,20,8],[20,9,20,15],[20,16,20,18],[20,19,20,20],[20,21,20,36],[20,37,20,44]]}
[]
[null,null,null,null,null,null,null,null,null,null,null,null,null,null,null,null,null,null,null,null,null,null,null,null,"FEDERACIÓN ARAGONESA DE REMO"]
[null,null,null,null,null,null,null,null,null,null,null,null,null,null,"Hoja de inscripción oficial"]
[]
[]
[null,null,null,"Nº DE HOJA",null,null,null,null,null,1,null,null,null,null,null,"DE",null,null,1]
[]
[null,"Hoja de Inscripción que formula el Club:"]
[]
[null,"Adscrito a la,",null,null,null,null,null,null,null,"FEDERACIÓN ARAGONESA DE REMO"]
[]
[null,"para PARTICIPAR en la, "]
[]
[null,"que se celebrará en "]
[]
[null,"INSCRIBE a los equipos más abajo indicados"]
[]
[null,"Colores: Uniforme:"]
[]
[]
["CATEGORIA",null,null,null,null,null,null,null,null,"Modalidad",null,null,null,null,null,null,"Edad",null,null,"Pto",null,"NOMBRE, APELLIDOS",null,null,null,null,null,null,null,null,null,null,null,null,null,null,null,"embarcación",null,null,null,null,null,null,null,"Nº FICHA."]
[{"$f":"IF(BB22=\"BENJAMIN\",\"BENJAMIN\",IF(BB22=\"ALEVIN\",\"ALEVIN\",IF(BB22=\"INFANTIL\",\"INFANTIL\",IF(BB22=\"CADETE\",\"CADETE\",IF(BB22=\"JUVENIL\",\"JUVENIL\",IF(BB22=\"SENIOR\",\"SENIOR\",IF(BB22=\"VETERANO\",\"VETERANO\",IF(BB22=\"BENJAMIN_NZ\",\"BENJAMIN\",IF(BB22=\"ALEVIN_NZ\",\"ALEVIN\",IF(BB22=\"INFANTIL_NZ\",\"INFANTIL\",IF(BB22=\"CADETE_NZ\",\"CADETE\",IF(BB22=\"JUVENIL_NZ\",\"JUVENIL\",IF(BB22=\"SENIOR_NZ\",\"SENIOR\",IF(BB22=\"VETERANO_NZ\",\"VETERANO\",IF(BB22=\"ALEVIN_NB\",\"ALEVIN\",IF(BB22=\"INFANTIL_NB\",\"INFANTIL\",IF(BB22=\"CADETE_NB\",\"CADETE\",IF(BB22=\"JUVENIL_NB\",\"JUVENIL\",IF(BB22=\"SENIOR_NB\",\"SENIOR\",IF(BB22=\"VETERANO_NB\",\"VETERANO\",IF(BB22=\"BENJAMIN_CM\",\"BENJAMIN\",IF(BB22=\"ALEVIN_CM\",\"ALEVIN\",IF(BB22=\"INFANTIL_CM\",\"INFANTIL\",IF(BB22=\"CADETE_CM\",\"CADETE\",IF(BB22=\"JUVENIL_CM\",\"JUVENIL\",IF(BB22=\"SENIOR_CM\",\"SENIOR\",IF(BB22=\"VETERANO_CM\",\"VETERANO\",IF(BB22=\"BENJAMIN_RM\",\"BENJAMIN\",IF(BB22=\"ALEVIN_RM\",\"ALEVIN\",IF(BB22=\"INFANTIL_RM\",\"INFANTIL\",IF(BB22=\"CADETE_RM\",\"CADETE\",IF(BB22=\"JUVENIL_RM\",\"JUVENIL\",IF(BB22=\"SENIOR_RM\",\"SENIOR\",IF(BB22=\"VETERANO_RM\",\"VETERANO\",IF(BB22=\"BENJAMIN_RZ\",\"BENJAMIN\",IF(BB22=\"ALEVIN_RZ\",\"ALEVIN\",IF(BB22=\"INFANTIL_RZ\",\"INFANTIL\",IF(BB22=\"CADETE_RZ\",\"CADETE\",IF(BB22=\"JUVENIL_RZ\",\"JUVENIL\",IF(BB22=\"SENIOR_RZ\",\"SENIOR\",IF(BB22=\"VETERANO_RZ\",\"VETERANO\",\"\")))))))))))))))))))))))))))))))))))))))))","v":""},null,null,null,null,null,null,null,null,null,null,null,null,null,null,null,{"$f":"IF(_xlfn.XLOOKUP(V22,'DATOS DEPORTISTAS'!$M$24:$M$506,'DATOS DEPORTISTAS'!$Q$24:$Q$506,\"\")<30,\"\",(_xlfn.XLOOKUP(V22,'DATOS DEPORTISTAS'!$M$24:$M$506,'DATOS DEPORTISTAS'!$Q$24:$Q$506,\"\")))","v":""},null,null,null,null,null,null,null,null,null,null,null,null,null,null,null,null,null,null,null,null,null,null,null,null,null,null,null,null,{"$f":"_xlfn.XLOOKUP(V22,'DATOS DEPORTISTAS'!$M$24:$M$506,'DATOS DEPORTISTAS'!$U$24:$U$506,\"\")","v":""}]
[{"$f":"IF(BB23=\"BENJAMIN\",\"BENJAMIN\",IF(BB23=\"ALEVIN\",\"ALEVIN\",IF(BB23=\"INFANTIL\",\"INFANTIL\",IF(BB23=\"CADETE\",\"CADETE\",IF(BB23=\"JUVENIL\",\"JUVENIL\",IF(BB23=\"SENIOR\",\"SENIOR\",IF(BB23=\"VETERANO\",\"VETERANO\",IF(BB23=\"BENJAMIN_NZ\",\"BENJAMIN\",IF(BB23=\"ALEVIN_NZ\",\"ALEVIN\",IF(BB23=\"INFANTIL_NZ\",\"INFANTIL\",IF(BB23=\"CADETE_NZ\",\"CADETE\",IF(BB23=\"JUVENIL_NZ\",\"JUVENIL\",IF(BB23=\"SENIOR_NZ\",\"SENIOR\",IF(BB23=\"VETERANO_NZ\",\"VETERANO\",IF(BB23=\"ALEVIN_NB\",\"ALEVIN\",IF(BB23=\"INFANTIL_NB\",\"INFANTIL\",IF(BB23=\"CADETE_NB\",\"CADETE\",IF(BB23=\"JUVENIL_NB\",\"JUVENIL\",IF(BB23=\"SENIOR_NB\",\"SENIOR\",IF(BB23=\"VETERANO_NB\",\"VETERANO\",\"\"))))))))))))))))))))","v":""},null,null,null,null,null,null,null,null,null,null,null,null,null,null,null,{"$f":"IF(_xlfn.XLOOKUP(V23,'DATOS DEPORTISTAS'!$M$24:$M$506,'DATOS DEPORTISTAS'!$Q$24:$Q$506,\"\")<30,\"\",(_xlfn.XLOOKUP(V23,'DATOS DEPORTISTAS'!$M$24:$M$506,'DATOS DEPORTISTAS'!$Q$24:$Q$506,\"\")))","v":""},null,null,null,null,null,null,null,null,null,null,null,null,null,null,null,null,null,null,null,null,null,null,null,null,null,null,null,null,{"$f":"_xlfn.XLOOKUP(V23,'DATOS DEPORTISTAS'!$M$24:$M$506,'DATOS DEPORTISTAS'!$U$24:$U$506,\"\")","v":""}]
["",null,null,null,null,null,null,null,null,null,null,null,null,null,null,null,{"$f":"IF(_xlfn.XLOOKUP(V24,'DATOS DEPORTISTAS'!$M$24:$M$506,'DATOS DEPORTISTAS'!$Q$24:$Q$506,\"\")<30,\"\",(_xlfn.XLOOKUP(V24,'DATOS DEPORTISTAS'!$M$24:$M$506,'DATOS DEPORTISTAS'!$Q$24:$Q$506,\"\")))","v":""},null,null,null,null,null,null,null,null,null,null,null,null,null,null,null,null,null,null,null,null,null,null,null,null,null,null,null,null,{"$f":"_xlfn.XLOOKUP(V24,'DATOS DEPORTISTAS'!$M$24:$M$506,'DATOS DEPORTISTAS'!$U$24:$U$506,\"\")","v":""}]
["",null,null,null,null,null,null,null,null,null,null,null,null,null,null,null,{"$f":"IF(_xlfn.XLOOKUP(V25,'DATOS DEPORTISTAS'!$M$24:$M$506,'DATOS DEPORTISTAS'!$Q$24:$Q$506,\"\")<30,\"\",(_xlfn.XLOOKUP(V25,'DATOS DEPORTISTAS'!$M$24:$M$506,'DATOS DEPORTISTAS'!$Q$24:$Q$506,\"\")))","v":""},null,null,null,null,null,null,null,null,null,null,null,null,null,null,null,null,null,null,null,null,null,null,null,null,null,null,null,null,{"$f":"_xlfn.XLOOKUP(V25,'DATOS DEPORTISTAS'!$M$24:$M$506,'DATOS DEPORTISTAS'!$U$24:$U$506,\"\")","v":""}]
["",null,null,null,null,null,null,null,null,null,null,null,null,null,null,null,{"$f":"IF(_xlfn.XLOOKUP(V26,'DATOS DEPORTISTAS'!$M$24:$M$506,'DATOS DEPORTISTAS'!$Q$24:$Q$506,\"\")<30,\"\",(_xlfn.XLOOKUP(V26,'DATOS DEPORTISTAS'!$M$24:$M$506,'DATOS DEPORTISTAS'!$Q$24:$Q$506,\"\")))","v":""},null,null,null,null,null,null,null,null,null,null,null,null,null,null,null,null,null,null,null,null,null,null,null,null,null,null,null,null,{"$f":"_xlfn.XLOOKUP(V26,'DATOS DEPORTISTAS'!$M$24:$M$506,'DATOS DEPORTISTAS'!$U$24:$U$506,\"\")","v":""}]
["",null,null,null,null,null,null,null,null,null,null,null,null,null,null,null,{"$f":"IF(_xlfn.XLOOKUP(V27,'DATOS DEPORTISTAS'!$M$24:$M$506,'DATOS DEPORTISTAS'!$Q$24:$Q$506,\"\")<30,\"\",(_xlfn.XLOOKUP(V27,'DATOS DEPORTISTAS'!$M$24:$M$506,'DATOS DEPORTISTAS'!$Q$24:$Q$506,\"\")))","v":""},null,null,null,null,null,null,null,null,null,null,null,null,null,null,null,null,null,null,null,null,null,null,null,null,null,null,null,null,{"$f":"_xlfn.XLOOKUP(V27,'DATOS DEPORTISTAS'!$M$24:$M$506,'DATOS DEPORTISTAS'!$U$24:$U$506,\"\")","v":""}]
["",null,null,null,null,null,null,null,null,null,null,null,null,null,null,null,{"$f":"IF(_xlfn.XLOOKUP(V28,'DATOS DEPORTISTAS'!$M$24:$M$506,'DATOS DEPORTISTAS'!$Q$24:$Q$506,\"\")<30,\"\",(_xlfn.XLOOKUP(V28,'DATOS DEPORTISTAS'!$M$24:$M$506,'DATOS DEPORTISTAS'!$Q$24:$Q$506,\"\")))","v":""},null,null,null,null,null,null,null,null,null,null,null,null,null,null,null,null,null,null,null,null,null,null,null,null,null,null,null,null,{"$f":"_xlfn.XLOOKUP(V28,'DATOS DEPORTISTAS'!$M$24:$M$506,'DATOS DEPORTISTAS'!$U$24:$U$506,\"\")","v":""}]
["",null,null,null,null,null,null,null,null,null,null,null,null,null,null,null,{"$f":"IF(_xlfn.XLOOKUP(V29,'DATOS DEPORTISTAS'!$M$24:$M$506,'DATOS DEPORTISTAS'!$Q$24:$Q$506,\"\")<30,\"\",(_xlfn.XLOOKUP(V29,'DATOS DEPORTISTAS'!$M$24:$M$506,'DATOS DEPORTISTAS'!$Q$24:$Q$506,\"\")))","v":""},null,null,null,null,null,null,null,null,null,null,null,null,null,null,null,null,null,null,null,null,null,null,null,null,null,null,null,null,{"$f":"_xlfn.XLOOKUP(V29,'DATOS DEPORTISTAS'!$M$24:$M$506,'DATOS DEPORTISTAS'!$U$24:$U$506,\"\")","v":""}]
["",null,null,null,null,null,null,null,null,null,null,null,null,null,null,null,{"$f":"IF(_xlfn.XLOOKUP(V30,'DATOS DEPORTISTAS'!$M$24:$M$506,'DATOS DEPORTISTAS'!$Q$24:$Q$506,\"\")<30,\"\",(_xlfn.XLOOKUP(V30,'DATOS DEPORTISTAS'!$M$24:$M$506,'DATOS DEPORTISTAS'!$Q$24:$Q$506,\"\")))","v":""},null,null,null,null,null,null,null,null,null,null,null,null,null,null,null,null,null,null,null,null,null,null,null,null,null,null,null,null,{"$f":"_xlfn.XLOOKUP(V30,'DATOS DEPORTISTAS'!$M$24:$M$506,'DATOS DEPORTISTAS'!$U$24:$U$506,\"\")","v":""}]
["",null,null,null,null,null,null,null,null,null,null,null,null,null,null,null,{"$f":"IF(_xlfn.XLOOKUP(V31,'DATOS DEPORTISTAS'!$M$24:$M$506,'DATOS DEPORTISTAS'!$Q$24:$Q$506,\"\")<30,\"\",(_xlfn.XLOOKUP(V31,'DATOS DEPORTISTAS'!$M$24:$M$506,'DATOS DEPORTISTAS'!$Q$24:$Q$506,\"\")))","v":""},null,null,null,null,null,null,null,null,null,null,null,null,null,null,null,null,null,null,null,null,null,null,null,null,null,null,null,null,{"$f":"_xlfn.XLOOKUP(V31,'DATOS DEPORTISTAS'!$M$24:$M$506,'DATOS DEPORTISTAS'!$U$24:$U$506,\"\")","v":""}]
["",null,null,null,null,null,null,null,null,null,null,null,null,null,null,null,{"$f":"IF(_xlfn.XLOOKUP(V32,'DATOS DEPORTISTAS'!$M$24:$M$506,'DATOS DEPORTISTAS'!$Q$24:$Q$506,\"\")<30,\"\",(_xlfn.XLOOKUP(V32,'DATOS DEPORTISTAS'!$M$24:$M$506,'DATOS DEPORTISTAS'!$Q$24:$Q$506,\"\")))","v":""},null,null,null,null,null,null,null,null,null,null,null,null,null,null,null,null,null,null,null,null,null,null,null,null,null,null,null,null,{"$f":"_xlfn.XLOOKUP(V32,'DATOS DEPORTISTAS'!$M$24:$M$506,'DATOS DEPORTISTAS'!$U$24:$U$506,\"\")","v":""}]
["",null,null,null,null,null,null,null,null,null,null,null,null,null,null,null,{"$f":"IF(_xlfn.XLOOKUP(V33,'DATOS DEPORTISTAS'!$M$24:$M$506,'DATOS DEPORTISTAS'!$Q$24:$Q$506,\"\")<30,\"\",(_xlfn.XLOOKUP(V33,'DATOS DEPORTISTAS'!$M$24:$M$506,'DATOS DEPORTISTAS'!$Q$24:$Q$506,\"\")))","v":""},null,null,null,null,null,null,null,null,null,null,null,null,null,null,null,null,null,null,null,null,null,null,null,null,null,null,null,null,{"$f":"_xlfn.XLOOKUP(V33,'DATOS DEPORTISTAS'!$M$24:$M$506,'DATOS DEPORTISTAS'!$U$24:$U$506,\"\")","v":""}]
["",null,null,null,null,null,null,null,null,null,null,null,null,null,null,null,{"$f":"IF(_xlfn.XLOOKUP(V34,'DATOS DEPORTISTAS'!$M$24:$M$506,'DATOS DEPORTISTAS'!$Q$24:$Q$506,\"\")<30,\"\",(_xlfn.XLOOKUP(V34,'DATOS DEPORTISTAS'!$M$24:$M$506,'DATOS DEPORTISTAS'!$Q$24:$Q$506,\"\")))","v":""},null,null,null,null,null,null,null,null,null,null,null,null,null,null,null,null,null,null,null,null,null,null,null,null,null,null,null,null,{"$f":"_xlfn.XLOOKUP(V34,'DATOS DEPORTISTAS'!$M$24:$M$506,'DATOS DEPORTISTAS'!$U$24:$U$506,\"\")","v":""}]
["",null,null,null,null,null,null,null,null,null,null,null,null,null,null,null,{"$f":"IF(_xlfn.XLOOKUP(V35,'DATOS DEPORTISTAS'!$M$24:$M$506,'DATOS DEPORTISTAS'!$Q$24:$Q$506,\"\")<30,\"\",(_xlfn.XLOOKUP(V35,'DATOS DEPORTISTAS'!$M$24:$M$506,'DATOS DEPORTISTAS'!$Q$24:$Q$506,\"\")))","v":""},null,null,null,null,null,null,null,null,null,null,null,null,null,null,null,null,null,null,null,null,null,null,null,null,null,null,null,null,{"$f":"_xlfn.XLOOKUP(V35,'DATOS DEPORTISTAS'!$M$24:$M$506,'DATOS DEPORTISTAS'!$U$24:$U$506,\"\")","v":""}]
["",null,null,null,null,null,null,null,null,null,null,null,null,null,null,null,{"$f":"IF(_xlfn.XLOOKUP(V36,'DATOS DEPORTISTAS'!$M$24:$M$506,'DATOS DEPORTISTAS'!$Q$24:$Q$506,\"\")<30,\"\",(_xlfn.XLOOKUP(V36,'DATOS DEPORTISTAS'!$M$24:$M$506,'DATOS DEPORTISTAS'!$Q$24:$Q$506,\"\")))","v":""},null,null,null,null,null,null,null,null,null,null,null,null,null,null,null,null,null,null,null,null,null,null,null,null,null,null,null,null,{"$f":"_xlfn.XLOOKUP(V36,'DATOS DEPORTISTAS'!$M$24:$M$506,'DATOS DEPORTISTAS'!$U$24:$U$506,\"\")","v":""}]
["",null,null,null,null,null,null,null,null,null,null,null,null,null,null,null,{"$f":"IF(_xlfn.XLOOKUP(V37,'DATOS DEPORTISTAS'!$M$24:$M$506,'DATOS DEPORTISTAS'!$Q$24:$Q$506,\"\")<30,\"\",(_xlfn.XLOOKUP(V37,'DATOS DEPORTISTAS'!$M$24:$M$506,'DATOS DEPORTISTAS'!$Q$24:$Q$506,\"\")))","v":""},null,null,null,null,null,null,null,null,null,null,null,null,null,null,null,null,null,null,null,null,null,null,null,null,null,null,null,null,{"$f":"_xlfn.XLOOKUP(V37,'DATOS DEPORTISTAS'!$M$24:$M$506,'DATOS DEPORTISTAS'!$U$24:$U$506,\"\")","v":""}]
["",null,null,null,null,null,null,null,null,null,null,null,null,null,null,null,{"$f":"IF(_xlfn.XLOOKUP(V38,'DATOS DEPORTISTAS'!$M$24:$M$506,'DATOS DEPORTISTAS'!$Q$24:$Q$506,\"\")<30,\"\",(_xlfn.XLOOKUP(V38,'DATOS DEPORTISTAS'!$M$24:$M$506,'DATOS DEPORTISTAS'!$Q$24:$Q$506,\"\")))","v":""},null,null,null,null,null,null,null,null,null,null,null,null,null,null,null,null,null,null,null,null,null,null,null,null,null,null,null,null,{"$f":"_xlfn.XLOOKUP(V38,'DATOS DEPORTISTAS'!$M$24:$M$506,'DATOS DEPORTISTAS'!$U$24:$U$506,\"\")","v":""}]
[]
[]
[null,"Entrenador: D. ",null,null,null,null,null,null,null,null,null,null,null,null,null,null,null,null,null,null,null,null,null,null,null,null,null,null,null,null,null,null,"Nº D.N.I:",null,null,null,null,{"$f":"_xlfn.XLOOKUP(H41,'DATOS DEPORTISTAS'!$M$4:$M$506,'DATOS DEPORTISTAS'!$N$4:$N$506,\"\")","v":""}]
[]
[null,"Categoría:"]
[]
[null,"Delegado: D.",null,null,null,null,null,null,null,null,null,null,null,null,null,null,null,null,null,null,null,null,null,null,null,null,null,null,null,null,null,null,"Nº D.N.I:",null,null,null,null,{"$f":"_xlfn.XLOOKUP(H45,'DATOS DEPORTISTAS'!$M$4:$M$506,'DATOS DEPORTISTAS'!$N$4:$N$506,\"\")","v":""}]
[]
[]
[null,null,null,null,null,"Firma delegado",null,null,null,null,null,null,null,null,null,null,null,"En, ",null,null,null,null,null,null,null,null,null,null,null,null,null,",a ",null,null,"de",null,null,null,null,null,null,null,null,null,null,null,"de"]
[]
[null,null,null,null,null,null,null,null,null,null,null,null,null,null,null,null,null,null,null,null,null,null,null,null,null,null,null,null,null,null,"WEB:",null," www.farremo.es",null,null,null,null,null,null,null,"email: ",null,null,"farremo@farremo.es"]

{"sheet":"USUARIOS","index":4,"n_rows":13,"n_cols":5,"rows_kept":13,"cut":false,"hidden":true,"merged":[]}
[]
[null,"LISTA DE USUARIOS"]
[]
[null,{"$f":"HOME!G13","v":0},{"$f":"VLOOKUP(B4,USUARIOS[[USUARIO]:[CONTRASEÑA]],2,FALSE)","v":{"$error":"#N/A"}},{"$f":"VLOOKUP(B4,USUARIOS[],3,FALSE)","v":{"$error":"#N/A"}},{"$f":"C4=HOME!$G$15","v":{"$error":"#N/A"}}]
[]
[null,"Id","USUARIO","CONTRASEÑA","Tipo Acceso"]
[null,1,"DESARROLLADOR","Zaragoza2024*","Desarrollador"]
[null,2,"PRESIDENTE","PRESIDENTE*2024","Administrador"]
[null,3,"CENTRO NATACION HELIOS","HELIOS2024*","Usuario"]
[null,4,"NAUTICO ZARAGOZA","NAUTICOZ**2024","Usuario"]
[null,5,"OS NABATERS D.F.","NABATERS2024**","Usuario"]
[null,6,"CAPRI MEQUINENZA","CAPRI!2024*","Usuario"]
[null,7,"ARAGON REMO","ARAGONR!!2024**","Usuario"]

{"sheet":"NIVEL ACCESO","index":5,"n_rows":10,"n_cols":4,"rows_kept":10,"cut":false,"hidden":true,"merged":[]}
[]
[]
[]
[]
[]
[]
[null,"ID","Tipo Usuario","Nivel de Acceso"]
[null,1,"Administrador","Acceso a todas las hojas y escritura. Crear Usuarios"]
[null,2,"Administrador1","Acceso a INSCRIPCIONES y DATOS DEPORTISTAS"]
[null,3,"Usuario","Acceso a INSCRIPCIONES"]

{"sheet":"DATOS DEPORTISTAS","index":6,"n_rows":790,"n_cols":67,"rows_kept":790,"cut":false,"hidden":true,"merged":[]}
[1,2,3,4,5,6,7,8,9,10,11,12,13,null,null,null,null,null,null,null,null,"2024-01-01",null,null,null,null,null,null,2024]
[null,null,null,null,null,null,null,null,null,null,null,null,"COLUMNA ROJO ¡NO TOCAR!"]
["FEM.","BEN.","ALE.","INF.","CAD.","JUV.","SEN.","VET.","CAT.","SEXO (M/F)","APELLIDOS","NOMBRE","NOMBRE COMPLETO","DNI","F. NAC.","AÑO","EDAD EN EL AÑO","MES","EDAD ACTUAL","FECHA TRAMITACIÓN ALTA LICENCIA","Nº LICENCIA","CLUB","LICENCIA FAR DEPORTISTA","LICENCIA FAR ENTRENADOR","LICENCIA FAR DELEGADO","LICENCIA FAR ARBITRO","AUTORIZACION CLUB LICENCIA FER","DATOS ENVÍO COMUNICACIONES","DATOS GRABACIÓN IMAGEN Y VIDEOS INTERNOS","DATOS GRABACIÓN IMAGEN Y VIDEOS RRSS","DATOS GRABACIÓN IMAGEN Y VIDEOS PARA EXTERNOS","LICENCIA FER DEPORTISTA","LICENCIA FER ENTRENADOR","LICENCIA FER DELEGADO","LICENCIA FER ARBITRO"]
[{"$f":"IF(J4=\"F\", 1,0)","v":1},{"$f":"IF(I4=\"BENJAMIN\", 1,0)","v":0},{"$f":"IF(I4=\"ALEVIN\", 1,0)","v":0},{"$f":"IF(I4=\"INFANTIL\", 1,0)","v":0},{"$f":"IF(I4=\"CADETE\", 1,0)","v":0},{"$f":"IF(I4=\"JUVENIL\", 1,0)","v":0},{"$f":"IF(I4=\"SENIOR\", 1,0)","v":0},{"$f":"IF(I4=\"VETERANO\", 1,0)","v":1},{"$f":"IF((Q4<11),\"BENJAMIN\",IF(OR(Q4=11,Q4=12),\"ALEVIN\",IF(OR(Q4=13,Q4=14),\"INFANTIL\",IF(OR(Q4=15,Q4=16),\"CADETE\",IF(OR(Q4=17,Q4=18),\"JUVENIL\",IF(AND(Q4>18,Q4<31),\"SENIOR\",\"VETERANO\"))))))","v":"VETERANO"},"F","ELVIRA ATIENZA","PILAR",{"$f":"L4&\" \"& K4","v":"PILAR ELVIRA ATIENZA"},"17012250R","1935-06-29",{"$f":"YEAR(O4)","v":1935},{"$f":"$AC$1-P4","v":89},{"$f":"MONTH(O4)","v":6},{"$f":"DATEDIF(O4,TODAY(),\"Y\")","v":88},"2024-01-11",1,"F.A.R.",1]
[0,0,0,0,0,0,0,1,"VETERANO","M","GASCÓN GONZÁLEZ","MIGUEL","MIGUEL GASCÓN GONZÁLEZ","17666633B","1940-02-22",1940,84,2,84,"2024-01-11",2,"F.A.R.",null,1]
[0,0,0,0,0,0,0,1,"VETERANO","M","GONZÁLEZ-ARCE LABORDA","JOSÉ JAVIER","JOSÉ JAVIER GONZÁLEZ-ARCE LABORDA","25157839W","1971-01-25",1971,53,1,53,"2024-01-11",3,"F.A.R.",null,null,null,1]
[0,0,0,0,0,0,0,1,"VETERANO","M","GÓMEZ RODRÍGUEZ","MARCOS","MARCOS GÓMEZ RODRÍGUEZ","17742359K","1974-03-21",1974,50,3,50,"2024-01-11",4,"F.A.R.",null,null,null,1]
[0,0,0,0,0,0,0,1,"VETERANO","M","CASORRÁN ROYO","DANIEL","DANIEL CASORRÁN ROYO","29111055R","1974-09-28",1974,50,9,49,"2024-01-11",5,"F.A.R.",null,null,null,1]
[0,0,0,0,0,0,0,1,"VETERANO","M","LLOP ROCA","JOSÉ MIGUEL","JOSÉ MIGUEL LLOP ROCA","40889536K","1965-03-30",1965,59,3,59,"2024-01-11",6,"F.A.R.",null,null,null,1]
[0,0,0,0,0,0,0,1,"VETERANO","M","MORALES ALCUBIERRE","PEDRO JAVIER","PEDRO JAVIER MORALES ALCUBIERRE","29113029C","1973-06-29",1973,51,6,50,"2024-01-11",7,"F.A.R.",null,null,null,1]
[0,0,0,0,0,0,0,1,"VETERANO","M","MARTÍNEZ CABELLO","PEDRO IGNACIO","PEDRO IGNACIO MARTÍNEZ CABELLO","17694366Y","1957-04-29",1957,67,4,66,"2024-01-11",8,"F.A.R.",null,null,null,1]
[0,0,0,0,0,0,0,1,"VETERANO","M","MARTÍNEZ BERMEJO","IGNACIO","IGNACIO MARTÍNEZ BERMEJO","25170248Z","1978-06-15",1978,46,6,45,"2024-01-11",9,"F.A.R.",null,null,null,1]
[1,0,0,0,0,0,0,1,"VETERANO","F","GALLARDO BENÍTEZ","MARÍA JOSÉ","MARÍA JOSÉ GALLARDO BENÍTEZ","74696036V","1985-11-28",1985,39,11,38,"2024-01-11",10,"F.A.R."]
[0,0,0,0,0,0,0,1,"VETERANO","M","AGUILERA ANDRÉS","ÁNGEL","ÁNGEL AGUILERA ANDRÉS","17178108Y","1949-11-07",1949,75,11,74,"2024-01-11",11,"F.A.R."]
[1,0,0,0,0,0,0,1,"VETERANO","F","CASTELLÓ AYED","BEATRIZ","BEATRIZ CASTELLÓ AYED","29476777E","1977-05-19",1977,47,5,46,"2024-01-11",12,"F.A.R.",null,null,null,1]
[0,0,0,0,0,0,0,null,null,null,null,null," ",null,null,1900,124,1,null,null,13,"F.A.R."]
[0,0,0,0,0,0,0,null,null,null,null,null," ",null,null,1900,124,1,null,null,14,"F.A.R."]
[0,0,0,0,0,0,0,null,null,null,null,null," ",null,null,1900,124,1,null,null,15,"F.A.R."]
[0,0,0,0,0,0,0,null,null,null,null,null," ",null,null,1900,124,1,null,null,16,"F.A.R."]
[0,0,0,0,0,0,0,null,null,null,null,null," ",null,null,1900,124,1,null,null,17,"F.A.R."]
[0,0,0,0,0,0,0,null,null,null,null,null," ",null,null,1900,124,1,null,null,18,"F.A.R."]
[0,0,0,0,0,0,0,null,null,null,null,null," ",null,null,1900,124,1,null,null,19,"F.A.R."]
[0,0,0,0,0,0,0,null,null,null,null,null," ",null,null,1900,124,1,null,null,20,"F.A.R."]
[0,0,0,0,0,0,0,{"$f":"IF(I24=\"VETERANO\", 1,0)","v":1},{"$f":"IF((Q24<11),\"BENJAMIN\",IF(OR(Q24=11,Q24=12),\"ALEVIN\",IF(OR(Q24=13,Q24=14),\"INFANTIL\",IF(OR(Q24=15,Q24=16),\"CADETE\",IF(OR(Q24=17,Q24=18),\"JUVENIL\",IF(AND(Q24>18,Q24<31),\"SENIOR\",\"VETERANO\"))))))","v":"VETERANO"},"M","MILLÁN MAINAR","FERNANDO CARLOS","FERNANDO CARLOS MILLÁN MAINAR","17843404G","1951-10-02",1951,73,10,{"$f":"DATEDIF(O24,TODAY(),\"Y\")","v":72},"2024-01-11",21,"ARAGÓN REMO",1,null,1,null,1,1,1,1,1]
[1,0,0,0,0,0,0,1,"VETERANO","F","GÓMEZ GÓMEZ","SOFÍA EVA","SOFÍA EVA GÓMEZ GÓMEZ","29111555H","1973-08-27",1973,51,8,50,"2024-01-11",22,"ARAGÓN REMO",1]
[0,0,0,0,0,0,0,1,"VETERANO","M","SAN JOSÉ SANTAMARÍA","DAVID","DAVID SAN JOSÉ SANTAMARÍA","25168929Y","1980-12-31",1980,44,12,43,"2024-01-11",23,"ARAGÓN REMO",null,1,null,null,1,1,1,1,1]
[1,0,0,0,1,0,0,0,"CADETE","F","ASO LÓPEZ","REBECA","REBECA ASO LÓPEZ","73032359E","2009-10-01",2009,15,10,14,"2024-01-11",24,"OS NABATERS D.F.",1]
[0,0,0,0,1,0,0,0,"CADETE","M","CANO JIMÉNEZ","DARÍO","DARÍO CANO JIMÉNEZ","49968088J","2009-08-05",2009,15,8,14,"2024-01-11",25,"OS NABATERS D.F.",1,null,null,null,1,1,1,1,1]
[0,0,0,0,1,0,0,0,"CADETE","M","FAÑA GRIÑÓN","JOSÉ MANUEL","JOSÉ MANUEL FAÑA GRIÑÓN","73165419G","2009-04-01",2009,15,4,14,"2024-01-11",26,"OS NABATERS D.F.",1,null,null,null,1,1,1,1,1]
[0,0,0,0,1,0,0,0,"CADETE","M","ABENIA CÁMARA","MIGUEL","MIGUEL ABENIA CÁMARA","73164978T","2008-11-07",2008,16,11,15,"2024-01-11",27,"OS NABATERS D.F.",1,null,null,null,1,1,1,1,1]
[1,0,0,0,1,0,0,0,"CADETE","F","ASO LÓPEZ","CLAUDIA","CLAUDIA ASO LÓPEZ","73032358K","2008-05-07",2008,16,5,15,"2024-01-11",28,"OS NABATERS D.F.",1,null,null,null,1,1,1,1,1]
[1,0,0,0,0,1,0,0,"JUVENIL","F","BAILO GARCÍA","SARA","SARA BAILO GARCÍA","77221560A","2007-11-27",2007,17,11,16,"2024-01-11",29,"OS NABATERS D.F.",1,null,null,null,1,1,1,1,1]
[0,0,0,0,0,1,0,0,"JUVENIL","M","FAUBELL MACÍA","GERMÁN","GERMÁN FAUBELL MACÍA","25359729K","2007-09-21",2007,17,9,16,"2024-01-11",30,"OS NABATERS D.F.",1,null,null,null,1,1,1,1,1]
[1,0,0,0,0,1,0,0,"JUVENIL","F","MARTÍN RANERA","SARA","SARA MARTÍN RANERA","26055855Y","2007-07-21",2007,17,7,16,"2024-01-11",31,"OS NABATERS D.F.",1,null,null,null,1,1,1,1,1]
[0,0,0,0,0,1,0,0,"JUVENIL","M","AZNAR SAMPER","ADRIÁN","ADRIÁN AZNAR SAMPER","25356729B","2007-03-09",2007,17,3,17,"2024-01-11",32,"OS NABATERS D.F.",1,null,null,null,1,1,1,1,1]
[1,0,0,0,0,1,0,0,"JUVENIL","F","LAPLANA DÍAZ","GABRIELA","GABRIELA LAPLANA DÍAZ","73514302T","2007-03-07",2007,17,3,17,"2024-01-11",33,"OS NABATERS D.F.",1,null,null,null,1,0,1,1,1]
[1,0,0,0,0,1,0,0,"JUVENIL","F","OLIVA CORTÉS","ÁNGELA","ÁNGELA OLIVA CORTÉS","73236459C","2006-07-22",2006,18,7,17,"2024-01-11",34,"OS NABATERS D.F.",1,null,null,null,1,1,1,1,1]
[1,0,0,0,0,0,1,0,"SENIOR","F","HERNÁNDEZ ROYO","RAQUEL","RAQUEL HERNÁNDEZ ROYO","26279886V","2000-11-29",2000,24,11,23,"2024-01-11",35,"OS NABATERS D.F.",1,null,null,null,1,1,1,1,1]
[0,0,0,0,0,0,0,1,"VETERANO","M","SÁNCHEZ GARRIGÓS","ERNESTO","ERNESTO SÁNCHEZ GARRIGÓS","48619794W","1992-11-04",1992,32,11,31,"2024-01-11",36,"OS NABATERS D.F.",1,null,null,null,1,1,1,1,1]
[1,0,0,0,0,0,0,1,"VETERANO","F","ARNAIZ LÓPEZ","ANA","ANA ARNAIZ LÓPEZ","47494541R","1985-07-27",1985,39,7,38,"2024-01-11",37,"OS NABATERS D.F.",1]
[0,0,0,0,0,0,0,1,"VETERANO","M","NAVARRO CARRETERO","ROBERTO","ROBERTO NAVARRO CARRETERO","25444641V","1969-10-16",1969,55,10,54,"2024-01-11",38,"OS NABATERS D.F.",1,null,null,null,1,1,1,1,1]
[1,0,0,0,0,0,0,1,"VETERANO","F","PALACÍN ARTIGOSA","SELMA","SELMA PALACÍN ARTIGOSA","17753813K","1981-09-17",1981,43,9,42,"2024-01-11",39,"OS NABATERS D.F.",1,null,null,null,1,1,1,1,1]
[0,0,0,0,0,0,0,1,"VETERANO","M","CAMBERO CENZANO","JOSÉ LUIS","JOSÉ LUIS CAMBERO CENZANO","25444469Y","1969-05-05",1969,55,5,54,"2024-01-11",40,"OS NABATERS D.F.",1,null,null,null,1,1,1,1,1]
[0,0,0,0,0,0,0,1,"VETERANO","M","RUANO FERNÁNDEZ","GABRIEL JOSÉ","GABRIEL JOSÉ RUANO FERNÁNDEZ","29103088S","1969-03-14",1969,55,3,55,"2024-01-11",41,"OS NABATERS D.F.",1,null,null,null,1,0,1,1,1]
[0,0,0,0,0,0,1,0,"SENIOR","M","VICENTE MIRANDA","GUILLÉN","GUILLÉN VICENTE MIRANDA","73448811J","2001-06-16",2001,23,6,22,"2024-01-11",42,"OS NABATERS D.F.",1,1,1,null,1,1,1,1,1]
[0,0,0,0,0,0,1,0,"SENIOR","M","PONCE USÓN","JORGE","JORGE PONCE USÓN","25207173R","2000-11-17",2000,24,11,23,"2024-01-11",43,"OS NABATERS D.F.",1,null,1,null,1,1,1,1,1]
[0,0,0,0,0,0,0,1,"VETERANO","M","BEA GONZÁLEZ","MIGUEL","MIGUEL BEA GONZÁLEZ","17205307L","1966-09-26",1966,58,9,57,"2024-01-11",44,"OS NABATERS D.F.",null,null,1,null,1,1,1,1,1]
[0,0,0,0,0,0,0,1,"VETERANO","M","CASAS GUILLÉN","ADRIÁN","ADRIÁN CASAS GUILLÉN","17764108N","1989-07-16",1989,35,7,34,"2024-01-11",45,"CENTRO NATACION HELIOS",1]
[0,0,0,0,0,0,1,0,"SENIOR","M","GARCÍA RUIZ","ALBERTO","ALBERTO GARCÍA RUIZ","73219311D","2002-01-19",2002,22,1,22,"2024-01-11",46,"CENTRO NATACION HELIOS",1]
[0,0,0,0,0,1,0,0,"JUVENIL","M","JURADO PÉREZ","ALEXANDER","ALEXANDER JURADO PÉREZ","25362246P","2006-06-22",2006,18,6,17,"2024-01-11",47,"CENTRO NATACION HELIOS",1]
[0,0,0,0,0,0,0,1,"VETERANO","M","MUNIESA FERRERO","ALFONSO","ALFONSO MUNIESA FERRERO","17221336V","1964-10-11",1964,60,10,59,"2024-01-11",48,"CENTRO NATACION HELIOS",1,1,1]
[0,0,0,0,0,0,0,1,"VETERANO","M","DIEZ SECO","ALFREDO","ALFREDO DIEZ SECO","25458198G","1973-04-07",1973,51,4,50,"2024-01-11",49,"CENTRO NATACION HELIOS",1]
[1,0,1,0,0,0,0,0,"ALEVIN","F","LUNA MONTAGUD","ALICIA","ALICIA LUNA MONTAGUD","17472004P","2012-09-02",2012,12,9,11,"2024-01-11",50,"CENTRO NATACION HELIOS",1]
[1,0,0,0,0,0,0,1,"VETERANO","F","FUENTES LORENTE","ANA CARMEN","ANA CARMEN FUENTES LORENTE","25452351E","1971-01-24",1971,53,1,53,"2024-01-11",51,"CENTRO NATACION HELIOS",1]
[0,0,0,0,0,0,0,1,"VETERANO","M","BLANCO VELÁZQUEZ","ANDRÉS","ANDRÉS BLANCO VELÁZQUEZ","17737449X","1973-09-11",1973,51,9,50,"2024-01-11",52,"CENTRO NATACION HELIOS",1]
[0,0,0,0,0,0,0,1,"VETERANO","M","DÍAZ ROBLES","ANDRÉS","ANDRÉS DÍAZ ROBLES","17707529J","1962-05-07",1962,62,5,61,"2024-01-11",53,"CENTRO NATACION HELIOS",1]
[0,0,0,0,1,0,0,0,"CADETE","M","PERNÍA OYAGA","ÁNGEL","ÁNGEL PERNÍA OYAGA","26275907V","2009-07-31",2009,15,7,14,"2024-01-11",54,"CENTRO NATACION HELIOS",1]
[0,0,0,0,0,1,0,0,"JUVENIL","M","ALONSO GUTIÉRREZ","CARLOS","CARLOS ALONSO GUTIÉRREZ","77223685N","2006-07-16",2006,18,7,17,"2024-01-11",55,"CENTRO NATACION HELIOS",1]
[0,0,0,0,0,0,0,1,"VETERANO","M","MILLÁN BLASCO","CARLOS","CARLOS MILLÁN BLASCO","25170726D","1977-05-16",1977,47,5,46,"2024-01-11",56,"CENTRO NATACION HELIOS",1]
[0,0,0,0,0,0,1,0,"SENIOR","M","PONCE USÓN","CARLOS","CARLOS PONCE USÓN","25207175A","2002-10-19",2002,22,10,21,"2024-01-11",57,"CENTRO NATACION HELIOS",1,null,null,null,1,1,1,1,1]
[1,0,0,0,1,0,0,0,"CADETE","F","MILLÁN GÓMEZ","CHLOÉ","CHLOÉ MILLÁN GÓMEZ","77219625T","2009-05-05",2009,15,5,14,"2024-01-11",58,"CENTRO NATACION HELIOS",1]
[1,0,0,0,0,0,1,0,"SENIOR","F","ALCÁZAR HERRERO","CLAUDIA","CLAUDIA ALCÁZAR HERRERO","73168238V","2004-08-24",2004,20,8,19,"2024-01-11",59,"CENTRO NATACION HELIOS",1,null,null,null,1,1,1,1,1]
[0,0,0,0,0,1,0,0,"JUVENIL","M","ZAPATA LARROY","DANIEL ARTURO","DANIEL ARTURO ZAPATA LARROY","25357360K","2007-12-09",2007,17,12,16,"2024-01-11",60,"CENTRO NATACION HELIOS",1]
[0,0,0,0,1,0,0,0,"CADETE","M","VELILLA PÉREZ","DANIEL","DANIEL VELILLA PÉREZ","73285521T","2008-07-19",2008,16,7,15,"2024-01-11",61,"CENTRO NATACION HELIOS",1]
[0,0,0,0,1,0,0,0,"CADETE","M","JIMÉNEZ HORNOS","DIEGO","DIEGO JIMÉNEZ HORNOS","26795241B","2008-07-19",2008,16,7,15,"2024-01-11",62,"CENTRO NATACION HELIOS",1]
[0,0,0,0,0,0,1,0,"SENIOR","M","LASHERAS BLASCO","DIEGO","DIEGO LASHERAS BLASCO","77760320B","2002-11-15",2002,22,11,21,"2024-01-11",63,"CENTRO NATACION HELIOS",1,null,null,null,1,0,0,0,0]
[0,0,0,0,0,0,0,1,"VETERANO","M","CILLEROS BLÁZQUEZ","EMILIO ANASTASIO","EMILIO ANASTASIO CILLEROS BLÁZQUEZ","17719575F","1966-08-08",1966,58,8,57,"2024-01-11",64,"CENTRO NATACION HELIOS",1,null,null,null,1,1,1,1,1]
[{"$f":"IF(J68=\"F\", 1,0)","v":0},{"$f":"IF(I68=\"BENJAMIN\", 1,0)","v":0},{"$f":"IF(I68=\"ALEVIN\", 1,0)","v":0},{"$f":"IF(I68=\"INFANTIL\", 1,0)","v":1},{"$f":"IF(I68=\"CADETE\", 1,0)","v":0},{"$f":"IF(I68=\"JUVENIL\", 1,0)","v":0},{"$f":"IF(I68=\"SENIOR\", 1,0)","v":0},0,"INFANTIL","M","CAZADOR SERRANO","ERIC",{"$f":"L68&\" \"& K68","v":"ERIC CAZADOR SERRANO"},"25363173S","2010-03-11",{"$f":"YEAR(O68)","v":2010},{"$f":"$AC$1-P68","v":14},{"$f":"MONTH(O68)","v":3},14,"2024-01-11",65,"CENTRO NATACION HELIOS",1,null,null,null,1,1,1,1,1]
[1,0,0,0,0,0,0,1,"VETERANO","F","AGUAS GARCIA","ESMERALDA","ESMERALDA AGUAS GARCIA","25435710X","1963-09-16",1963,61,9,60,"2024-01-11",66,"CENTRO NATACION HELIOS",1,1]
[1,0,0,0,0,0,0,1,"VETERANO","F","ANGLÉS BEL","EVA MARÍA","EVA MARÍA ANGLÉS BEL","25455628X","1973-07-26",1973,51,7,50,"2024-01-11",67,"CENTRO NATACION HELIOS",1]
[0,0,0,0,1,0,0,0,"CADETE","M","MARTÍN RANERA","FERNANDO","FERNANDO MARTÍN RANERA","26055852A","2009-06-27",2009,15,6,14,"2024-01-11",68,"CENTRO NATACION HELIOS",1]
[0,0,0,0,0,0,1,0,"SENIOR","M","LACRUZ SANZ","FRANCISCO DE ASÍS","FRANCISCO DE ASÍS LACRUZ SANZ","73471366M","2001-03-31",2001,23,3,23,"2024-01-11",69,"CENTRO NATACION HELIOS",1]
[0,0,0,0,1,0,0,0,"CADETE","M","GUTIÉRREZ GASPAR","GERMÁN","GERMÁN GUTIÉRREZ GASPAR","26056076C","2009-07-30",2009,15,7,14,"2024-01-11",70,"CENTRO NATACION HELIOS",1]
[0,0,0,0,0,1,0,0,"JUVENIL","M","MONTAGUD GÓMEZ","GONZALO","GONZALO MONTAGUD GÓMEZ","73159450S","2007-04-17",2007,17,4,16,"2024-01-11",71,"CENTRO NATACION HELIOS",1]
[0,0,0,1,0,0,0,0,"INFANTIL","M","IGLESIAS DELGADO","IAGO","IAGO IGLESIAS DELGADO","77761979Z","2011-10-16",2011,13,10,12,"2024-01-11",72,"CENTRO NATACION HELIOS",1]
[0,0,0,0,1,0,0,0,"CADETE","M","MEDINA ECHEVERRÍA","IBÓN","IBÓN MEDINA ECHEVERRÍA","26308717Y","2009-09-24",2009,15,9,14,"2024-01-11",73,"CENTRO NATACION HELIOS",1]
[0,0,0,0,1,0,0,0,"CADETE","M","ALONSO ROCHE","IKER","IKER ALONSO ROCHE","25361278Y","2008-12-27",2008,16,12,15,"2024-01-11",74,"CENTRO NATACION HELIOS",1]
[0,0,0,0,0,0,1,0,"SENIOR","M","ZAPATA LARROY","ÍÑIGO MIGUEL","ÍÑIGO MIGUEL ZAPATA LARROY","17769865L","2004-01-09",2004,20,1,20,"2024-01-11",75,"CENTRO NATACION HELIOS",1]
[0,0,0,0,1,0,0,0,"CADETE","M","CABELLO PIETRZAK","IREK","IREK CABELLO PIETRZAK","25209552B","2008-01-05",2008,16,1,16,"2024-01-11",76,"CENTRO NATACION HELIOS",1,null,null,null,1,1,1,1,1]
[1,0,0,0,1,0,0,0,"CADETE","F","TOVAR GODOY","ISABEL","ISABEL TOVAR GODOY","73164274D","2008-05-20",2008,16,5,15,"2024-01-11",77,"CENTRO NATACION HELIOS",1]
[0,0,0,0,0,0,0,1,"VETERANO","M","LATAS JIMÉNEZ","IVÁN","IVÁN LATAS JIMÉNEZ","29126653M","1981-04-19",1981,43,4,42,"2024-01-11",78,"CENTRO NATACION HELIOS",1,1]
[0,0,0,0,0,0,0,1,"VETERANO","M","PÉREZ RODRÍGUEZ","IVÁN","IVÁN PÉREZ RODRÍGUEZ","76582508Y","1992-03-11",1992,32,3,32,"2024-01-11",79,"CENTRO NATACION HELIOS",1]
[0,0,0,0,0,0,0,1,"VETERANO","M","BARRACHINA RODRÍGUEZ","JAVIER","JAVIER BARRACHINA RODRÍGUEZ","25454763L","1972-05-02",1972,52,5,51,"2024-01-11",80,"CENTRO NATACION HELIOS",1]
[0,0,0,0,0,0,1,0,"SENIOR","M","LOPERENA GALLEGO","JAVIER ALBERTO","JAVIER ALBERTO LOPERENA GALLEGO","77217444G","2002-10-24",2002,22,10,21,"2024-01-11",81,"CENTRO NATACION HELIOS",1,null,null,null,1,1,1,1,1]
[0,0,0,0,0,0,1,0,"SENIOR","M","MUNIESA AGUAS","JAVIER","JAVIER MUNIESA AGUAS","73027171D","2001-03-08",2001,23,3,23,"2024-01-11",82,"CENTRO NATACION HELIOS",null,1,null,null,1,1,1,1,1]
[0,0,0,1,0,0,0,0,"INFANTIL","M","REMACHA PUSCO","JAVIER","JAVIER REMACHA PUSCO","30334826B","2010-02-18",2010,14,2,14,"2024-01-11",83,"CENTRO NATACION HELIOS",1]
[0,0,0,1,0,0,0,0,"INFANTIL","M","SORO FUENTES","JOAQUÍN JESÚS","JOAQUÍN JESÚS SORO FUENTES","73478867P","2011-10-16",2011,13,10,12,"2024-01-11",84,"CENTRO NATACION HELIOS",1]
[0,0,0,0,1,0,0,{"$f":"IF(I88=\"VETERANO\", 1,0)","v":0},{"$f":"IF((Q88<11),\"BENJAMIN\",IF(OR(Q88=11,Q88=12),\"ALEVIN\",IF(OR(Q88=13,Q88=14),\"INFANTIL\",IF(OR(Q88=15,Q88=16),\"CADETE\",IF(OR(Q88=17,Q88=18),\"JUVENIL\",IF(AND(Q88>18,Q88<31),\"SENIOR\",\"VETERANO\"))))))","v":"CADETE"},"M","CALZADA LARA","JONÁS","JONÁS CALZADA LARA","73055546W","2008-06-04",2008,16,6,{"$f":"DATEDIF(O88,TODAY(),\"Y\")","v":15},"2024-01-11",85,"CENTRO NATACION HELIOS",1]
[0,1,0,0,0,0,0,0,"BENJAMIN","M","LUNA MONTAGUD","JORGE","JORGE LUNA MONTAGUD","73622251X","2014-04-27",2014,10,4,9,"2024-01-11",86,"CENTRO NATACION HELIOS",1]
[0,0,0,0,0,0,0,1,"VETERANO","M","CALVO GRACIA","JORGE OCTAVIO","JORGE OCTAVIO CALVO GRACIA","72987625T","1983-01-15",1983,41,1,41,"2024-01-11",87,"CENTRO NATACION HELIOS",1]
[0,0,0,0,0,0,0,1,"VETERANO","M","PEIRÓ MESA","JORGE","JORGE PEIRÓ MESA","29117077C","1974-07-23",1974,50,7,49,"2024-01-11",88,"CENTRO NATACION HELIOS",1]
[0,0,0,0,1,0,0,0,"CADETE","M","LEAL SUÁREZ","JOSÉ JAVIER","JOSÉ JAVIER LEAL SUÁREZ","49166977S","2008-11-19",2008,16,11,15,"2024-01-11",89,"CENTRO NATACION HELIOS",1]
[0,0,0,0,0,0,0,1,"VETERANO","M","LACASTA AISA","JOSÉ","JOSÉ LACASTA AISA","25154088T","1969-07-14",1969,55,7,54,"2024-01-11",90,"CENTRO NATACION HELIOS",1]
[0,0,0,0,0,0,0,1,"VETERANO","M","BIELSA ARTIDIELLO","JOSÉ MANUEL","JOSÉ MANUEL BIELSA ARTIDIELLO","29091165Y","1964-10-14",1964,60,10,59,"2024-01-11",91,"CENTRO NATACION HELIOS",1]
[0,0,0,0,0,0,0,1,"VETERANO","M","LABARTA PINILLA","JOSÉ MANUEL","JOSÉ MANUEL LABARTA PINILLA","25425646C","1964-08-07",1964,60,8,59,"2024-01-11",92,"CENTRO NATACION HELIOS",1]
[0,0,0,0,0,0,0,1,"VETERANO","M","TABUENCA COLERA","JOSÉ","JOSÉ TABUENCA COLERA","17712127B","1962-01-20",1962,62,1,62,"2024-01-11",93,"CENTRO NATACION HELIOS",1,null,null,null,1,0,1,1,1]
[0,0,0,0,0,0,0,1,"VETERANO","M","CALAVIA RODRÍGUEZ","JUAN CARLOS","JUAN CARLOS CALAVIA RODRÍGUEZ","25141750J","1964-08-09",1964,60,8,59,"2024-01-11",94,"CENTRO NATACION HELIOS",1]
[0,0,0,0,0,0,0,1,"VETERANO","M","SALAS IBÁÑEZ","JUAN JOSÉ","JUAN JOSÉ SALAS IBÁÑEZ","17178039Y","1950-03-05",1950,74,3,74,"2024-01-11",95,"CENTRO NATACION HELIOS",1]
[0,0,0,0,0,0,1,0,"SENIOR","M","LERMA IRURETA","JUAN","JUAN LERMA IRURETA","17771602P","2001-09-04",2001,23,9,22,"2024-01-11",96,"CENTRO NATACION HELIOS",1,null,null,null,1,1,1,1,1]
[0,0,0,1,0,0,0,0,"INFANTIL","M","TOVAR GODOY","JUAN","JUAN TOVAR GODOY","73164131G","2010-07-08",2010,14,7,13,"2024-01-11",97,"CENTRO NATACION HELIOS",1]
[0,0,0,0,0,0,0,1,"VETERANO","M","BIELSA ARTIDIELLO","JULIO","JULIO BIELSA ARTIDIELLO","17728131F","1969-03-29",1969,55,3,55,"2024-01-11",98,"CENTRO NATACION HELIOS",1,null,1]
[1,0,0,0,0,1,0,0,"JUVENIL","F","REMACHA PUSCO","KARLA","KARLA REMACHA PUSCO","73410901F","2006-03-13",2006,18,3,18,"2024-01-11",99,"CENTRO NATACION HELIOS",1]
[1,0,0,0,0,0,0,1,"VETERANO","F","RODRÍGUEZ BRAÑA","MARÍA LOURDES","MARÍA LOURDES RODRÍGUEZ BRAÑA","33548326C","1989-03-25",1989,35,3,35,"2024-01-11",100,"CENTRO NATACION HELIOS",1]
[0,0,0,0,0,0,0,1,"VETERANO","M","ANDRÉS RODRÍGUEZ","LUCAS","LUCAS ANDRÉS RODRÍGUEZ","71901999C","1992-11-01",1992,32,11,31,"2024-01-11",101,"CENTRO NATACION HELIOS",1]
[0,0,0,0,0,0,1,0,"SENIOR","M","MONTI SCHERZER","LUCAS","LUCAS MONTI SCHERZER","73625175J","2005-08-09",2005,19,8,18,"2024-01-11",102,"CENTRO NATACION HELIOS",1]
[1,0,1,0,0,0,0,0,"ALEVIN","F","MONTANER ALFARO","LUCÍA","LUCÍA MONTANER ALFARO","73514253C","2013-05-17",2013,11,5,10,"2024-01-11",103,"CENTRO NATACION HELIOS",1]
[0,0,0,0,1,0,0,0,"CADETE","M","GIRONÉS BENAVENTE","MANUEL","MANUEL GIRONÉS BENAVENTE","73414963K","2008-04-15",2008,16,4,15,"2024-01-11",104,"CENTRO NATACION HELIOS",1]
[0,0,0,0,1,0,0,0,"CADETE","M","MELÉNDEZ DEL PICO","MARCO","MARCO MELÉNDEZ DEL PICO","73427660E","2008-11-21",2008,16,11,15,"2024-01-11",105,"CENTRO NATACION HELIOS",1]
[1,0,0,0,0,0,0,1,"VETERANO","F","PEÑA HERRERO","MARÍA PILAR","MARÍA PILAR PEÑA HERRERO","25450832K","1970-09-30",1970,54,9,53,"2024-01-11",106,"CENTRO NATACION HELIOS",1]
[1,0,0,0,0,1,0,0,"JUVENIL","F","ROMEO VICENTE","MARÍA","MARÍA ROMEO VICENTE","26280390S","2006-07-07",2006,18,7,17,"2024-01-11",107,"CENTRO NATACION HELIOS",1]
[1,0,0,0,0,0,0,1,"VETERANO","F","PINTO SOLANA","MARTA","MARTA PINTO SOLANA","25153195G","1969-06-10",1969,55,6,54,"2024-01-11",108,"CENTRO NATACION HELIOS",1]
[0,0,0,1,0,0,0,0,"INFANTIL","M","MILLÁN GÓMEZ","MARTÍN","MARTÍN MILLÁN GÓMEZ","73052578R","2011-05-16",2011,13,5,12,"2024-01-11",109,"CENTRO NATACION HELIOS",1]
[0,0,0,0,1,0,0,0,"CADETE","M","MONTANER ALFARO","MARTÍN","MARTÍN MONTANER ALFARO","73514251H","2008-06-27",2008,16,6,15,"2024-01-11",110,"CENTRO NATACION HELIOS",1]
[0,0,0,0,0,0,0,1,"VETERANO","M","PÉREZ VICENTE","MIGUEL ÁNGEL","MIGUEL ÁNGEL PÉREZ VICENTE","25159166H","1971-03-26",1971,53,3,53,"2024-01-11",111,"CENTRO NATACION HELIOS",1]
[0,0,0,0,0,0,1,0,"SENIOR","M","BIEL CAMAÑES","MIGUEL","MIGUEL BIEL CAMAÑES","73440266R","2005-04-22",2005,19,4,18,"2024-01-11",112,"CENTRO NATACION HELIOS",1]
[0,0,0,0,1,0,0,0,"CADETE","M","MARTÍN BERNARDOS","NIL","NIL MARTÍN BERNARDOS","17460920X","2008-10-19",2008,16,10,15,"2024-01-11",113,"CENTRO NATACION HELIOS",1]
[1,0,0,0,1,0,0,0,"CADETE","F","FUERTES VALLÉS","NOA","NOA FUERTES VALLÉS","73290681P","2008-07-28",2008,16,7,15,"2024-01-11",114,"CENTRO NATACION HELIOS",1]
[0,0,0,0,0,0,1,0,"SENIOR","M","BRIZ ZAMORANO","PABLO","PABLO BRIZ ZAMORANO","17768134J","1997-03-19",1997,27,3,27,"2024-01-11",115,"CENTRO NATACION HELIOS",1,1]
[0,0,0,0,1,0,0,0,"CADETE","M","MALO VELA","PABLO","PABLO MALO VELA","73237255B","2008-09-08",2008,16,9,15,"2024-01-11",116,"CENTRO NATACION HELIOS",1]
[0,0,0,0,0,0,0,1,"VETERANO","M","ARANDA MARTÍNEZ","PEDRO BENITO","PEDRO BENITO ARANDA MARTÍNEZ","17727417Y","1970-02-19",1970,54,2,54,"2024-01-11",117,"CENTRO NATACION HELIOS",1]
[0,0,0,0,0,1,0,0,"JUVENIL","M","DIEZ GARCÍA","PEDRO","PEDRO DIEZ GARCÍA","25210785W","2006-06-13",2006,18,6,17,"2024-01-11",118,"CENTRO NATACION HELIOS",1]
[0,0,0,0,0,0,0,1,"VETERANO","M","NAVARRO SANGüESA","PEDRO MARÍA","PEDRO MARÍA NAVARRO SANGüESA","73001744C","1987-11-06",1987,37,11,36,"2024-01-11",119,"CENTRO NATACION HELIOS",1]
[0,0,0,0,0,0,0,1,"VETERANO","M","MONTANER MARTÍN","RAFAEL","RAFAEL MONTANER MARTÍN","17750003Y","1977-11-25",1977,47,11,46,"2024-01-11",120,"CENTRO NATACION HELIOS",1]
[1,0,0,0,1,0,0,0,"CADETE","F","DIEZ GARCÍA","SANDRA","SANDRA DIEZ GARCÍA","25210786A","2008-07-11",2008,16,7,15,"2024-01-11",121,"CENTRO NATACION HELIOS",1]
[1,0,0,1,0,0,0,0,"INFANTIL","F","MONTANER ALFARO","SOFÍA","SOFÍA MONTANER ALFARO","73514252L","2010-04-29",2010,14,4,13,"2024-01-11",122,"CENTRO NATACION HELIOS",1]
[0,1,0,0,0,0,0,0,"BENJAMIN","M","CAZADOR SERRANO","UDAI","UDAI CAZADOR SERRANO","26589449T","2015-08-21",2015,9,8,8,"2024-01-11",123,"CENTRO NATACION HELIOS",1]
[1,0,1,0,0,0,0,0,"ALEVIN","F","ESPADA CIPRÉS","VALENTINA ","VALENTINA  ESPADA CIPRÉS","30338021D","2013-03-01",2013,11,3,11,"2024-01-11",124,"CENTRO NATACION HELIOS",1]
[0,0,0,0,1,0,0,0,"CADETE","M","CINCA GARCÍA","VÍCTOR","VÍCTOR CINCA GARCÍA","73235309C","2009-04-01",2009,15,4,14,"2024-01-11",125,"CENTRO NATACION HELIOS",1]
[0,1,0,0,0,0,0,0,"BENJAMIN","M","LENNIKOV IGLESIAS","VÍCTOR","VÍCTOR LENNIKOV IGLESIAS","73235970Z","2015-05-17",2015,9,5,8,"2024-01-11",126,"CENTRO NATACION HELIOS",1]
[0,0,0,0,0,0,0,1,"VETERANO","M","AURED ANTÓN","SERGIO","SERGIO AURED ANTÓN","25483490L","1978-06-11",1978,46,6,45,"2024-01-12",127,"OS NABATERS D.F.",1,null,null,null,1,1,1,1,1]
[1,0,0,0,1,0,0,0,"CADETE","F","AURED CARBI","CARLA","CARLA AURED CARBI","73439677X","2008-05-06",2008,16,5,15,"2024-01-12",128,"OS NABATERS D.F.",1,null,null,null,1,1,1,1,1]
[{"$f":"IF(J132=\"F\", 1,0)","v":0},{"$f":"IF(I132=\"BENJAMIN\", 1,0)","v":0},{"$f":"IF(I132=\"ALEVIN\", 1,0)","v":0},{"$f":"IF(I132=\"INFANTIL\", 1,0)","v":0},{"$f":"IF(I132=\"CADETE\", 1,0)","v":0},{"$f":"IF(I132=\"JUVENIL\", 1,0)","v":0},{"$f":"IF(I132=\"SENIOR\", 1,0)","v":0},1,"VETERANO","M","BELTRÁN DIESTRE","IGNACIO",{"$f":"L132&\" \"& K132","v":"IGNACIO BELTRÁN DIESTRE"},"17730967Z","1971-11-09",{"$f":"YEAR(O132)","v":1971},{"$f":"$AC$1-P132","v":53},{"$f":"MONTH(O132)","v":11},52,"2024-01-12",129,"OS NABATERS D.F.",1,null,null,null,1,1,1,1,1]
[0,0,0,0,1,0,0,0,"CADETE","M","BOIRA GONZALO","LUIS FRANCISCO","LUIS FRANCISCO BOIRA GONZALO","73271015F","2008-05-23",2008,16,5,15,"2024-01-12",130,"OS NABATERS D.F.",1,null,null,null,1,0,1,1,1]
[1,0,0,0,0,0,0,1,"VETERANO","F","GIMÉNEZ HERRERO","MERCEDES","MERCEDES GIMÉNEZ HERRERO","25426937T","1965-12-17",1965,59,12,58,"2024-01-12",131,"OS NABATERS D.F.",1]
[0,0,0,0,0,0,0,1,"VETERANO","M","HERNÁNDEZ PASCUAL","JOSÉ LUIS","JOSÉ LUIS HERNÁNDEZ PASCUAL","17220733N","1964-06-30",1964,60,6,59,"2024-01-12",132,"OS NABATERS D.F.",1,null,null,null,1,1,1,1,1]
[0,0,0,0,1,0,0,0,"CADETE","M","KOLLMANNSBERGER MARCÉN","BRUNO","BRUNO KOLLMANNSBERGER MARCÉN","25356468A","2008-11-03",2008,16,11,15,"2024-01-12",133,"OS NABATERS D.F.",1,null,null,null,1,1,0,0,0]
[0,0,0,1,0,0,0,0,"INFANTIL","M","MARCOS GARCÍA","DAVID","DAVID MARCOS GARCÍA","71716733L","2011-11-10",2011,13,11,12,"2024-01-12",134,"OS NABATERS D.F.",1,null,null,null,0,0,1,1,1]
[0,0,0,0,0,0,0,1,"VETERANO","M","OLMO NADAL","DAVID","DAVID OLMO NADAL","29120065H","1977-02-14",1977,47,2,47,"2024-01-12",135,"OS NABATERS D.F.",1,null,null,null,1,0,1,1,1]
[0,0,0,0,0,0,0,1,"VETERANO","M","OVALLES GUERRA","ABEL RICARDO","ABEL RICARDO OVALLES GUERRA","Y97711375","1989-10-21",1989,35,10,34,"2024-01-12",136,"OS NABATERS D.F.",1,null,null,null,1,1,1,1,1]
[1,0,0,0,0,0,0,1,"VETERANO","F","RIVERO MINNERY","MARÍA INÉS","MARÍA INÉS RIVERO MINNERY","31731419K","1982-09-04",1982,42,9,41,"2024-01-12",137,"OS NABATERS D.F.",1,null,null,null,1,0,1,1,0]
[0,0,0,0,0,0,0,1,"VETERANO","M","SIMÓN TRIGUEROS","ABDÍAS","ABDÍAS SIMÓN TRIGUEROS","48473820D","1987-09-30",1987,37,9,36,"2024-01-12",138,"OS NABATERS D.F.",1,null,null,null,1,1,1,1,1]
[0,0,0,0,0,0,0,1,"VETERANO","M","AGUILAR OLIVER","JORGE MANUEL","JORGE MANUEL AGUILAR OLIVER","73156551Z","1969-08-27",1969,55,8,54,"2024-01-12",139,"CAPRI MEQUINENZA",1,null,null,null,1,1,1,1,1]
[0,0,0,1,0,0,0,0,"INFANTIL","M","AGUILAR ROMERO","DIEGO","DIEGO AGUILAR ROMERO","09826036E","2010-09-25",2010,14,9,13,"2024-01-12",140,"CAPRI MEQUINENZA",1,null,null,null,1,1,1,1,1]
[1,1,0,0,0,0,0,0,"BENJAMIN","F","AGUILAR ROMERO","MARÍA ","MARÍA  AGUILAR ROMERO","09826037T","2015-03-19",2015,9,3,9,"2024-01-12",141,"CAPRI MEQUINENZA",1,null,null,null,1,1,1,1,1]
[1,0,0,1,0,0,0,0,"INFANTIL","F","ARROYO CABALLÉ","MARÍA","MARÍA ARROYO CABALLÉ","26319689F","2011-03-15",2011,13,3,13,"2024-01-12",142,"CAPRI MEQUINENZA",1,null,null,null,1,0,1,1,1]
[1,0,0,1,0,0,0,0,"INFANTIL","F","BRUNA PALAU","IRENE","IRENE BRUNA PALAU","49759211E","2010-01-20",2010,14,1,14,"2024-01-12",143,"CAPRI MEQUINENZA",1,null,null,null,1,1,1,1,1]
[1,0,0,1,0,0,0,0,"INFANTIL","F","BRUNA PALAU","MIRIAM","MIRIAM BRUNA PALAU","49759213R","2010-01-20",2010,14,1,14,"2024-01-12",144,"CAPRI MEQUINENZA",1,null,null,null,1,1,1,1,1]
[0,0,1,0,0,0,0,0,"ALEVIN","M","CASTELLNOU SOROLLA","IVÁN ","IVÁN  CASTELLNOU SOROLLA","49538212F","2012-01-19",2012,12,1,12,"2024-01-12",145,"CAPRI MEQUINENZA",1,null,null,null,1,0,1,1,1]
[0,0,0,0,0,0,0,1,"VETERANO","M","CASTELLÓ ROCA","JORDI","JORDI CASTELLÓ ROCA","17741096T","1978-10-16",1978,46,10,45,"2024-01-12",146,"CAPRI MEQUINENZA",1,null,null,null,1,1,1,1,1]
[1,0,0,1,0,0,0,0,"INFANTIL","F","CASTELLÓ VILA","AROA","AROA CASTELLÓ VILA","21748356Q","2011-10-17",2011,13,10,12,"2024-01-12",147,"CAPRI MEQUINENZA",1,null,null,null,1,1,1,1,1]
[1,0,0,0,0,0,0,1,"VETERANO","F","CASTRO ARANDA","CONCEPCIÓN","CONCEPCIÓN CASTRO ARANDA","73155606N","1968-11-30",1968,56,11,55,"2024-01-12",148,"CAPRI MEQUINENZA",1,null,null,null,1,1,1,1,1]
[1,0,0,1,0,0,0,{"$f":"IF(I152=\"VETERANO\", 1,0)","v":0},{"$f":"IF((Q152<11),\"BENJAMIN\",IF(OR(Q152=11,Q152=12),\"ALEVIN\",IF(OR(Q152=13,Q152=14),\"INFANTIL\",IF(OR(Q152=15,Q152=16),\"CADETE\",IF(OR(Q152=17,Q152=18),\"JUVENIL\",IF(AND(Q152>18,Q152<31),\"SENIOR\",\"VETERANO\"))))))","v":"INFANTIL"},"F","CATALÁN MOYA","MARINA","MARINA CATALÁN MOYA","49535632A","2010-10-25",2010,14,10,{"$f":"DATEDIF(O152,TODAY(),\"Y\")","v":13},"2024-01-12",149,"CAPRI MEQUINENZA",1,null,null,null,1,1,1,1,1]
[0,1,0,0,0,0,0,0,"BENJAMIN","M","CHERTÓ JIMÉNEZ","JOEL","JOEL CHERTÓ JIMÉNEZ","09825064Q","2014-03-18",2014,10,3,10,"2024-01-12",150,"CAPRI MEQUINENZA",1]
[1,0,0,1,0,0,0,0,"INFANTIL","F","CUCHÍ NIUBÓ","ALBA","ALBA CUCHÍ NIUBÓ","49750595P","2011-06-27",2011,13,6,12,"2024-01-12",151,"CAPRI MEQUINENZA",1,null,null,null,1,1,1,1,1]
[0,0,0,0,0,1,0,0,"JUVENIL","M","DAMIÁN","TIBERIU GABRIEL","TIBERIU GABRIEL DAMIÁN","Y0919396P","2007-11-12",2007,17,11,16,"2024-01-12",152,"CAPRI MEQUINENZA",1,null,null,null,1,1,1,1,1]
[0,0,1,0,0,0,0,0,"ALEVIN","M","ESCALONA VILLACAMPA","JOKIN KOLDO","JOKIN KOLDO ESCALONA VILLACAMPA","21748357V","2012-04-02",2012,12,4,11,"2024-01-12",153,"CAPRI MEQUINENZA",1,null,null,null,1,0,1,1,1]
[0,0,0,0,1,0,0,0,"CADETE","M","ESTEVE CASTELLÓ","AARÓN","AARÓN ESTEVE CASTELLÓ","21747085X","2008-07-17",2008,16,7,15,"2024-01-12",154,"CAPRI MEQUINENZA",1,null,null,null,1,1,1,1,1]
[0,0,0,0,0,0,0,1,"VETERANO","M","ESTEVE CATALÁN","LUIS","LUIS ESTEVE CATALÁN","73086543H","1990-04-18",1990,34,4,33,"2024-01-12",155,"CAPRI MEQUINENZA",1,null,null,null,1,0,1,1,1]
[1,0,1,0,0,0,0,0,"ALEVIN","F","ESTRUGA LLOP","ONA","ONA ESTRUGA LLOP","21749867D","2013-10-20",2013,11,10,10,"2024-01-12",156,"CAPRI MEQUINENZA",1,null,null,null,1,1,1,1,1]
[0,0,0,0,0,0,0,1,"VETERANO","M","ESTRUGA GIMENO","VÍCTOR","VÍCTOR ESTRUGA GIMENO","73086539Z","1986-01-14",1986,38,1,38,"2024-01-12",157,"CAPRI MEQUINENZA",1,null,null,null,1,1,1,1,1]
[0,1,0,0,0,0,0,0,"BENJAMIN","M","EXPÓSITO SORO","ENZO","ENZO EXPÓSITO SORO","09826034C","2015-06-18",2015,9,6,8,"2024-01-12",158,"CAPRI MEQUINENZA",1,null,null,null,1,1,1,1,1]
[1,0,0,1,0,0,0,0,"INFANTIL","F","EXPÓSITO SORO","IRIA","IRIA EXPÓSITO SORO","21748355S","2010-05-04",2010,14,5,13,"2024-01-12",159,"CAPRI MEQUINENZA",1,null,null,null,1,1,1,1,1]
[1,0,0,0,0,0,0,1,"VETERANO","F","GARCÍA ARANDA","Mª CARMEN","Mª CARMEN GARCÍA ARANDA","45479315N","1974-02-23",1974,50,2,50,"2024-01-12",160,"CAPRI MEQUINENZA",null,null,1,null,1,1,1,1,1]
[1,0,0,0,0,0,0,1,"VETERANO","F","GODIA PI","MARÍA TERESA","MARÍA TERESA GODIA PI","73092010B","1989-08-13",1989,35,8,34,"2024-01-12",161,"CAPRI MEQUINENZA",1,null,1,null,1,1,1,1,1]
[1,0,1,0,0,0,0,0,"ALEVIN","F","GÓMEZ CARMONA","PAULA","PAULA GÓMEZ CARMONA","09826952H","2012-07-24",2012,12,7,11,"2024-01-12",162,"CAPRI MEQUINENZA",1,null,null,null,1,1,1,1,1]
[1,0,0,1,0,0,0,0,"INFANTIL","F","GONZÁLEZ GARCÍA","ABRIL","ABRIL GONZÁLEZ GARCÍA","49756207P","2011-10-06",2011,13,10,12,"2024-01-12",163,"CAPRI MEQUINENZA",1,null,null,null,1,1,1,1,1]
[1,0,1,0,0,0,0,0,"ALEVIN","F","GUARDIOLA BARTOLOMÉ","NAIA","NAIA GUARDIOLA BARTOLOMÉ","09825022C","2013-10-18",2013,11,10,10,"2024-01-12",164,"CAPRI MEQUINENZA",1,null,null,null,1,1,1,1,1]
[0,0,0,0,1,0,0,0,"CADETE","M","GUIMERA JANIK","PAULO","PAULO GUIMERA JANIK","49260776C","2009-11-23",2009,15,11,14,"2024-01-12",165,"CAPRI MEQUINENZA",1,null,null,null,1,1,1,1,1]
[1,0,0,0,0,1,0,0,"JUVENIL","F","HIERRO GARCÍA","GISELA","GISELA HIERRO GARCÍA","79282536H","2007-11-05",2007,17,11,16,"2024-01-12",166,"CAPRI MEQUINENZA",1,null,null,null,1,1,1,1,1]
[1,0,0,0,1,0,0,0,"CADETE","F","IBARZ BERENGUER","IRATXE","IRATXE IBARZ BERENGUER","52037048P","2009-03-08",2009,15,3,15,"2024-01-12",167,"CAPRI MEQUINENZA",1,null,null,null,1,1,1,1,1]
[1,0,0,0,0,0,0,1,"VETERANO","F","LLOP RIAU","ROSA MARÍA","ROSA MARÍA LLOP RIAU","73155604X","1968-01-27",1968,56,1,56,"2024-01-12",168,"CAPRI MEQUINENZA",1,null,null,null,1,1,1,1,1]
[0,0,0,0,0,1,0,0,"JUVENIL","M","MÁRQUEZ GUARDIOLA","AARÓN","AARÓN MÁRQUEZ GUARDIOLA","20561541R","2007-01-08",2007,17,1,17,"2024-01-12",169,"CAPRI MEQUINENZA",1,null,null,null,1,1,1,1,1]
[1,0,1,0,0,0,0,0,"ALEVIN","F","MARTÍNEZ CLAVERO","ALBA","ALBA MARTÍNEZ CLAVERO","09825125P","2013-04-13",2013,11,4,10,"2024-01-12",170,"CAPRI MEQUINENZA",1,null,null,null,1,1,1,1,1]
[0,0,0,0,1,0,0,0,"CADETE","M","MARTÍNEZ CLAVERO","YERAY","YERAY MARTÍNEZ CLAVERO","49263892P","2009-05-06",2009,15,5,14,"2024-01-12",171,"CAPRI MEQUINENZA",1,null,null,null,1,1,1,1,1]
[1,0,0,0,1,0,0,0,"CADETE","F","MURZAKOVA","SOFÍA","SOFÍA MURZAKOVA","Y8303117Q","2008-11-23",2008,16,11,15,"2024-01-12",172,"CAPRI MEQUINENZA",1]
[0,0,0,0,0,0,0,1,"VETERANO","M","OLIVER CABALLÉ","DAVID","DAVID OLIVER CABALLÉ","73157371Y","1981-01-05",1981,43,1,43,"2024-01-12",173,"CAPRI MEQUINENZA",null,1,null,null,1,1,1,1,1]
[1,0,1,0,0,0,0,0,"ALEVIN","F","PALAU FERRAGUT","NOA","NOA PALAU FERRAGUT","49757430N","2013-02-10",2013,11,2,11,"2024-01-12",174,"CAPRI MEQUINENZA",1]
[0,0,0,1,0,0,0,0,"INFANTIL","M","RAHIBI VIDALLET","ISMAEL","ISMAEL RAHIBI VIDALLET","21765639A","2010-03-03",2010,14,3,14,"2024-01-12",175,"CAPRI MEQUINENZA",1]
[0,0,0,0,1,0,0,0,"CADETE","M","RAHIBI VIDALLET","MOHAMED ADAM","MOHAMED ADAM RAHIBI VIDALLET","21761862K","2008-08-09",2008,16,8,15,"2024-01-12",176,"CAPRI MEQUINENZA",1]
[1,0,0,0,0,0,1,0,"SENIOR","F","RAMI CASTRO","JULIA","JULIA RAMI CASTRO","47980202V","1998-01-18",1998,26,1,26,"2024-01-12",177,"CAPRI MEQUINENZA",1,null,null,null,1,0,1,1,1]
[1,0,0,0,0,0,0,1,"VETERANO","F","ROMERO OLMOS","SARA ","SARA  ROMERO OLMOS","43445827T","1979-05-19",1979,45,5,44,"2024-01-12",178,"CAPRI MEQUINENZA",1,null,null,null,1,1,1,1,1]
[0,0,1,0,0,0,0,0,"ALEVIN","M","SANJUÁN SATORRES","IKER","IKER SANJUÁN SATORRES","54989528R","2013-02-21",2013,11,2,11,"2024-01-12",179,"CAPRI MEQUINENZA",1,null,null,null,1,1,1,1,1]
[1,0,0,0,1,0,0,0,"CADETE","F","SERVETO ORDUÑA","SOFÍA","SOFÍA SERVETO ORDUÑA","09825427B","2009-10-27",2009,15,10,14,"2024-01-12",180,"CAPRI MEQUINENZA",1,null,null,null,1,1,1,1,1]
[1,0,0,0,0,0,0,1,"VETERANO","F","SIMÓN MARTÍN","MERITXELL","MERITXELL SIMÓN MARTÍN","47767253W","1981-06-26",1981,43,6,42,"2024-01-12",181,"CAPRI MEQUINENZA",1,null,null,null,1,1,1,1,1]
[1,0,0,0,1,0,0,0,"CADETE","F","TORRES GODIA","CARLA","CARLA TORRES GODIA","49758958V","2009-08-30",2009,15,8,14,"2024-01-12",182,"CAPRI MEQUINENZA",1]
[1,0,0,0,0,1,0,0,"JUVENIL","F","VERA JARQUE","PAULA","PAULA VERA JARQUE","49384075Q","2007-12-21",2007,17,12,16,"2024-01-12",183,"CAPRI MEQUINENZA",1]
[0,0,0,0,1,0,0,0,"CADETE","M","VILELLA BERENGUER","ÁLEX","ÁLEX VILELLA BERENGUER","49254948B","2009-03-13",2009,15,3,15,"2024-01-12",184,"CAPRI MEQUINENZA",1]
[0,1,0,0,0,0,0,0,"BENJAMIN","M","VIU NOGUÉS","SAÚL","SAÚL VIU NOGUÉS","21749415V","2014-03-06",2014,10,3,10,"2024-01-12",185,"CAPRI MEQUINENZA",1,null,null,null,1,0,1,1,1]
[1,0,0,0,0,0,0,1,"VETERANO","F","SERVETO PALOMAR","PEDRO JOSÉ","PEDRO JOSÉ SERVETO PALOMAR","73194997G","1970-04-02",1970,54,4,53,"2024-01-18",186,"CAPRI MEQUINENZA",null,null,1,null,1,1,1,1,1]
[0,0,0,0,0,0,0,1,"VETERANO","M","CLAVERO GARCÍA","MARISOL","MARISOL CLAVERO GARCÍA","73204563W","1981-04-10",1981,43,4,42,"2024-01-18",187,"CAPRI MEQUINENZA",null,null,1,null,1,1,1,1,1]
[0,0,0,0,0,0,0,1,"VETERANO","M","TORO SOLER","DAVID","DAVID TORO SOLER","76922443R","1985-07-18",1985,39,7,38,"2024-01-18",188,"CAPRI MEQUINENZA",null,null,1,null,1,0,1,0,0]
[0,0,0,0,0,0,0,1,"VETERANO","M","AGUILERA ANDRÉS","ÁNGEL","ÁNGEL AGUILERA ANDRÉS","17178108Y","1949-11-07",1949,75,11,74,"2024-02-01",189,"OS NABATERS D.F.",1,null,null,null,1,0,0,0,0]
[0,0,0,0,0,0,0,1,"VETERANO","M","CARMELO RICO","JOSÉ","JOSÉ CARMELO RICO","17123634L","1950-01-20",1950,74,1,74,"2024-02-01",190,"OS NABATERS D.F.",1,null,null,null,1,0,1,1,1]
[0,0,0,0,0,0,0,1,"VETERANO","M","DE MIGUEL BENITO","ÁNGEL","ÁNGEL DE MIGUEL BENITO","17683021T","1952-04-30",1952,72,4,71,"2024-02-01",191,"OS NABATERS D.F.",1,1,null,null,1,1,1,1,1]
[0,0,0,0,0,0,0,1,"VETERANO","M","MELGARES HIDALGO","CARLOS","CARLOS MELGARES HIDALGO","17695224J","1956-12-31",1956,68,12,67,"2024-02-01",192,"OS NABATERS D.F.",1,null,null,null,1,1,1,1,1]
[{"$f":"IF(J196=\"F\", 1,0)","v":0},{"$f":"IF(I196=\"BENJAMIN\", 1,0)","v":0},{"$f":"IF(I196=\"ALEVIN\", 1,0)","v":0},{"$f":"IF(I196=\"INFANTIL\", 1,0)","v":0},{"$f":"IF(I196=\"CADETE\", 1,0)","v":0},{"$f":"IF(I196=\"JUVENIL\", 1,0)","v":0},{"$f":"IF(I196=\"SENIOR\", 1,0)","v":0},1,"VETERANO","M","EMBARBA LABORDA","JOSÉ MARÍA",{"$f":"L196&\" \"& K196","v":"JOSÉ MARÍA EMBARBA LABORDA"},"72963666F","1961-04-15",{"$f":"YEAR(O196)","v":1961},{"$f":"$AC$1-P196","v":63},{"$f":"MONTH(O196)","v":4},62,"2024-02-01",193,"OS NABATERS D.F.",1,null,null,null,1,0,1,1,1]
[0,0,0,0,0,0,0,1,"VETERANO","M","SANCHO NAVARRO","ANTONIO ANSELMO","ANTONIO ANSELMO SANCHO NAVARRO","17206376F","1961-04-21",1961,63,4,62,"2024-02-01",194,"OS NABATERS D.F.",1,1,null,null,1,0,0,0,0]
[0,0,0,0,0,0,0,1,"VETERANO","M","PLOU ARTAL","PEDRO DANIEL","PEDRO DANIEL PLOU ARTAL","17715212Z","1962-06-29",1962,62,6,61,"2024-02-01",195,"OS NABATERS D.F.",1,null,null,null,1,0,0,0,0]
[0,0,0,0,0,0,0,1,"VETERANO","M","BELLED LACASA","LUIS CARLOS","LUIS CARLOS BELLED LACASA","25427822B","1964-06-09",1964,60,6,59,"2024-02-01",196,"OS NABATERS D.F.",1,1,null,null,1,1,1,1,1]
[0,0,0,0,0,0,0,1,"VETERANO","M","NAVARRETE SÁNCHEZ","ISCICIO","ISCICIO NAVARRETE SÁNCHEZ","25140545G","1965-06-19",1965,59,6,58,"2024-02-01",197,"OS NABATERS D.F.",1,null,null,null,1,0,1,0,0]
[0,0,0,0,0,0,0,1,"VETERANO","M","MAGDALENA ABAD","JOSÉ IGNACIO","JOSÉ IGNACIO MAGDALENA ABAD","17442414L","1968-08-09",1968,56,8,55,"2024-02-01",198,"OS NABATERS D.F.",1,null,null,null,1,0,0,0,0]
[0,0,0,0,0,0,0,1,"VETERANO","M","MELERO PASCUAL","LUIS JAVIER","LUIS JAVIER MELERO PASCUAL","29102894M","1969-09-17",1969,55,9,54,"2024-02-01",199,"OS NABATERS D.F.",1,null,null,null,1,0,1,1,1]
[0,0,0,0,0,0,1,0,"SENIOR","M","LAVILLA TENÍAS","SANTIAGO","SANTIAGO LAVILLA TENÍAS","17767598Y","1994-03-28",1994,30,3,30,"2024-02-01",200,"OS NABATERS D.F.",1,null,null,null,1,1,1,1,1]
[0,0,0,0,0,0,1,0,"SENIOR","M","SEBASTIÁN BUSTÍN","OMAR","OMAR SEBASTIÁN BUSTÍN","73025719Y","1994-05-11",1994,30,5,29,"2024-02-01",201,"OS NABATERS D.F.",1,null,null,null,1,1,1,1,1]
[0,0,0,0,0,0,1,0,"SENIOR","M","YUS DÍEZ","JESÚS","JESÚS YUS DÍEZ","73029221N","1994-10-30",1994,30,10,29,"2024-02-01",202,"OS NABATERS D.F.",1,null,null,null,1,0,1,1,1]
[0,0,0,0,0,0,1,0,"SENIOR","M","SALILLAS MARTÍNEZ","RICARDO","RICARDO SALILLAS MARTÍNEZ","25204984C","1994-11-16",1994,30,11,29,"2024-02-01",203,"OS NABATERS D.F.",1,null,null,null,1,1,1,1,1]
[1,0,0,0,0,0,1,0,"SENIOR","F","URQUIRI VIDAL","ITZIAR","ITZIAR URQUIRI VIDAL","77218599D","1994-07-22",1994,30,7,29,"2024-02-01",204,"OS NABATERS D.F.",1,null,null,null,1,1,1,1,1]
[1,0,0,0,0,0,1,0,"SENIOR","F","ROMERO DE LA ROSA","ALICIA","ALICIA ROMERO DE LA ROSA","25195771F","1994-10-18",1994,30,10,29,"2024-02-01",205,"OS NABATERS D.F.",1,null,null,null,1,1,1,1,1]
[1,0,0,0,0,0,1,0,"SENIOR","F","RUBIO EZPELETA","ANA","ANA RUBIO EZPELETA","17767678V","1997-10-12",1997,27,10,26,"2024-02-01",206,"OS NABATERS D.F.",1,null,null,null,1,1,1,1,1]
[1,0,0,0,0,0,1,0,"SENIOR","F","SANCHO BUSTÍN","NAOMI","NAOMI SANCHO BUSTÍN","73028933T","1994-08-05",1994,30,8,29,"2024-02-01",207,"OS NABATERS D.F.",1,1,null,null,1,0,0,0,0]
[1,0,0,0,0,0,1,0,"SENIOR","F","SANCHO BUSTÍN","ALODIA","ALODIA SANCHO BUSTÍN","73028934R","1997-08-27",1997,27,8,26,"2024-02-01",208,"OS NABATERS D.F.",1,null,null,null,1,0,0,0,0]
[1,0,0,0,0,0,0,1,"VETERANO","F","MATAIX MONTANER","ANDREA","ANDREA MATAIX MONTANER","20453253C","1985-05-09",1985,39,5,38,"2024-02-06",209,"OS NABATERS D.F.",1,null,null,null,1,1,1,1,1]
[0,0,0,0,0,0,0,1,"VETERANO","M","ESTÉBAN GRAN","VÍCTOR","VÍCTOR ESTÉBAN GRAN","17702922Y","1959-11-23",1959,65,11,64,"2024-02-06",210,"CENTRO NATACION HELIOS",1,null,null,null,1,1,1,1,1]
[0,0,0,0,0,0,0,1,"VETERANO","M","LARROY CALVO","JOSÉ MANUEL","JOSÉ MANUEL LARROY CALVO","17201417Q","1958-08-02",1958,66,8,65,"2024-02-07",211,"NAUTICO ZARAGOZA",1,null,1,null,1,1,1,1,1]
[0,0,0,0,0,0,0,1,"VETERANO","M","RUIZ IRIBARNE","IGNACIO JOSÉ","IGNACIO JOSÉ RUIZ IRIBARNE","17861548R","1958-04-12",1958,66,4,65,"2024-02-07",212,"NAUTICO ZARAGOZA",1,null,null,null,1,1,1,1,1]
[1,0,0,0,0,0,1,{"$f":"IF(I216=\"VETERANO\", 1,0)","v":0},{"$f":"IF((Q216<11),\"BENJAMIN\",IF(OR(Q216=11,Q216=12),\"ALEVIN\",IF(OR(Q216=13,Q216=14),\"INFANTIL\",IF(OR(Q216=15,Q216=16),\"CADETE\",IF(OR(Q216=17,Q216=18),\"JUVENIL\",IF(AND(Q216>18,Q216<31),\"SENIOR\",\"VETERANO\"))))))","v":"SENIOR"},"F","LAPLANA DÍAZ","CARLOTA","CARLOTA LAPLANA DÍAZ","73477515J","2005-01-18",2005,19,1,{"$f":"DATEDIF(O216,TODAY(),\"Y\")","v":19},"2024-02-09",213,"OS NABATERS D.F.",1,null,null,null,1,1,1,1,1]
[0,0,0,0,0,0,1,0,"SENIOR","M","DÍEZ IBÁÑEZ","DAVID","DAVID DÍEZ IBÁÑEZ","17767673N","1995-07-09",1995,29,7,28,"2024-02-09",214,"OS NABATERS D.F.",1,null,null,null,1,0,1,1,1]
[1,0,0,0,0,0,1,0,"SENIOR","F","HERNANDO FERRER","ANDREA","ANDREA HERNANDO FERRER","73623276T","2004-09-02",2004,20,9,19,"2024-02-09",215,"OS NABATERS D.F.",1,null,null,null,1,1,1,1,1]
[1,0,0,0,0,0,1,0,"SENIOR","F","PEÑA ROMERO DE TEJADA","CELIA","CELIA PEÑA ROMERO DE TEJADA","73444632C","2002-10-01",2002,22,10,21,"2024-04-09",216,"OS NABATERS D.F.",1,null,null,null,1,1,1,1,1]
[0,0,0,0,0,0,1,0,"SENIOR","M","VELA JULIÁN","DIEGO","DIEGO VELA JULIÁN","75439179H","2002-07-03",2002,22,7,21,"2024-02-09",217,"OS NABATERS D.F.",1,null,null,null,1,1,1,1,1]
[0,0,0,0,0,0,1,0,"SENIOR","M","PEÑA ROMERO DE TEJADA","JAIME","JAIME PEÑA ROMERO DE TEJADA","73104553L","1997-11-10",1997,27,11,26,"2024-02-09",218,"OS NABATERS D.F.",1,null,null,null,1,1,1,1,1]
[0,0,0,0,0,0,1,0,"SENIOR","M","VILLACAMPA RÍOS","ALEJANDRO","ALEJANDRO VILLACAMPA RÍOS","49381001R","2000-02-09",2000,24,2,24,"2024-02-09",219,"OS NABATERS D.F.",1,null,null,null,1,1,1,1,1]
[1,0,0,0,0,0,1,0,"SENIOR","F","ALONSO GUTIÉRREZ","MARÍA","MARÍA ALONSO GUTIÉRREZ","77223684B","2002-11-19",2002,22,11,21,"2024-02-09",220,"OS NABATERS D.F.",1,null,null,null,1,1,1,1,1]
[1,0,0,0,0,0,1,0,"SENIOR","F","MARURI GARCÍA","ITZIAR","ITZIAR MARURI GARCÍA","25362548B","2003-06-09",2003,21,6,20,"2024-02-09",221,"OS NABATERS D.F.",1,null,null,null,1,1,1,1,1]
[0,0,0,0,0,0,1,0,"SENIOR","M","ALMUDÉVAR ATIENZA","ANTONIO","ANTONIO ALMUDÉVAR ATIENZA","25204448J","1998-10-28",1998,26,10,25,"2024-02-09",222,"OS NABATERS D.F.",1,null,null,null,1,1,1,1,1]
[0,0,0,0,0,0,1,0,"SENIOR","M","COSA REDONDO","BORJA","BORJA COSA REDONDO","18458680F","2000-10-06",2000,24,10,23,"2024-02-09",223,"OS NABATERS D.F.",1,null,null,null,1,1,1,1,1]
[1,0,0,0,0,0,1,0,"SENIOR","F","ANDREU MARTÍN","CLARA","CLARA ANDREU MARTÍN","47480808E","2001-04-17",2001,23,4,22,"2024-02-09",224,"OS NABATERS D.F.",1,null,null,null,1,0,1,1,1]
[0,0,0,0,0,0,1,0,"SENIOR","M","CALAVIA VALDOVINOS","JORGE","JORGE CALAVIA VALDOVINOS","25204586J","1997-03-02",1997,27,3,27,"2024-02-09",225,"OS NABATERS D.F.",1,null,null,null,1,0,1,1,1]
[0,0,0,0,0,0,1,0,"SENIOR","M","OLLOQUI LÁZARO","PEDRO","PEDRO OLLOQUI LÁZARO","77134640T","2005-08-16",2005,19,8,18,"2024-02-09",226,"OS NABATERS D.F.",1,null,null,null,1,0,1,0,0]
[0,0,0,0,0,0,1,0,"SENIOR","M","MUÑOZ LAHOZ","JUAN JOSÉ","JUAN JOSÉ MUÑOZ LAHOZ","26056479D","2005-11-17",2005,19,11,18,"2024-02-09",227,"OS NABATERS D.F.",1,null,null,null,1,0,1,1,1]
[0,0,0,0,0,0,1,0,"SENIOR","M","BERNAL LECINA","ÁNGEL","ÁNGEL BERNAL LECINA","17768021S","1998-07-20",1998,26,7,25,"2024-02-12",228,"OS NABATERS D.F.",1,1,null,null,1,1,1,1,1]
[0,0,0,0,0,1,0,0,"JUVENIL","M","DÍAZ TORNOE","LIZANDRO","LIZANDRO DÍAZ TORNOE","Y8008733D","2007-02-21",2007,17,2,17,"2024-02-12",229,"OS NABATERS D.F.",1,null,null,null,1,1,1,1,1]
[1,0,0,0,0,0,1,0,"SENIOR","F","TEIRA ARBIOL","CARLA MARÍA","CARLA MARÍA TEIRA ARBIOL","47699950C","1997-05-15",1997,27,5,26,"2024-02-14",230,"CAPRI MEQUINENZA",1,null,null,null,1,0,1,1,1]
[1,0,0,0,0,0,1,0,"SENIOR","M","RUBIO LAMBEA","MIGUEL","MIGUEL RUBIO LAMBEA","73089974E","1998-07-27",1998,26,7,25,"2024-02-14",231,"CAPRI MEQUINENZA",1,null,null,null,1,1,1,1,1]
[1,0,0,0,0,0,0,1,"VETERANO","M","ESCOBAR PERNOLETE","WILNER MANUEL","WILNER MANUEL ESCOBAR PERNOLETE","Y5288395C","1990-11-03",1990,34,11,33,"2024-03-14",232,"OS NABATERS D.F.",1,null,null,null,1,1,1,1,1]
[1,0,0,0,0,1,0,0,"JUVENIL","M","GODIA SANCHO","IVÁN","IVÁN GODIA SANCHO","73108472M","2007-10-26",2007,17,10,16,"2024-03-25",233,"CAPRI MEQUINENZA",1,null,null,null,1,1,1,1,1]
[{"$f":"IF(J237=\"F\", 1,0)","v":0},0,0,0,0,0,1,0,"SENIOR",null,"ABECIA SEGARRA","ALEJANDRO",{"$f":"L237&\" \"& K237","v":"ALEJANDRO ABECIA SEGARRA"},"73029378P","1998-04-21",{"$f":"YEAR(O237)","v":1998},{"$f":"$AC$1-P237","v":26},{"$f":"MONTH(O237)","v":4},25]
[0,0,0,0,0,0,1,0,"SENIOR",null,"ABRIL CASAMAYOR","ALEJANDRO","ALEJANDRO ABRIL CASAMAYOR","73022037G","2001-05-27",2001,23,5,22]
[0,0,0,0,0,0,1,0,"SENIOR",null,"AGUD MONTAÑES","MARÍA","MARÍA AGUD MONTAÑES","48007709Q","1999-01-01",1999,25,1,25]
[0,0,0,0,0,0,0,1,"VETERANO",null,"AJA BARQUÍN","MIGUEL","MIGUEL AJA BARQUÍN","72085089F","1987-06-25",1987,37,6,36]
[0,0,0,0,0,0,1,0,"SENIOR",null,"ALONSO RAMOS","PABLO","PABLO ALONSO RAMOS","73130756W","1998-04-26",1998,26,4,25]
[0,0,0,0,0,0,1,0,"SENIOR",null,"ALONSO ROMÁN","IGNACIO","IGNACIO ALONSO ROMÁN","73442955E","1998-11-06",1998,26,11,25]
[0,0,1,0,0,0,0,0,"ALEVIN",null,"ALONSO VIADER","LAURA","LAURA ALONSO VIADER","04045774-AND","2013-10-12",2013,11,10,10]
[0,0,0,0,0,0,1,0,"SENIOR",null,"ÁLVAREZ MORENO","CRISTINA","CRISTINA ÁLVAREZ MORENO","73134552Y","1994-11-25",1994,30,11,29]
[0,0,0,1,0,0,0,0,"INFANTIL",null,"AMPOLLINI CUADRADO","IRENE","IRENE AMPOLLINI CUADRADO","26610151W","2011-04-27",2011,13,4,12]
[0,0,0,0,1,0,0,0,"CADETE",null,"ANGULO AZNAR","INÉS","INÉS ANGULO AZNAR","77220746V","2009-02-19",2009,15,2,15]
[0,0,0,0,0,0,0,1,"VETERANO",null,"ANTORÁN MARTÍN","FRANCISCO","FRANCISCO ANTORÁN MARTÍN","25186817t","1991-06-11",1991,33,6,32]
[0,0,0,0,0,0,0,1,"VETERANO",null,"ARA GRACIA","NOELIA","NOELIA ARA GRACIA","18169624S","1981-09-21",1981,43,9,42]
[0,0,0,0,0,0,0,1,"VETERANO",null,"ARAGÜÉS GRIEGO","ANA MARÍA","ANA MARÍA ARAGÜÉS GRIEGO","17726145E","1968-05-26",1968,56,5,55]
[0,0,0,0,0,0,1,0,"SENIOR",null,"ARNILLAS IBARZ","PAULA MARÍA","PAULA MARÍA ARNILLAS IBARZ","73107553Y","2004-05-12",2004,20,5,19]
[0,0,0,0,0,0,1,0,"SENIOR",null,"ARNILLAS IBARZ","PAULA MARÍA","PAULA MARÍA ARNILLAS IBARZ","73107553Y","2004-05-12",2004,20,5,19]
[0,0,0,0,0,0,1,0,"SENIOR",null,"ARRIZABALAGA SOLANO","GUILLERMO JAVIER","GUILLERMO JAVIER ARRIZABALAGA SOLANO","73028331L","1998-10-17",1998,26,10,25]
[0,0,0,0,0,1,0,0,"JUVENIL",null,"ATKIN","GEORGE","GEORGE ATKIN",647205311,"2006-06-22",2006,18,6,17]
[0,0,0,0,0,0,0,1,"VETERANO",null,"AZNAR INFANTE","FERNANDO","FERNANDO AZNAR INFANTE","17150330N","1960-06-05",1960,64,6,63]
[0,0,0,0,0,0,1,0,"SENIOR",null,"BARAT CORTÉS","PATRICIA","PATRICIA BARAT CORTÉS","73478473M","2001-12-12",2001,23,12,22]
[0,0,0,0,0,0,0,1,"VETERANO",null,"BARCELÓ LISO","LLUIS ANTONI","LLUIS ANTONI BARCELÓ LISO","36523549D","1976-11-23",1976,48,11,47]
[0,0,0,1,0,0,0,0,"INFANTIL",null,"BENAMAR","ETHAN NADIR","ETHAN NADIR BENAMAR","200781150610FR","2010-06-01",2010,14,6,13]
[0,0,0,0,0,0,0,1,"VETERANO",null,"BERENGUER CÉSPEDES","MÓNICA","MÓNICA BERENGUER CÉSPEDES","43721755C","1975-03-09",1975,49,3,49]
[0,0,1,0,0,0,0,0,"ALEVIN",null,"BERENGUER SAGARRA","CARE","CARE BERENGUER SAGARRA","09826636R","2013-09-23",2013,11,9,10]
[0,{"$f":"IF(I260=\"BENJAMIN\", 1,0)","v":0},{"$f":"IF(I260=\"ALEVIN\", 1,0)","v":0},{"$f":"IF(I260=\"INFANTIL\", 1,0)","v":0},{"$f":"IF(I260=\"CADETE\", 1,0)","v":0},{"$f":"IF(I260=\"JUVENIL\", 1,0)","v":1},{"$f":"IF(I260=\"SENIOR\", 1,0)","v":0},0,"JUVENIL",null,"BERENGUER UTRILLA","ENRIQUE","ENRIQUE BERENGUER UTRILLA","09826096J","2007-09-13",2007,17,9,16]
[0,0,0,0,0,1,0,0,"JUVENIL",null,"BERGES ISAM-ALÍ","SALMA","SALMA BERGES ISAM-ALÍ","25364246F","2007-10-23",2007,17,10,16]
[0,0,0,0,0,0,1,0,"SENIOR",null,"BERNAL LACRUZ","HELENA","HELENA BERNAL LACRUZ","09825186T","2004-07-06",2004,20,7,19]
[0,0,0,0,0,0,1,0,"SENIOR",null,"BERNAL LECINA","MANUEL","MANUEL BERNAL LECINA","17768020Z","1995-09-01",1995,29,9,28]
[0,0,0,0,0,0,0,1,"VETERANO",null,"BETRIÁN HERRERA","PATRICIA","PATRICIA BETRIÁN HERRERA","73205438A","1980-11-25",1980,44,11,43]
[0,0,0,0,0,0,1,0,"SENIOR",null,"BLACKALLER MARTÍNEZ","SANTIAGO","SANTIAGO BLACKALLER MARTÍNEZ","NO TIENE","2005-08-02",2005,19,8,18]
[0,0,0,1,0,0,0,0,"INFANTIL",null,"BLAS SORO","ELOY","ELOY BLAS SORO","09825446F","2011-03-23",2011,13,3,13]
[0,0,0,0,0,0,1,0,"SENIOR",null,"BLASCO GIMENO","DIEGO","DIEGO BLASCO GIMENO","73052825H","1998-06-09",1998,26,6,25]
[0,0,0,0,0,0,0,1,"VETERANO",null,"BLASCO OLIETE","MARÍA ISABEL","MARÍA ISABEL BLASCO OLIETE","25456520M","1972-11-05",1972,52,11,51]
[0,0,0,0,0,0,0,1,"VETERANO",null,"BLÁZQUEZ UGALDE","SOFÍA",{"$f":"L269&\" \"& K269","v":"SOFÍA BLÁZQUEZ UGALDE"},null,null,1900,124,1,124,null,null,"C. DE REMO RETIRO 66"]
[0,0,0,1,0,0,0,0,"INFANTIL",null,"BOGA","IOANA","IOANA BOGA","Y3852403D","2011-12-06",2011,13,12,12]
[0,0,0,0,0,0,1,0,"SENIOR",null,"BOLEA PALOMAR","LUCÍA","LUCÍA BOLEA PALOMAR","73020575Z","2002-07-03",2002,22,7,21]
[0,0,0,0,0,1,0,0,"JUVENIL",null,"BOLEA PALOMAR","MARTÍN","MARTÍN BOLEA PALOMAR","26275321Y","2007-12-02",{"$f":"YEAR(O272)","v":2007},17,{"$f":"MONTH(O272)","v":12},16]
[0,0,0,0,0,0,0,1,"VETERANO",null,"BORBÓN RODRÍGUEZ","ABEL","ABEL BORBÓN RODRÍGUEZ",null,null,1900,124,1,124]
[0,0,0,0,0,0,0,1,"VETERANO",null,"BORDETAS OTO","FRANCISCO JAVIER","FRANCISCO JAVIER BORDETAS OTO","25449808D","1968-10-18",1968,56,10,55]
[0,0,0,0,0,0,1,0,"SENIOR",null,"BRAVO VIÑUALES","ELISA","ELISA BRAVO VIÑUALES","25204203K","1994-07-05",1994,30,7,29]
[0,0,0,0,0,0,1,0,"SENIOR",null,"BRIZ ZAMORANO","ESTHER","ESTHER BRIZ ZAMORANO","17768135Z","2000-01-31",2000,24,1,24]
[0,0,0,0,0,0,0,1,"VETERANO",null,"BUIL LANGARITA","SARA","SARA BUIL LANGARITA","25458487V","1974-09-10",1974,50,9,49]
[0,0,0,0,0,0,0,1,"VETERANO",null,"CABALLÉ SILVESTRE","RAQUEL","RAQUEL CABALLÉ SILVESTRE","73157378J","1977-06-14",1977,47,6,46]
[0,0,0,0,0,0,0,1,"VETERANO",null,"CALLES CARRILLO","IRVING MOISÉS","IRVING MOISÉS CALLES CARRILLO","Y5957916X","1989-01-19",1989,35,1,35]
[0,0,0,0,0,0,0,{"$f":"IF(I280=\"VETERANO\", 1,0)","v":1},{"$f":"IF((Q280<11),\"BENJAMIN\",IF(OR(Q280=11,Q280=12),\"ALEVIN\",IF(OR(Q280=13,Q280=14),\"INFANTIL\",IF(OR(Q280=15,Q280=16),\"CADETE\",IF(OR(Q280=17,Q280=18),\"JUVENIL\",IF(AND(Q280>18,Q280<31),\"SENIOR\",\"VETERANO\"))))))","v":"VETERANO"},null,"CALVENTE VELLOSO","JOSÉ IGNACIO","JOSÉ IGNACIO CALVENTE VELLOSO",null,"1974-08-01",1974,50,8,{"$f":"DATEDIF(O280,TODAY(),\"Y\")","v":49},null,null,"C.N. DE NAVARRA"]
[0,0,0,0,0,0,1,0,"SENIOR",null,"CALVO BOLSA","MANUEL","MANUEL CALVO BOLSA","73028823M","1998-04-27",1998,26,4,25]
[0,0,0,0,0,0,0,1,"VETERANO",null,"CANTOS SIMÓN","INMACULADA","INMACULADA CANTOS SIMÓN","25155454D","1970-08-30",1970,54,8,53]
[0,0,0,0,0,0,0,1,"VETERANO",null,"CARNICER LISO","BEATRIZ","BEATRIZ CARNICER LISO","76921108T","1985-03-12",1985,39,3,39]
[0,0,0,0,0,0,0,1,"VETERANO",null,"CARRIÓN DE LAS HERAS","VÍCTOR","VÍCTOR CARRIÓN DE LAS HERAS","47169314V","1986-08-26",1986,38,8,37]
[0,0,1,0,0,0,0,0,"ALEVIN",null,"CATALÁN LLOP","EFRÉN","EFRÉN CATALÁN LLOP","09826494C","2013-09-05",2013,11,9,10]
[0,0,0,1,0,0,0,0,"INFANTIL",null,"CATALÁN LLOP","VÍCTOR","VÍCTOR CATALÁN LLOP","09826493L","2011-09-14",2011,13,9,12]
[0,0,0,0,0,1,0,0,"JUVENIL",null,"CATALÁN MONTULL","ANAIS","ANAIS CATALÁN MONTULL","48253486S","2007-01-31",2007,17,1,17]
[0,0,0,0,0,0,0,1,"VETERANO",null,"CERDÁN TORCAL","JOSÉ MANUEL","JOSÉ MANUEL CERDÁN TORCAL",null,"1982-04-27",1982,42,4,41]
[0,0,0,0,0,1,0,0,"JUVENIL",null,"CHALHI","KHALID","KHALID CHALHI","X8881223A","2007-04-30",2007,17,4,16]
[0,0,0,0,0,0,0,1,"VETERANO",null,"CHARRIERE","CLAIRE","CLAIRE CHARRIERE","X192416H","1970-11-14",1970,54,11,53]
[0,0,0,0,0,0,0,1,"VETERANO",null,"CHILLÓN RACHL","CRISTIAN","CRISTIAN CHILLÓN RACHL",null,null,1900,124,1,124,null,null,"C. DE REMO RETIRO 66"]
[0,0,0,0,0,0,0,1,"VETERANO",null,"CHIPRIANA FREIRE","JESÚS","JESÚS CHIPRIANA FREIRE","29102745V","1970-03-16",1970,54,3,54]
[0,0,0,0,0,0,1,0,"SENIOR",null,"CHIRENO ROJAS","WANNER FRANCISCO","WANNER FRANCISCO CHIRENO ROJAS","Y2394238K","2003-03-25",2003,21,3,21]
[0,0,0,0,0,0,0,1,"VETERANO",null,"CIRAC BELTRÁN","SUSANA","SUSANA CIRAC BELTRÁN","17749065B","1977-08-31",1977,47,8,46]
[0,0,0,0,0,0,1,0,"SENIOR",null,"CORTÉS MORENO","RAUL ANGEL","RAUL ANGEL CORTÉS MORENO","73134898G","2001-04-06",2001,23,4,22]
[0,0,0,0,0,0,0,1,"VETERANO",null,"CORTÍ BETRIÁN","ALICIA","ALICIA CORTÍ BETRIÁN","49382972V","1970-11-16",1970,54,11,53]
[0,0,1,0,0,0,0,0,"ALEVIN",null,"CORTÍ BETRIÁN","YAGO","YAGO CORTÍ BETRIÁN","09825384Z","2012-08-18",2012,12,8,11]
[0,0,0,0,0,0,1,0,"SENIOR",null,"CORZÁN LÓPEZ","MIGUEL","MIGUEL CORZÁN LÓPEZ","25210954X","1998-02-27",1998,26,2,26]
[0,0,0,0,0,0,0,1,"VETERANO",null,"CRESPO SETIÉN","MONTSERRAT","MONTSERRAT CRESPO SETIÉN","4790054G","1987-09-03",1987,37,9,36]
[0,0,0,1,0,0,0,0,"INFANTIL",null,"CUCHI PEÑALVER","ERIK","ERIK CUCHI PEÑALVER","21748352N","2011-11-21",2011,13,11,12]
[{"$f":"IF(J301=\"F\", 1,0)","v":0},0,0,0,0,0,1,0,"SENIOR",null,"DE LA LASTRA LANZA","LUCÍA",{"$f":"L301&\" \"& K301","v":"LUCÍA DE LA LASTRA LANZA"},"72203788A","1998-10-07",1998,{"$f":"$AC$1-P301","v":26},10,25]
[0,0,0,0,0,0,0,1,"VETERANO",null,"DE LEÓN AZNAR","VICENTE","VICENTE DE LEÓN AZNAR","17157516E","1961-12-25",1961,63,12,62]
[0,0,0,0,0,0,1,0,"SENIOR",null,"DUESO BELVER","JOSÉ IGNACIO","JOSÉ IGNACIO DUESO BELVER","73167580B","2002-02-14",2002,22,2,22]
[0,0,0,0,0,0,1,0,"SENIOR",null,"DUESO BELVER","MARÍA","MARÍA DUESO BELVER","73167579W","2002-01-14",{"$f":"YEAR(O304)","v":2002},22,{"$f":"MONTH(O304)","v":1},22]
[0,0,0,1,0,0,0,0,"INFANTIL",null,"EHRET GARCÍA","CHLOÉ","CHLOÉ EHRET GARCÍA","130681102578-FR","2011-06-13",2011,13,6,12]
[0,0,0,0,1,0,0,0,"CADETE",null,"EHRET GARCÍA","MAELYA ","MAELYA  EHRET GARCÍA","130681102689-FR","2009-09-18",2009,15,9,14]
[0,0,0,0,0,1,0,0,"JUVENIL",null,"EPGORGI ZOUGARI","SARA","SARA EPGORGI ZOUGARI","73443617V","2006-02-11",2006,18,2,18]
[0,0,0,0,0,0,0,1,"VETERANO",null,"ESCALONA COLOMÉ","MARTA FERNANDA","MARTA FERNANDA ESCALONA COLOMÉ","73202302H","1976-07-09",1976,48,7,47]
[0,0,0,0,0,0,0,1,"VETERANO",null,"ESCARTÍN GUERRERO","FRANCISCO","FRANCISCO ESCARTÍN GUERRERO","17205693Z","1959-12-16",1959,65,12,64]
[0,0,0,0,0,0,0,1,"VETERANO",null,"ESCOBAR PERNOLETE","WILNER MANUEL","WILNER MANUEL ESCOBAR PERNOLETE","Y5288395C","1990-11-03",1990,34,11,33]
[0,0,0,0,0,0,1,0,"SENIOR",null,"ESTEBAN GARCÍA","ABRIL","ABRIL ESTEBAN GARCÍA","48052629V","2004-07-03",2004,20,7,19]
[0,0,0,0,0,0,0,1,"VETERANO",null,"ESTEBAN MARÍN","RUTH","RUTH ESTEBAN MARÍN","25471902T","1977-07-11",1977,47,7,46]
[0,0,0,0,0,0,0,1,"VETERANO",null,"ESTEVAN EIXARCH","ALICIA PILAR","ALICIA PILAR ESTEVAN EIXARCH","25148844T","1966-03-21",1966,58,3,58]
[0,0,0,0,0,1,0,0,"JUVENIL",null,"ESTEVE NEVADO","ERIC","ERIC ESTEVE NEVADO","73108467T","2006-11-08",2006,18,11,17]
[0,0,1,0,0,0,0,0,"ALEVIN",null,"ESTEVE NEVADO","MARTINA","MARTINA ESTEVE NEVADO","21748358H","2012-08-08",2012,12,8,11]
[0,0,0,0,1,0,0,0,"CADETE",null,"ESTRADA ROLDÁN","AUDALD","AUDALD ESTRADA ROLDÁN","48280528D","2009-07-07",2009,15,7,14]
[0,0,0,1,0,0,0,0,"INFANTIL",null,"ESTRADA ROLDÁN","LLUC","LLUC ESTRADA ROLDÁN","49652985X","2011-12-19",2011,13,12,12]
[0,0,0,0,0,0,1,0,"SENIOR",null,"FALCÓ FLETA","PAULA","PAULA FALCÓ FLETA","77219543X","1997-01-26",1997,27,1,27]
[0,0,0,0,1,0,0,0,"CADETE",null,"FAURE MARTÍN","NICOLÁS","NICOLÁS FAURE MARTÍN","73286615J","2008-07-31",2008,16,7,15]
[0,0,0,0,0,1,0,0,"JUVENIL",null,"FERNÁNDEZ DELGADO","DENIS","DENIS FERNÁNDEZ DELGADO",null,"2007-11-21",2007,17,11,16]
[0,0,0,0,0,0,0,1,"VETERANO",null,"FERNÁNDEZ DÍEZ","ALBERTO","ALBERTO FERNÁNDEZ DÍEZ",null,"1984-01-12",1984,40,1,40,null,null,"C.N. DE NAVARRA"]
[0,0,0,0,0,0,0,1,"VETERANO",null,"FERNÁNDEZ GRASA","LAURA","LAURA FERNÁNDEZ GRASA","25480911Q","1982-04-30",1982,42,4,41]
[0,0,0,0,0,1,0,0,"JUVENIL",null,"FERNÁNDEZ SANZ","ALBERTO","ALBERTO FERNÁNDEZ SANZ","73413709D","2007-07-22",2007,17,7,16]
[0,{"$f":"IF(I324=\"BENJAMIN\", 1,0)","v":0},{"$f":"IF(I324=\"ALEVIN\", 1,0)","v":0},{"$f":"IF(I324=\"INFANTIL\", 1,0)","v":0},{"$f":"IF(I324=\"CADETE\", 1,0)","v":0},{"$f":"IF(I324=\"JUVENIL\", 1,0)","v":0},{"$f":"IF(I324=\"SENIOR\", 1,0)","v":1},0,"SENIOR",null,"FERRANDO QUÍLEZ","LUCAS","LUCAS FERRANDO QUÍLEZ","17768530H","1995-06-01",1995,29,6,28]
[0,0,0,0,0,0,0,1,"VETERANO",null,"FERRER MÍNGUEZ","CARLOS","CARLOS FERRER MÍNGUEZ","17741699M","1977-02-01",1977,47,2,47]
[0,0,0,0,0,0,0,1,"VETERANO",null,"FORNOS NAVARRO","LAURA","LAURA FORNOS NAVARRO","73157468B","1980-02-06",1980,44,2,44]
[0,0,0,1,0,0,0,0,"INFANTIL",null,"FRANCÉS VINTANED","JORGE","JORGE FRANCÉS VINTANED","73164211S","2010-08-23",2010,14,8,13]
[0,0,1,0,0,0,0,0,"ALEVIN",null,"FRISA MORET","VALENTINA ","VALENTINA  FRISA MORET","26585504B","2012-12-23",2012,12,12,11]
[0,0,0,0,0,0,0,1,"VETERANO",null,"GALE LECHÓN","DANIEL","DANIEL GALE LECHÓN","73001191L","1987-09-17",1987,37,9,36]
[0,0,0,0,0,0,0,1,"VETERANO",null,"GÁLVEZ ARIAS","CARMEN","CARMEN GÁLVEZ ARIAS","25458065D","1971-12-07",1971,53,12,52]
[0,0,0,0,0,0,0,1,"VETERANO",null,"GARAICOECHEA SÁNCHEZ","ALBERTO","ALBERTO GARAICOECHEA SÁNCHEZ",null,"1959-06-21",1959,65,6,64,null,null,"C.N. DE NAVARRA"]
[0,0,0,0,0,0,1,0,"SENIOR",null,"GARCÉS LÓPEZ","EMMA","EMMA GARCÉS LÓPEZ","77219451X","1998-04-22",1998,26,4,25]
[0,0,1,0,0,0,0,0,"ALEVIN",null,"GARCIA BECHDJ","KARIM",{"$f":"L333&\" \"& K333","v":"KARIM GARCIA BECHDJ"},"49941967C","2012-06-07",2012,12,6,11]
[0,0,0,0,0,0,1,0,"SENIOR",null,"GARCÍA CEITEGUI","FERNANDO","FERNANDO GARCÍA CEITEGUI","73440493K","2001-09-13",2001,23,9,22]
[0,0,0,0,0,0,0,1,"VETERANO",null,"GARCÍA DE PABLO","JAVIER","JAVIER GARCÍA DE PABLO",null,"1978-04-11",{"$f":"YEAR(O335)","v":1978},46,{"$f":"MONTH(O335)","v":4},45,null,null,"C.N. DE NAVARRA"]
[0,0,0,1,0,0,0,0,"INFANTIL",null,"GARCIA ESCANDE","VICTORIA","VICTORIA GARCIA ESCANDE","09826381E","2011-08-19",2011,13,8,12]
[0,0,0,0,0,0,0,1,"VETERANO",null,"GARCÍA SEGADO","ÍÑIGO","ÍÑIGO GARCÍA SEGADO",null,null,1900,124,1,124,null,null,"C. DE REMO RETIRO 66"]
[0,0,0,0,0,0,0,1,"VETERANO",null,"GARCÍA SEGADO","RODRIGO","RODRIGO GARCÍA SEGADO",null,null,1900,124,1,124,null,null,"C. DE REMO RETIRO 66"]
[0,0,0,0,0,0,0,1,"VETERANO",null,"GARI ABELLA","JAVIER","JAVIER GARI ABELLA","39903882D","1983-11-10",1983,41,11,40]
[0,0,1,0,0,0,0,0,"ALEVIN",null,"GARÍ MURILLO","EDGAR","EDGAR GARÍ MURILLO","NO TIENE","2013-09-05",2013,11,9,10]
[0,0,0,0,0,0,0,1,"VETERANO",null,"GAYA JORNET","MARTA ","MARTA  GAYA JORNET","43724983M","1977-03-08",1977,47,3,47]
[0,0,0,0,0,0,1,0,"SENIOR",null,"GIL GIL","VÍCTOR","VÍCTOR GIL GIL","73164655E","2004-05-26",2004,20,5,19]
[0,0,0,0,0,0,1,0,"SENIOR",null,"GIL MIGUEL","ISMAEL ","ISMAEL  GIL MIGUEL","73163674F","1999-09-15",1999,25,9,24]
[0,0,0,0,0,0,1,{"$f":"IF(I344=\"VETERANO\", 1,0)","v":0},{"$f":"IF((Q344<11),\"BENJAMIN\",IF(OR(Q344=11,Q344=12),\"ALEVIN\",IF(OR(Q344=13,Q344=14),\"INFANTIL\",IF(OR(Q344=15,Q344=16),\"CADETE\",IF(OR(Q344=17,Q344=18),\"JUVENIL\",IF(AND(Q344>18,Q344<31),\"SENIOR\",\"VETERANO\"))))))","v":"SENIOR"},null,"GIMBEL-SHERR","SHELTER SASKIA","SHELTER SASKIA GIMBEL-SHERR",566571373,"2004-06-30",2004,20,6,{"$f":"DATEDIF(O344,TODAY(),\"Y\")","v":19}]
[0,0,0,0,0,0,1,0,"SENIOR",null,"GIMENO FERRER","JAIME","JAIME GIMENO FERRER","77135307T","1998-05-07",1998,26,5,25]
[0,0,0,0,0,0,0,1,"VETERANO",null,"GIMENO RIAU","PALOMA","PALOMA GIMENO RIAU","48050614A","1993-11-05",1993,31,11,30]
[0,0,0,0,1,0,0,0,"CADETE",null,"GODIA NICOLAU","ERIKA","ERIKA GODIA NICOLAU","21747570N","2009-11-10",2009,15,11,14]
[0,0,0,0,1,0,0,0,"CADETE",null,"GODIA PI","ALEXIA","ALEXIA GODIA PI","21747083P","2009-03-18",2009,15,3,15]
[0,0,0,0,0,0,1,0,"SENIOR",null,"GODIA PI","MARÍA PILAR","MARÍA PILAR GODIA PI","73092011N","1996-01-14",1996,28,1,28]
[0,0,0,0,0,1,0,0,"JUVENIL",null,"GODIA SANCHO","IVÁN","IVÁN GODIA SANCHO","73108472M","2007-10-26",2007,17,10,16]
[0,0,0,0,0,0,0,1,"VETERANO",null,"GODIA VIVES","JOSÉ","JOSÉ GODIA VIVES","73151019W","1958-12-09",1958,66,12,65]
[0,0,0,0,0,0,0,1,"VETERANO",null,"GÓMEZ DE MENA","MARÍA CRISTINA","MARÍA CRISTINA GÓMEZ DE MENA","17726223P","1969-08-22",1969,55,8,54]
[0,0,0,0,0,0,1,0,"SENIOR",null,"GÓMEZ RIVERO","JUNCAL","JUNCAL GÓMEZ RIVERO","49252860Q","1999-10-25",1999,25,10,24]
[0,0,0,0,0,1,0,0,"JUVENIL",null,"GÓMEZ SALINAS","XIMENA","XIMENA GÓMEZ SALINAS","78008771Q","2007-05-12",2007,17,5,16]
[0,0,0,0,0,0,0,1,"VETERANO",null,"GONZÁLEZ FERNÁNCEZ","NICOLÁS","NICOLÁS GONZÁLEZ FERNÁNCEZ",null,null,1900,124,1,124,null,null,"C. DE REMO RETIRO 66"]
[0,0,0,0,0,0,0,1,"VETERANO",null,"GONZALVO ITURRIAGA","MARÍA JESÚS","MARÍA JESÚS GONZALVO ITURRIAGA","25163912A","1972-10-25",1972,52,10,51]
[0,0,0,0,0,0,1,0,"SENIOR",null,"GRACIA ALUTIZ","KIARA","KIARA GRACIA ALUTIZ","73161786M","2001-01-23",2001,23,1,23]
[0,0,0,0,0,0,0,1,"VETERANO",null,"GRAU JALLE","MARÍA TERESA","MARÍA TERESA GRAU JALLE","25447001P","1972-02-19",1972,52,2,52]
[0,0,0,0,0,0,1,0,"SENIOR",null,"GRESA MUÑOZ","SARA","SARA GRESA MUÑOZ","25202675B","2001-04-08",2001,23,4,22]
[0,0,1,0,0,0,0,0,"ALEVIN",null,"GUARDIOLA BARTOLOMÉ","AFRICA","AFRICA GUARDIOLA BARTOLOMÉ","09825021L","2013-10-18",2013,11,10,10]
[0,0,0,0,0,0,0,1,"VETERANO",null,"HERNÁNDEZ RODRÍGUEZ","FRANCISCO","FRANCISCO HERNÁNDEZ RODRÍGUEZ","17140975H","1957-01-03",1957,67,1,67]
[0,0,0,0,0,0,1,0,"SENIOR",null,"HERRAIZ LÓPEZ","VÍCTOR","VÍCTOR HERRAIZ LÓPEZ","73469741J","2001-09-08",2001,23,9,22]
[0,0,0,0,0,0,1,0,"SENIOR",null,"HERRERO GARCÍA","BRUNO","BRUNO HERRERO GARCÍA","73053513Q","1999-06-26",1999,25,6,24]
[0,0,0,0,0,0,0,1,"VETERANO",null,"HIERRO PÁEZ","JORDI","JORDI HIERRO PÁEZ","39186769J","1971-01-13",1971,53,1,53]
[{"$f":"IF(J365=\"F\", 1,0)","v":0},0,0,1,0,0,0,0,"INFANTIL",null,"IBARZ BERENGUER","ALEIX",{"$f":"L365&\" \"& K365","v":"ALEIX IBARZ BERENGUER"},"52037049D","2010-09-07",2010,{"$f":"$AC$1-P365","v":14},9,13]
[0,0,0,0,0,0,0,1,"VETERANO",null,"IBARZ IBARZ","JOSÉ MANUEL","JOSÉ MANUEL IBARZ IBARZ","43743142V","1975-07-06",1975,49,7,48]
[0,0,0,0,0,0,1,0,"SENIOR",null,"IBARZ TEIRA","SOFÍA","SOFÍA IBARZ TEIRA","73104897H","2003-12-13",{"$f":"YEAR(O367)","v":2003},21,{"$f":"MONTH(O367)","v":12},20]
[0,0,0,0,0,0,0,1,"VETERANO",null,"INEVA SALILLAS","PAÚL","PAÚL INEVA SALILLAS","17845772A","1952-09-08",1952,72,9,71]
[0,0,0,0,0,1,0,0,"JUVENIL",null,"JAVIERRE LÓPEZ","LAURA","LAURA JAVIERRE LÓPEZ","26281161G","2007-08-16",2007,17,8,16]
[0,0,0,0,0,0,1,0,"SENIOR",null,"JÚDEZ PÉREZ","LUCÍA","LUCÍA JÚDEZ PÉREZ","73050582Y","1998-06-24",1998,26,6,25]
[0,0,0,0,0,0,1,0,"SENIOR",null,"JURADO PÉREZ","PABLO","PABLO JURADO PÉREZ","25362243M","2002-01-15",2002,22,1,22]
[0,0,0,0,0,0,0,1,"VETERANO",null,"JUSTE ECHEVERRÍA","CÉSAR","CÉSAR JUSTE ECHEVERRÍA","29101573H","1979-08-21",1979,45,8,44]
[0,0,0,0,1,0,0,0,"CADETE",null,"JUSTE IBARZ","HÉCTOR","HÉCTOR JUSTE IBARZ","49263860E","2009-11-22",2009,15,11,14]
[0,0,0,0,0,0,0,1,"VETERANO",null,"KLEINGRIES FORCÉN","CHRISTIAN","CHRISTIAN KLEINGRIES FORCÉN","77223545X","1979-05-24",1979,45,5,44]
[0,0,0,0,0,1,0,0,"JUVENIL",null,"KOGUT","NICOL","NICOL KOGUT","X8625182K","2007-01-23",2007,17,1,17]
[0,0,0,0,0,0,0,1,"VETERANO",null,"LABORDA VAL","CLEMENTE FERNANDO","CLEMENTE FERNANDO LABORDA VAL","17196036V","1956-11-23",1956,68,11,67]
[0,0,0,0,1,0,0,0,"CADETE",null,"LACASTA TORRES","SANTIAGO","SANTIAGO LACASTA TORRES","73425249A","2008-02-13",2008,16,2,16]
[0,0,0,0,0,1,0,0,"JUVENIL",null,"LAPUENTE MARTÍN","VICTORIA","VICTORIA LAPUENTE MARTÍN","25206952X","2007-07-17",2007,17,7,16]
[0,0,0,0,0,0,1,0,"SENIOR",null,"LARIO MARÍN","JOSÉ","JOSÉ LARIO MARÍN","73026334T","1998-01-09",1998,26,1,26]
[0,0,0,0,0,1,0,0,"JUVENIL",null,"LARIO MARTÍNEZ","MARTA","MARTA LARIO MARTÍNEZ","77220990P","2007-06-29",2007,17,6,16]
[0,0,0,0,0,0,0,1,"VETERANO",null,"LÁZARO MUÑOZ","SUSANA","SUSANA LÁZARO MUÑOZ","29120604M","1976-02-16",1976,48,2,48]
[0,0,0,0,1,0,0,0,"CADETE",null,"LÁZARO SANTABÁRBARA","MARCOS","MARCOS LÁZARO SANTABÁRBARA","26275487B","2009-01-31",2009,15,1,15]
[0,0,0,0,0,0,1,0,"SENIOR",null,"LEFKOFF","ASHER","ASHER LEFKOFF",666901177,"2005-08-19",2005,19,8,18]
[0,0,0,0,0,0,1,0,"SENIOR",null,"LEGAZ LAFUENTE","LEYRE","LEYRE LEGAZ LAFUENTE","25208196N","1997-07-07",1997,27,7,26]
[0,0,0,0,0,0,1,0,"SENIOR",null,"LERMA CLAVERO","ÁFRICA","ÁFRICA LERMA CLAVERO","73428784L","1998-10-07",1998,26,10,25]
[0,0,0,0,0,0,1,0,"SENIOR",null,"LITE BARÓN","JORGE","JORGE LITE BARÓN","17771289V","1999-07-07",1999,25,7,24]
[0,0,0,0,0,0,0,1,"VETERANO",null,"LLOP CALLIZO","MERITXELL","MERITXELL LLOP CALLIZO","73086549R","1984-08-23",1984,40,8,39]
[0,{"$f":"IF(I388=\"BENJAMIN\", 1,0)","v":0},{"$f":"IF(I388=\"ALEVIN\", 1,0)","v":0},{"$f":"IF(I388=\"INFANTIL\", 1,0)","v":0},{"$f":"IF(I388=\"CADETE\", 1,0)","v":0},{"$f":"IF(I388=\"JUVENIL\", 1,0)","v":0},{"$f":"IF(I388=\"SENIOR\", 1,0)","v":0},1,"VETERANO",null,"LOGROÑO VISCASILLAS","JESÚS","JESÚS LOGROÑO VISCASILLAS","18026750V","1968-09-23",1968,56,9,55]
[0,0,0,0,0,0,1,0,"SENIOR",null,"LONCÁ RIAU","JUDITH","JUDITH LONCÁ RIAU","47984129B","2004-08-29",2004,20,8,19]
[0,0,0,0,0,0,0,1,"VETERANO",null,"LÓPEZ BOSQUE","IRENE","IRENE LÓPEZ BOSQUE","73019098D","1992-09-28",1992,32,9,31]
[0,0,0,0,0,0,1,0,"SENIOR",null,"LÓPEZ DE LEÓN","ALBA","ALBA LÓPEZ DE LEÓN","77134341T","1995-07-05",1995,29,7,28]
[0,0,0,0,0,0,1,0,"SENIOR",null,"LÓPEZ DE LEÓN","ALONSO","ALONSO LÓPEZ DE LEÓN","77134342R","1997-07-05",1997,27,7,26]
[0,0,0,0,0,1,0,0,"JUVENIL",null,"LORA GRANADOS","GERARD","GERARD LORA GRANADOS","49717048H","2006-06-27",2006,18,6,17]
[0,0,0,0,0,0,1,0,"SENIOR",null,"LORDA BESTUÉ","PAULA","PAULA LORDA BESTUÉ","73163318L","1999-04-10",1999,25,4,24]
[0,0,0,0,0,0,1,0,"SENIOR",null,"LORENTE CORTÉS","SERGIO","SERGIO LORENTE CORTÉS","77216749E","2000-05-13",{"$f":"YEAR(O395)","v":2000},24,{"$f":"MONTH(O395)","v":5},23]
[0,0,0,0,0,0,1,0,"SENIOR",null,"LORENZ CALVO","PEDRO ALEJANDRO","PEDRO ALEJANDRO LORENZ CALVO","73160019D","2000-06-24",2000,24,6,23]
[0,0,0,1,0,0,0,0,"INFANTIL",null,"LUNA IBARZ","MARCOS",{"$f":"L397&\" \"& K397","v":"MARCOS LUNA IBARZ"},"09825144G","2011-05-30",{"$f":"YEAR(O397)","v":2011},13,{"$f":"MONTH(O397)","v":5},12]
[0,0,0,0,0,1,0,0,"JUVENIL",null,"LUNA VALOROSO","SEBASTIÁN ALEJANDRO","SEBASTIÁN ALEJANDRO LUNA VALOROSO","77215326W","2006-08-07",2006,18,8,17]
[0,0,0,0,0,0,1,0,"SENIOR",null,"MAGALLÓN TEJERO","SERGIO","SERGIO MAGALLÓN TEJERO","73019816Z","1998-09-14",1998,26,9,25]
[0,0,0,0,0,0,1,0,"SENIOR",null,"MANERO HERRERO","ALBA","ALBA MANERO HERRERO","45721880L","2001-10-12",2001,23,10,22]
[0,0,0,0,0,0,1,0,"SENIOR",null,"MANOSALVAS PILLAJO","CYNTHIA","CYNTHIA MANOSALVAS PILLAJO","73133951T","1996-03-13",1996,28,3,28]
[0,0,0,0,0,0,0,1,"VETERANO",null,"MANZANARES GÓMEZ","GABRIELA","GABRIELA MANZANARES GÓMEZ",null,null,1900,124,1,124,null,null,"C. DE REMO RETIRO 66"]
[0,0,0,0,0,1,0,0,"JUVENIL",null,"MARCÉN GUTIÉRREZ","PILAR","PILAR MARCÉN GUTIÉRREZ","73428934P","2006-03-09",2006,18,3,18]
[0,0,0,0,0,0,1,0,"SENIOR",null,"MARGUERITE DEMANDE","LARA","LARA MARGUERITE DEMANDE","ES553452","2000-01-24",2000,24,1,24]
[0,0,0,0,0,1,0,0,"JUVENIL",null,"MÁRQUEZ GUARDIOLA","LUCÍA",{"$f":"L405&\" \"& K405","v":"LUCÍA MÁRQUEZ GUARDIOLA"},"20561540T","2007-01-08",{"$f":"YEAR(O405)","v":2007},17,{"$f":"MONTH(O405)","v":1},17]
[0,0,0,0,0,0,1,0,"SENIOR",null,"MARTÍN TORRES","ÓSCAR","ÓSCAR MARTÍN TORRES","73132652N","2001-08-18",2001,23,8,22]
[0,0,0,0,0,0,1,0,"SENIOR",null,"MARTÍNEZ ALFRANCA","GUILLERMO","GUILLERMO MARTÍNEZ ALFRANCA","25205887A","1996-11-10",1996,28,11,27]
[0,0,0,0,0,0,0,{"$f":"IF(I408=\"VETERANO\", 1,0)","v":1},{"$f":"IF((Q408<11),\"BENJAMIN\",IF(OR(Q408=11,Q408=12),\"ALEVIN\",IF(OR(Q408=13,Q408=14),\"INFANTIL\",IF(OR(Q408=15,Q408=16),\"CADETE\",IF(OR(Q408=17,Q408=18),\"JUVENIL\",IF(AND(Q408>18,Q408<31),\"SENIOR\",\"VETERANO\"))))))","v":"VETERANO"},null,"MARTÍNEZ CABELLO","PEDRO IGNACIO","PEDRO IGNACIO MARTÍNEZ CABELLO","17694366Y","1957-04-29",1957,67,4,{"$f":"DATEDIF(O408,TODAY(),\"Y\")","v":66}]
[0,0,0,0,0,0,1,0,"SENIOR",null,"MARTÍNEZ FERNÁNDEZ","MARINA","MARINA MARTÍNEZ FERNÁNDEZ","73024631E","2002-10-27",2002,22,10,21]
[0,0,0,0,0,0,0,1,"VETERANO",null,"MARTÍNEZ GARCÍA","SARA","SARA MARTÍNEZ GARCÍA","50741774W","1978-05-27",1978,46,5,45]
[0,0,0,0,0,0,1,0,"SENIOR",null,"MARTÍNEZ IBÁÑEZ","MARCOS","MARCOS MARTÍNEZ IBÁÑEZ","73019004F","1998-01-17",1998,26,1,26]
[0,0,0,0,0,0,1,0,"SENIOR",null,"MARTÍNEZ MINGUILLÓN","CARLA","CARLA MARTÍNEZ MINGUILLÓN","25364238E","1996-04-04",1996,28,4,27]
[0,0,0,0,0,0,0,1,"VETERANO",null,"MARTÍNEZ SOLA","ENCARNA ","ENCARNA  MARTÍNEZ SOLA","73155624F","1968-02-27",1968,56,2,56]
[0,0,0,0,0,0,1,0,"SENIOR",null,"MARTÍNEZ TORRES","DAVID","DAVID MARTÍNEZ TORRES","73132655S","2004-06-18",2004,20,6,19]
[0,0,0,0,1,0,0,0,"CADETE",null,"MARTÍNEZ TORRES","ELENA","ELENA MARTÍNEZ TORRES","77221052R","2008-02-29",2008,16,2,16]
[0,0,0,0,0,0,0,1,"VETERANO",null,"MELENDO SANJUAN","JAVIER","JAVIER MELENDO SANJUAN","40891982Y","1965-11-06",1965,59,11,58]
[0,0,0,0,0,0,1,0,"SENIOR",null,"MIHAI","MARIAN-MADALIN","MARIAN-MADALIN MIHAI","Y7527100L","2000-04-03",2000,24,4,23]
[0,0,0,0,0,0,1,0,"SENIOR",null,"MILLÁN GUÍU","DARÍO","DARÍO MILLÁN GUÍU","25193631Y","1994-03-13",1994,30,3,30]
[0,0,0,0,1,0,0,0,"CADETE",null,"MODREGO CANTORNA","JULIA","JULIA MODREGO CANTORNA",null,"2009-08-17",2009,15,8,14]
[0,0,0,0,0,0,0,1,"VETERANO",null,"MOLINA ALONSO","PAOLA","PAOLA MOLINA ALONSO","17744112A","1988-07-09",1988,36,7,35]
[0,0,0,0,0,0,0,1,"VETERANO",null,"MOLINA McGHEE","PATRICIA","PATRICIA MOLINA McGHEE","05258621Q","1964-09-20",1964,60,9,59]
[0,0,0,0,0,0,0,1,"VETERANO",null,"MONTERO REGUILÓN","SUSANA","SUSANA MONTERO REGUILÓN",null,null,1900,124,1,124,null,null,"C. DE REMO RETIRO 66"]
[0,0,0,0,0,0,1,0,"SENIOR",null,"MONTILLA GALLEGO","CLAUDIA","CLAUDIA MONTILLA GALLEGO","18082142W","2000-06-13",2000,24,6,23]
[0,0,0,0,0,0,1,0,"SENIOR",null,"MORELLA BARREDA","ÁLVARO","ÁLVARO MORELLA BARREDA","73023479C","1997-06-16",1997,27,6,26]
[0,0,0,0,0,0,1,0,"SENIOR",null,"MORELLA BARREDA","EDUARDO","EDUARDO MORELLA BARREDA","73023480K","1998-12-01",1998,26,12,25]
[0,0,0,0,0,0,0,1,"VETERANO",null,"MUNIESA FERRERO","CARLOS ALBERTO","CARLOS ALBERTO MUNIESA FERRERO","17707468K","1962-02-02",1962,62,2,62]
[0,0,0,0,0,0,0,1,"VETERANO",null,"MUNIESA NAVARRO","MARÍA INMACULADA","MARÍA INMACULADA MUNIESA NAVARRO","29111199F","1973-05-20",1973,51,5,50]
[0,0,0,0,0,0,1,0,"SENIOR",null,"MUÑOZ LÓPEZ","JUAN","JUAN MUÑOZ LÓPEZ","25202497V","2000-02-12",2000,24,2,24]
[{"$f":"IF(J429=\"F\", 1,0)","v":0},0,0,0,0,1,0,0,"JUVENIL",null,"MUÑOZ OCHOA","PATRICIA","PATRICIA MUÑOZ OCHOA","07274969T","2007-08-22",2007,{"$f":"$AC$1-P429","v":17},8,16]
[0,0,0,0,0,1,0,0,"JUVENIL",null,"MURIAGO PÉREZ-LIZANU","PATRICIA","PATRICIA MURIAGO PÉREZ-LIZANU","73470604W","2007-07-05",2007,17,7,16]
[0,0,0,0,0,0,0,1,"VETERANO",null,"MURILLO AGUILAR","JUDITH","JUDITH MURILLO AGUILAR","73157805A","1984-04-12",1984,40,4,39]
[0,0,0,0,1,0,0,0,"CADETE",null,"NAVARRO VILLACAMPA","IVÁN","IVÁN NAVARRO VILLACAMPA","21749858T","2009-05-15",2009,15,5,14]
[0,0,0,1,0,0,0,0,"INFANTIL",null,"NEBRA MARTÍNEZ","LEÓN","LEÓN NEBRA MARTÍNEZ","07275528F","2011-07-04",2011,13,7,12]
[0,0,0,0,0,0,0,1,"VETERANO",null,"NIETO SÁNCHEZ","JUAN RAMÓN","JUAN RAMÓN NIETO SÁNCHEZ",null,null,1900,124,1,124,null,null,"C. DE REMO RETIRO 66"]
[0,0,0,0,0,0,0,1,"VETERANO",null,"NOGUERAS PUEYO","RAÚL","RAÚL NOGUERAS PUEYO","18035857Q","1973-09-19",1973,51,9,50]
[0,0,0,0,0,0,0,1,"VETERANO",null,"NOGUÉS NICOLÁS","LORENA","LORENA NOGUÉS NICOLÁS","73157408C","1981-07-03",1981,43,7,42]
[0,0,0,0,0,0,0,1,"VETERANO",null,"NOUALI EL GUENNOUNI","NAJAT","NAJAT NOUALI EL GUENNOUNI","X6900692W","1977-01-01",1977,47,1,47]
[0,0,0,0,1,0,0,0,"CADETE",null,"NOVIALS OLIVER","MARA","MARA NOVIALS OLIVER","21749421T","2009-12-17",2009,15,12,14]
[0,0,0,0,0,0,1,0,"SENIOR",null,"NUÑO PARACUELLOS","DAVID","DAVID NUÑO PARACUELLOS","73055421S","2001-05-05",2001,23,5,22]
[0,0,1,0,0,0,0,0,"ALEVIN",null,"OLIVER IBARZ","MARC","MARC OLIVER IBARZ","09826491V","2013-08-31",2013,11,8,10]
[0,0,0,0,0,0,1,0,"SENIOR",null,"OLIVEROS BLANCO","MARINO","MARINO OLIVEROS BLANCO","77221324C","2004-08-21",2004,20,8,19]
[0,0,0,0,0,0,1,0,"SENIOR",null,"ORDUNA GARCÍA","INÉS",{"$f":"L442&\" \"& K442","v":"INÉS ORDUNA GARCÍA"},"77221361B","2001-07-22",{"$f":"YEAR(O442)","v":2001},23,{"$f":"MONTH(O442)","v":7},22]
[0,0,0,0,1,0,0,0,"CADETE",null,"OTEGUI SANTOLARIA","MARKEL","MARKEL OTEGUI SANTOLARIA","49752957R","2009-11-02",2009,15,11,14]
[0,0,0,0,0,0,1,0,"SENIOR",null,"PALAU LARA","MONTSERRAT","MONTSERRAT PALAU LARA","53663872L","1996-05-07",1996,28,5,27]
[0,0,0,0,0,1,0,0,"JUVENIL",null,"PASCUAL BIARGE","HUGO","HUGO PASCUAL BIARGE","73429104V","2006-09-06",2006,18,9,17]
[0,0,0,1,0,0,0,0,"INFANTIL",null,"PASCUAL GRACIA","HUGO","HUGO PASCUAL GRACIA","26275003X","2010-10-30",2010,14,10,13]
[0,0,0,0,0,0,0,1,"VETERANO",null,"PASTOR ASENSIO","JOSÉ","JOSÉ PASTOR ASENSIO","17181047R","1951-04-29",1951,73,4,72]
[0,0,0,0,0,0,0,1,"VETERANO",null,"PASTOR MONTAÑO","MARÍA ÁNGELES","MARÍA ÁNGELES PASTOR MONTAÑO","29131323Y","1982-01-04",1982,42,1,42]
[0,0,0,0,0,0,1,0,"SENIOR",null,"PELEGRÍN ROMERO","RUBÉN","RUBÉN PELEGRÍN ROMERO","73012972R","1999-01-12",1999,25,1,25]
[0,0,0,0,0,0,1,0,"SENIOR",null,"PEÑA ROMERO DE TEJADA","ANA","ANA PEÑA ROMERO DE TEJADA","73104554C","1999-05-30",1999,25,5,24]
[0,0,0,0,0,0,1,0,"SENIOR",null,"PEQUERUL SARIÑENA","JORGE","JORGE PEQUERUL SARIÑENA","17770249N","1998-03-03",1998,26,3,26]
[0,{"$f":"IF(I452=\"BENJAMIN\", 1,0)","v":0},{"$f":"IF(I452=\"ALEVIN\", 1,0)","v":0},{"$f":"IF(I452=\"INFANTIL\", 1,0)","v":0},{"$f":"IF(I452=\"CADETE\", 1,0)","v":0},{"$f":"IF(I452=\"JUVENIL\", 1,0)","v":0},{"$f":"IF(I452=\"SENIOR\", 1,0)","v":1},0,"SENIOR",null,"PÉREZ BERNAD","ALEXANDRA","ALEXANDRA PÉREZ BERNAD","77135027L","1997-09-26",1997,27,9,26]
[0,0,0,0,0,0,1,0,"SENIOR",null,"PÉREZ DE ACHA","LEIRE","LEIRE PÉREZ DE ACHA","73163236Y","2001-11-30",2001,23,11,22]
[0,0,0,0,0,0,0,1,"VETERANO",null,"PÉREZ MALLÉN","MARÍA JOSÉ","MARÍA JOSÉ PÉREZ MALLÉN","25457548K","1972-08-26",1972,52,8,51]
[0,0,0,0,0,1,0,0,"JUVENIL",null,"PÉREZ MORENO","EIDER","EIDER PÉREZ MORENO","26606276Z","2006-09-07",2006,18,9,17]
[0,0,0,0,0,1,0,0,"JUVENIL",null,"PÉREZ VÁZQUEZ","BELTRÁN","BELTRÁN PÉREZ VÁZQUEZ","73514244B","2006-07-18",2006,18,7,17]
[0,0,0,0,0,0,0,1,"VETERANO",null,"PÉREZ-ILZARBE ORTIZ","ADRIANA","ADRIANA PÉREZ-ILZARBE ORTIZ",null,null,1900,124,1,124,null,null,"C. DE REMO RETIRO 66"]
[0,0,0,1,0,0,0,0,"INFANTIL",null,"PIÑEDO TORRES","JOSÉ","JOSÉ PIÑEDO TORRES","73471537S","2010-04-04",2010,14,4,13]
[0,0,0,0,1,0,0,0,"CADETE",null,"PIÑEDO TORRES","JULIA","JULIA PIÑEDO TORRES","73471536Z","2008-04-10",2008,16,4,15]
[0,0,0,0,0,0,0,1,"VETERANO",null,"PITT","TIMOTHY JAMES","TIMOTHY JAMES PITT","X7326701M","1969-11-04",1969,55,11,54]
[0,0,0,0,0,0,0,1,"VETERANO",null,"PLAZA LEGIDO","JAVIER","JAVIER PLAZA LEGIDO","29128032G","1978-02-06",1978,46,2,46]
[0,0,0,0,0,0,1,0,"SENIOR",null,"PONCE USÓN","SUSANA","SUSANA PONCE USÓN","25207172T","2005-04-19",2005,19,4,18]
[0,0,0,0,0,0,1,0,"SENIOR",null,"PUEYO DIARTE","ÁNGEL","ÁNGEL PUEYO DIARTE","73013020A","1998-01-03",1998,26,1,26]
[0,0,0,0,0,0,0,1,"VETERANO",null,"PUSCO VICO","IRINA",{"$f":"L464&\" \"& K464","v":"IRINA PUSCO VICO"},"73132052X","1974-03-16",{"$f":"YEAR(O464)","v":1974},50,{"$f":"MONTH(O464)","v":3},50]
[0,0,0,0,0,0,0,1,"VETERANO",null,"RAMÓN COSIALS","JOSÉ MARÍA","JOSÉ MARÍA RAMÓN COSIALS","43718056R","1971-04-10",1971,53,4,52]
[0,0,0,0,0,0,0,1,"VETERANO",null,"RICO MORENO","JOSÉ CARMELO","JOSÉ CARMELO RICO MORENO","17123634L","1950-01-20",1950,74,1,74]
[0,0,0,0,0,0,0,1,"VETERANO",null,"RÍOS LÓPEZ","ROSA","ROSA RÍOS LÓPEZ","17209573F","1961-02-06",1961,63,2,63]
[0,0,0,0,0,0,0,1,"VETERANO",null,"ROCA ESTEVE","CARLOS ANDRES","CARLOS ANDRES ROCA ESTEVE","73154337P","1966-08-10",1966,58,8,57]
[0,0,0,0,0,0,0,1,"VETERANO",null,"ROCA ESTEVE","CARLOS","CARLOS ROCA ESTEVE","73154337P","1966-08-10",1966,58,8,57]
[0,0,0,0,0,0,0,1,"VETERANO",null,"ROCA OLIVER","LUIS JAVIER","LUIS JAVIER ROCA OLIVER","73155610Q","1969-12-22",1969,55,12,54]
[0,0,0,0,0,1,0,0,"JUVENIL",null,"ROCA VENTURA","ÁXEL","ÁXEL ROCA VENTURA","48158216B","2007-09-15",2007,17,9,16]
[0,0,0,0,0,0,0,{"$f":"IF(I472=\"VETERANO\", 1,0)","v":1},{"$f":"IF((Q472<11),\"BENJAMIN\",IF(OR(Q472=11,Q472=12),\"ALEVIN\",IF(OR(Q472=13,Q472=14),\"INFANTIL\",IF(OR(Q472=15,Q472=16),\"CADETE\",IF(OR(Q472=17,Q472=18),\"JUVENIL\",IF(AND(Q472>18,Q472<31),\"SENIOR\",\"VETERANO\"))))))","v":"VETERANO"},null,"RODRÍGUEZ CAMBRA","PAULA","PAULA RODRÍGUEZ CAMBRA","25204221Q","1993-07-28",1993,31,7,{"$f":"DATEDIF(O472,TODAY(),\"Y\")","v":30}]
[0,0,0,0,0,1,0,0,"JUVENIL",null,"ROY PARLANTE","SHEILA","SHEILA ROY PARLANTE","73440837C","2007-10-15",2007,17,10,16]
[0,0,0,0,0,0,1,0,"SENIOR",null,"RUBIO LAMBEA","MIGUEL","MIGUEL RUBIO LAMBEA","73089974E","1998-07-27",1998,26,7,25]
[0,0,0,0,0,0,0,1,"VETERANO",null,"RUIZ JOUVÉ","SONSOLES","SONSOLES RUIZ JOUVÉ",null,null,1900,124,1,124,null,null,"C. DE REMO RETIRO 66"]
[0,0,0,0,0,0,0,1,"VETERANO",null,"SALO LORÉS","AITOR","AITOR SALO LORÉS","47682870Y","1980-10-22",1980,44,10,43]
[0,0,0,0,0,0,0,1,"VETERANO",null,"SÁNCHEZ DENIS","ISABEL","ISABEL SÁNCHEZ DENIS","29096331C","1967-07-15",1967,57,7,56]
[0,0,0,1,0,0,0,0,"INFANTIL",null,"SÁNCHEZ LLOP","RUBÉN","RUBÉN SÁNCHEZ LLOP","09826394N","2011-11-01",2011,13,11,12]
[0,0,0,0,0,0,0,1,"VETERANO",null,"SANCHEZ MIGUEL","DIEGO","DIEGO SANCHEZ MIGUEL","46756416S","1969-01-23",1969,55,1,55]
[0,0,0,0,0,0,0,1,"VETERANO",null,"SÁNCHEZ SÁNCHEZ","ÁNGEL","ÁNGEL SÁNCHEZ SÁNCHEZ","17160911J","1963-02-23",1963,61,2,61]
[0,0,0,0,0,0,0,1,"VETERANO",null,"SANDE CECCHI","CRISTINA","CRISTINA SANDE CECCHI","10864899K","1969-05-01",1969,55,5,54]
[0,0,0,0,0,0,1,0,"SENIOR",null,"SANJUÁN VERA","ARIADNA","ARIADNA SANJUÁN VERA","73106286G","1999-08-10",1999,25,8,24]
[0,0,0,0,0,0,1,0,"SENIOR",null,"SANTA EUGENIA MERCADO","JOSÉ IGNACIO","JOSÉ IGNACIO SANTA EUGENIA MERCADO","73029877R","1996-01-13",1996,28,1,28]
[0,0,0,0,0,0,0,1,"VETERANO",null,"SANTAMARÍA GARCÍA DE JALÓN","DANIEL JOAQUÍN",{"$f":"L484&\" \"& K484","v":"DANIEL JOAQUÍN SANTAMARÍA GARCÍA DE JALÓN"},"25457884N","1972-01-06",{"$f":"YEAR(O484)","v":1972},52,{"$f":"MONTH(O484)","v":1},52]
[0,0,0,1,0,0,0,0,"INFANTIL",null,"SANTANA IBARZ","EDGAR","EDGAR SANTANA IBARZ","06670280G","2011-12-13",2011,13,12,12]
[0,0,0,0,0,0,0,1,"VETERANO",null,"SARATLIC","TAMARA","TAMARA SARATLIC","Y0409734A","1975-03-22",1975,49,3,49]
[0,0,0,0,0,0,0,1,"VETERANO",null,"SEBASTIÁN BELANCHE","JOSÉ GABRIEL","JOSÉ GABRIEL SEBASTIÁN BELANCHE","17160587B","1963-04-30",1963,61,4,60]
[0,0,0,0,0,0,1,0,"SENIOR",null,"SEBASTIÁN NUEZ","JORGE","JORGE SEBASTIÁN NUEZ","73020357A","1995-01-27",1995,29,1,29]
[0,0,0,0,0,0,1,0,"SENIOR",null,"SERRANO GUALLAR","NATALIA","NATALIA SERRANO GUALLAR","73615918W","2002-06-13",2002,22,6,21]
[0,0,0,0,0,0,0,1,"VETERANO",null,"SERRANO MARTÍNEZ","PABLO","PABLO SERRANO MARTÍNEZ",null,null,1900,124,1,124,null,null,"C. DE REMO RETIRO 66"]
[0,0,0,0,0,0,1,0,"SENIOR",null,"SERVETO ORDUÑA","SARA","SARA SERVETO ORDUÑA","09825426X","2005-01-25",2005,19,1,19]
[0,0,0,0,0,0,1,0,"SENIOR",null,"SEVIL DOMINGO","TOMÁS","TOMÁS SEVIL DOMINGO","73414795Z","2000-02-22",2000,24,2,24]
[{"$f":"IF(J493=\"F\", 1,0)","v":0},0,0,0,0,0,0,1,"VETERANO",null,"SILVA CASAL","ROI","ROI SILVA CASAL","78907301M","1987-02-17",1987,{"$f":"$AC$1-P493","v":37},2,37]
[0,0,0,0,0,0,1,0,"SENIOR",null,"SOLONETS","DANIIL","DANIIL SOLONETS","Y9529321K","2004-11-08",2004,20,11,19]
[0,0,0,0,0,0,0,1,"VETERANO",null,"TOBOSO MORENO","TEODORO","TEODORO TOBOSO MORENO","5113245T","1952-12-20",1952,72,12,71]
[0,0,0,0,0,0,0,1,"VETERANO",null,"TOLOSANA ARBONES","MARÍA ISABEL","MARÍA ISABEL TOLOSANA ARBONES","25455727V","1971-07-19",1971,53,7,52]
[0,0,0,0,0,1,0,0,"JUVENIL",null,"TSAI BADENHOPE","GEORGIA","GEORGIA TSAI BADENHOPE",663132508,"2006-04-02",2006,18,4,17]
[0,0,0,0,0,0,0,1,"VETERANO",null,"URRA LAMANA","JOXEMIEL","JOXEMIEL URRA LAMANA",null,"1970-09-16",1970,54,9,53,null,null,"C.N. DE NAVARRA"]
[0,0,0,0,0,0,0,1,"VETERANO",null,"USED LAHOZ","MARÍA PILAR","MARÍA PILAR USED LAHOZ","29110984E","1974-11-29",1974,50,11,49]
[0,0,0,0,0,0,1,0,"SENIOR",null,"UTRILLA ABUELO","ALEJANDRO MANUEL","ALEJANDRO MANUEL UTRILLA ABUELO","25360740C","1996-02-16",1996,28,2,28]
[0,0,0,0,0,0,1,0,"SENIOR",null,"VAL CAMPILLO","PABLO","PABLO VAL CAMPILLO","25204460W","1998-09-09",1998,26,9,25]
[0,0,0,0,1,0,0,0,"CADETE",null,"VALERO BOLEA","DIEGO","DIEGO VALERO BOLEA","73440012T","2008-10-03",2008,16,10,15]
[0,0,0,0,1,0,0,0,"CADETE",null,"VALLES SANJUAN","JORDI","JORDI VALLES SANJUAN","49263744K","2009-03-18",2009,15,3,15]
[0,0,0,0,0,0,1,0,"SENIOR",null,"VALVERDE ANDRÉS","KIARA","KIARA VALVERDE ANDRÉS","54752046V","2005-01-27",2005,19,1,19]
[0,0,0,0,0,0,1,0,"SENIOR",null,"VARGAS PITAR","ALEJANDRO","ALEJANDRO VARGAS PITAR","73613687W","2001-07-11",2001,23,7,22]
[0,1,0,0,0,0,0,0,"BENJAMIN",null,"VELILLA PÉREZ","MARTINA","MARTINA VELILLA PÉREZ","-","2014-05-14",2014,10,5,9]
[0,0,0,0,0,0,0,1,"VETERANO",null,"VERGÉ TORRES","ARTURO","ARTURO VERGÉ TORRES","47681061Z","1983-10-05",1983,41,10,40]
[0,0,0,0,0,0,0,1,"VETERANO",null,"VICENTE ESCOSA","JOSÉ CARLOS","JOSÉ CARLOS VICENTE ESCOSA","17716175B","1964-09-18",1964,60,9,59]
[0,0,0,0,0,0,0,1,"VETERANO",null,"VILELLA RIAU","JOSÉ ANTONIO","JOSÉ ANTONIO VILELLA RIAU","73157013Q","1972-09-30",1972,52,9,51]
[0,0,0,0,1,0,0,0,"CADETE",null,"VILLALBA MULA","VALENTÍN","VALENTÍN VILLALBA MULA","09825414K","2008-03-03",2008,16,3,16]
[0,0,0,0,0,0,0,1,"VETERANO",null,"VILLAR MARTÍNEZ","PEDRO","PEDRO VILLAR MARTÍNEZ","17150748Q","1961-05-25",1961,63,5,62,null,null,null,null,null,null,null,null,null,null,null,null,null,null,null,null,null,null,null,null,null,null,null,null,null,null,null,null,null,null,null,null,null,null,null,null,null,null,null,null,null,null,null,null,null,null,{"$f":"AJ511+AL511+AN511+AP511+AR511+AT511+AV511+AX511+AZ511+BB511+BD511+BF511+BH511+BJ511+BL511","v":0},0]
[0,0,0,1,0,0,0,0,"INFANTIL",null,"VILLORO ANGLÉS","GERMÁN","GERMÁN VILLORO ANGLÉS","73167267N","2010-02-18",2010,14,2]
[0,0,0,0,0,0,0,1,"VETERANO",null,"VILLORO GRASKE","ANTONIO","ANTONIO VILLORO GRASKE","05282461M","1970-10-15",1970,54,10,null,null,null,null,null,null,null,null,null,null,null,null,null,null,null,null,null,null,null,null,null,null,null,null,null,null,null,null,null,null,null,null,null,null,null,null,null,null,null,null,null,null,null,null,null,null,null,0,0]
[null,null,null,null,null,null,null,null,"VETERANO",null,null,null,null,null,null,1900,124,1]
[null,null,null,null,null,null,null,null,"VETERANO",null,null,null,null,null,null,1900,124,1]
[null,null,null,null,null,null,null,null,"VETERANO",null,null,null,null,null,null,1900,124,1]
[null,null,null,null,null,null,null,null,"VETERANO",null,null,null,null,null,null,1900,124,1]
[null,null,null,null,null,null,null,null,"VETERANO",null,null,null,null,null,null,1900,124,1]
[null,null,null,null,null,null,null,null,"VETERANO",null,null,null,null,null,null,1900,124,1]
[null,null,null,null,null,null,null,null,"VETERANO",null,null,null,null,null,null,1900,124,1]
[null,null,null,null,null,null,null,null,"VETERANO",null,null,null,null,null,null,1900,124,1]
[null,null,null,null,null,null,null,null,"VETERANO",null,null,null,null,null,null,1900,124,1]
[null,null,null,null,null,null,null,null,"VETERANO",null,null,null,null,null,null,1900,124,1]
[null,null,null,null,null,null,null,null,"VETERANO",null,null,null,null,null,null,1900,124,1]
[null,null,null,null,null,null,null,null,"VETERANO",null,null,null,null,null,null,1900,124,1]
[null,null,null,null,null,null,null,null,"VETERANO",null,null,null,null,null,null,1900,124,1]
[null,null,null,null,null,null,null,null,"VETERANO",null,null,null,null,null,null,1900,124,1]
[null,null,null,null,null,null,null,null,"VETERANO",null,null,null,null,null,null,1900,124,1]
[null,null,null,null,null,null,null,null,"VETERANO",null,null,null,null,null,null,1900,124,1,null,null,null,"C. DE REMO RETIRO 66",null,null,null,null,null,null,null,null,null,null,null,null,null,null,null,null,null,null,null,null,null,null,null,null,null,null,null,null,null,null,null,null,null,null,null,null,null,null,null,null,null,null,null,0,0]
[]
[{"$f":"SUBTOTAL(9,A4:A530)","v":77},8,21,36,55,47,135,200,{"$f":"B531+C531+D531+E531+F531+G531+H531","v":502},null,null,null,null,null,null,null,null,null,null,null,null,null,{"$f":"SUBTOTAL(9,W4:W530)","v":206},{"$f":"SUBTOTAL(9,X4:X529)","v":14},12,8,{"$f":"SUBTOTAL(9,AA4:AA529)","v":128},97,121,118,117,0,0,0,0]
[]
[]
[]
[]
[]
[]
[]
[]
[]
[]
[]
[]
[]
[]
[]
[]
[]
[]
[]
[]
[]
[]
[]
[]
[]
[]
[]
[]
[]
[]
[]
[]
[]
[]
[]
[]
[]
[]
[]
[]
[]
[]
[]
[]
[]
[]
[]
[]
[]
[]
[]
[]
[]
[]
[]
[]
[]
[]
[]
[]
[]
[]
[]
[]
[]
[]
[]
[]
[]
[]
[]
[]
[]
[]
[]
[]
[]
[]
[]
[]
[]
[]
[]
[]
[]
[]
[]
[]
[]
[]
[]
[]
[]
[]
[]
[]
[]
[]
[]
[]
[]
[]
[]
[]
[]
[]
[]
[]
[]
[]
[]
[]
[]
[]
[]
[]
[]
[]
[]
[]
[]
[]
[]
[]
[]
[]
[]
[]
[]
[]
[]
[]
[]
[]
[]
[]
[]
[]
[]
[]
[]
[]
[]
[]
[]
[]
[]
[]
[]
[]
[]
[]
[]
[]
[]
[]
[]
[]
[]
[]
[]
[]
[]
[]
[]
[]
[]
[]
[]
[]
[]
[]
[]
[]
[]
[]
[]
[]
[]
[]
[]
[]
[]
[]
[]
[]
[]
[]
[]
[]
[]
[]
[]
[]
[]
[]
[]
[]
[]
[]
[]
[]
[]
[]
[]
[]
[]
[]
[]
[]
[]
[]
[]
[]
[]
[]
[]
[]
[]
[]
[]
[]
[]
[]
[]
[]
[]
[]
[]
[]
[]
[]
[]
[]
[]
[]
[]
[]
[]
[]
[]
[]
[]
[]
[]
[]
[]
[]
[]
[]
[]
[]
[]
[]
[]
[]
[]
[]
[null,null,null,null,null,null,null,null,null,null,null,{"$f":"IF(I524=\"J\",M524,\"\")","v":""}]

{"sheet":"CLUBS","index":7,"n_rows":27,"n_cols":8,"rows_kept":27,"cut":false,"hidden":true,"merged":[]}
[]
[]
[null,"CENTRO NATACION HELIOS","NAUTICO ZARAGOZA","OS NABATERS D.F.","REMO ZARAGOZA","CAPRI MEQUINENZA","ARAGON REMO","REMO MEQUINENZA"]
[null,"BENJAMIN","BENJAMIN_NZ","BENJAMIN_NB","BENJAMIN_RZ","BENJAMIN_CM","BENJAMIN_AR","BENJAMIN_RM"]
[null,"ALEVIN","ALEVIN_NZ","ALEVIN_NB","ALEVIN_RZ","ALEVIN_CM","ALEVIN_AR","ALEVIN_RM"]
[null,"INFANTIL","INFANTIL_NZ","INFANTIL_NB","INFANTIL_RZ","INFANTIL_CM","INFANTIL_AR","INFANTIL_RM"]
[null,"CADETE","CADETE_NZ","CADETE_NB","CADETE_RZ","CADETE_CM","CADETE_AR","CADETE_RM"]
[null,"JUVENIL","JUVENIL_NZ","JUVENIL_NB","JUVENIL_RZ","JUVENIL_CM","JUVENIL_AR","JUVENIL_RM"]
[null,"SENIOR","SENIOR_NZ","SENIOR_NB","SENIOR_RZ","SENIOR_CM","SENIOR_AR","SENIOR_RM"]
[null,"VETERANO","VETERANO_NZ","VETERANO_NB","VETERANO_RZ","VETERANO_CM","VETERANO_AR","VETERANO_RM"]
[]
[]
[]
[]
[]
[]
[null,"EMBARCACIONES",null,"PUESTO"]
[null,"1x",null,1]
[null,"2x",null,2]
[null,"2-",null,3]
[null,"2+",null,4]
[null,"4x",null,5]
[null,"4-",null,6]
[null,"4+",null,7]
[null,"8+",null,8]
[null,"YOLA 4+",null,"T"]
[null,"ERGOMETRO"]

{"sheet":"ENTRE_DELEG","index":8,"n_rows":531,"n_cols":26,"rows_kept":531,"cut":false,"hidden":true,"merged":[]}
["CLUB","NOMBRE COMPLETO","LICENCIA FAR ENTRENADOR","LICENCIA FAR DELEGADO",null,null,"CLUB","LICENCIA FAR ENTRENADOR",null,null,null,"CLUB","LICENCIA FAR DELEGADO"]
["F.A.R.",{"$f":"'DATOS DEPORTISTAS'!$M$4","v":"PILAR ELVIRA ATIENZA"},{"$f":"'DATOS DEPORTISTAS'!X4","v":0},{"$f":"'DATOS DEPORTISTAS'!Y4","v":0},null,null,"CENTRO NATACION HELIOS",1,null,null,null,"CENTRO NATACION HELIOS",1]
["F.A.R.",{"$f":"'DATOS DEPORTISTAS'!M5","v":"MIGUEL GASCÓN GONZÁLEZ"},{"$f":"'DATOS DEPORTISTAS'!X5","v":1},{"$f":"'DATOS DEPORTISTAS'!Y5","v":0},null,null,"ARAGÓN REMO",1,null,null,null,"ARAGÓN REMO",1]
["F.A.R.",{"$f":"'DATOS DEPORTISTAS'!M6","v":"JOSÉ JAVIER GONZÁLEZ-ARCE LABORDA"},{"$f":"'DATOS DEPORTISTAS'!X6","v":0},{"$f":"'DATOS DEPORTISTAS'!Y6","v":0},null,null,"CAPRI MEQUINENZA",1,null,null,null,"CAPRI MEQUINENZA",1]
["F.A.R.",{"$f":"'DATOS DEPORTISTAS'!M7","v":"MARCOS GÓMEZ RODRÍGUEZ"},{"$f":"'DATOS DEPORTISTAS'!X7","v":0},{"$f":"'DATOS DEPORTISTAS'!Y7","v":0},null,null,"OS NABATERS D.F.",1,null,null,null,"OS NABATERS D.F.",1]
["F.A.R.",{"$f":"'DATOS DEPORTISTAS'!M8","v":"DANIEL CASORRÁN ROYO"},{"$f":"'DATOS DEPORTISTAS'!X8","v":0},{"$f":"'DATOS DEPORTISTAS'!Y8","v":0},null,null,"NAUTICO ZARAGOZA",1,null,null,null,"NAUTICO ZARAGOZA",1]
["F.A.R.",{"$f":"'DATOS DEPORTISTAS'!M9","v":"JOSÉ MIGUEL LLOP ROCA"},{"$f":"'DATOS DEPORTISTAS'!X9","v":0},{"$f":"'DATOS DEPORTISTAS'!Y9","v":0},null,null,"REMO ZARAGOZA",1,null,null,null,"REMO ZARAGOZA",1]
["F.A.R.",{"$f":"'DATOS DEPORTISTAS'!M10","v":"PEDRO JAVIER MORALES ALCUBIERRE"},{"$f":"'DATOS DEPORTISTAS'!X10","v":0},{"$f":"'DATOS DEPORTISTAS'!Y10","v":0},null,null,"REMO MEQUINENZA",1,null,null,null,"REMO MEQUINENZA",1]
["F.A.R.",{"$f":"'DATOS DEPORTISTAS'!M11","v":"PEDRO IGNACIO MARTÍNEZ CABELLO"},{"$f":"'DATOS DEPORTISTAS'!X11","v":0},{"$f":"'DATOS DEPORTISTAS'!Y11","v":0},null,null,"F.A.R.",1,null,null,null,"F.A.R.",1]
["F.A.R.",{"$f":"'DATOS DEPORTISTAS'!M12","v":"IGNACIO MARTÍNEZ BERMEJO"},{"$f":"'DATOS DEPORTISTAS'!X12","v":0},{"$f":"'DATOS DEPORTISTAS'!Y12","v":0},null,null,null,null,null,null,null,null,null,null,null,null,null,null,null,"CENTRO NATACION HELIOS","NÁUTICO ZARAGOZA","OS NABATERS D.F.","REMO ZARAGOZA","CAPRI MEQUINENZA","ARAGON REMO","REMO MEQUINENZA"]
["F.A.R.",{"$f":"'DATOS DEPORTISTAS'!M13","v":"MARÍA JOSÉ GALLARDO BENÍTEZ"},{"$f":"'DATOS DEPORTISTAS'!X13","v":0},{"$f":"'DATOS DEPORTISTAS'!Y13","v":0},null,null,null,null,null,null,null,null,null,null,null,null,null,null,null,"CENTRO_NATACION_HELIOS","NÁUTICO_ZARAGOZA"]
["F.A.R.",{"$f":"'DATOS DEPORTISTAS'!M14","v":"ÁNGEL AGUILERA ANDRÉS"},{"$f":"'DATOS DEPORTISTAS'!X14","v":0},{"$f":"'DATOS DEPORTISTAS'!Y14","v":0},null,null,"CLUB","LICENCIA FAR ENTRENADOR",null,null,null,"CLUB","LICENCIA FAR DELEGADO"]
["F.A.R.",{"$f":"'DATOS DEPORTISTAS'!M15","v":"BEATRIZ CASTELLÓ AYED"},{"$f":"'DATOS DEPORTISTAS'!X15","v":0},{"$f":"'DATOS DEPORTISTAS'!Y15","v":0},null,null,{"$f":"_xlfn._xlws.FILTER($A$2:$C$502,($A$2:$A$502=G2)*($C$2:$C$502=H2),\"NO ENCONTRADO\")","v":"CENTRO NATACION HELIOS"},"ALFONSO MUNIESA FERRERO",1,null,null,{"$f":"_xlfn._xlws.FILTER($A$2:$D$502,($A$2:$A$502=L2)*($D$2:$D$502=M2),\"NO ENCONTRADO\")","v":"CENTRO NATACION HELIOS"},"ALFONSO MUNIESA FERRERO",1,1]
["F.A.R.",{"$f":"'DATOS DEPORTISTAS'!M16","v":" "},{"$f":"'DATOS DEPORTISTAS'!X16","v":0},{"$f":"'DATOS DEPORTISTAS'!Y16","v":0},null,null,"CENTRO NATACION HELIOS","ESMERALDA AGUAS GARCIA",1,null,null,"CENTRO NATACION HELIOS","JULIO BIELSA ARTIDIELLO",0,1]
["F.A.R.",{"$f":"'DATOS DEPORTISTAS'!M17","v":" "},{"$f":"'DATOS DEPORTISTAS'!X17","v":0},{"$f":"'DATOS DEPORTISTAS'!Y17","v":0},null,null,"CENTRO NATACION HELIOS","IVÁN LATAS JIMÉNEZ",1]
["F.A.R.",{"$f":"'DATOS DEPORTISTAS'!M18","v":" "},{"$f":"'DATOS DEPORTISTAS'!X18","v":0},{"$f":"'DATOS DEPORTISTAS'!Y18","v":0},null,null,"CENTRO NATACION HELIOS","JAVIER MUNIESA AGUAS",1]
["F.A.R.",{"$f":"'DATOS DEPORTISTAS'!M19","v":" "},{"$f":"'DATOS DEPORTISTAS'!X19","v":0},{"$f":"'DATOS DEPORTISTAS'!Y19","v":0},null,null,"CENTRO NATACION HELIOS","PABLO BRIZ ZAMORANO",1]
["F.A.R.",{"$f":"'DATOS DEPORTISTAS'!M20","v":" "},{"$f":"'DATOS DEPORTISTAS'!X20","v":0},{"$f":"'DATOS DEPORTISTAS'!Y20","v":0}]
["F.A.R.",{"$f":"'DATOS DEPORTISTAS'!M21","v":" "},{"$f":"'DATOS DEPORTISTAS'!X21","v":0},{"$f":"'DATOS DEPORTISTAS'!Y21","v":0}]
["F.A.R.",{"$f":"'DATOS DEPORTISTAS'!M22","v":" "},{"$f":"'DATOS DEPORTISTAS'!X22","v":0},{"$f":"'DATOS DEPORTISTAS'!Y22","v":0}]
["F.A.R.",{"$f":"'DATOS DEPORTISTAS'!M23","v":" "},{"$f":"'DATOS DEPORTISTAS'!X23","v":0},{"$f":"'DATOS DEPORTISTAS'!Y23","v":0}]
[{"$f":"'DATOS DEPORTISTAS'!V24","v":"ARAGÓN REMO"},{"$f":"'DATOS DEPORTISTAS'!M24","v":"FERNANDO CARLOS MILLÁN MAINAR"},{"$f":"'DATOS DEPORTISTAS'!X24","v":0},{"$f":"'DATOS DEPORTISTAS'!Y24","v":1}]
[{"$f":"'DATOS DEPORTISTAS'!V25","v":"ARAGÓN REMO"},{"$f":"'DATOS DEPORTISTAS'!M25","v":"SOFÍA EVA GÓMEZ GÓMEZ"},{"$f":"'DATOS DEPORTISTAS'!X25","v":0},{"$f":"'DATOS DEPORTISTAS'!Y25","v":0}]
[{"$f":"'DATOS DEPORTISTAS'!V26","v":"ARAGÓN REMO"},{"$f":"'DATOS DEPORTISTAS'!M26","v":"DAVID SAN JOSÉ SANTAMARÍA"},{"$f":"'DATOS DEPORTISTAS'!X26","v":1},{"$f":"'DATOS DEPORTISTAS'!Y26","v":0},null,null,"CLUB","LICENCIA FAR ENTRENADOR",null,null,null,"CLUB","LICENCIA FAR DELEGADO"]
[{"$f":"'DATOS DEPORTISTAS'!V27","v":"OS NABATERS D.F."},{"$f":"'DATOS DEPORTISTAS'!M27","v":"REBECA ASO LÓPEZ"},{"$f":"'DATOS DEPORTISTAS'!X27","v":0},{"$f":"'DATOS DEPORTISTAS'!Y27","v":0},null,null,{"$f":"_xlfn._xlws.FILTER($A$2:$C$502,($A$2:$A$502=G3)*($C$2:$C$502=H3),\"NO ENCONTRADO\")","v":"ARAGÓN REMO"},"DAVID SAN JOSÉ SANTAMARÍA",1,null,null,{"$f":"_xlfn._xlws.FILTER($A$2:$D$502,($A$2:$A$502=L3)*($D$2:$D$502=M3),\"NO ENCONTRADO\")","v":"ARAGÓN REMO"},"FERNANDO CARLOS MILLÁN MAINAR",0,1]
[{"$f":"'DATOS DEPORTISTAS'!V28","v":"OS NABATERS D.F."},{"$f":"'DATOS DEPORTISTAS'!M28","v":"DARÍO CANO JIMÉNEZ"},{"$f":"'DATOS DEPORTISTAS'!X28","v":0},{"$f":"'DATOS DEPORTISTAS'!Y28","v":0}]
[{"$f":"'DATOS DEPORTISTAS'!V29","v":"OS NABATERS D.F."},{"$f":"'DATOS DEPORTISTAS'!M29","v":"JOSÉ MANUEL FAÑA GRIÑÓN"},{"$f":"'DATOS DEPORTISTAS'!X29","v":0},{"$f":"'DATOS DEPORTISTAS'!Y29","v":0}]
[{"$f":"'DATOS DEPORTISTAS'!V30","v":"OS NABATERS D.F."},{"$f":"'DATOS DEPORTISTAS'!M30","v":"MIGUEL ABENIA CÁMARA"},{"$f":"'DATOS DEPORTISTAS'!X30","v":0},{"$f":"'DATOS DEPORTISTAS'!Y30","v":0}]
[{"$f":"'DATOS DEPORTISTAS'!V31","v":"OS NABATERS D.F."},{"$f":"'DATOS DEPORTISTAS'!M31","v":"CLAUDIA ASO LÓPEZ"},{"$f":"'DATOS DEPORTISTAS'!X31","v":0},{"$f":"'DATOS DEPORTISTAS'!Y31","v":0}]
[{"$f":"'DATOS DEPORTISTAS'!V32","v":"OS NABATERS D.F."},{"$f":"'DATOS DEPORTISTAS'!M32","v":"SARA BAILO GARCÍA"},{"$f":"'DATOS DEPORTISTAS'!X32","v":0},{"$f":"'DATOS DEPORTISTAS'!Y32","v":0}]
[{"$f":"'DATOS DEPORTISTAS'!V33","v":"OS NABATERS D.F."},{"$f":"'DATOS DEPORTISTAS'!M33","v":"GERMÁN FAUBELL MACÍA"},{"$f":"'DATOS DEPORTISTAS'!X33","v":0},{"$f":"'DATOS DEPORTISTAS'!Y33","v":0}]
[{"$f":"'DATOS DEPORTISTAS'!V34","v":"OS NABATERS D.F."},{"$f":"'DATOS DEPORTISTAS'!M34","v":"SARA MARTÍN RANERA"},{"$f":"'DATOS DEPORTISTAS'!X34","v":0},{"$f":"'DATOS DEPORTISTAS'!Y34","v":0}]
[{"$f":"'DATOS DEPORTISTAS'!V35","v":"OS NABATERS D.F."},{"$f":"'DATOS DEPORTISTAS'!M35","v":"ADRIÁN AZNAR SAMPER"},{"$f":"'DATOS DEPORTISTAS'!X35","v":0},{"$f":"'DATOS DEPORTISTAS'!Y35","v":0}]
[{"$f":"'DATOS DEPORTISTAS'!V36","v":"OS NABATERS D.F."},{"$f":"'DATOS DEPORTISTAS'!M36","v":"GABRIELA LAPLANA DÍAZ"},{"$f":"'DATOS DEPORTISTAS'!X36","v":0},{"$f":"'DATOS DEPORTISTAS'!Y36","v":0}]
[{"$f":"'DATOS DEPORTISTAS'!V37","v":"OS NABATERS D.F."},{"$f":"'DATOS DEPORTISTAS'!M37","v":"ÁNGELA OLIVA CORTÉS"},{"$f":"'DATOS DEPORTISTAS'!X37","v":0},{"$f":"'DATOS DEPORTISTAS'!Y37","v":0},null,null,"CLUB","LICENCIA FAR ENTRENADOR",null,null,null,"CLUB","LICENCIA FAR DELEGADO"]
[{"$f":"'DATOS DEPORTISTAS'!V38","v":"OS NABATERS D.F."},{"$f":"'DATOS DEPORTISTAS'!M38","v":"RAQUEL HERNÁNDEZ ROYO"},{"$f":"'DATOS DEPORTISTAS'!X38","v":0},{"$f":"'DATOS DEPORTISTAS'!Y38","v":0},null,null,{"$f":"_xlfn._xlws.FILTER($A$2:$C$502,($A$2:$A$502=G4)*($C$2:$C$502=H4),\"NO ENCONTRADO\")","v":"CAPRI MEQUINENZA"},"DAVID OLIVER CABALLÉ",1,null,null,{"$f":"_xlfn._xlws.FILTER($A$2:$D$502,($A$2:$A$502=L4)*($D$2:$D$502=M4),\"NO ENCONTRADO\")","v":"CAPRI MEQUINENZA"},"Mª CARMEN GARCÍA ARANDA",0,1]
[{"$f":"'DATOS DEPORTISTAS'!V39","v":"OS NABATERS D.F."},{"$f":"'DATOS DEPORTISTAS'!M39","v":"ERNESTO SÁNCHEZ GARRIGÓS"},{"$f":"'DATOS DEPORTISTAS'!X39","v":0},{"$f":"'DATOS DEPORTISTAS'!Y39","v":0},null,null,null,null,null,null,null,"CAPRI MEQUINENZA","MARÍA TERESA GODIA PI",0,1]
[{"$f":"'DATOS DEPORTISTAS'!V40","v":"OS NABATERS D.F."},{"$f":"'DATOS DEPORTISTAS'!M40","v":"ANA ARNAIZ LÓPEZ"},{"$f":"'DATOS DEPORTISTAS'!X40","v":0},{"$f":"'DATOS DEPORTISTAS'!Y40","v":0},null,null,null,null,null,null,null,"CAPRI MEQUINENZA","PEDRO JOSÉ SERVETO PALOMAR",0,1]
[{"$f":"'DATOS DEPORTISTAS'!V41","v":"OS NABATERS D.F."},{"$f":"'DATOS DEPORTISTAS'!M41","v":"ROBERTO NAVARRO CARRETERO"},{"$f":"'DATOS DEPORTISTAS'!X41","v":0},{"$f":"'DATOS DEPORTISTAS'!Y41","v":0},null,null,null,null,null,null,null,"CAPRI MEQUINENZA","MARISOL CLAVERO GARCÍA",0,1]
[{"$f":"'DATOS DEPORTISTAS'!V42","v":"OS NABATERS D.F."},{"$f":"'DATOS DEPORTISTAS'!M42","v":"SELMA PALACÍN ARTIGOSA"},{"$f":"'DATOS DEPORTISTAS'!X42","v":0},{"$f":"'DATOS DEPORTISTAS'!Y42","v":0},null,null,null,null,null,null,null,"CAPRI MEQUINENZA","DAVID TORO SOLER",0,1]
[{"$f":"'DATOS DEPORTISTAS'!V43","v":"OS NABATERS D.F."},{"$f":"'DATOS DEPORTISTAS'!M43","v":"JOSÉ LUIS CAMBERO CENZANO"},{"$f":"'DATOS DEPORTISTAS'!X43","v":0},{"$f":"'DATOS DEPORTISTAS'!Y43","v":0}]
[{"$f":"'DATOS DEPORTISTAS'!V44","v":"OS NABATERS D.F."},{"$f":"'DATOS DEPORTISTAS'!M44","v":"GABRIEL JOSÉ RUANO FERNÁNDEZ"},{"$f":"'DATOS DEPORTISTAS'!X44","v":0},{"$f":"'DATOS DEPORTISTAS'!Y44","v":0}]
[{"$f":"'DATOS DEPORTISTAS'!V45","v":"OS NABATERS D.F."},{"$f":"'DATOS DEPORTISTAS'!M45","v":"GUILLÉN VICENTE MIRANDA"},{"$f":"'DATOS DEPORTISTAS'!X45","v":1},{"$f":"'DATOS DEPORTISTAS'!Y45","v":1}]
[{"$f":"'DATOS DEPORTISTAS'!V46","v":"OS NABATERS D.F."},{"$f":"'DATOS DEPORTISTAS'!M46","v":"JORGE PONCE USÓN"},{"$f":"'DATOS DEPORTISTAS'!X46","v":0},{"$f":"'DATOS DEPORTISTAS'!Y46","v":1}]
[{"$f":"'DATOS DEPORTISTAS'!V47","v":"OS NABATERS D.F."},{"$f":"'DATOS DEPORTISTAS'!M47","v":"MIGUEL BEA GONZÁLEZ"},{"$f":"'DATOS DEPORTISTAS'!X47","v":0},{"$f":"'DATOS DEPORTISTAS'!Y47","v":1}]
[{"$f":"'DATOS DEPORTISTAS'!V48","v":"CENTRO NATACION HELIOS"},{"$f":"'DATOS DEPORTISTAS'!M48","v":"ADRIÁN CASAS GUILLÉN"},{"$f":"'DATOS DEPORTISTAS'!X48","v":0},{"$f":"'DATOS DEPORTISTAS'!Y48","v":0},null,null,"CLUB","LICENCIA FAR ENTRENADOR",null,null,null,"CLUB","LICENCIA FAR DELEGADO"]
[{"$f":"'DATOS DEPORTISTAS'!V49","v":"CENTRO NATACION HELIOS"},{"$f":"'DATOS DEPORTISTAS'!M49","v":"ALBERTO GARCÍA RUIZ"},{"$f":"'DATOS DEPORTISTAS'!X49","v":0},{"$f":"'DATOS DEPORTISTAS'!Y49","v":0},null,null,{"$f":"_xlfn._xlws.FILTER($A$2:$C$502,($A$2:$A$502=G5)*($C$2:$C$502=H5),\"NO ENCONTRADO\")","v":"OS NABATERS D.F."},"GUILLÉN VICENTE MIRANDA",1,null,null,{"$f":"_xlfn._xlws.FILTER($A$2:$D$502,($A$2:$A$502=L5)*($D$2:$D$502=M5),\"NO ENCONTRADO\")","v":"OS NABATERS D.F."},"GUILLÉN VICENTE MIRANDA",1,1]
[{"$f":"'DATOS DEPORTISTAS'!V50","v":"CENTRO NATACION HELIOS"},{"$f":"'DATOS DEPORTISTAS'!M50","v":"ALEXANDER JURADO PÉREZ"},{"$f":"'DATOS DEPORTISTAS'!X50","v":0},{"$f":"'DATOS DEPORTISTAS'!Y50","v":0},null,null,"OS NABATERS D.F.","ÁNGEL DE MIGUEL BENITO",1,null,null,"OS NABATERS D.F.","JORGE PONCE USÓN",0,1]
[{"$f":"'DATOS DEPORTISTAS'!V51","v":"CENTRO NATACION HELIOS"},{"$f":"'DATOS DEPORTISTAS'!M51","v":"ALFONSO MUNIESA FERRERO"},{"$f":"'DATOS DEPORTISTAS'!X51","v":1},{"$f":"'DATOS DEPORTISTAS'!Y51","v":1},null,null,"OS NABATERS D.F.","ANTONIO ANSELMO SANCHO NAVARRO",1,null,null,"OS NABATERS D.F.","MIGUEL BEA GONZÁLEZ",0,1]
[{"$f":"'DATOS DEPORTISTAS'!V52","v":"CENTRO NATACION HELIOS"},{"$f":"'DATOS DEPORTISTAS'!M52","v":"ALFREDO DIEZ SECO"},{"$f":"'DATOS DEPORTISTAS'!X52","v":0},{"$f":"'DATOS DEPORTISTAS'!Y52","v":0},null,null,"OS NABATERS D.F.","LUIS CARLOS BELLED LACASA",1]
[{"$f":"'DATOS DEPORTISTAS'!V53","v":"CENTRO NATACION HELIOS"},{"$f":"'DATOS DEPORTISTAS'!M53","v":"ALICIA LUNA MONTAGUD"},{"$f":"'DATOS DEPORTISTAS'!X53","v":0},{"$f":"'DATOS DEPORTISTAS'!Y53","v":0},null,null,"OS NABATERS D.F.","NAOMI SANCHO BUSTÍN",1]
[{"$f":"'DATOS DEPORTISTAS'!V54","v":"CENTRO NATACION HELIOS"},{"$f":"'DATOS DEPORTISTAS'!M54","v":"ANA CARMEN FUENTES LORENTE"},{"$f":"'DATOS DEPORTISTAS'!X54","v":0},{"$f":"'DATOS DEPORTISTAS'!Y54","v":0},null,null,"OS NABATERS D.F.","ÁNGEL BERNAL LECINA",1]
[{"$f":"'DATOS DEPORTISTAS'!V55","v":"CENTRO NATACION HELIOS"},{"$f":"'DATOS DEPORTISTAS'!M55","v":"ANDRÉS BLANCO VELÁZQUEZ"},{"$f":"'DATOS DEPORTISTAS'!X55","v":0},{"$f":"'DATOS DEPORTISTAS'!Y55","v":0}]
[{"$f":"'DATOS DEPORTISTAS'!V56","v":"CENTRO NATACION HELIOS"},{"$f":"'DATOS DEPORTISTAS'!M56","v":"ANDRÉS DÍAZ ROBLES"},{"$f":"'DATOS DEPORTISTAS'!X56","v":0},{"$f":"'DATOS DEPORTISTAS'!Y56","v":0}]
[{"$f":"'DATOS DEPORTISTAS'!V57","v":"CENTRO NATACION HELIOS"},{"$f":"'DATOS DEPORTISTAS'!M57","v":"ÁNGEL PERNÍA OYAGA"},{"$f":"'DATOS DEPORTISTAS'!X57","v":0},{"$f":"'DATOS DEPORTISTAS'!Y57","v":0}]
[{"$f":"'DATOS DEPORTISTAS'!V58","v":"CENTRO NATACION HELIOS"},{"$f":"'DATOS DEPORTISTAS'!M58","v":"CARLOS ALONSO GUTIÉRREZ"},{"$f":"'DATOS DEPORTISTAS'!X58","v":0},{"$f":"'DATOS DEPORTISTAS'!Y58","v":0}]
[{"$f":"'DATOS DEPORTISTAS'!V59","v":"CENTRO NATACION HELIOS"},{"$f":"'DATOS DEPORTISTAS'!M59","v":"CARLOS MILLÁN BLASCO"},{"$f":"'DATOS DEPORTISTAS'!X59","v":0},{"$f":"'DATOS DEPORTISTAS'!Y59","v":0}]
[{"$f":"'DATOS DEPORTISTAS'!V60","v":"CENTRO NATACION HELIOS"},{"$f":"'DATOS DEPORTISTAS'!M60","v":"CARLOS PONCE USÓN"},{"$f":"'DATOS DEPORTISTAS'!X60","v":0},{"$f":"'DATOS DEPORTISTAS'!Y60","v":0}]
[{"$f":"'DATOS DEPORTISTAS'!V61","v":"CENTRO NATACION HELIOS"},{"$f":"'DATOS DEPORTISTAS'!M61","v":"CHLOÉ MILLÁN GÓMEZ"},{"$f":"'DATOS DEPORTISTAS'!X61","v":0},{"$f":"'DATOS DEPORTISTAS'!Y61","v":0},null,null,"CLUB","LICENCIA FAR ENTRENADOR",null,null,null,"CLUB","LICENCIA FAR DELEGADO"]
[{"$f":"'DATOS DEPORTISTAS'!V62","v":"CENTRO NATACION HELIOS"},{"$f":"'DATOS DEPORTISTAS'!M62","v":"CLAUDIA ALCÁZAR HERRERO"},{"$f":"'DATOS DEPORTISTAS'!X62","v":0},{"$f":"'DATOS DEPORTISTAS'!Y62","v":0},null,null,{"$f":"_xlfn._xlws.FILTER($A$2:$C$502,($A$2:$A$502=G6)*($C$2:$C$502=H6),\"NO ENCONTRADO\")","v":"NO ENCONTRADO"},null,null,null,null,{"$f":"_xlfn._xlws.FILTER($A$2:$D$502,($A$2:$A$502=L6)*($D$2:$D$502=M6),\"NO ENCONTRADO\")","v":"NAUTICO ZARAGOZA"},"JOSÉ MANUEL LARROY CALVO",0,1]
[{"$f":"'DATOS DEPORTISTAS'!V63","v":"CENTRO NATACION HELIOS"},{"$f":"'DATOS DEPORTISTAS'!M63","v":"DANIEL ARTURO ZAPATA LARROY"},{"$f":"'DATOS DEPORTISTAS'!X63","v":0},{"$f":"'DATOS DEPORTISTAS'!Y63","v":0}]
[{"$f":"'DATOS DEPORTISTAS'!V64","v":"CENTRO NATACION HELIOS"},{"$f":"'DATOS DEPORTISTAS'!M64","v":"DANIEL VELILLA PÉREZ"},{"$f":"'DATOS DEPORTISTAS'!X64","v":0},{"$f":"'DATOS DEPORTISTAS'!Y64","v":0}]
[{"$f":"'DATOS DEPORTISTAS'!V65","v":"CENTRO NATACION HELIOS"},{"$f":"'DATOS DEPORTISTAS'!M65","v":"DIEGO JIMÉNEZ HORNOS"},{"$f":"'DATOS DEPORTISTAS'!X65","v":0},{"$f":"'DATOS DEPORTISTAS'!Y65","v":0}]
[{"$f":"'DATOS DEPORTISTAS'!V66","v":"CENTRO NATACION HELIOS"},{"$f":"'DATOS DEPORTISTAS'!M66","v":"DIEGO LASHERAS BLASCO"},{"$f":"'DATOS DEPORTISTAS'!X66","v":0},{"$f":"'DATOS DEPORTISTAS'!Y66","v":0}]
[{"$f":"'DATOS DEPORTISTAS'!V67","v":"CENTRO NATACION HELIOS"},{"$f":"'DATOS DEPORTISTAS'!M67","v":"EMILIO ANASTASIO CILLEROS BLÁZQUEZ"},{"$f":"'DATOS DEPORTISTAS'!X67","v":0},{"$f":"'DATOS DEPORTISTAS'!Y67","v":0}]
[{"$f":"'DATOS DEPORTISTAS'!V68","v":"CENTRO NATACION HELIOS"},{"$f":"'DATOS DEPORTISTAS'!M68","v":"ERIC CAZADOR SERRANO"},{"$f":"'DATOS DEPORTISTAS'!X68","v":0},{"$f":"'DATOS DEPORTISTAS'!Y68","v":0}]
[{"$f":"'DATOS DEPORTISTAS'!V69","v":"CENTRO NATACION HELIOS"},{"$f":"'DATOS DEPORTISTAS'!M69","v":"ESMERALDA AGUAS GARCIA"},{"$f":"'DATOS DEPORTISTAS'!X69","v":1},{"$f":"'DATOS DEPORTISTAS'!Y69","v":0}]
[{"$f":"'DATOS DEPORTISTAS'!V70","v":"CENTRO NATACION HELIOS"},{"$f":"'DATOS DEPORTISTAS'!M70","v":"EVA MARÍA ANGLÉS BEL"},{"$f":"'DATOS DEPORTISTAS'!X70","v":0},{"$f":"'DATOS DEPORTISTAS'!Y70","v":0}]
[{"$f":"'DATOS DEPORTISTAS'!V71","v":"CENTRO NATACION HELIOS"},{"$f":"'DATOS DEPORTISTAS'!M71","v":"FERNANDO MARTÍN RANERA"},{"$f":"'DATOS DEPORTISTAS'!X71","v":0},{"$f":"'DATOS DEPORTISTAS'!Y71","v":0}]
[{"$f":"'DATOS DEPORTISTAS'!V72","v":"CENTRO NATACION HELIOS"},{"$f":"'DATOS DEPORTISTAS'!M72","v":"FRANCISCO DE ASÍS LACRUZ SANZ"},{"$f":"'DATOS DEPORTISTAS'!X72","v":0},{"$f":"'DATOS DEPORTISTAS'!Y72","v":0}]
[{"$f":"'DATOS DEPORTISTAS'!V73","v":"CENTRO NATACION HELIOS"},{"$f":"'DATOS DEPORTISTAS'!M73","v":"GERMÁN GUTIÉRREZ GASPAR"},{"$f":"'DATOS DEPORTISTAS'!X73","v":0},{"$f":"'DATOS DEPORTISTAS'!Y73","v":0},null,null,"CLUB","LICENCIA FAR ENTRENADOR",null,null,null,"CLUB","LICENCIA FAR DELEGADO"]
[{"$f":"'DATOS DEPORTISTAS'!V74","v":"CENTRO NATACION HELIOS"},{"$f":"'DATOS DEPORTISTAS'!M74","v":"GONZALO MONTAGUD GÓMEZ"},{"$f":"'DATOS DEPORTISTAS'!X74","v":0},{"$f":"'DATOS DEPORTISTAS'!Y74","v":0},null,null,{"$f":"_xlfn._xlws.FILTER($A$2:$C$502,($A$2:$A$502=G7)*($C$2:$C$502=H7),\"NO ENCONTRADO\")","v":"NO ENCONTRADO"},null,null,null,null,{"$f":"_xlfn._xlws.FILTER($A$2:$D$502,($A$2:$A$502=L7)*($D$2:$D$502=M7),\"NO ENCONTRADO\")","v":"NO ENCONTRADO"}]
[{"$f":"'DATOS DEPORTISTAS'!V75","v":"CENTRO NATACION HELIOS"},{"$f":"'DATOS DEPORTISTAS'!M75","v":"IAGO IGLESIAS DELGADO"},{"$f":"'DATOS DEPORTISTAS'!X75","v":0},{"$f":"'DATOS DEPORTISTAS'!Y75","v":0}]
[{"$f":"'DATOS DEPORTISTAS'!V76","v":"CENTRO NATACION HELIOS"},{"$f":"'DATOS DEPORTISTAS'!M76","v":"IBÓN MEDINA ECHEVERRÍA"},{"$f":"'DATOS DEPORTISTAS'!X76","v":0},{"$f":"'DATOS DEPORTISTAS'!Y76","v":0}]
[{"$f":"'DATOS DEPORTISTAS'!V77","v":"CENTRO NATACION HELIOS"},{"$f":"'DATOS DEPORTISTAS'!M77","v":"IKER ALONSO ROCHE"},{"$f":"'DATOS DEPORTISTAS'!X77","v":0},{"$f":"'DATOS DEPORTISTAS'!Y77","v":0}]
[{"$f":"'DATOS DEPORTISTAS'!V78","v":"CENTRO NATACION HELIOS"},{"$f":"'DATOS DEPORTISTAS'!M78","v":"ÍÑIGO MIGUEL ZAPATA LARROY"},{"$f":"'DATOS DEPORTISTAS'!X78","v":0},{"$f":"'DATOS DEPORTISTAS'!Y78","v":0}]
[{"$f":"'DATOS DEPORTISTAS'!V79","v":"CENTRO NATACION HELIOS"},{"$f":"'DATOS DEPORTISTAS'!M79","v":"IREK CABELLO PIETRZAK"},{"$f":"'DATOS DEPORTISTAS'!X79","v":0},{"$f":"'DATOS DEPORTISTAS'!Y79","v":0}]
[{"$f":"'DATOS DEPORTISTAS'!V80","v":"CENTRO NATACION HELIOS"},{"$f":"'DATOS DEPORTISTAS'!M80","v":"ISABEL TOVAR GODOY"},{"$f":"'DATOS DEPORTISTAS'!X80","v":0},{"$f":"'DATOS DEPORTISTAS'!Y80","v":0}]
[{"$f":"'DATOS DEPORTISTAS'!V81","v":"CENTRO NATACION HELIOS"},{"$f":"'DATOS DEPORTISTAS'!M81","v":"IVÁN LATAS JIMÉNEZ"},{"$f":"'DATOS DEPORTISTAS'!X81","v":1},{"$f":"'DATOS DEPORTISTAS'!Y81","v":0}]
[{"$f":"'DATOS DEPORTISTAS'!V82","v":"CENTRO NATACION HELIOS"},{"$f":"'DATOS DEPORTISTAS'!M82","v":"IVÁN PÉREZ RODRÍGUEZ"},{"$f":"'DATOS DEPORTISTAS'!X82","v":0},{"$f":"'DATOS DEPORTISTAS'!Y82","v":0}]
[{"$f":"'DATOS DEPORTISTAS'!V83","v":"CENTRO NATACION HELIOS"},{"$f":"'DATOS DEPORTISTAS'!M83","v":"JAVIER BARRACHINA RODRÍGUEZ"},{"$f":"'DATOS DEPORTISTAS'!X83","v":0},{"$f":"'DATOS DEPORTISTAS'!Y83","v":0}]
[{"$f":"'DATOS DEPORTISTAS'!V84","v":"CENTRO NATACION HELIOS"},{"$f":"'DATOS DEPORTISTAS'!M84","v":"JAVIER ALBERTO LOPERENA GALLEGO"},{"$f":"'DATOS DEPORTISTAS'!X84","v":0},{"$f":"'DATOS DEPORTISTAS'!Y84","v":0}]
[{"$f":"'DATOS DEPORTISTAS'!V85","v":"CENTRO NATACION HELIOS"},{"$f":"'DATOS DEPORTISTAS'!M85","v":"JAVIER MUNIESA AGUAS"},{"$f":"'DATOS DEPORTISTAS'!X85","v":1},{"$f":"'DATOS DEPORTISTAS'!Y85","v":0},null,null,"CLUB","LICENCIA FAR ENTRENADOR",null,null,null,"CLUB","LICENCIA FAR DELEGADO"]
[{"$f":"'DATOS DEPORTISTAS'!V86","v":"CENTRO NATACION HELIOS"},{"$f":"'DATOS DEPORTISTAS'!M86","v":"JAVIER REMACHA PUSCO"},{"$f":"'DATOS DEPORTISTAS'!X86","v":0},{"$f":"'DATOS DEPORTISTAS'!Y86","v":0},null,null,{"$f":"_xlfn._xlws.FILTER($A$2:$C$502,($A$2:$A$502=G8)*($C$2:$C$502=H8),\"NO ENCONTRADO\")","v":"NO ENCONTRADO"},null,null,null,null,{"$f":"_xlfn._xlws.FILTER($A$2:$D$502,($A$2:$A$502=L8)*($D$2:$D$502=M8),\"NO ENCONTRADO\")","v":"NO ENCONTRADO"}]
[{"$f":"'DATOS DEPORTISTAS'!V87","v":"CENTRO NATACION HELIOS"},{"$f":"'DATOS DEPORTISTAS'!M87","v":"JOAQUÍN JESÚS SORO FUENTES"},{"$f":"'DATOS DEPORTISTAS'!X87","v":0},{"$f":"'DATOS DEPORTISTAS'!Y87","v":0}]
[{"$f":"'DATOS DEPORTISTAS'!V88","v":"CENTRO NATACION HELIOS"},{"$f":"'DATOS DEPORTISTAS'!M88","v":"JONÁS CALZADA LARA"},{"$f":"'DATOS DEPORTISTAS'!X88","v":0},{"$f":"'DATOS DEPORTISTAS'!Y88","v":0}]
[{"$f":"'DATOS DEPORTISTAS'!V89","v":"CENTRO NATACION HELIOS"},{"$f":"'DATOS DEPORTISTAS'!M89","v":"JORGE LUNA MONTAGUD"},{"$f":"'DATOS DEPORTISTAS'!X89","v":0},{"$f":"'DATOS DEPORTISTAS'!Y89","v":0}]
[{"$f":"'DATOS DEPORTISTAS'!V90","v":"CENTRO NATACION HELIOS"},{"$f":"'DATOS DEPORTISTAS'!M90","v":"JORGE OCTAVIO CALVO GRACIA"},{"$f":"'DATOS DEPORTISTAS'!X90","v":0},{"$f":"'DATOS DEPORTISTAS'!Y90","v":0}]
[{"$f":"'DATOS DEPORTISTAS'!V91","v":"CENTRO NATACION HELIOS"},{"$f":"'DATOS DEPORTISTAS'!M91","v":"JORGE PEIRÓ MESA"},{"$f":"'DATOS DEPORTISTAS'!X91","v":0},{"$f":"'DATOS DEPORTISTAS'!Y91","v":0}]
[{"$f":"'DATOS DEPORTISTAS'!V92","v":"CENTRO NATACION HELIOS"},{"$f":"'DATOS DEPORTISTAS'!M92","v":"JOSÉ JAVIER LEAL SUÁREZ"},{"$f":"'DATOS DEPORTISTAS'!X92","v":0},{"$f":"'DATOS DEPORTISTAS'!Y92","v":0}]
[{"$f":"'DATOS DEPORTISTAS'!V93","v":"CENTRO NATACION HELIOS"},{"$f":"'DATOS DEPORTISTAS'!M93","v":"JOSÉ LACASTA AISA"},{"$f":"'DATOS DEPORTISTAS'!X93","v":0},{"$f":"'DATOS DEPORTISTAS'!Y93","v":0}]
[{"$f":"'DATOS DEPORTISTAS'!V94","v":"CENTRO NATACION HELIOS"},{"$f":"'DATOS DEPORTISTAS'!M94","v":"JOSÉ MANUEL BIELSA ARTIDIELLO"},{"$f":"'DATOS DEPORTISTAS'!X94","v":0},{"$f":"'DATOS DEPORTISTAS'!Y94","v":0}]
[{"$f":"'DATOS DEPORTISTAS'!V95","v":"CENTRO NATACION HELIOS"},{"$f":"'DATOS DEPORTISTAS'!M95","v":"JOSÉ MANUEL LABARTA PINILLA"},{"$f":"'DATOS DEPORTISTAS'!X95","v":0},{"$f":"'DATOS DEPORTISTAS'!Y95","v":0}]
[{"$f":"'DATOS DEPORTISTAS'!V96","v":"CENTRO NATACION HELIOS"},{"$f":"'DATOS DEPORTISTAS'!M96","v":"JOSÉ TABUENCA COLERA"},{"$f":"'DATOS DEPORTISTAS'!X96","v":0},{"$f":"'DATOS DEPORTISTAS'!Y96","v":0},null,null,"C_TODOS","LICENCIA FAR ENTRENADOR",null,null,null,"C_TODOS","LICENCIA FAR DELEGADO"]
[{"$f":"'DATOS DEPORTISTAS'!V97","v":"CENTRO NATACION HELIOS"},{"$f":"'DATOS DEPORTISTAS'!M97","v":"JUAN CARLOS CALAVIA RODRÍGUEZ"},{"$f":"'DATOS DEPORTISTAS'!X97","v":0},{"$f":"'DATOS DEPORTISTAS'!Y97","v":0},null,null,{"$f":"_xlfn._xlws.FILTER(C_ENTRENADOR,C2:C473=H9,\"\")","v":"F.A.R."},"MIGUEL GASCÓN GONZÁLEZ",1,null,null,{"$f":"_xlfn._xlws.FILTER(C_DELEGADO,D2:D473=M9,\"\")","v":"ARAGÓN REMO"},"FERNANDO CARLOS MILLÁN MAINAR",0,1]
[{"$f":"'DATOS DEPORTISTAS'!V98","v":"CENTRO NATACION HELIOS"},{"$f":"'DATOS DEPORTISTAS'!M98","v":"JUAN JOSÉ SALAS IBÁÑEZ"},{"$f":"'DATOS DEPORTISTAS'!X98","v":0},{"$f":"'DATOS DEPORTISTAS'!Y98","v":0},null,null,"ARAGÓN REMO","DAVID SAN JOSÉ SANTAMARÍA",1,null,null,"OS NABATERS D.F.","GUILLÉN VICENTE MIRANDA",1,1]
[{"$f":"'DATOS DEPORTISTAS'!V99","v":"CENTRO NATACION HELIOS"},{"$f":"'DATOS DEPORTISTAS'!M99","v":"JUAN LERMA IRURETA"},{"$f":"'DATOS DEPORTISTAS'!X99","v":0},{"$f":"'DATOS DEPORTISTAS'!Y99","v":0},null,null,"OS NABATERS D.F.","GUILLÉN VICENTE MIRANDA",1,null,null,"OS NABATERS D.F.","JORGE PONCE USÓN",0,1]
[{"$f":"'DATOS DEPORTISTAS'!V100","v":"CENTRO NATACION HELIOS"},{"$f":"'DATOS DEPORTISTAS'!M100","v":"JUAN TOVAR GODOY"},{"$f":"'DATOS DEPORTISTAS'!X100","v":0},{"$f":"'DATOS DEPORTISTAS'!Y100","v":0},null,null,"CENTRO NATACION HELIOS","ALFONSO MUNIESA FERRERO",1,null,null,"OS NABATERS D.F.","MIGUEL BEA GONZÁLEZ",0,1]
[{"$f":"'DATOS DEPORTISTAS'!V101","v":"CENTRO NATACION HELIOS"},{"$f":"'DATOS DEPORTISTAS'!M101","v":"JULIO BIELSA ARTIDIELLO"},{"$f":"'DATOS DEPORTISTAS'!X101","v":0},{"$f":"'DATOS DEPORTISTAS'!Y101","v":1},null,null,"CENTRO NATACION HELIOS","ESMERALDA AGUAS GARCIA",1,null,null,"CENTRO NATACION HELIOS","ALFONSO MUNIESA FERRERO",1,1]
[{"$f":"'DATOS DEPORTISTAS'!V102","v":"CENTRO NATACION HELIOS"},{"$f":"'DATOS DEPORTISTAS'!M102","v":"KARLA REMACHA PUSCO"},{"$f":"'DATOS DEPORTISTAS'!X102","v":0},{"$f":"'DATOS DEPORTISTAS'!Y102","v":0},null,null,"CENTRO NATACION HELIOS","IVÁN LATAS JIMÉNEZ",1,null,null,"CENTRO NATACION HELIOS","JULIO BIELSA ARTIDIELLO",0,1]
[{"$f":"'DATOS DEPORTISTAS'!V103","v":"CENTRO NATACION HELIOS"},{"$f":"'DATOS DEPORTISTAS'!M103","v":"MARÍA LOURDES RODRÍGUEZ BRAÑA"},{"$f":"'DATOS DEPORTISTAS'!X103","v":0},{"$f":"'DATOS DEPORTISTAS'!Y103","v":0},null,null,"CENTRO NATACION HELIOS","JAVIER MUNIESA AGUAS",1,null,null,"CAPRI MEQUINENZA","Mª CARMEN GARCÍA ARANDA",0,1]
[{"$f":"'DATOS DEPORTISTAS'!V104","v":"CENTRO NATACION HELIOS"},{"$f":"'DATOS DEPORTISTAS'!M104","v":"LUCAS ANDRÉS RODRÍGUEZ"},{"$f":"'DATOS DEPORTISTAS'!X104","v":0},{"$f":"'DATOS DEPORTISTAS'!Y104","v":0},null,null,"CENTRO NATACION HELIOS","PABLO BRIZ ZAMORANO",1,null,null,"CAPRI MEQUINENZA","MARÍA TERESA GODIA PI",0,1]
[{"$f":"'DATOS DEPORTISTAS'!V105","v":"CENTRO NATACION HELIOS"},{"$f":"'DATOS DEPORTISTAS'!M105","v":"LUCAS MONTI SCHERZER"},{"$f":"'DATOS DEPORTISTAS'!X105","v":0},{"$f":"'DATOS DEPORTISTAS'!Y105","v":0},null,null,"CAPRI MEQUINENZA","DAVID OLIVER CABALLÉ",1,null,null,"CAPRI MEQUINENZA","PEDRO JOSÉ SERVETO PALOMAR",0,1]
[{"$f":"'DATOS DEPORTISTAS'!V106","v":"CENTRO NATACION HELIOS"},{"$f":"'DATOS DEPORTISTAS'!M106","v":"LUCÍA MONTANER ALFARO"},{"$f":"'DATOS DEPORTISTAS'!X106","v":0},{"$f":"'DATOS DEPORTISTAS'!Y106","v":0},null,null,"OS NABATERS D.F.","ÁNGEL DE MIGUEL BENITO",1,null,null,"CAPRI MEQUINENZA","MARISOL CLAVERO GARCÍA",0,1]
[{"$f":"'DATOS DEPORTISTAS'!V107","v":"CENTRO NATACION HELIOS"},{"$f":"'DATOS DEPORTISTAS'!M107","v":"MANUEL GIRONÉS BENAVENTE"},{"$f":"'DATOS DEPORTISTAS'!X107","v":0},{"$f":"'DATOS DEPORTISTAS'!Y107","v":0},null,null,"OS NABATERS D.F.","ANTONIO ANSELMO SANCHO NAVARRO",1,null,null,"CAPRI MEQUINENZA","DAVID TORO SOLER",0,1]
[{"$f":"'DATOS DEPORTISTAS'!V108","v":"CENTRO NATACION HELIOS"},{"$f":"'DATOS DEPORTISTAS'!M108","v":"MARCO MELÉNDEZ DEL PICO"},{"$f":"'DATOS DEPORTISTAS'!X108","v":0},{"$f":"'DATOS DEPORTISTAS'!Y108","v":0},null,null,"OS NABATERS D.F.","LUIS CARLOS BELLED LACASA",1,null,null,"NAUTICO ZARAGOZA","JOSÉ MANUEL LARROY CALVO",0,1]
[{"$f":"'DATOS DEPORTISTAS'!V109","v":"CENTRO NATACION HELIOS"},{"$f":"'DATOS DEPORTISTAS'!M109","v":"MARÍA PILAR PEÑA HERRERO"},{"$f":"'DATOS DEPORTISTAS'!X109","v":0},{"$f":"'DATOS DEPORTISTAS'!Y109","v":0},null,null,"OS NABATERS D.F.","NAOMI SANCHO BUSTÍN",1]
[{"$f":"'DATOS DEPORTISTAS'!V110","v":"CENTRO NATACION HELIOS"},{"$f":"'DATOS DEPORTISTAS'!M110","v":"MARÍA ROMEO VICENTE"},{"$f":"'DATOS DEPORTISTAS'!X110","v":0},{"$f":"'DATOS DEPORTISTAS'!Y110","v":0},null,null,"OS NABATERS D.F.","ÁNGEL BERNAL LECINA",1]
[{"$f":"'DATOS DEPORTISTAS'!V111","v":"CENTRO NATACION HELIOS"},{"$f":"'DATOS DEPORTISTAS'!M111","v":"MARTA PINTO SOLANA"},{"$f":"'DATOS DEPORTISTAS'!X111","v":0},{"$f":"'DATOS DEPORTISTAS'!Y111","v":0}]
[{"$f":"'DATOS DEPORTISTAS'!V112","v":"CENTRO NATACION HELIOS"},{"$f":"'DATOS DEPORTISTAS'!M112","v":"MARTÍN MILLÁN GÓMEZ"},{"$f":"'DATOS DEPORTISTAS'!X112","v":0},{"$f":"'DATOS DEPORTISTAS'!Y112","v":0}]
[{"$f":"'DATOS DEPORTISTAS'!V113","v":"CENTRO NATACION HELIOS"},{"$f":"'DATOS DEPORTISTAS'!M113","v":"MARTÍN MONTANER ALFARO"},{"$f":"'DATOS DEPORTISTAS'!X113","v":0},{"$f":"'DATOS DEPORTISTAS'!Y113","v":0}]
[{"$f":"'DATOS DEPORTISTAS'!V114","v":"CENTRO NATACION HELIOS"},{"$f":"'DATOS DEPORTISTAS'!M114","v":"MIGUEL ÁNGEL PÉREZ VICENTE"},{"$f":"'DATOS DEPORTISTAS'!X114","v":0},{"$f":"'DATOS DEPORTISTAS'!Y114","v":0}]
[{"$f":"'DATOS DEPORTISTAS'!V115","v":"CENTRO NATACION HELIOS"},{"$f":"'DATOS DEPORTISTAS'!M115","v":"MIGUEL BIEL CAMAÑES"},{"$f":"'DATOS DEPORTISTAS'!X115","v":0},{"$f":"'DATOS DEPORTISTAS'!Y115","v":0}]
[{"$f":"'DATOS DEPORTISTAS'!V116","v":"CENTRO NATACION HELIOS"},{"$f":"'DATOS DEPORTISTAS'!M116","v":"NIL MARTÍN BERNARDOS"},{"$f":"'DATOS DEPORTISTAS'!X116","v":0},{"$f":"'DATOS DEPORTISTAS'!Y116","v":0}]
[{"$f":"'DATOS DEPORTISTAS'!V117","v":"CENTRO NATACION HELIOS"},{"$f":"'DATOS DEPORTISTAS'!M117","v":"NOA FUERTES VALLÉS"},{"$f":"'DATOS DEPORTISTAS'!X117","v":0},{"$f":"'DATOS DEPORTISTAS'!Y117","v":0}]
[{"$f":"'DATOS DEPORTISTAS'!V118","v":"CENTRO NATACION HELIOS"},{"$f":"'DATOS DEPORTISTAS'!M118","v":"PABLO BRIZ ZAMORANO"},{"$f":"'DATOS DEPORTISTAS'!X118","v":1},{"$f":"'DATOS DEPORTISTAS'!Y118","v":0}]
[{"$f":"'DATOS DEPORTISTAS'!V119","v":"CENTRO NATACION HELIOS"},{"$f":"'DATOS DEPORTISTAS'!M119","v":"PABLO MALO VELA"},{"$f":"'DATOS DEPORTISTAS'!X119","v":0},{"$f":"'DATOS DEPORTISTAS'!Y119","v":0}]
[{"$f":"'DATOS DEPORTISTAS'!V120","v":"CENTRO NATACION HELIOS"},{"$f":"'DATOS DEPORTISTAS'!M120","v":"PEDRO BENITO ARANDA MARTÍNEZ"},{"$f":"'DATOS DEPORTISTAS'!X120","v":0},{"$f":"'DATOS DEPORTISTAS'!Y120","v":0}]
[{"$f":"'DATOS DEPORTISTAS'!V121","v":"CENTRO NATACION HELIOS"},{"$f":"'DATOS DEPORTISTAS'!M121","v":"PEDRO DIEZ GARCÍA"},{"$f":"'DATOS DEPORTISTAS'!X121","v":0},{"$f":"'DATOS DEPORTISTAS'!Y121","v":0}]
[{"$f":"'DATOS DEPORTISTAS'!V122","v":"CENTRO NATACION HELIOS"},{"$f":"'DATOS DEPORTISTAS'!M122","v":"PEDRO MARÍA NAVARRO SANGüESA"},{"$f":"'DATOS DEPORTISTAS'!X122","v":0},{"$f":"'DATOS DEPORTISTAS'!Y122","v":0}]
[{"$f":"'DATOS DEPORTISTAS'!V123","v":"CENTRO NATACION HELIOS"},{"$f":"'DATOS DEPORTISTAS'!M123","v":"RAFAEL MONTANER MARTÍN"},{"$f":"'DATOS DEPORTISTAS'!X123","v":0},{"$f":"'DATOS DEPORTISTAS'!Y123","v":0}]
[{"$f":"'DATOS DEPORTISTAS'!V124","v":"CENTRO NATACION HELIOS"},{"$f":"'DATOS DEPORTISTAS'!M124","v":"SANDRA DIEZ GARCÍA"},{"$f":"'DATOS DEPORTISTAS'!X124","v":0},{"$f":"'DATOS DEPORTISTAS'!Y124","v":0}]
[{"$f":"'DATOS DEPORTISTAS'!V125","v":"CENTRO NATACION HELIOS"},{"$f":"'DATOS DEPORTISTAS'!M125","v":"SOFÍA MONTANER ALFARO"},{"$f":"'DATOS DEPORTISTAS'!X125","v":0},{"$f":"'DATOS DEPORTISTAS'!Y125","v":0}]
[{"$f":"'DATOS DEPORTISTAS'!V126","v":"CENTRO NATACION HELIOS"},{"$f":"'DATOS DEPORTISTAS'!M126","v":"UDAI CAZADOR SERRANO"},{"$f":"'DATOS DEPORTISTAS'!X126","v":0},{"$f":"'DATOS DEPORTISTAS'!Y126","v":0}]
[{"$f":"'DATOS DEPORTISTAS'!V127","v":"CENTRO NATACION HELIOS"},{"$f":"'DATOS DEPORTISTAS'!M127","v":"VALENTINA  ESPADA CIPRÉS"},{"$f":"'DATOS DEPORTISTAS'!X127","v":0},{"$f":"'DATOS DEPORTISTAS'!Y127","v":0}]
[{"$f":"'DATOS DEPORTISTAS'!V128","v":"CENTRO NATACION HELIOS"},{"$f":"'DATOS DEPORTISTAS'!M128","v":"VÍCTOR CINCA GARCÍA"},{"$f":"'DATOS DEPORTISTAS'!X128","v":0},{"$f":"'DATOS DEPORTISTAS'!Y128","v":0}]
[{"$f":"'DATOS DEPORTISTAS'!V129","v":"CENTRO NATACION HELIOS"},{"$f":"'DATOS DEPORTISTAS'!M129","v":"VÍCTOR LENNIKOV IGLESIAS"},{"$f":"'DATOS DEPORTISTAS'!X129","v":0},{"$f":"'DATOS DEPORTISTAS'!Y129","v":0}]
[{"$f":"'DATOS DEPORTISTAS'!V130","v":"OS NABATERS D.F."},{"$f":"'DATOS DEPORTISTAS'!M130","v":"SERGIO AURED ANTÓN"},{"$f":"'DATOS DEPORTISTAS'!X130","v":0},{"$f":"'DATOS DEPORTISTAS'!Y130","v":0}]
[{"$f":"'DATOS DEPORTISTAS'!V131","v":"OS NABATERS D.F."},{"$f":"'DATOS DEPORTISTAS'!M131","v":"CARLA AURED CARBI"},{"$f":"'DATOS DEPORTISTAS'!X131","v":0},{"$f":"'DATOS DEPORTISTAS'!Y131","v":0}]
[{"$f":"'DATOS DEPORTISTAS'!V132","v":"OS NABATERS D.F."},{"$f":"'DATOS DEPORTISTAS'!M132","v":"IGNACIO BELTRÁN DIESTRE"},{"$f":"'DATOS DEPORTISTAS'!X132","v":0},{"$f":"'DATOS DEPORTISTAS'!Y132","v":0}]
[{"$f":"'DATOS DEPORTISTAS'!V133","v":"OS NABATERS D.F."},{"$f":"'DATOS DEPORTISTAS'!M133","v":"LUIS FRANCISCO BOIRA GONZALO"},{"$f":"'DATOS DEPORTISTAS'!X133","v":0},{"$f":"'DATOS DEPORTISTAS'!Y133","v":0}]
[{"$f":"'DATOS DEPORTISTAS'!V134","v":"OS NABATERS D.F."},{"$f":"'DATOS DEPORTISTAS'!M134","v":"MERCEDES GIMÉNEZ HERRERO"},{"$f":"'DATOS DEPORTISTAS'!X134","v":0},{"$f":"'DATOS DEPORTISTAS'!Y134","v":0}]
[{"$f":"'DATOS DEPORTISTAS'!V135","v":"OS NABATERS D.F."},{"$f":"'DATOS DEPORTISTAS'!M135","v":"JOSÉ LUIS HERNÁNDEZ PASCUAL"},{"$f":"'DATOS DEPORTISTAS'!X135","v":0},{"$f":"'DATOS DEPORTISTAS'!Y135","v":0}]
[{"$f":"'DATOS DEPORTISTAS'!V136","v":"OS NABATERS D.F."},{"$f":"'DATOS DEPORTISTAS'!M136","v":"BRUNO KOLLMANNSBERGER MARCÉN"},{"$f":"'DATOS DEPORTISTAS'!X136","v":0},{"$f":"'DATOS DEPORTISTAS'!Y136","v":0}]
[{"$f":"'DATOS DEPORTISTAS'!V137","v":"OS NABATERS D.F."},{"$f":"'DATOS DEPORTISTAS'!M137","v":"DAVID MARCOS GARCÍA"},{"$f":"'DATOS DEPORTISTAS'!X137","v":0},{"$f":"'DATOS DEPORTISTAS'!Y137","v":0}]
[{"$f":"'DATOS DEPORTISTAS'!V138","v":"OS NABATERS D.F."},{"$f":"'DATOS DEPORTISTAS'!M138","v":"DAVID OLMO NADAL"},{"$f":"'DATOS DEPORTISTAS'!X138","v":0},{"$f":"'DATOS DEPORTISTAS'!Y138","v":0}]
[{"$f":"'DATOS DEPORTISTAS'!V139","v":"OS NABATERS D.F."},{"$f":"'DATOS DEPORTISTAS'!M139","v":"ABEL RICARDO OVALLES GUERRA"},{"$f":"'DATOS DEPORTISTAS'!X139","v":0},{"$f":"'DATOS DEPORTISTAS'!Y139","v":0}]
[{"$f":"'DATOS DEPORTISTAS'!V140","v":"OS NABATERS D.F."},{"$f":"'DATOS DEPORTISTAS'!M140","v":"MARÍA INÉS RIVERO MINNERY"},{"$f":"'DATOS DEPORTISTAS'!X140","v":0},{"$f":"'DATOS DEPORTISTAS'!Y140","v":0}]
[{"$f":"'DATOS DEPORTISTAS'!V141","v":"OS NABATERS D.F."},{"$f":"'DATOS DEPORTISTAS'!M141","v":"ABDÍAS SIMÓN TRIGUEROS"},{"$f":"'DATOS DEPORTISTAS'!X141","v":0},{"$f":"'DATOS DEPORTISTAS'!Y141","v":0}]
[{"$f":"'DATOS DEPORTISTAS'!V142","v":"CAPRI MEQUINENZA"},{"$f":"'DATOS DEPORTISTAS'!M142","v":"JORGE MANUEL AGUILAR OLIVER"},{"$f":"'DATOS DEPORTISTAS'!X142","v":0},{"$f":"'DATOS DEPORTISTAS'!Y142","v":0}]
[{"$f":"'DATOS DEPORTISTAS'!V143","v":"CAPRI MEQUINENZA"},{"$f":"'DATOS DEPORTISTAS'!M143","v":"DIEGO AGUILAR ROMERO"},{"$f":"'DATOS DEPORTISTAS'!X143","v":0},{"$f":"'DATOS DEPORTISTAS'!Y143","v":0}]
[{"$f":"'DATOS DEPORTISTAS'!V144","v":"CAPRI MEQUINENZA"},{"$f":"'DATOS DEPORTISTAS'!M144","v":"MARÍA  AGUILAR ROMERO"},{"$f":"'DATOS DEPORTISTAS'!X144","v":0},{"$f":"'DATOS DEPORTISTAS'!Y144","v":0}]
[{"$f":"'DATOS DEPORTISTAS'!V145","v":"CAPRI MEQUINENZA"},{"$f":"'DATOS DEPORTISTAS'!M145","v":"MARÍA ARROYO CABALLÉ"},{"$f":"'DATOS DEPORTISTAS'!X145","v":0},{"$f":"'DATOS DEPORTISTAS'!Y145","v":0}]
[{"$f":"'DATOS DEPORTISTAS'!V146","v":"CAPRI MEQUINENZA"},{"$f":"'DATOS DEPORTISTAS'!M146","v":"IRENE BRUNA PALAU"},{"$f":"'DATOS DEPORTISTAS'!X146","v":0},{"$f":"'DATOS DEPORTISTAS'!Y146","v":0}]
[{"$f":"'DATOS DEPORTISTAS'!V147","v":"CAPRI MEQUINENZA"},{"$f":"'DATOS DEPORTISTAS'!M147","v":"MIRIAM BRUNA PALAU"},{"$f":"'DATOS DEPORTISTAS'!X147","v":0},{"$f":"'DATOS DEPORTISTAS'!Y147","v":0}]
[{"$f":"'DATOS DEPORTISTAS'!V148","v":"CAPRI MEQUINENZA"},{"$f":"'DATOS DEPORTISTAS'!M148","v":"IVÁN  CASTELLNOU SOROLLA"},{"$f":"'DATOS DEPORTISTAS'!X148","v":0},{"$f":"'DATOS DEPORTISTAS'!Y148","v":0}]
[{"$f":"'DATOS DEPORTISTAS'!V149","v":"CAPRI MEQUINENZA"},{"$f":"'DATOS DEPORTISTAS'!M149","v":"JORDI CASTELLÓ ROCA"},{"$f":"'DATOS DEPORTISTAS'!X149","v":0},{"$f":"'DATOS DEPORTISTAS'!Y149","v":0}]
[{"$f":"'DATOS DEPORTISTAS'!V150","v":"CAPRI MEQUINENZA"},{"$f":"'DATOS DEPORTISTAS'!M150","v":"AROA CASTELLÓ VILA"},{"$f":"'DATOS DEPORTISTAS'!X150","v":0},{"$f":"'DATOS DEPORTISTAS'!Y150","v":0}]
[{"$f":"'DATOS DEPORTISTAS'!V151","v":"CAPRI MEQUINENZA"},{"$f":"'DATOS DEPORTISTAS'!M151","v":"CONCEPCIÓN CASTRO ARANDA"},{"$f":"'DATOS DEPORTISTAS'!X151","v":0},{"$f":"'DATOS DEPORTISTAS'!Y151","v":0}]
[{"$f":"'DATOS DEPORTISTAS'!V152","v":"CAPRI MEQUINENZA"},{"$f":"'DATOS DEPORTISTAS'!M152","v":"MARINA CATALÁN MOYA"},{"$f":"'DATOS DEPORTISTAS'!X152","v":0},{"$f":"'DATOS DEPORTISTAS'!Y152","v":0}]
[{"$f":"'DATOS DEPORTISTAS'!V153","v":"CAPRI MEQUINENZA"},{"$f":"'DATOS DEPORTISTAS'!M153","v":"JOEL CHERTÓ JIMÉNEZ"},{"$f":"'DATOS DEPORTISTAS'!X153","v":0},{"$f":"'DATOS DEPORTISTAS'!Y153","v":0}]
[{"$f":"'DATOS DEPORTISTAS'!V154","v":"CAPRI MEQUINENZA"},{"$f":"'DATOS DEPORTISTAS'!M154","v":"ALBA CUCHÍ NIUBÓ"},{"$f":"'DATOS DEPORTISTAS'!X154","v":0},{"$f":"'DATOS DEPORTISTAS'!Y154","v":0}]
[{"$f":"'DATOS DEPORTISTAS'!V155","v":"CAPRI MEQUINENZA"},{"$f":"'DATOS DEPORTISTAS'!M155","v":"TIBERIU GABRIEL DAMIÁN"},{"$f":"'DATOS DEPORTISTAS'!X155","v":0},{"$f":"'DATOS DEPORTISTAS'!Y155","v":0}]
[{"$f":"'DATOS DEPORTISTAS'!V156","v":"CAPRI MEQUINENZA"},{"$f":"'DATOS DEPORTISTAS'!M156","v":"JOKIN KOLDO ESCALONA VILLACAMPA"},{"$f":"'DATOS DEPORTISTAS'!X156","v":0},{"$f":"'DATOS DEPORTISTAS'!Y156","v":0}]
[{"$f":"'DATOS DEPORTISTAS'!V157","v":"CAPRI MEQUINENZA"},{"$f":"'DATOS DEPORTISTAS'!M157","v":"AARÓN ESTEVE CASTELLÓ"},{"$f":"'DATOS DEPORTISTAS'!X157","v":0},{"$f":"'DATOS DEPORTISTAS'!Y157","v":0}]
[{"$f":"'DATOS DEPORTISTAS'!V158","v":"CAPRI MEQUINENZA"},{"$f":"'DATOS DEPORTISTAS'!M158","v":"LUIS ESTEVE CATALÁN"},{"$f":"'DATOS DEPORTISTAS'!X158","v":0},{"$f":"'DATOS DEPORTISTAS'!Y158","v":0}]
[{"$f":"'DATOS DEPORTISTAS'!V159","v":"CAPRI MEQUINENZA"},{"$f":"'DATOS DEPORTISTAS'!M159","v":"ONA ESTRUGA LLOP"},{"$f":"'DATOS DEPORTISTAS'!X159","v":0},{"$f":"'DATOS DEPORTISTAS'!Y159","v":0}]
[{"$f":"'DATOS DEPORTISTAS'!V160","v":"CAPRI MEQUINENZA"},{"$f":"'DATOS DEPORTISTAS'!M160","v":"VÍCTOR ESTRUGA GIMENO"},{"$f":"'DATOS DEPORTISTAS'!X160","v":0},{"$f":"'DATOS DEPORTISTAS'!Y160","v":0}]
[{"$f":"'DATOS DEPORTISTAS'!V161","v":"CAPRI MEQUINENZA"},{"$f":"'DATOS DEPORTISTAS'!M161","v":"ENZO EXPÓSITO SORO"},{"$f":"'DATOS DEPORTISTAS'!X161","v":0},{"$f":"'DATOS DEPORTISTAS'!Y161","v":0}]
[{"$f":"'DATOS DEPORTISTAS'!V162","v":"CAPRI MEQUINENZA"},{"$f":"'DATOS DEPORTISTAS'!M162","v":"IRIA EXPÓSITO SORO"},{"$f":"'DATOS DEPORTISTAS'!X162","v":0},{"$f":"'DATOS DEPORTISTAS'!Y162","v":0}]
[{"$f":"'DATOS DEPORTISTAS'!V163","v":"CAPRI MEQUINENZA"},{"$f":"'DATOS DEPORTISTAS'!M163","v":"Mª CARMEN GARCÍA ARANDA"},{"$f":"'DATOS DEPORTISTAS'!X163","v":0},{"$f":"'DATOS DEPORTISTAS'!Y163","v":1}]
[{"$f":"'DATOS DEPORTISTAS'!V164","v":"CAPRI MEQUINENZA"},{"$f":"'DATOS DEPORTISTAS'!M164","v":"MARÍA TERESA GODIA PI"},{"$f":"'DATOS DEPORTISTAS'!X164","v":0},{"$f":"'DATOS DEPORTISTAS'!Y164","v":1}]
[{"$f":"'DATOS DEPORTISTAS'!V165","v":"CAPRI MEQUINENZA"},{"$f":"'DATOS DEPORTISTAS'!M165","v":"PAULA GÓMEZ CARMONA"},{"$f":"'DATOS DEPORTISTAS'!X165","v":0},{"$f":"'DATOS DEPORTISTAS'!Y165","v":0}]
[{"$f":"'DATOS DEPORTISTAS'!V166","v":"CAPRI MEQUINENZA"},{"$f":"'DATOS DEPORTISTAS'!M166","v":"ABRIL GONZÁLEZ GARCÍA"},{"$f":"'DATOS DEPORTISTAS'!X166","v":0},{"$f":"'DATOS DEPORTISTAS'!Y166","v":0}]
[{"$f":"'DATOS DEPORTISTAS'!V167","v":"CAPRI MEQUINENZA"},{"$f":"'DATOS DEPORTISTAS'!M167","v":"NAIA GUARDIOLA BARTOLOMÉ"},{"$f":"'DATOS DEPORTISTAS'!X167","v":0},{"$f":"'DATOS DEPORTISTAS'!Y167","v":0}]
[{"$f":"'DATOS DEPORTISTAS'!V168","v":"CAPRI MEQUINENZA"},{"$f":"'DATOS DEPORTISTAS'!M168","v":"PAULO GUIMERA JANIK"},{"$f":"'DATOS DEPORTISTAS'!X168","v":0},{"$f":"'DATOS DEPORTISTAS'!Y168","v":0}]
[{"$f":"'DATOS DEPORTISTAS'!V169","v":"CAPRI MEQUINENZA"},{"$f":"'DATOS DEPORTISTAS'!M169","v":"GISELA HIERRO GARCÍA"},{"$f":"'DATOS DEPORTISTAS'!X169","v":0},{"$f":"'DATOS DEPORTISTAS'!Y169","v":0}]
[{"$f":"'DATOS DEPORTISTAS'!V170","v":"CAPRI MEQUINENZA"},{"$f":"'DATOS DEPORTISTAS'!M170","v":"IRATXE IBARZ BERENGUER"},{"$f":"'DATOS DEPORTISTAS'!X170","v":0},{"$f":"'DATOS DEPORTISTAS'!Y170","v":0}]
[{"$f":"'DATOS DEPORTISTAS'!V171","v":"CAPRI MEQUINENZA"},{"$f":"'DATOS DEPORTISTAS'!M171","v":"ROSA MARÍA LLOP RIAU"},{"$f":"'DATOS DEPORTISTAS'!X171","v":0},{"$f":"'DATOS DEPORTISTAS'!Y171","v":0}]
[{"$f":"'DATOS DEPORTISTAS'!V172","v":"CAPRI MEQUINENZA"},{"$f":"'DATOS DEPORTISTAS'!M172","v":"AARÓN MÁRQUEZ GUARDIOLA"},{"$f":"'DATOS DEPORTISTAS'!X172","v":0},{"$f":"'DATOS DEPORTISTAS'!Y172","v":0}]
[{"$f":"'DATOS DEPORTISTAS'!V173","v":"CAPRI MEQUINENZA"},{"$f":"'DATOS DEPORTISTAS'!M173","v":"ALBA MARTÍNEZ CLAVERO"},{"$f":"'DATOS DEPORTISTAS'!X173","v":0},{"$f":"'DATOS DEPORTISTAS'!Y173","v":0}]
[{"$f":"'DATOS DEPORTISTAS'!V174","v":"CAPRI MEQUINENZA"},{"$f":"'DATOS DEPORTISTAS'!M174","v":"YERAY MARTÍNEZ CLAVERO"},{"$f":"'DATOS DEPORTISTAS'!X174","v":0},{"$f":"'DATOS DEPORTISTAS'!Y174","v":0}]
[{"$f":"'DATOS DEPORTISTAS'!V175","v":"CAPRI MEQUINENZA"},{"$f":"'DATOS DEPORTISTAS'!M175","v":"SOFÍA MURZAKOVA"},{"$f":"'DATOS DEPORTISTAS'!X175","v":0},{"$f":"'DATOS DEPORTISTAS'!Y175","v":0}]
[{"$f":"'DATOS DEPORTISTAS'!V176","v":"CAPRI MEQUINENZA"},{"$f":"'DATOS DEPORTISTAS'!M176","v":"DAVID OLIVER CABALLÉ"},{"$f":"'DATOS DEPORTISTAS'!X176","v":1},{"$f":"'DATOS DEPORTISTAS'!Y176","v":0}]
[{"$f":"'DATOS DEPORTISTAS'!V177","v":"CAPRI MEQUINENZA"},{"$f":"'DATOS DEPORTISTAS'!M177","v":"NOA PALAU FERRAGUT"},{"$f":"'DATOS DEPORTISTAS'!X177","v":0},{"$f":"'DATOS DEPORTISTAS'!Y177","v":0}]
[{"$f":"'DATOS DEPORTISTAS'!V178","v":"CAPRI MEQUINENZA"},{"$f":"'DATOS DEPORTISTAS'!M178","v":"ISMAEL RAHIBI VIDALLET"},{"$f":"'DATOS DEPORTISTAS'!X178","v":0},{"$f":"'DATOS DEPORTISTAS'!Y178","v":0}]
[{"$f":"'DATOS DEPORTISTAS'!V179","v":"CAPRI MEQUINENZA"},{"$f":"'DATOS DEPORTISTAS'!M179","v":"MOHAMED ADAM RAHIBI VIDALLET"},{"$f":"'DATOS DEPORTISTAS'!X179","v":0},{"$f":"'DATOS DEPORTISTAS'!Y179","v":0}]
[{"$f":"'DATOS DEPORTISTAS'!V180","v":"CAPRI MEQUINENZA"},{"$f":"'DATOS DEPORTISTAS'!M180","v":"JULIA RAMI CASTRO"},{"$f":"'DATOS DEPORTISTAS'!X180","v":0},{"$f":"'DATOS DEPORTISTAS'!Y180","v":0}]
[{"$f":"'DATOS DEPORTISTAS'!V181","v":"CAPRI MEQUINENZA"},{"$f":"'DATOS DEPORTISTAS'!M181","v":"SARA  ROMERO OLMOS"},{"$f":"'DATOS DEPORTISTAS'!X181","v":0},{"$f":"'DATOS DEPORTISTAS'!Y181","v":0}]
[{"$f":"'DATOS DEPORTISTAS'!V182","v":"CAPRI MEQUINENZA"},{"$f":"'DATOS DEPORTISTAS'!M182","v":"IKER SANJUÁN SATORRES"},{"$f":"'DATOS DEPORTISTAS'!X182","v":0},{"$f":"'DATOS DEPORTISTAS'!Y182","v":0}]
[{"$f":"'DATOS DEPORTISTAS'!V183","v":"CAPRI MEQUINENZA"},{"$f":"'DATOS DEPORTISTAS'!M183","v":"SOFÍA SERVETO ORDUÑA"},{"$f":"'DATOS DEPORTISTAS'!X183","v":0},{"$f":"'DATOS DEPORTISTAS'!Y183","v":0}]
[{"$f":"'DATOS DEPORTISTAS'!V184","v":"CAPRI MEQUINENZA"},{"$f":"'DATOS DEPORTISTAS'!M184","v":"MERITXELL SIMÓN MARTÍN"},{"$f":"'DATOS DEPORTISTAS'!X184","v":0},{"$f":"'DATOS DEPORTISTAS'!Y184","v":0}]
[{"$f":"'DATOS DEPORTISTAS'!V185","v":"CAPRI MEQUINENZA"},{"$f":"'DATOS DEPORTISTAS'!M185","v":"CARLA TORRES GODIA"},{"$f":"'DATOS DEPORTISTAS'!X185","v":0},{"$f":"'DATOS DEPORTISTAS'!Y185","v":0}]
[{"$f":"'DATOS DEPORTISTAS'!V186","v":"CAPRI MEQUINENZA"},{"$f":"'DATOS DEPORTISTAS'!M186","v":"PAULA VERA JARQUE"},{"$f":"'DATOS DEPORTISTAS'!X186","v":0},{"$f":"'DATOS DEPORTISTAS'!Y186","v":0}]
[{"$f":"'DATOS DEPORTISTAS'!V187","v":"CAPRI MEQUINENZA"},{"$f":"'DATOS DEPORTISTAS'!M187","v":"ÁLEX VILELLA BERENGUER"},{"$f":"'DATOS DEPORTISTAS'!X187","v":0},{"$f":"'DATOS DEPORTISTAS'!Y187","v":0}]
[{"$f":"'DATOS DEPORTISTAS'!V188","v":"CAPRI MEQUINENZA"},{"$f":"'DATOS DEPORTISTAS'!M188","v":"SAÚL VIU NOGUÉS"},{"$f":"'DATOS DEPORTISTAS'!X188","v":0},{"$f":"'DATOS DEPORTISTAS'!Y188","v":0}]
[{"$f":"'DATOS DEPORTISTAS'!V189","v":"CAPRI MEQUINENZA"},{"$f":"'DATOS DEPORTISTAS'!M189","v":"PEDRO JOSÉ SERVETO PALOMAR"},{"$f":"'DATOS DEPORTISTAS'!X189","v":0},{"$f":"'DATOS DEPORTISTAS'!Y189","v":1}]
[{"$f":"'DATOS DEPORTISTAS'!V190","v":"CAPRI MEQUINENZA"},{"$f":"'DATOS DEPORTISTAS'!M190","v":"MARISOL CLAVERO GARCÍA"},{"$f":"'DATOS DEPORTISTAS'!X190","v":0},{"$f":"'DATOS DEPORTISTAS'!Y190","v":1}]
[{"$f":"'DATOS DEPORTISTAS'!V191","v":"CAPRI MEQUINENZA"},{"$f":"'DATOS DEPORTISTAS'!M191","v":"DAVID TORO SOLER"},{"$f":"'DATOS DEPORTISTAS'!X191","v":0},{"$f":"'DATOS DEPORTISTAS'!Y191","v":1}]
[{"$f":"'DATOS DEPORTISTAS'!V192","v":"OS NABATERS D.F."},{"$f":"'DATOS DEPORTISTAS'!M192","v":"ÁNGEL AGUILERA ANDRÉS"},{"$f":"'DATOS DEPORTISTAS'!X192","v":0},{"$f":"'DATOS DEPORTISTAS'!Y192","v":0}]
[{"$f":"'DATOS DEPORTISTAS'!V193","v":"OS NABATERS D.F."},{"$f":"'DATOS DEPORTISTAS'!M193","v":"JOSÉ CARMELO RICO"},{"$f":"'DATOS DEPORTISTAS'!X193","v":0},{"$f":"'DATOS DEPORTISTAS'!Y193","v":0}]
[{"$f":"'DATOS DEPORTISTAS'!V194","v":"OS NABATERS D.F."},{"$f":"'DATOS DEPORTISTAS'!M194","v":"ÁNGEL DE MIGUEL BENITO"},{"$f":"'DATOS DEPORTISTAS'!X194","v":1},{"$f":"'DATOS DEPORTISTAS'!Y194","v":0}]
[{"$f":"'DATOS DEPORTISTAS'!V195","v":"OS NABATERS D.F."},{"$f":"'DATOS DEPORTISTAS'!M195","v":"CARLOS MELGARES HIDALGO"},{"$f":"'DATOS DEPORTISTAS'!X195","v":0},{"$f":"'DATOS DEPORTISTAS'!Y195","v":0}]
[{"$f":"'DATOS DEPORTISTAS'!V196","v":"OS NABATERS D.F."},{"$f":"'DATOS DEPORTISTAS'!M196","v":"JOSÉ MARÍA EMBARBA LABORDA"},{"$f":"'DATOS DEPORTISTAS'!X196","v":0},{"$f":"'DATOS DEPORTISTAS'!Y196","v":0}]
[{"$f":"'DATOS DEPORTISTAS'!V197","v":"OS NABATERS D.F."},{"$f":"'DATOS DEPORTISTAS'!M197","v":"ANTONIO ANSELMO SANCHO NAVARRO"},{"$f":"'DATOS DEPORTISTAS'!X197","v":1},{"$f":"'DATOS DEPORTISTAS'!Y197","v":0}]
[{"$f":"'DATOS DEPORTISTAS'!V198","v":"OS NABATERS D.F."},{"$f":"'DATOS DEPORTISTAS'!M198","v":"PEDRO DANIEL PLOU ARTAL"},{"$f":"'DATOS DEPORTISTAS'!X198","v":0},{"$f":"'DATOS DEPORTISTAS'!Y198","v":0}]
[{"$f":"'DATOS DEPORTISTAS'!V199","v":"OS NABATERS D.F."},{"$f":"'DATOS DEPORTISTAS'!M199","v":"LUIS CARLOS BELLED LACASA"},{"$f":"'DATOS DEPORTISTAS'!X199","v":1},{"$f":"'DATOS DEPORTISTAS'!Y199","v":0}]
[{"$f":"'DATOS DEPORTISTAS'!V200","v":"OS NABATERS D.F."},{"$f":"'DATOS DEPORTISTAS'!M200","v":"ISCICIO NAVARRETE SÁNCHEZ"},{"$f":"'DATOS DEPORTISTAS'!X200","v":0},{"$f":"'DATOS DEPORTISTAS'!Y200","v":0}]
[{"$f":"'DATOS DEPORTISTAS'!V201","v":"OS NABATERS D.F."},{"$f":"'DATOS DEPORTISTAS'!M201","v":"JOSÉ IGNACIO MAGDALENA ABAD"},{"$f":"'DATOS DEPORTISTAS'!X201","v":0},{"$f":"'DATOS DEPORTISTAS'!Y201","v":0}]
[{"$f":"'DATOS DEPORTISTAS'!V202","v":"OS NABATERS D.F."},{"$f":"'DATOS DEPORTISTAS'!M202","v":"LUIS JAVIER MELERO PASCUAL"},{"$f":"'DATOS DEPORTISTAS'!X202","v":0},{"$f":"'DATOS DEPORTISTAS'!Y202","v":0}]
[{"$f":"'DATOS DEPORTISTAS'!V203","v":"OS NABATERS D.F."},{"$f":"'DATOS DEPORTISTAS'!M203","v":"SANTIAGO LAVILLA TENÍAS"},{"$f":"'DATOS DEPORTISTAS'!X203","v":0},{"$f":"'DATOS DEPORTISTAS'!Y203","v":0}]
[{"$f":"'DATOS DEPORTISTAS'!V204","v":"OS NABATERS D.F."},{"$f":"'DATOS DEPORTISTAS'!M204","v":"OMAR SEBASTIÁN BUSTÍN"},{"$f":"'DATOS DEPORTISTAS'!X204","v":0},{"$f":"'DATOS DEPORTISTAS'!Y204","v":0}]
[{"$f":"'DATOS DEPORTISTAS'!V205","v":"OS NABATERS D.F."},{"$f":"'DATOS DEPORTISTAS'!M205","v":"JESÚS YUS DÍEZ"},{"$f":"'DATOS DEPORTISTAS'!X205","v":0},{"$f":"'DATOS DEPORTISTAS'!Y205","v":0}]
[{"$f":"'DATOS DEPORTISTAS'!V206","v":"OS NABATERS D.F."},{"$f":"'DATOS DEPORTISTAS'!M206","v":"RICARDO SALILLAS MARTÍNEZ"},{"$f":"'DATOS DEPORTISTAS'!X206","v":0},{"$f":"'DATOS DEPORTISTAS'!Y206","v":0}]
[{"$f":"'DATOS DEPORTISTAS'!V207","v":"OS NABATERS D.F."},{"$f":"'DATOS DEPORTISTAS'!M207","v":"ITZIAR URQUIRI VIDAL"},{"$f":"'DATOS DEPORTISTAS'!X207","v":0},{"$f":"'DATOS DEPORTISTAS'!Y207","v":0}]
[{"$f":"'DATOS DEPORTISTAS'!V208","v":"OS NABATERS D.F."},{"$f":"'DATOS DEPORTISTAS'!M208","v":"ALICIA ROMERO DE LA ROSA"},{"$f":"'DATOS DEPORTISTAS'!X208","v":0},{"$f":"'DATOS DEPORTISTAS'!Y208","v":0}]
[{"$f":"'DATOS DEPORTISTAS'!V209","v":"OS NABATERS D.F."},{"$f":"'DATOS DEPORTISTAS'!M209","v":"ANA RUBIO EZPELETA"},{"$f":"'DATOS DEPORTISTAS'!X209","v":0},{"$f":"'DATOS DEPORTISTAS'!Y209","v":0}]
[{"$f":"'DATOS DEPORTISTAS'!V210","v":"OS NABATERS D.F."},{"$f":"'DATOS DEPORTISTAS'!M210","v":"NAOMI SANCHO BUSTÍN"},{"$f":"'DATOS DEPORTISTAS'!X210","v":1},{"$f":"'DATOS DEPORTISTAS'!Y210","v":0}]
[{"$f":"'DATOS DEPORTISTAS'!V211","v":"OS NABATERS D.F."},{"$f":"'DATOS DEPORTISTAS'!M211","v":"ALODIA SANCHO BUSTÍN"},{"$f":"'DATOS DEPORTISTAS'!X211","v":0},{"$f":"'DATOS DEPORTISTAS'!Y211","v":0}]
[{"$f":"'DATOS DEPORTISTAS'!V212","v":"OS NABATERS D.F."},{"$f":"'DATOS DEPORTISTAS'!M212","v":"ANDREA MATAIX MONTANER"},{"$f":"'DATOS DEPORTISTAS'!X212","v":0},{"$f":"'DATOS DEPORTISTAS'!Y212","v":0}]
[{"$f":"'DATOS DEPORTISTAS'!V213","v":"CENTRO NATACION HELIOS"},{"$f":"'DATOS DEPORTISTAS'!M213","v":"VÍCTOR ESTÉBAN GRAN"},{"$f":"'DATOS DEPORTISTAS'!X213","v":0},{"$f":"'DATOS DEPORTISTAS'!Y213","v":0}]
[{"$f":"'DATOS DEPORTISTAS'!V214","v":"NAUTICO ZARAGOZA"},{"$f":"'DATOS DEPORTISTAS'!M214","v":"JOSÉ MANUEL LARROY CALVO"},{"$f":"'DATOS DEPORTISTAS'!X214","v":0},{"$f":"'DATOS DEPORTISTAS'!Y214","v":1}]
[{"$f":"'DATOS DEPORTISTAS'!V215","v":"NAUTICO ZARAGOZA"},{"$f":"'DATOS DEPORTISTAS'!M215","v":"IGNACIO JOSÉ RUIZ IRIBARNE"},{"$f":"'DATOS DEPORTISTAS'!X215","v":0},{"$f":"'DATOS DEPORTISTAS'!Y215","v":0}]
[{"$f":"'DATOS DEPORTISTAS'!V216","v":"OS NABATERS D.F."},{"$f":"'DATOS DEPORTISTAS'!M216","v":"CARLOTA LAPLANA DÍAZ"},{"$f":"'DATOS DEPORTISTAS'!X216","v":0},{"$f":"'DATOS DEPORTISTAS'!Y216","v":0}]
[{"$f":"'DATOS DEPORTISTAS'!V217","v":"OS NABATERS D.F."},{"$f":"'DATOS DEPORTISTAS'!M217","v":"DAVID DÍEZ IBÁÑEZ"},{"$f":"'DATOS DEPORTISTAS'!X217","v":0},{"$f":"'DATOS DEPORTISTAS'!Y217","v":0}]
[{"$f":"'DATOS DEPORTISTAS'!V218","v":"OS NABATERS D.F."},{"$f":"'DATOS DEPORTISTAS'!M218","v":"ANDREA HERNANDO FERRER"},{"$f":"'DATOS DEPORTISTAS'!X218","v":0},{"$f":"'DATOS DEPORTISTAS'!Y218","v":0}]
[{"$f":"'DATOS DEPORTISTAS'!V219","v":"OS NABATERS D.F."},{"$f":"'DATOS DEPORTISTAS'!M219","v":"CELIA PEÑA ROMERO DE TEJADA"},{"$f":"'DATOS DEPORTISTAS'!X219","v":0},{"$f":"'DATOS DEPORTISTAS'!Y219","v":0}]
[{"$f":"'DATOS DEPORTISTAS'!V220","v":"OS NABATERS D.F."},{"$f":"'DATOS DEPORTISTAS'!M220","v":"DIEGO VELA JULIÁN"},{"$f":"'DATOS DEPORTISTAS'!X220","v":0},{"$f":"'DATOS DEPORTISTAS'!Y220","v":0}]
[{"$f":"'DATOS DEPORTISTAS'!V221","v":"OS NABATERS D.F."},{"$f":"'DATOS DEPORTISTAS'!M221","v":"JAIME PEÑA ROMERO DE TEJADA"},{"$f":"'DATOS DEPORTISTAS'!X221","v":0},{"$f":"'DATOS DEPORTISTAS'!Y221","v":0}]
[{"$f":"'DATOS DEPORTISTAS'!V222","v":"OS NABATERS D.F."},{"$f":"'DATOS DEPORTISTAS'!M222","v":"ALEJANDRO VILLACAMPA RÍOS"},{"$f":"'DATOS DEPORTISTAS'!X222","v":0},{"$f":"'DATOS DEPORTISTAS'!Y222","v":0}]
[{"$f":"'DATOS DEPORTISTAS'!V223","v":"OS NABATERS D.F."},{"$f":"'DATOS DEPORTISTAS'!M223","v":"MARÍA ALONSO GUTIÉRREZ"},{"$f":"'DATOS DEPORTISTAS'!X223","v":0},{"$f":"'DATOS DEPORTISTAS'!Y223","v":0}]
[{"$f":"'DATOS DEPORTISTAS'!V224","v":"OS NABATERS D.F."},{"$f":"'DATOS DEPORTISTAS'!M224","v":"ITZIAR MARURI GARCÍA"},{"$f":"'DATOS DEPORTISTAS'!X224","v":0},{"$f":"'DATOS DEPORTISTAS'!Y224","v":0}]
[{"$f":"'DATOS DEPORTISTAS'!V225","v":"OS NABATERS D.F."},{"$f":"'DATOS DEPORTISTAS'!M225","v":"ANTONIO ALMUDÉVAR ATIENZA"},{"$f":"'DATOS DEPORTISTAS'!X225","v":0},{"$f":"'DATOS DEPORTISTAS'!Y225","v":0}]
[{"$f":"'DATOS DEPORTISTAS'!V226","v":"OS NABATERS D.F."},{"$f":"'DATOS DEPORTISTAS'!M226","v":"BORJA COSA REDONDO"},{"$f":"'DATOS DEPORTISTAS'!X226","v":0},{"$f":"'DATOS DEPORTISTAS'!Y226","v":0}]
[{"$f":"'DATOS DEPORTISTAS'!V227","v":"OS NABATERS D.F."},{"$f":"'DATOS DEPORTISTAS'!M227","v":"CLARA ANDREU MARTÍN"},{"$f":"'DATOS DEPORTISTAS'!X227","v":0},{"$f":"'DATOS DEPORTISTAS'!Y227","v":0}]
[{"$f":"'DATOS DEPORTISTAS'!V228","v":"OS NABATERS D.F."},{"$f":"'DATOS DEPORTISTAS'!M228","v":"JORGE CALAVIA VALDOVINOS"},{"$f":"'DATOS DEPORTISTAS'!X228","v":0},{"$f":"'DATOS DEPORTISTAS'!Y228","v":0}]
[{"$f":"'DATOS DEPORTISTAS'!V229","v":"OS NABATERS D.F."},{"$f":"'DATOS DEPORTISTAS'!M229","v":"PEDRO OLLOQUI LÁZARO"},{"$f":"'DATOS DEPORTISTAS'!X229","v":0},{"$f":"'DATOS DEPORTISTAS'!Y229","v":0}]
[{"$f":"'DATOS DEPORTISTAS'!V230","v":"OS NABATERS D.F."},{"$f":"'DATOS DEPORTISTAS'!M230","v":"JUAN JOSÉ MUÑOZ LAHOZ"},{"$f":"'DATOS DEPORTISTAS'!X230","v":0},{"$f":"'DATOS DEPORTISTAS'!Y230","v":0}]
[{"$f":"'DATOS DEPORTISTAS'!V231","v":"OS NABATERS D.F."},{"$f":"'DATOS DEPORTISTAS'!M231","v":"ÁNGEL BERNAL LECINA"},{"$f":"'DATOS DEPORTISTAS'!X231","v":1},{"$f":"'DATOS DEPORTISTAS'!Y231","v":0}]
[{"$f":"'DATOS DEPORTISTAS'!V232","v":"OS NABATERS D.F."},{"$f":"'DATOS DEPORTISTAS'!M232","v":"LIZANDRO DÍAZ TORNOE"},{"$f":"'DATOS DEPORTISTAS'!X232","v":0},{"$f":"'DATOS DEPORTISTAS'!Y232","v":0}]
[{"$f":"'DATOS DEPORTISTAS'!V233","v":"CAPRI MEQUINENZA"},{"$f":"'DATOS DEPORTISTAS'!M233","v":"CARLA MARÍA TEIRA ARBIOL"},{"$f":"'DATOS DEPORTISTAS'!X233","v":0},{"$f":"'DATOS DEPORTISTAS'!Y233","v":0}]
[{"$f":"'DATOS DEPORTISTAS'!V234","v":"CAPRI MEQUINENZA"},{"$f":"'DATOS DEPORTISTAS'!M234","v":"MIGUEL RUBIO LAMBEA"},{"$f":"'DATOS DEPORTISTAS'!X234","v":0},{"$f":"'DATOS DEPORTISTAS'!Y234","v":0}]
[{"$f":"'DATOS DEPORTISTAS'!V235","v":"OS NABATERS D.F."},{"$f":"'DATOS DEPORTISTAS'!M235","v":"WILNER MANUEL ESCOBAR PERNOLETE"},{"$f":"'DATOS DEPORTISTAS'!X235","v":0},{"$f":"'DATOS DEPORTISTAS'!Y235","v":0}]
[{"$f":"'DATOS DEPORTISTAS'!V236","v":"CAPRI MEQUINENZA"},{"$f":"'DATOS DEPORTISTAS'!M236","v":"IVÁN GODIA SANCHO"},{"$f":"'DATOS DEPORTISTAS'!X236","v":0},{"$f":"'DATOS DEPORTISTAS'!Y236","v":0}]
[{"$f":"'DATOS DEPORTISTAS'!V237","v":0},{"$f":"'DATOS DEPORTISTAS'!M237","v":"ALEJANDRO ABECIA SEGARRA"},{"$f":"'DATOS DEPORTISTAS'!X237","v":0},{"$f":"'DATOS DEPORTISTAS'!Y237","v":0}]
[{"$f":"'DATOS DEPORTISTAS'!V238","v":0},{"$f":"'DATOS DEPORTISTAS'!M238","v":"ALEJANDRO ABRIL CASAMAYOR"},{"$f":"'DATOS DEPORTISTAS'!X238","v":0},{"$f":"'DATOS DEPORTISTAS'!Y238","v":0}]
[{"$f":"'DATOS DEPORTISTAS'!V239","v":0},{"$f":"'DATOS DEPORTISTAS'!M239","v":"MARÍA AGUD MONTAÑES"},{"$f":"'DATOS DEPORTISTAS'!X239","v":0},{"$f":"'DATOS DEPORTISTAS'!Y239","v":0}]
[{"$f":"'DATOS DEPORTISTAS'!V240","v":0},{"$f":"'DATOS DEPORTISTAS'!M240","v":"MIGUEL AJA BARQUÍN"},{"$f":"'DATOS DEPORTISTAS'!X240","v":0},{"$f":"'DATOS DEPORTISTAS'!Y240","v":0}]
[{"$f":"'DATOS DEPORTISTAS'!V241","v":0},{"$f":"'DATOS DEPORTISTAS'!M241","v":"PABLO ALONSO RAMOS"},{"$f":"'DATOS DEPORTISTAS'!X241","v":0},{"$f":"'DATOS DEPORTISTAS'!Y241","v":0}]
[{"$f":"'DATOS DEPORTISTAS'!V242","v":0},{"$f":"'DATOS DEPORTISTAS'!M242","v":"IGNACIO ALONSO ROMÁN"},{"$f":"'DATOS DEPORTISTAS'!X242","v":0},{"$f":"'DATOS DEPORTISTAS'!Y242","v":0}]
[{"$f":"'DATOS DEPORTISTAS'!V243","v":0},{"$f":"'DATOS DEPORTISTAS'!M243","v":"LAURA ALONSO VIADER"},{"$f":"'DATOS DEPORTISTAS'!X243","v":0},{"$f":"'DATOS DEPORTISTAS'!Y243","v":0}]
[{"$f":"'DATOS DEPORTISTAS'!V244","v":0},{"$f":"'DATOS DEPORTISTAS'!M244","v":"CRISTINA ÁLVAREZ MORENO"},{"$f":"'DATOS DEPORTISTAS'!X244","v":0},{"$f":"'DATOS DEPORTISTAS'!Y244","v":0}]
[{"$f":"'DATOS DEPORTISTAS'!V245","v":0},{"$f":"'DATOS DEPORTISTAS'!M245","v":"IRENE AMPOLLINI CUADRADO"},{"$f":"'DATOS DEPORTISTAS'!X245","v":0},{"$f":"'DATOS DEPORTISTAS'!Y245","v":0}]
[{"$f":"'DATOS DEPORTISTAS'!V246","v":0},{"$f":"'DATOS DEPORTISTAS'!M246","v":"INÉS ANGULO AZNAR"},{"$f":"'DATOS DEPORTISTAS'!X246","v":0},{"$f":"'DATOS DEPORTISTAS'!Y246","v":0}]
[{"$f":"'DATOS DEPORTISTAS'!V247","v":0},{"$f":"'DATOS DEPORTISTAS'!M247","v":"FRANCISCO ANTORÁN MARTÍN"},{"$f":"'DATOS DEPORTISTAS'!X247","v":0},{"$f":"'DATOS DEPORTISTAS'!Y247","v":0}]
[{"$f":"'DATOS DEPORTISTAS'!V248","v":0},{"$f":"'DATOS DEPORTISTAS'!M248","v":"NOELIA ARA GRACIA"},{"$f":"'DATOS DEPORTISTAS'!X248","v":0},{"$f":"'DATOS DEPORTISTAS'!Y248","v":0}]
[{"$f":"'DATOS DEPORTISTAS'!V249","v":0},{"$f":"'DATOS DEPORTISTAS'!M249","v":"ANA MARÍA ARAGÜÉS GRIEGO"},{"$f":"'DATOS DEPORTISTAS'!X249","v":0},{"$f":"'DATOS DEPORTISTAS'!Y249","v":0}]
[{"$f":"'DATOS DEPORTISTAS'!V250","v":0},{"$f":"'DATOS DEPORTISTAS'!M250","v":"PAULA MARÍA ARNILLAS IBARZ"},{"$f":"'DATOS DEPORTISTAS'!X250","v":0},{"$f":"'DATOS DEPORTISTAS'!Y250","v":0}]
[{"$f":"'DATOS DEPORTISTAS'!V251","v":0},{"$f":"'DATOS DEPORTISTAS'!M251","v":"PAULA MARÍA ARNILLAS IBARZ"},{"$f":"'DATOS DEPORTISTAS'!X251","v":0},{"$f":"'DATOS DEPORTISTAS'!Y251","v":0}]
[{"$f":"'DATOS DEPORTISTAS'!V252","v":0},{"$f":"'DATOS DEPORTISTAS'!M252","v":"GUILLERMO JAVIER ARRIZABALAGA SOLANO"},{"$f":"'DATOS DEPORTISTAS'!X252","v":0},{"$f":"'DATOS DEPORTISTAS'!Y252","v":0}]
[{"$f":"'DATOS DEPORTISTAS'!V253","v":0},{"$f":"'DATOS DEPORTISTAS'!M253","v":"GEORGE ATKIN"},{"$f":"'DATOS DEPORTISTAS'!X253","v":0},{"$f":"'DATOS DEPORTISTAS'!Y253","v":0}]
[{"$f":"'DATOS DEPORTISTAS'!V254","v":0},{"$f":"'DATOS DEPORTISTAS'!M254","v":"FERNANDO AZNAR INFANTE"},{"$f":"'DATOS DEPORTISTAS'!X254","v":0},{"$f":"'DATOS DEPORTISTAS'!Y254","v":0}]
[{"$f":"'DATOS DEPORTISTAS'!V255","v":0},{"$f":"'DATOS DEPORTISTAS'!M255","v":"PATRICIA BARAT CORTÉS"},{"$f":"'DATOS DEPORTISTAS'!X255","v":0},{"$f":"'DATOS DEPORTISTAS'!Y255","v":0}]
[{"$f":"'DATOS DEPORTISTAS'!V256","v":0},{"$f":"'DATOS DEPORTISTAS'!M256","v":"LLUIS ANTONI BARCELÓ LISO"},{"$f":"'DATOS DEPORTISTAS'!X256","v":0},{"$f":"'DATOS DEPORTISTAS'!Y256","v":0}]
[{"$f":"'DATOS DEPORTISTAS'!V257","v":0},{"$f":"'DATOS DEPORTISTAS'!M257","v":"ETHAN NADIR BENAMAR"},{"$f":"'DATOS DEPORTISTAS'!X257","v":0},{"$f":"'DATOS DEPORTISTAS'!Y257","v":0}]
[{"$f":"'DATOS DEPORTISTAS'!V258","v":0},{"$f":"'DATOS DEPORTISTAS'!M258","v":"MÓNICA BERENGUER CÉSPEDES"},{"$f":"'DATOS DEPORTISTAS'!X258","v":0},{"$f":"'DATOS DEPORTISTAS'!Y258","v":0}]
[{"$f":"'DATOS DEPORTISTAS'!V259","v":0},{"$f":"'DATOS DEPORTISTAS'!M259","v":"CARE BERENGUER SAGARRA"},{"$f":"'DATOS DEPORTISTAS'!X259","v":0},{"$f":"'DATOS DEPORTISTAS'!Y259","v":0}]
[{"$f":"'DATOS DEPORTISTAS'!V260","v":0},{"$f":"'DATOS DEPORTISTAS'!M260","v":"ENRIQUE BERENGUER UTRILLA"},{"$f":"'DATOS DEPORTISTAS'!X260","v":0},{"$f":"'DATOS DEPORTISTAS'!Y260","v":0}]
[{"$f":"'DATOS DEPORTISTAS'!V261","v":0},{"$f":"'DATOS DEPORTISTAS'!M261","v":"SALMA BERGES ISAM-ALÍ"},{"$f":"'DATOS DEPORTISTAS'!X261","v":0},{"$f":"'DATOS DEPORTISTAS'!Y261","v":0}]
[{"$f":"'DATOS DEPORTISTAS'!V262","v":0},{"$f":"'DATOS DEPORTISTAS'!M262","v":"HELENA BERNAL LACRUZ"},{"$f":"'DATOS DEPORTISTAS'!X262","v":0},{"$f":"'DATOS DEPORTISTAS'!Y262","v":0}]
[{"$f":"'DATOS DEPORTISTAS'!V263","v":0},{"$f":"'DATOS DEPORTISTAS'!M263","v":"MANUEL BERNAL LECINA"},{"$f":"'DATOS DEPORTISTAS'!X263","v":0},{"$f":"'DATOS DEPORTISTAS'!Y263","v":0}]
[{"$f":"'DATOS DEPORTISTAS'!V264","v":0},{"$f":"'DATOS DEPORTISTAS'!M264","v":"PATRICIA BETRIÁN HERRERA"},{"$f":"'DATOS DEPORTISTAS'!X264","v":0},{"$f":"'DATOS DEPORTISTAS'!Y264","v":0}]
[{"$f":"'DATOS DEPORTISTAS'!V265","v":0},{"$f":"'DATOS DEPORTISTAS'!M265","v":"SANTIAGO BLACKALLER MARTÍNEZ"},{"$f":"'DATOS DEPORTISTAS'!X265","v":0},{"$f":"'DATOS DEPORTISTAS'!Y265","v":0}]
[{"$f":"'DATOS DEPORTISTAS'!V266","v":0},{"$f":"'DATOS DEPORTISTAS'!M266","v":"ELOY BLAS SORO"},{"$f":"'DATOS DEPORTISTAS'!X266","v":0},{"$f":"'DATOS DEPORTISTAS'!Y266","v":0}]
[{"$f":"'DATOS DEPORTISTAS'!V267","v":0},{"$f":"'DATOS DEPORTISTAS'!M267","v":"DIEGO BLASCO GIMENO"},{"$f":"'DATOS DEPORTISTAS'!X267","v":0},{"$f":"'DATOS DEPORTISTAS'!Y267","v":0}]
[{"$f":"'DATOS DEPORTISTAS'!V268","v":0},{"$f":"'DATOS DEPORTISTAS'!M268","v":"MARÍA ISABEL BLASCO OLIETE"},{"$f":"'DATOS DEPORTISTAS'!X268","v":0},{"$f":"'DATOS DEPORTISTAS'!Y268","v":0}]
[{"$f":"'DATOS DEPORTISTAS'!V269","v":"C. DE REMO RETIRO 66"},{"$f":"'DATOS DEPORTISTAS'!M269","v":"SOFÍA BLÁZQUEZ UGALDE"},{"$f":"'DATOS DEPORTISTAS'!X269","v":0},{"$f":"'DATOS DEPORTISTAS'!Y269","v":0}]
[{"$f":"'DATOS DEPORTISTAS'!V270","v":0},{"$f":"'DATOS DEPORTISTAS'!M270","v":"IOANA BOGA"},{"$f":"'DATOS DEPORTISTAS'!X270","v":0},{"$f":"'DATOS DEPORTISTAS'!Y270","v":0}]
[{"$f":"'DATOS DEPORTISTAS'!V271","v":0},{"$f":"'DATOS DEPORTISTAS'!M271","v":"LUCÍA BOLEA PALOMAR"},{"$f":"'DATOS DEPORTISTAS'!X271","v":0},{"$f":"'DATOS DEPORTISTAS'!Y271","v":0}]
[{"$f":"'DATOS DEPORTISTAS'!V272","v":0},{"$f":"'DATOS DEPORTISTAS'!M272","v":"MARTÍN BOLEA PALOMAR"},{"$f":"'DATOS DEPORTISTAS'!X272","v":0},{"$f":"'DATOS DEPORTISTAS'!Y272","v":0}]
[{"$f":"'DATOS DEPORTISTAS'!V273","v":0},{"$f":"'DATOS DEPORTISTAS'!M273","v":"ABEL BORBÓN RODRÍGUEZ"},{"$f":"'DATOS DEPORTISTAS'!X273","v":0},{"$f":"'DATOS DEPORTISTAS'!Y273","v":0}]
[{"$f":"'DATOS DEPORTISTAS'!V274","v":0},{"$f":"'DATOS DEPORTISTAS'!M274","v":"FRANCISCO JAVIER BORDETAS OTO"},{"$f":"'DATOS DEPORTISTAS'!X274","v":0},{"$f":"'DATOS DEPORTISTAS'!Y274","v":0}]
[{"$f":"'DATOS DEPORTISTAS'!V275","v":0},{"$f":"'DATOS DEPORTISTAS'!M275","v":"ELISA BRAVO VIÑUALES"},{"$f":"'DATOS DEPORTISTAS'!X275","v":0},{"$f":"'DATOS DEPORTISTAS'!Y275","v":0}]
[{"$f":"'DATOS DEPORTISTAS'!V276","v":0},{"$f":"'DATOS DEPORTISTAS'!M276","v":"ESTHER BRIZ ZAMORANO"},{"$f":"'DATOS DEPORTISTAS'!X276","v":0},{"$f":"'DATOS DEPORTISTAS'!Y276","v":0}]
[{"$f":"'DATOS DEPORTISTAS'!V277","v":0},{"$f":"'DATOS DEPORTISTAS'!M277","v":"SARA BUIL LANGARITA"},{"$f":"'DATOS DEPORTISTAS'!X277","v":0},{"$f":"'DATOS DEPORTISTAS'!Y277","v":0}]
[{"$f":"'DATOS DEPORTISTAS'!V278","v":0},{"$f":"'DATOS DEPORTISTAS'!M278","v":"RAQUEL CABALLÉ SILVESTRE"},{"$f":"'DATOS DEPORTISTAS'!X278","v":0},{"$f":"'DATOS DEPORTISTAS'!Y278","v":0}]
[{"$f":"'DATOS DEPORTISTAS'!V279","v":0},{"$f":"'DATOS DEPORTISTAS'!M279","v":"IRVING MOISÉS CALLES CARRILLO"},{"$f":"'DATOS DEPORTISTAS'!X279","v":0},{"$f":"'DATOS DEPORTISTAS'!Y279","v":0}]
[{"$f":"'DATOS DEPORTISTAS'!V280","v":"C.N. DE NAVARRA"},{"$f":"'DATOS DEPORTISTAS'!M280","v":"JOSÉ IGNACIO CALVENTE VELLOSO"},{"$f":"'DATOS DEPORTISTAS'!X280","v":0},{"$f":"'DATOS DEPORTISTAS'!Y280","v":0}]
[{"$f":"'DATOS DEPORTISTAS'!V281","v":0},{"$f":"'DATOS DEPORTISTAS'!M281","v":"MANUEL CALVO BOLSA"},{"$f":"'DATOS DEPORTISTAS'!X281","v":0},{"$f":"'DATOS DEPORTISTAS'!Y281","v":0}]
[{"$f":"'DATOS DEPORTISTAS'!V282","v":0},{"$f":"'DATOS DEPORTISTAS'!M282","v":"INMACULADA CANTOS SIMÓN"},{"$f":"'DATOS DEPORTISTAS'!X282","v":0},{"$f":"'DATOS DEPORTISTAS'!Y282","v":0}]
[{"$f":"'DATOS DEPORTISTAS'!V283","v":0},{"$f":"'DATOS DEPORTISTAS'!M283","v":"BEATRIZ CARNICER LISO"},{"$f":"'DATOS DEPORTISTAS'!X283","v":0},{"$f":"'DATOS DEPORTISTAS'!Y283","v":0}]
[{"$f":"'DATOS DEPORTISTAS'!V284","v":0},{"$f":"'DATOS DEPORTISTAS'!M284","v":"VÍCTOR CARRIÓN DE LAS HERAS"},{"$f":"'DATOS DEPORTISTAS'!X284","v":0},{"$f":"'DATOS DEPORTISTAS'!Y284","v":0}]
[{"$f":"'DATOS DEPORTISTAS'!V285","v":0},{"$f":"'DATOS DEPORTISTAS'!M285","v":"EFRÉN CATALÁN LLOP"},{"$f":"'DATOS DEPORTISTAS'!X285","v":0},{"$f":"'DATOS DEPORTISTAS'!Y285","v":0}]
[{"$f":"'DATOS DEPORTISTAS'!V286","v":0},{"$f":"'DATOS DEPORTISTAS'!M286","v":"VÍCTOR CATALÁN LLOP"},{"$f":"'DATOS DEPORTISTAS'!X286","v":0},{"$f":"'DATOS DEPORTISTAS'!Y286","v":0}]
[{"$f":"'DATOS DEPORTISTAS'!V287","v":0},{"$f":"'DATOS DEPORTISTAS'!M287","v":"ANAIS CATALÁN MONTULL"},{"$f":"'DATOS DEPORTISTAS'!X287","v":0},{"$f":"'DATOS DEPORTISTAS'!Y287","v":0}]
[{"$f":"'DATOS DEPORTISTAS'!V288","v":0},{"$f":"'DATOS DEPORTISTAS'!M288","v":"JOSÉ MANUEL CERDÁN TORCAL"},{"$f":"'DATOS DEPORTISTAS'!X288","v":0},{"$f":"'DATOS DEPORTISTAS'!Y288","v":0}]
[{"$f":"'DATOS DEPORTISTAS'!V289","v":0},{"$f":"'DATOS DEPORTISTAS'!M289","v":"KHALID CHALHI"},{"$f":"'DATOS DEPORTISTAS'!X289","v":0},{"$f":"'DATOS DEPORTISTAS'!Y289","v":0}]
[{"$f":"'DATOS DEPORTISTAS'!V290","v":0},{"$f":"'DATOS DEPORTISTAS'!M290","v":"CLAIRE CHARRIERE"},{"$f":"'DATOS DEPORTISTAS'!X290","v":0},{"$f":"'DATOS DEPORTISTAS'!Y290","v":0}]
[{"$f":"'DATOS DEPORTISTAS'!V291","v":"C. DE REMO RETIRO 66"},{"$f":"'DATOS DEPORTISTAS'!M291","v":"CRISTIAN CHILLÓN RACHL"},{"$f":"'DATOS DEPORTISTAS'!X291","v":0},{"$f":"'DATOS DEPORTISTAS'!Y291","v":0}]
[{"$f":"'DATOS DEPORTISTAS'!V292","v":0},{"$f":"'DATOS DEPORTISTAS'!M292","v":"JESÚS CHIPRIANA FREIRE"},{"$f":"'DATOS DEPORTISTAS'!X292","v":0},{"$f":"'DATOS DEPORTISTAS'!Y292","v":0}]
[{"$f":"'DATOS DEPORTISTAS'!V293","v":0},{"$f":"'DATOS DEPORTISTAS'!M293","v":"WANNER FRANCISCO CHIRENO ROJAS"},{"$f":"'DATOS DEPORTISTAS'!X293","v":0},{"$f":"'DATOS DEPORTISTAS'!Y293","v":0}]
[{"$f":"'DATOS DEPORTISTAS'!V294","v":0},{"$f":"'DATOS DEPORTISTAS'!M294","v":"SUSANA CIRAC BELTRÁN"},{"$f":"'DATOS DEPORTISTAS'!X294","v":0},{"$f":"'DATOS DEPORTISTAS'!Y294","v":0}]
[{"$f":"'DATOS DEPORTISTAS'!V295","v":0},{"$f":"'DATOS DEPORTISTAS'!M295","v":"RAUL ANGEL CORTÉS MORENO"},{"$f":"'DATOS DEPORTISTAS'!X295","v":0},{"$f":"'DATOS DEPORTISTAS'!Y295","v":0}]
[{"$f":"'DATOS DEPORTISTAS'!V296","v":0},{"$f":"'DATOS DEPORTISTAS'!M296","v":"ALICIA CORTÍ BETRIÁN"},{"$f":"'DATOS DEPORTISTAS'!X296","v":0},{"$f":"'DATOS DEPORTISTAS'!Y296","v":0}]
[{"$f":"'DATOS DEPORTISTAS'!V297","v":0},{"$f":"'DATOS DEPORTISTAS'!M297","v":"YAGO CORTÍ BETRIÁN"},{"$f":"'DATOS DEPORTISTAS'!X297","v":0},{"$f":"'DATOS DEPORTISTAS'!Y297","v":0}]
[{"$f":"'DATOS DEPORTISTAS'!V298","v":0},{"$f":"'DATOS DEPORTISTAS'!M298","v":"MIGUEL CORZÁN LÓPEZ"},{"$f":"'DATOS DEPORTISTAS'!X298","v":0},{"$f":"'DATOS DEPORTISTAS'!Y298","v":0}]
[{"$f":"'DATOS DEPORTISTAS'!V299","v":0},{"$f":"'DATOS DEPORTISTAS'!M299","v":"MONTSERRAT CRESPO SETIÉN"},{"$f":"'DATOS DEPORTISTAS'!X299","v":0},{"$f":"'DATOS DEPORTISTAS'!Y299","v":0}]
[{"$f":"'DATOS DEPORTISTAS'!V300","v":0},{"$f":"'DATOS DEPORTISTAS'!M300","v":"ERIK CUCHI PEÑALVER"},{"$f":"'DATOS DEPORTISTAS'!X300","v":0},{"$f":"'DATOS DEPORTISTAS'!Y300","v":0}]
[{"$f":"'DATOS DEPORTISTAS'!V301","v":0},{"$f":"'DATOS DEPORTISTAS'!M301","v":"LUCÍA DE LA LASTRA LANZA"},{"$f":"'DATOS DEPORTISTAS'!X301","v":0},{"$f":"'DATOS DEPORTISTAS'!Y301","v":0}]
[{"$f":"'DATOS DEPORTISTAS'!V302","v":0},{"$f":"'DATOS DEPORTISTAS'!M302","v":"VICENTE DE LEÓN AZNAR"},{"$f":"'DATOS DEPORTISTAS'!X302","v":0},{"$f":"'DATOS DEPORTISTAS'!Y302","v":0}]
[{"$f":"'DATOS DEPORTISTAS'!V303","v":0},{"$f":"'DATOS DEPORTISTAS'!M303","v":"JOSÉ IGNACIO DUESO BELVER"},{"$f":"'DATOS DEPORTISTAS'!X303","v":0},{"$f":"'DATOS DEPORTISTAS'!Y303","v":0}]
[{"$f":"'DATOS DEPORTISTAS'!V304","v":0},{"$f":"'DATOS DEPORTISTAS'!M304","v":"MARÍA DUESO BELVER"},{"$f":"'DATOS DEPORTISTAS'!X304","v":0},{"$f":"'DATOS DEPORTISTAS'!Y304","v":0}]
[{"$f":"'DATOS DEPORTISTAS'!V305","v":0},{"$f":"'DATOS DEPORTISTAS'!M305","v":"CHLOÉ EHRET GARCÍA"},{"$f":"'DATOS DEPORTISTAS'!X305","v":0},{"$f":"'DATOS DEPORTISTAS'!Y305","v":0}]
[{"$f":"'DATOS DEPORTISTAS'!V306","v":0},{"$f":"'DATOS DEPORTISTAS'!M306","v":"MAELYA  EHRET GARCÍA"},{"$f":"'DATOS DEPORTISTAS'!X306","v":0},{"$f":"'DATOS DEPORTISTAS'!Y306","v":0}]
[{"$f":"'DATOS DEPORTISTAS'!V307","v":0},{"$f":"'DATOS DEPORTISTAS'!M307","v":"SARA EPGORGI ZOUGARI"},{"$f":"'DATOS DEPORTISTAS'!X307","v":0},{"$f":"'DATOS DEPORTISTAS'!Y307","v":0}]
[{"$f":"'DATOS DEPORTISTAS'!V308","v":0},{"$f":"'DATOS DEPORTISTAS'!M308","v":"MARTA FERNANDA ESCALONA COLOMÉ"},{"$f":"'DATOS DEPORTISTAS'!X308","v":0},{"$f":"'DATOS DEPORTISTAS'!Y308","v":0}]
[{"$f":"'DATOS DEPORTISTAS'!V309","v":0},{"$f":"'DATOS DEPORTISTAS'!M309","v":"FRANCISCO ESCARTÍN GUERRERO"},{"$f":"'DATOS DEPORTISTAS'!X309","v":0},{"$f":"'DATOS DEPORTISTAS'!Y309","v":0}]
[{"$f":"'DATOS DEPORTISTAS'!V310","v":0},{"$f":"'DATOS DEPORTISTAS'!M310","v":"WILNER MANUEL ESCOBAR PERNOLETE"},{"$f":"'DATOS DEPORTISTAS'!X310","v":0},{"$f":"'DATOS DEPORTISTAS'!Y310","v":0}]
[{"$f":"'DATOS DEPORTISTAS'!V311","v":0},{"$f":"'DATOS DEPORTISTAS'!M311","v":"ABRIL ESTEBAN GARCÍA"},{"$f":"'DATOS DEPORTISTAS'!X311","v":0},{"$f":"'DATOS DEPORTISTAS'!Y311","v":0}]
[{"$f":"'DATOS DEPORTISTAS'!V312","v":0},{"$f":"'DATOS DEPORTISTAS'!M312","v":"RUTH ESTEBAN MARÍN"},{"$f":"'DATOS DEPORTISTAS'!X312","v":0},{"$f":"'DATOS DEPORTISTAS'!Y312","v":0}]
[{"$f":"'DATOS DEPORTISTAS'!V313","v":0},{"$f":"'DATOS DEPORTISTAS'!M313","v":"ALICIA PILAR ESTEVAN EIXARCH"},{"$f":"'DATOS DEPORTISTAS'!X313","v":0},{"$f":"'DATOS DEPORTISTAS'!Y313","v":0}]
[{"$f":"'DATOS DEPORTISTAS'!V314","v":0},{"$f":"'DATOS DEPORTISTAS'!M314","v":"ERIC ESTEVE NEVADO"},{"$f":"'DATOS DEPORTISTAS'!X314","v":0},{"$f":"'DATOS DEPORTISTAS'!Y314","v":0}]
[{"$f":"'DATOS DEPORTISTAS'!V315","v":0},{"$f":"'DATOS DEPORTISTAS'!M315","v":"MARTINA ESTEVE NEVADO"},{"$f":"'DATOS DEPORTISTAS'!X315","v":0},{"$f":"'DATOS DEPORTISTAS'!Y315","v":0}]
[{"$f":"'DATOS DEPORTISTAS'!V316","v":0},{"$f":"'DATOS DEPORTISTAS'!M316","v":"AUDALD ESTRADA ROLDÁN"},{"$f":"'DATOS DEPORTISTAS'!X316","v":0},{"$f":"'DATOS DEPORTISTAS'!Y316","v":0}]
[{"$f":"'DATOS DEPORTISTAS'!V317","v":0},{"$f":"'DATOS DEPORTISTAS'!M317","v":"LLUC ESTRADA ROLDÁN"},{"$f":"'DATOS DEPORTISTAS'!X317","v":0},{"$f":"'DATOS DEPORTISTAS'!Y317","v":0}]
[{"$f":"'DATOS DEPORTISTAS'!V318","v":0},{"$f":"'DATOS DEPORTISTAS'!M318","v":"PAULA FALCÓ FLETA"},{"$f":"'DATOS DEPORTISTAS'!X318","v":0},{"$f":"'DATOS DEPORTISTAS'!Y318","v":0}]
[{"$f":"'DATOS DEPORTISTAS'!V319","v":0},{"$f":"'DATOS DEPORTISTAS'!M319","v":"NICOLÁS FAURE MARTÍN"},{"$f":"'DATOS DEPORTISTAS'!X319","v":0},{"$f":"'DATOS DEPORTISTAS'!Y319","v":0}]
[{"$f":"'DATOS DEPORTISTAS'!V320","v":0},{"$f":"'DATOS DEPORTISTAS'!M320","v":"DENIS FERNÁNDEZ DELGADO"},{"$f":"'DATOS DEPORTISTAS'!X320","v":0},{"$f":"'DATOS DEPORTISTAS'!Y320","v":0}]
[{"$f":"'DATOS DEPORTISTAS'!V321","v":"C.N. DE NAVARRA"},{"$f":"'DATOS DEPORTISTAS'!M321","v":"ALBERTO FERNÁNDEZ DÍEZ"},{"$f":"'DATOS DEPORTISTAS'!X321","v":0},{"$f":"'DATOS DEPORTISTAS'!Y321","v":0}]
[{"$f":"'DATOS DEPORTISTAS'!V322","v":0},{"$f":"'DATOS DEPORTISTAS'!M322","v":"LAURA FERNÁNDEZ GRASA"},{"$f":"'DATOS DEPORTISTAS'!X322","v":0},{"$f":"'DATOS DEPORTISTAS'!Y322","v":0}]
[{"$f":"'DATOS DEPORTISTAS'!V323","v":0},{"$f":"'DATOS DEPORTISTAS'!M323","v":"ALBERTO FERNÁNDEZ SANZ"},{"$f":"'DATOS DEPORTISTAS'!X323","v":0},{"$f":"'DATOS DEPORTISTAS'!Y323","v":0}]
[{"$f":"'DATOS DEPORTISTAS'!V324","v":0},{"$f":"'DATOS DEPORTISTAS'!M324","v":"LUCAS FERRANDO QUÍLEZ"},{"$f":"'DATOS DEPORTISTAS'!X324","v":0},{"$f":"'DATOS DEPORTISTAS'!Y324","v":0}]
[{"$f":"'DATOS DEPORTISTAS'!V325","v":0},{"$f":"'DATOS DEPORTISTAS'!M325","v":"CARLOS FERRER MÍNGUEZ"},{"$f":"'DATOS DEPORTISTAS'!X325","v":0},{"$f":"'DATOS DEPORTISTAS'!Y325","v":0}]
[{"$f":"'DATOS DEPORTISTAS'!V326","v":0},{"$f":"'DATOS DEPORTISTAS'!M326","v":"LAURA FORNOS NAVARRO"},{"$f":"'DATOS DEPORTISTAS'!X326","v":0},{"$f":"'DATOS DEPORTISTAS'!Y326","v":0}]
[{"$f":"'DATOS DEPORTISTAS'!V327","v":0},{"$f":"'DATOS DEPORTISTAS'!M327","v":"JORGE FRANCÉS VINTANED"},{"$f":"'DATOS DEPORTISTAS'!X327","v":0},{"$f":"'DATOS DEPORTISTAS'!Y327","v":0}]
[{"$f":"'DATOS DEPORTISTAS'!V328","v":0},{"$f":"'DATOS DEPORTISTAS'!M328","v":"VALENTINA  FRISA MORET"},{"$f":"'DATOS DEPORTISTAS'!X328","v":0},{"$f":"'DATOS DEPORTISTAS'!Y328","v":0}]
[{"$f":"'DATOS DEPORTISTAS'!V329","v":0},{"$f":"'DATOS DEPORTISTAS'!M329","v":"DANIEL GALE LECHÓN"},{"$f":"'DATOS DEPORTISTAS'!X329","v":0},{"$f":"'DATOS DEPORTISTAS'!Y329","v":0}]
[{"$f":"'DATOS DEPORTISTAS'!V330","v":0},{"$f":"'DATOS DEPORTISTAS'!M330","v":"CARMEN GÁLVEZ ARIAS"},{"$f":"'DATOS DEPORTISTAS'!X330","v":0},{"$f":"'DATOS DEPORTISTAS'!Y330","v":0}]
[{"$f":"'DATOS DEPORTISTAS'!V331","v":"C.N. DE NAVARRA"},{"$f":"'DATOS DEPORTISTAS'!M331","v":"ALBERTO GARAICOECHEA SÁNCHEZ"},{"$f":"'DATOS DEPORTISTAS'!X331","v":0},{"$f":"'DATOS DEPORTISTAS'!Y331","v":0}]
[{"$f":"'DATOS DEPORTISTAS'!V332","v":0},{"$f":"'DATOS DEPORTISTAS'!M332","v":"EMMA GARCÉS LÓPEZ"},{"$f":"'DATOS DEPORTISTAS'!X332","v":0},{"$f":"'DATOS DEPORTISTAS'!Y332","v":0}]
[{"$f":"'DATOS DEPORTISTAS'!V333","v":0},{"$f":"'DATOS DEPORTISTAS'!M333","v":"KARIM GARCIA BECHDJ"},{"$f":"'DATOS DEPORTISTAS'!X333","v":0},{"$f":"'DATOS DEPORTISTAS'!Y333","v":0}]
[{"$f":"'DATOS DEPORTISTAS'!V334","v":0},{"$f":"'DATOS DEPORTISTAS'!M334","v":"FERNANDO GARCÍA CEITEGUI"},{"$f":"'DATOS DEPORTISTAS'!X334","v":0},{"$f":"'DATOS DEPORTISTAS'!Y334","v":0}]
[{"$f":"'DATOS DEPORTISTAS'!V335","v":"C.N. DE NAVARRA"},{"$f":"'DATOS DEPORTISTAS'!M335","v":"JAVIER GARCÍA DE PABLO"},{"$f":"'DATOS DEPORTISTAS'!X335","v":0},{"$f":"'DATOS DEPORTISTAS'!Y335","v":0}]
[{"$f":"'DATOS DEPORTISTAS'!V336","v":0},{"$f":"'DATOS DEPORTISTAS'!M336","v":"VICTORIA GARCIA ESCANDE"},{"$f":"'DATOS DEPORTISTAS'!X336","v":0},{"$f":"'DATOS DEPORTISTAS'!Y336","v":0}]
[{"$f":"'DATOS DEPORTISTAS'!V337","v":"C. DE REMO RETIRO 66"},{"$f":"'DATOS DEPORTISTAS'!M337","v":"ÍÑIGO GARCÍA SEGADO"},{"$f":"'DATOS DEPORTISTAS'!X337","v":0},{"$f":"'DATOS DEPORTISTAS'!Y337","v":0}]
[{"$f":"'DATOS DEPORTISTAS'!V338","v":"C. DE REMO RETIRO 66"},{"$f":"'DATOS DEPORTISTAS'!M338","v":"RODRIGO GARCÍA SEGADO"},{"$f":"'DATOS DEPORTISTAS'!X338","v":0},{"$f":"'DATOS DEPORTISTAS'!Y338","v":0}]
[{"$f":"'DATOS DEPORTISTAS'!V339","v":0},{"$f":"'DATOS DEPORTISTAS'!M339","v":"JAVIER GARI ABELLA"},{"$f":"'DATOS DEPORTISTAS'!X339","v":0},{"$f":"'DATOS DEPORTISTAS'!Y339","v":0}]
[{"$f":"'DATOS DEPORTISTAS'!V340","v":0},{"$f":"'DATOS DEPORTISTAS'!M340","v":"EDGAR GARÍ MURILLO"},{"$f":"'DATOS DEPORTISTAS'!X340","v":0},{"$f":"'DATOS DEPORTISTAS'!Y340","v":0}]
[{"$f":"'DATOS DEPORTISTAS'!V341","v":0},{"$f":"'DATOS DEPORTISTAS'!M341","v":"MARTA  GAYA JORNET"},{"$f":"'DATOS DEPORTISTAS'!X341","v":0},{"$f":"'DATOS DEPORTISTAS'!Y341","v":0}]
[{"$f":"'DATOS DEPORTISTAS'!V342","v":0},{"$f":"'DATOS DEPORTISTAS'!M342","v":"VÍCTOR GIL GIL"},{"$f":"'DATOS DEPORTISTAS'!X342","v":0},{"$f":"'DATOS DEPORTISTAS'!Y342","v":0}]
[{"$f":"'DATOS DEPORTISTAS'!V343","v":0},{"$f":"'DATOS DEPORTISTAS'!M343","v":"ISMAEL  GIL MIGUEL"},{"$f":"'DATOS DEPORTISTAS'!X343","v":0},{"$f":"'DATOS DEPORTISTAS'!Y343","v":0}]
[{"$f":"'DATOS DEPORTISTAS'!V344","v":0},{"$f":"'DATOS DEPORTISTAS'!M344","v":"SHELTER SASKIA GIMBEL-SHERR"},{"$f":"'DATOS DEPORTISTAS'!X344","v":0},{"$f":"'DATOS DEPORTISTAS'!Y344","v":0}]
[{"$f":"'DATOS DEPORTISTAS'!V345","v":0},{"$f":"'DATOS DEPORTISTAS'!M345","v":"JAIME GIMENO FERRER"},{"$f":"'DATOS DEPORTISTAS'!X345","v":0},{"$f":"'DATOS DEPORTISTAS'!Y345","v":0}]
[{"$f":"'DATOS DEPORTISTAS'!V346","v":0},{"$f":"'DATOS DEPORTISTAS'!M346","v":"PALOMA GIMENO RIAU"},{"$f":"'DATOS DEPORTISTAS'!X346","v":0},{"$f":"'DATOS DEPORTISTAS'!Y346","v":0}]
[{"$f":"'DATOS DEPORTISTAS'!V347","v":0},{"$f":"'DATOS DEPORTISTAS'!M347","v":"ERIKA GODIA NICOLAU"},{"$f":"'DATOS DEPORTISTAS'!X347","v":0},{"$f":"'DATOS DEPORTISTAS'!Y347","v":0}]
[{"$f":"'DATOS DEPORTISTAS'!V348","v":0},{"$f":"'DATOS DEPORTISTAS'!M348","v":"ALEXIA GODIA PI"},{"$f":"'DATOS DEPORTISTAS'!X348","v":0},{"$f":"'DATOS DEPORTISTAS'!Y348","v":0}]
[{"$f":"'DATOS DEPORTISTAS'!V349","v":0},{"$f":"'DATOS DEPORTISTAS'!M349","v":"MARÍA PILAR GODIA PI"},{"$f":"'DATOS DEPORTISTAS'!X349","v":0},{"$f":"'DATOS DEPORTISTAS'!Y349","v":0}]
[{"$f":"'DATOS DEPORTISTAS'!V350","v":0},{"$f":"'DATOS DEPORTISTAS'!M350","v":"IVÁN GODIA SANCHO"},{"$f":"'DATOS DEPORTISTAS'!X350","v":0},{"$f":"'DATOS DEPORTISTAS'!Y350","v":0}]
[{"$f":"'DATOS DEPORTISTAS'!V351","v":0},{"$f":"'DATOS DEPORTISTAS'!M351","v":"JOSÉ GODIA VIVES"},{"$f":"'DATOS DEPORTISTAS'!X351","v":0},{"$f":"'DATOS DEPORTISTAS'!Y351","v":0}]
[{"$f":"'DATOS DEPORTISTAS'!V352","v":0},{"$f":"'DATOS DEPORTISTAS'!M352","v":"MARÍA CRISTINA GÓMEZ DE MENA"},{"$f":"'DATOS DEPORTISTAS'!X352","v":0},{"$f":"'DATOS DEPORTISTAS'!Y352","v":0}]
[{"$f":"'DATOS DEPORTISTAS'!V353","v":0},{"$f":"'DATOS DEPORTISTAS'!M353","v":"JUNCAL GÓMEZ RIVERO"},{"$f":"'DATOS DEPORTISTAS'!X353","v":0},{"$f":"'DATOS DEPORTISTAS'!Y353","v":0}]
[{"$f":"'DATOS DEPORTISTAS'!V354","v":0},{"$f":"'DATOS DEPORTISTAS'!M354","v":"XIMENA GÓMEZ SALINAS"},{"$f":"'DATOS DEPORTISTAS'!X354","v":0},{"$f":"'DATOS DEPORTISTAS'!Y354","v":0}]
[{"$f":"'DATOS DEPORTISTAS'!V355","v":"C. DE REMO RETIRO 66"},{"$f":"'DATOS DEPORTISTAS'!M355","v":"NICOLÁS GONZÁLEZ FERNÁNCEZ"},{"$f":"'DATOS DEPORTISTAS'!X355","v":0},{"$f":"'DATOS DEPORTISTAS'!Y355","v":0}]
[{"$f":"'DATOS DEPORTISTAS'!V356","v":0},{"$f":"'DATOS DEPORTISTAS'!M356","v":"MARÍA JESÚS GONZALVO ITURRIAGA"},{"$f":"'DATOS DEPORTISTAS'!X356","v":0},{"$f":"'DATOS DEPORTISTAS'!Y356","v":0}]
[{"$f":"'DATOS DEPORTISTAS'!V357","v":0},{"$f":"'DATOS DEPORTISTAS'!M357","v":"KIARA GRACIA ALUTIZ"},{"$f":"'DATOS DEPORTISTAS'!X357","v":0},{"$f":"'DATOS DEPORTISTAS'!Y357","v":0}]
[{"$f":"'DATOS DEPORTISTAS'!V358","v":0},{"$f":"'DATOS DEPORTISTAS'!M358","v":"MARÍA TERESA GRAU JALLE"},{"$f":"'DATOS DEPORTISTAS'!X358","v":0},{"$f":"'DATOS DEPORTISTAS'!Y358","v":0}]
[{"$f":"'DATOS DEPORTISTAS'!V359","v":0},{"$f":"'DATOS DEPORTISTAS'!M359","v":"SARA GRESA MUÑOZ"},{"$f":"'DATOS DEPORTISTAS'!X359","v":0},{"$f":"'DATOS DEPORTISTAS'!Y359","v":0}]
[{"$f":"'DATOS DEPORTISTAS'!V360","v":0},{"$f":"'DATOS DEPORTISTAS'!M360","v":"AFRICA GUARDIOLA BARTOLOMÉ"},{"$f":"'DATOS DEPORTISTAS'!X360","v":0},{"$f":"'DATOS DEPORTISTAS'!Y360","v":0}]
[{"$f":"'DATOS DEPORTISTAS'!V361","v":0},{"$f":"'DATOS DEPORTISTAS'!M361","v":"FRANCISCO HERNÁNDEZ RODRÍGUEZ"},{"$f":"'DATOS DEPORTISTAS'!X361","v":0},{"$f":"'DATOS DEPORTISTAS'!Y361","v":0}]
[{"$f":"'DATOS DEPORTISTAS'!V362","v":0},{"$f":"'DATOS DEPORTISTAS'!M362","v":"VÍCTOR HERRAIZ LÓPEZ"},{"$f":"'DATOS DEPORTISTAS'!X362","v":0},{"$f":"'DATOS DEPORTISTAS'!Y362","v":0}]
[{"$f":"'DATOS DEPORTISTAS'!V363","v":0},{"$f":"'DATOS DEPORTISTAS'!M363","v":"BRUNO HERRERO GARCÍA"},{"$f":"'DATOS DEPORTISTAS'!X363","v":0},{"$f":"'DATOS DEPORTISTAS'!Y363","v":0}]
[{"$f":"'DATOS DEPORTISTAS'!V364","v":0},{"$f":"'DATOS DEPORTISTAS'!M364","v":"JORDI HIERRO PÁEZ"},{"$f":"'DATOS DEPORTISTAS'!X364","v":0},{"$f":"'DATOS DEPORTISTAS'!Y364","v":0}]
[{"$f":"'DATOS DEPORTISTAS'!V365","v":0},{"$f":"'DATOS DEPORTISTAS'!M365","v":"ALEIX IBARZ BERENGUER"},{"$f":"'DATOS DEPORTISTAS'!X365","v":0},{"$f":"'DATOS DEPORTISTAS'!Y365","v":0}]
[{"$f":"'DATOS DEPORTISTAS'!V366","v":0},{"$f":"'DATOS DEPORTISTAS'!M366","v":"JOSÉ MANUEL IBARZ IBARZ"},{"$f":"'DATOS DEPORTISTAS'!X366","v":0},{"$f":"'DATOS DEPORTISTAS'!Y366","v":0}]
[{"$f":"'DATOS DEPORTISTAS'!V367","v":0},{"$f":"'DATOS DEPORTISTAS'!M367","v":"SOFÍA IBARZ TEIRA"},{"$f":"'DATOS DEPORTISTAS'!X367","v":0},{"$f":"'DATOS DEPORTISTAS'!Y367","v":0}]
[{"$f":"'DATOS DEPORTISTAS'!V368","v":0},{"$f":"'DATOS DEPORTISTAS'!M368","v":"PAÚL INEVA SALILLAS"},{"$f":"'DATOS DEPORTISTAS'!X368","v":0},{"$f":"'DATOS DEPORTISTAS'!Y368","v":0}]
[{"$f":"'DATOS DEPORTISTAS'!V369","v":0},{"$f":"'DATOS DEPORTISTAS'!M369","v":"LAURA JAVIERRE LÓPEZ"},{"$f":"'DATOS DEPORTISTAS'!X369","v":0},{"$f":"'DATOS DEPORTISTAS'!Y369","v":0}]
[{"$f":"'DATOS DEPORTISTAS'!V370","v":0},{"$f":"'DATOS DEPORTISTAS'!M370","v":"LUCÍA JÚDEZ PÉREZ"},{"$f":"'DATOS DEPORTISTAS'!X370","v":0},{"$f":"'DATOS DEPORTISTAS'!Y370","v":0}]
[{"$f":"'DATOS DEPORTISTAS'!V371","v":0},{"$f":"'DATOS DEPORTISTAS'!M371","v":"PABLO JURADO PÉREZ"},{"$f":"'DATOS DEPORTISTAS'!X371","v":0},{"$f":"'DATOS DEPORTISTAS'!Y371","v":0}]
[{"$f":"'DATOS DEPORTISTAS'!V372","v":0},{"$f":"'DATOS DEPORTISTAS'!M372","v":"CÉSAR JUSTE ECHEVERRÍA"},{"$f":"'DATOS DEPORTISTAS'!X372","v":0},{"$f":"'DATOS DEPORTISTAS'!Y372","v":0}]
[{"$f":"'DATOS DEPORTISTAS'!V373","v":0},{"$f":"'DATOS DEPORTISTAS'!M373","v":"HÉCTOR JUSTE IBARZ"},{"$f":"'DATOS DEPORTISTAS'!X373","v":0},{"$f":"'DATOS DEPORTISTAS'!Y373","v":0}]
[{"$f":"'DATOS DEPORTISTAS'!V374","v":0},{"$f":"'DATOS DEPORTISTAS'!M374","v":"CHRISTIAN KLEINGRIES FORCÉN"},{"$f":"'DATOS DEPORTISTAS'!X374","v":0},{"$f":"'DATOS DEPORTISTAS'!Y374","v":0}]
[{"$f":"'DATOS DEPORTISTAS'!V375","v":0},{"$f":"'DATOS DEPORTISTAS'!M375","v":"NICOL KOGUT"},{"$f":"'DATOS DEPORTISTAS'!X375","v":0},{"$f":"'DATOS DEPORTISTAS'!Y375","v":0}]
[{"$f":"'DATOS DEPORTISTAS'!V376","v":0},{"$f":"'DATOS DEPORTISTAS'!M376","v":"CLEMENTE FERNANDO LABORDA VAL"},{"$f":"'DATOS DEPORTISTAS'!X376","v":0},{"$f":"'DATOS DEPORTISTAS'!Y376","v":0}]
[{"$f":"'DATOS DEPORTISTAS'!V377","v":0},{"$f":"'DATOS DEPORTISTAS'!M377","v":"SANTIAGO LACASTA TORRES"},{"$f":"'DATOS DEPORTISTAS'!X377","v":0},{"$f":"'DATOS DEPORTISTAS'!Y377","v":0}]
[{"$f":"'DATOS DEPORTISTAS'!V378","v":0},{"$f":"'DATOS DEPORTISTAS'!M378","v":"VICTORIA LAPUENTE MARTÍN"},{"$f":"'DATOS DEPORTISTAS'!X378","v":0},{"$f":"'DATOS DEPORTISTAS'!Y378","v":0}]
[{"$f":"'DATOS DEPORTISTAS'!V379","v":0},{"$f":"'DATOS DEPORTISTAS'!M379","v":"JOSÉ LARIO MARÍN"},{"$f":"'DATOS DEPORTISTAS'!X379","v":0},{"$f":"'DATOS DEPORTISTAS'!Y379","v":0}]
[{"$f":"'DATOS DEPORTISTAS'!V380","v":0},{"$f":"'DATOS DEPORTISTAS'!M380","v":"MARTA LARIO MARTÍNEZ"},{"$f":"'DATOS DEPORTISTAS'!X380","v":0},{"$f":"'DATOS DEPORTISTAS'!Y380","v":0}]
[{"$f":"'DATOS DEPORTISTAS'!V381","v":0},{"$f":"'DATOS DEPORTISTAS'!M381","v":"SUSANA LÁZARO MUÑOZ"},{"$f":"'DATOS DEPORTISTAS'!X381","v":0},{"$f":"'DATOS DEPORTISTAS'!Y381","v":0}]
[{"$f":"'DATOS DEPORTISTAS'!V382","v":0},{"$f":"'DATOS DEPORTISTAS'!M382","v":"MARCOS LÁZARO SANTABÁRBARA"},{"$f":"'DATOS DEPORTISTAS'!X382","v":0},{"$f":"'DATOS DEPORTISTAS'!Y382","v":0}]
[{"$f":"'DATOS DEPORTISTAS'!V383","v":0},{"$f":"'DATOS DEPORTISTAS'!M383","v":"ASHER LEFKOFF"},{"$f":"'DATOS DEPORTISTAS'!X383","v":0},{"$f":"'DATOS DEPORTISTAS'!Y383","v":0}]
[{"$f":"'DATOS DEPORTISTAS'!V384","v":0},{"$f":"'DATOS DEPORTISTAS'!M384","v":"LEYRE LEGAZ LAFUENTE"},{"$f":"'DATOS DEPORTISTAS'!X384","v":0},{"$f":"'DATOS DEPORTISTAS'!Y384","v":0}]
[{"$f":"'DATOS DEPORTISTAS'!V385","v":0},{"$f":"'DATOS DEPORTISTAS'!M385","v":"ÁFRICA LERMA CLAVERO"},{"$f":"'DATOS DEPORTISTAS'!X385","v":0},{"$f":"'DATOS DEPORTISTAS'!Y385","v":0}]
[{"$f":"'DATOS DEPORTISTAS'!V386","v":0},{"$f":"'DATOS DEPORTISTAS'!M386","v":"JORGE LITE BARÓN"},{"$f":"'DATOS DEPORTISTAS'!X386","v":0},{"$f":"'DATOS DEPORTISTAS'!Y386","v":0}]
[{"$f":"'DATOS DEPORTISTAS'!V387","v":0},{"$f":"'DATOS DEPORTISTAS'!M387","v":"MERITXELL LLOP CALLIZO"},{"$f":"'DATOS DEPORTISTAS'!X387","v":0},{"$f":"'DATOS DEPORTISTAS'!Y387","v":0}]
[{"$f":"'DATOS DEPORTISTAS'!V388","v":0},{"$f":"'DATOS DEPORTISTAS'!M388","v":"JESÚS LOGROÑO VISCASILLAS"},{"$f":"'DATOS DEPORTISTAS'!X388","v":0},{"$f":"'DATOS DEPORTISTAS'!Y388","v":0}]
[{"$f":"'DATOS DEPORTISTAS'!V389","v":0},{"$f":"'DATOS DEPORTISTAS'!M389","v":"JUDITH LONCÁ RIAU"},{"$f":"'DATOS DEPORTISTAS'!X389","v":0},{"$f":"'DATOS DEPORTISTAS'!Y389","v":0}]
[{"$f":"'DATOS DEPORTISTAS'!V390","v":0},{"$f":"'DATOS DEPORTISTAS'!M390","v":"IRENE LÓPEZ BOSQUE"},{"$f":"'DATOS DEPORTISTAS'!X390","v":0},{"$f":"'DATOS DEPORTISTAS'!Y390","v":0}]
[{"$f":"'DATOS DEPORTISTAS'!V391","v":0},{"$f":"'DATOS DEPORTISTAS'!M391","v":"ALBA LÓPEZ DE LEÓN"},{"$f":"'DATOS DEPORTISTAS'!X391","v":0},{"$f":"'DATOS DEPORTISTAS'!Y391","v":0}]
[{"$f":"'DATOS DEPORTISTAS'!V392","v":0},{"$f":"'DATOS DEPORTISTAS'!M392","v":"ALONSO LÓPEZ DE LEÓN"},{"$f":"'DATOS DEPORTISTAS'!X392","v":0},{"$f":"'DATOS DEPORTISTAS'!Y392","v":0}]
[{"$f":"'DATOS DEPORTISTAS'!V393","v":0},{"$f":"'DATOS DEPORTISTAS'!M393","v":"GERARD LORA GRANADOS"},{"$f":"'DATOS DEPORTISTAS'!X393","v":0},{"$f":"'DATOS DEPORTISTAS'!Y393","v":0}]
[{"$f":"'DATOS DEPORTISTAS'!V394","v":0},{"$f":"'DATOS DEPORTISTAS'!M394","v":"PAULA LORDA BESTUÉ"},{"$f":"'DATOS DEPORTISTAS'!X394","v":0},{"$f":"'DATOS DEPORTISTAS'!Y394","v":0}]
[{"$f":"'DATOS DEPORTISTAS'!V395","v":0},{"$f":"'DATOS DEPORTISTAS'!M395","v":"SERGIO LORENTE CORTÉS"},{"$f":"'DATOS DEPORTISTAS'!X395","v":0},{"$f":"'DATOS DEPORTISTAS'!Y395","v":0}]
[{"$f":"'DATOS DEPORTISTAS'!V396","v":0},{"$f":"'DATOS DEPORTISTAS'!M396","v":"PEDRO ALEJANDRO LORENZ CALVO"},{"$f":"'DATOS DEPORTISTAS'!X396","v":0},{"$f":"'DATOS DEPORTISTAS'!Y396","v":0}]
[{"$f":"'DATOS DEPORTISTAS'!V397","v":0},{"$f":"'DATOS DEPORTISTAS'!M397","v":"MARCOS LUNA IBARZ"},{"$f":"'DATOS DEPORTISTAS'!X397","v":0},{"$f":"'DATOS DEPORTISTAS'!Y397","v":0}]
[{"$f":"'DATOS DEPORTISTAS'!V398","v":0},{"$f":"'DATOS DEPORTISTAS'!M398","v":"SEBASTIÁN ALEJANDRO LUNA VALOROSO"},{"$f":"'DATOS DEPORTISTAS'!X398","v":0},{"$f":"'DATOS DEPORTISTAS'!Y398","v":0}]
[{"$f":"'DATOS DEPORTISTAS'!V399","v":0},{"$f":"'DATOS DEPORTISTAS'!M399","v":"SERGIO MAGALLÓN TEJERO"},{"$f":"'DATOS DEPORTISTAS'!X399","v":0},{"$f":"'DATOS DEPORTISTAS'!Y399","v":0}]
[{"$f":"'DATOS DEPORTISTAS'!V400","v":0},{"$f":"'DATOS DEPORTISTAS'!M400","v":"ALBA MANERO HERRERO"},{"$f":"'DATOS DEPORTISTAS'!X400","v":0},{"$f":"'DATOS DEPORTISTAS'!Y400","v":0}]
[{"$f":"'DATOS DEPORTISTAS'!V401","v":0},{"$f":"'DATOS DEPORTISTAS'!M401","v":"CYNTHIA MANOSALVAS PILLAJO"},{"$f":"'DATOS DEPORTISTAS'!X401","v":0},{"$f":"'DATOS DEPORTISTAS'!Y401","v":0}]
[{"$f":"'DATOS DEPORTISTAS'!V402","v":"C. DE REMO RETIRO 66"},{"$f":"'DATOS DEPORTISTAS'!M402","v":"GABRIELA MANZANARES GÓMEZ"},{"$f":"'DATOS DEPORTISTAS'!X402","v":0},{"$f":"'DATOS DEPORTISTAS'!Y402","v":0}]
[{"$f":"'DATOS DEPORTISTAS'!V403","v":0},{"$f":"'DATOS DEPORTISTAS'!M403","v":"PILAR MARCÉN GUTIÉRREZ"},{"$f":"'DATOS DEPORTISTAS'!X403","v":0},{"$f":"'DATOS DEPORTISTAS'!Y403","v":0}]
[{"$f":"'DATOS DEPORTISTAS'!V404","v":0},{"$f":"'DATOS DEPORTISTAS'!M404","v":"LARA MARGUERITE DEMANDE"},{"$f":"'DATOS DEPORTISTAS'!X404","v":0},{"$f":"'DATOS DEPORTISTAS'!Y404","v":0}]
[{"$f":"'DATOS DEPORTISTAS'!V405","v":0},{"$f":"'DATOS DEPORTISTAS'!M405","v":"LUCÍA MÁRQUEZ GUARDIOLA"},{"$f":"'DATOS DEPORTISTAS'!X405","v":0},{"$f":"'DATOS DEPORTISTAS'!Y405","v":0}]
[{"$f":"'DATOS DEPORTISTAS'!V406","v":0},{"$f":"'DATOS DEPORTISTAS'!M406","v":"ÓSCAR MARTÍN TORRES"},{"$f":"'DATOS DEPORTISTAS'!X406","v":0},{"$f":"'DATOS DEPORTISTAS'!Y406","v":0}]
[{"$f":"'DATOS DEPORTISTAS'!V407","v":0},{"$f":"'DATOS DEPORTISTAS'!M407","v":"GUILLERMO MARTÍNEZ ALFRANCA"},{"$f":"'DATOS DEPORTISTAS'!X407","v":0},{"$f":"'DATOS DEPORTISTAS'!Y407","v":0}]
[{"$f":"'DATOS DEPORTISTAS'!V408","v":0},{"$f":"'DATOS DEPORTISTAS'!M408","v":"PEDRO IGNACIO MARTÍNEZ CABELLO"},{"$f":"'DATOS DEPORTISTAS'!X408","v":0},{"$f":"'DATOS DEPORTISTAS'!Y408","v":0}]
[{"$f":"'DATOS DEPORTISTAS'!V409","v":0},{"$f":"'DATOS DEPORTISTAS'!M409","v":"MARINA MARTÍNEZ FERNÁNDEZ"},{"$f":"'DATOS DEPORTISTAS'!X409","v":0},{"$f":"'DATOS DEPORTISTAS'!Y409","v":0}]
[{"$f":"'DATOS DEPORTISTAS'!V410","v":0},{"$f":"'DATOS DEPORTISTAS'!M410","v":"SARA MARTÍNEZ GARCÍA"},{"$f":"'DATOS DEPORTISTAS'!X410","v":0},{"$f":"'DATOS DEPORTISTAS'!Y410","v":0}]
[{"$f":"'DATOS DEPORTISTAS'!V411","v":0},{"$f":"'DATOS DEPORTISTAS'!M411","v":"MARCOS MARTÍNEZ IBÁÑEZ"},{"$f":"'DATOS DEPORTISTAS'!X411","v":0},{"$f":"'DATOS DEPORTISTAS'!Y411","v":0}]
[{"$f":"'DATOS DEPORTISTAS'!V412","v":0},{"$f":"'DATOS DEPORTISTAS'!M412","v":"CARLA MARTÍNEZ MINGUILLÓN"},{"$f":"'DATOS DEPORTISTAS'!X412","v":0},{"$f":"'DATOS DEPORTISTAS'!Y412","v":0}]
[{"$f":"'DATOS DEPORTISTAS'!V413","v":0},{"$f":"'DATOS DEPORTISTAS'!M413","v":"ENCARNA  MARTÍNEZ SOLA"},{"$f":"'DATOS DEPORTISTAS'!X413","v":0},{"$f":"'DATOS DEPORTISTAS'!Y413","v":0}]
[{"$f":"'DATOS DEPORTISTAS'!V414","v":0},{"$f":"'DATOS DEPORTISTAS'!M414","v":"DAVID MARTÍNEZ TORRES"},{"$f":"'DATOS DEPORTISTAS'!X414","v":0},{"$f":"'DATOS DEPORTISTAS'!Y414","v":0}]
[{"$f":"'DATOS DEPORTISTAS'!V415","v":0},{"$f":"'DATOS DEPORTISTAS'!M415","v":"ELENA MARTÍNEZ TORRES"},{"$f":"'DATOS DEPORTISTAS'!X415","v":0},{"$f":"'DATOS DEPORTISTAS'!Y415","v":0}]
[{"$f":"'DATOS DEPORTISTAS'!V416","v":0},{"$f":"'DATOS DEPORTISTAS'!M416","v":"JAVIER MELENDO SANJUAN"},{"$f":"'DATOS DEPORTISTAS'!X416","v":0},{"$f":"'DATOS DEPORTISTAS'!Y416","v":0}]
[{"$f":"'DATOS DEPORTISTAS'!V417","v":0},{"$f":"'DATOS DEPORTISTAS'!M417","v":"MARIAN-MADALIN MIHAI"},{"$f":"'DATOS DEPORTISTAS'!X417","v":0},{"$f":"'DATOS DEPORTISTAS'!Y417","v":0}]
[{"$f":"'DATOS DEPORTISTAS'!V418","v":0},{"$f":"'DATOS DEPORTISTAS'!M418","v":"DARÍO MILLÁN GUÍU"},{"$f":"'DATOS DEPORTISTAS'!X418","v":0},{"$f":"'DATOS DEPORTISTAS'!Y418","v":0}]
[{"$f":"'DATOS DEPORTISTAS'!V419","v":0},{"$f":"'DATOS DEPORTISTAS'!M419","v":"JULIA MODREGO CANTORNA"},{"$f":"'DATOS DEPORTISTAS'!X419","v":0},{"$f":"'DATOS DEPORTISTAS'!Y419","v":0}]
[{"$f":"'DATOS DEPORTISTAS'!V420","v":0},{"$f":"'DATOS DEPORTISTAS'!M420","v":"PAOLA MOLINA ALONSO"},{"$f":"'DATOS DEPORTISTAS'!X420","v":0},{"$f":"'DATOS DEPORTISTAS'!Y420","v":0}]
[{"$f":"'DATOS DEPORTISTAS'!V421","v":0},{"$f":"'DATOS DEPORTISTAS'!M421","v":"PATRICIA MOLINA McGHEE"},{"$f":"'DATOS DEPORTISTAS'!X421","v":0},{"$f":"'DATOS DEPORTISTAS'!Y421","v":0}]
[{"$f":"'DATOS DEPORTISTAS'!V422","v":"C. DE REMO RETIRO 66"},{"$f":"'DATOS DEPORTISTAS'!M422","v":"SUSANA MONTERO REGUILÓN"},{"$f":"'DATOS DEPORTISTAS'!X422","v":0},{"$f":"'DATOS DEPORTISTAS'!Y422","v":0}]
[{"$f":"'DATOS DEPORTISTAS'!V423","v":0},{"$f":"'DATOS DEPORTISTAS'!M423","v":"CLAUDIA MONTILLA GALLEGO"},{"$f":"'DATOS DEPORTISTAS'!X423","v":0},{"$f":"'DATOS DEPORTISTAS'!Y423","v":0}]
[{"$f":"'DATOS DEPORTISTAS'!V424","v":0},{"$f":"'DATOS DEPORTISTAS'!M424","v":"ÁLVARO MORELLA BARREDA"},{"$f":"'DATOS DEPORTISTAS'!X424","v":0},{"$f":"'DATOS DEPORTISTAS'!Y424","v":0}]
[{"$f":"'DATOS DEPORTISTAS'!V425","v":0},{"$f":"'DATOS DEPORTISTAS'!M425","v":"EDUARDO MORELLA BARREDA"},{"$f":"'DATOS DEPORTISTAS'!X425","v":0},{"$f":"'DATOS DEPORTISTAS'!Y425","v":0}]
[{"$f":"'DATOS DEPORTISTAS'!V426","v":0},{"$f":"'DATOS DEPORTISTAS'!M426","v":"CARLOS ALBERTO MUNIESA FERRERO"},{"$f":"'DATOS DEPORTISTAS'!X426","v":0},{"$f":"'DATOS DEPORTISTAS'!Y426","v":0}]
[{"$f":"'DATOS DEPORTISTAS'!V427","v":0},{"$f":"'DATOS DEPORTISTAS'!M427","v":"MARÍA INMACULADA MUNIESA NAVARRO"},{"$f":"'DATOS DEPORTISTAS'!X427","v":0},{"$f":"'DATOS DEPORTISTAS'!Y427","v":0}]
[{"$f":"'DATOS DEPORTISTAS'!V428","v":0},{"$f":"'DATOS DEPORTISTAS'!M428","v":"JUAN MUÑOZ LÓPEZ"},{"$f":"'DATOS DEPORTISTAS'!X428","v":0},{"$f":"'DATOS DEPORTISTAS'!Y428","v":0}]
[{"$f":"'DATOS DEPORTISTAS'!V429","v":0},{"$f":"'DATOS DEPORTISTAS'!M429","v":"PATRICIA MUÑOZ OCHOA"},{"$f":"'DATOS DEPORTISTAS'!X429","v":0},{"$f":"'DATOS DEPORTISTAS'!Y429","v":0}]
[{"$f":"'DATOS DEPORTISTAS'!V430","v":0},{"$f":"'DATOS DEPORTISTAS'!M430","v":"PATRICIA MURIAGO PÉREZ-LIZANU"},{"$f":"'DATOS DEPORTISTAS'!X430","v":0},{"$f":"'DATOS DEPORTISTAS'!Y430","v":0}]
[{"$f":"'DATOS DEPORTISTAS'!V431","v":0},{"$f":"'DATOS DEPORTISTAS'!M431","v":"JUDITH MURILLO AGUILAR"},{"$f":"'DATOS DEPORTISTAS'!X431","v":0},{"$f":"'DATOS DEPORTISTAS'!Y431","v":0}]
[{"$f":"'DATOS DEPORTISTAS'!V432","v":0},{"$f":"'DATOS DEPORTISTAS'!M432","v":"IVÁN NAVARRO VILLACAMPA"},{"$f":"'DATOS DEPORTISTAS'!X432","v":0},{"$f":"'DATOS DEPORTISTAS'!Y432","v":0}]
[{"$f":"'DATOS DEPORTISTAS'!V433","v":0},{"$f":"'DATOS DEPORTISTAS'!M433","v":"LEÓN NEBRA MARTÍNEZ"},{"$f":"'DATOS DEPORTISTAS'!X433","v":0},{"$f":"'DATOS DEPORTISTAS'!Y433","v":0}]
[{"$f":"'DATOS DEPORTISTAS'!V434","v":"C. DE REMO RETIRO 66"},{"$f":"'DATOS DEPORTISTAS'!M434","v":"JUAN RAMÓN NIETO SÁNCHEZ"},{"$f":"'DATOS DEPORTISTAS'!X434","v":0},{"$f":"'DATOS DEPORTISTAS'!Y434","v":0}]
[{"$f":"'DATOS DEPORTISTAS'!V435","v":0},{"$f":"'DATOS DEPORTISTAS'!M435","v":"RAÚL NOGUERAS PUEYO"},{"$f":"'DATOS DEPORTISTAS'!X435","v":0},{"$f":"'DATOS DEPORTISTAS'!Y435","v":0}]
[{"$f":"'DATOS DEPORTISTAS'!V436","v":0},{"$f":"'DATOS DEPORTISTAS'!M436","v":"LORENA NOGUÉS NICOLÁS"},{"$f":"'DATOS DEPORTISTAS'!X436","v":0},{"$f":"'DATOS DEPORTISTAS'!Y436","v":0}]
[{"$f":"'DATOS DEPORTISTAS'!V437","v":0},{"$f":"'DATOS DEPORTISTAS'!M437","v":"NAJAT NOUALI EL GUENNOUNI"},{"$f":"'DATOS DEPORTISTAS'!X437","v":0},{"$f":"'DATOS DEPORTISTAS'!Y437","v":0}]
[{"$f":"'DATOS DEPORTISTAS'!V438","v":0},{"$f":"'DATOS DEPORTISTAS'!M438","v":"MARA NOVIALS OLIVER"},{"$f":"'DATOS DEPORTISTAS'!X438","v":0},{"$f":"'DATOS DEPORTISTAS'!Y438","v":0}]
[{"$f":"'DATOS DEPORTISTAS'!V439","v":0},{"$f":"'DATOS DEPORTISTAS'!M439","v":"DAVID NUÑO PARACUELLOS"},{"$f":"'DATOS DEPORTISTAS'!X439","v":0},{"$f":"'DATOS DEPORTISTAS'!Y439","v":0}]
[{"$f":"'DATOS DEPORTISTAS'!V440","v":0},{"$f":"'DATOS DEPORTISTAS'!M440","v":"MARC OLIVER IBARZ"},{"$f":"'DATOS DEPORTISTAS'!X440","v":0},{"$f":"'DATOS DEPORTISTAS'!Y440","v":0}]
[{"$f":"'DATOS DEPORTISTAS'!V441","v":0},{"$f":"'DATOS DEPORTISTAS'!M441","v":"MARINO OLIVEROS BLANCO"},{"$f":"'DATOS DEPORTISTAS'!X441","v":0},{"$f":"'DATOS DEPORTISTAS'!Y441","v":0}]
[{"$f":"'DATOS DEPORTISTAS'!V442","v":0},{"$f":"'DATOS DEPORTISTAS'!M442","v":"INÉS ORDUNA GARCÍA"},{"$f":"'DATOS DEPORTISTAS'!X442","v":0},{"$f":"'DATOS DEPORTISTAS'!Y442","v":0}]
[{"$f":"'DATOS DEPORTISTAS'!V443","v":0},{"$f":"'DATOS DEPORTISTAS'!M443","v":"MARKEL OTEGUI SANTOLARIA"},{"$f":"'DATOS DEPORTISTAS'!X443","v":0},{"$f":"'DATOS DEPORTISTAS'!Y443","v":0}]
[{"$f":"'DATOS DEPORTISTAS'!V444","v":0},{"$f":"'DATOS DEPORTISTAS'!M444","v":"MONTSERRAT PALAU LARA"},{"$f":"'DATOS DEPORTISTAS'!X444","v":0},{"$f":"'DATOS DEPORTISTAS'!Y444","v":0}]
[{"$f":"'DATOS DEPORTISTAS'!V445","v":0},{"$f":"'DATOS DEPORTISTAS'!M445","v":"HUGO PASCUAL BIARGE"},{"$f":"'DATOS DEPORTISTAS'!X445","v":0},{"$f":"'DATOS DEPORTISTAS'!Y445","v":0}]
[{"$f":"'DATOS DEPORTISTAS'!V446","v":0},{"$f":"'DATOS DEPORTISTAS'!M446","v":"HUGO PASCUAL GRACIA"},{"$f":"'DATOS DEPORTISTAS'!X446","v":0},{"$f":"'DATOS DEPORTISTAS'!Y446","v":0}]
[{"$f":"'DATOS DEPORTISTAS'!V447","v":0},{"$f":"'DATOS DEPORTISTAS'!M447","v":"JOSÉ PASTOR ASENSIO"},{"$f":"'DATOS DEPORTISTAS'!X447","v":0},{"$f":"'DATOS DEPORTISTAS'!Y447","v":0}]
[{"$f":"'DATOS DEPORTISTAS'!V448","v":0},{"$f":"'DATOS DEPORTISTAS'!M448","v":"MARÍA ÁNGELES PASTOR MONTAÑO"},{"$f":"'DATOS DEPORTISTAS'!X448","v":0},{"$f":"'DATOS DEPORTISTAS'!Y448","v":0}]
[{"$f":"'DATOS DEPORTISTAS'!V449","v":0},{"$f":"'DATOS DEPORTISTAS'!M449","v":"RUBÉN PELEGRÍN ROMERO"},{"$f":"'DATOS DEPORTISTAS'!X449","v":0},{"$f":"'DATOS DEPORTISTAS'!Y449","v":0}]
[{"$f":"'DATOS DEPORTISTAS'!V450","v":0},{"$f":"'DATOS DEPORTISTAS'!M450","v":"ANA PEÑA ROMERO DE TEJADA"},{"$f":"'DATOS DEPORTISTAS'!X450","v":0},{"$f":"'DATOS DEPORTISTAS'!Y450","v":0}]
[{"$f":"'DATOS DEPORTISTAS'!V451","v":0},{"$f":"'DATOS DEPORTISTAS'!M451","v":"JORGE PEQUERUL SARIÑENA"},{"$f":"'DATOS DEPORTISTAS'!X451","v":0},{"$f":"'DATOS DEPORTISTAS'!Y451","v":0}]
[{"$f":"'DATOS DEPORTISTAS'!V452","v":0},{"$f":"'DATOS DEPORTISTAS'!M452","v":"ALEXANDRA PÉREZ BERNAD"},{"$f":"'DATOS DEPORTISTAS'!X452","v":0},{"$f":"'DATOS DEPORTISTAS'!Y452","v":0}]
[{"$f":"'DATOS DEPORTISTAS'!V453","v":0},{"$f":"'DATOS DEPORTISTAS'!M453","v":"LEIRE PÉREZ DE ACHA"},{"$f":"'DATOS DEPORTISTAS'!X453","v":0},{"$f":"'DATOS DEPORTISTAS'!Y453","v":0}]
[{"$f":"'DATOS DEPORTISTAS'!V454","v":0},{"$f":"'DATOS DEPORTISTAS'!M454","v":"MARÍA JOSÉ PÉREZ MALLÉN"},{"$f":"'DATOS DEPORTISTAS'!X454","v":0},{"$f":"'DATOS DEPORTISTAS'!Y454","v":0}]
[{"$f":"'DATOS DEPORTISTAS'!V455","v":0},{"$f":"'DATOS DEPORTISTAS'!M455","v":"EIDER PÉREZ MORENO"},{"$f":"'DATOS DEPORTISTAS'!X455","v":0},{"$f":"'DATOS DEPORTISTAS'!Y455","v":0}]
[{"$f":"'DATOS DEPORTISTAS'!V456","v":0},{"$f":"'DATOS DEPORTISTAS'!M456","v":"BELTRÁN PÉREZ VÁZQUEZ"},{"$f":"'DATOS DEPORTISTAS'!X456","v":0},{"$f":"'DATOS DEPORTISTAS'!Y456","v":0}]
[{"$f":"'DATOS DEPORTISTAS'!V457","v":"C. DE REMO RETIRO 66"},{"$f":"'DATOS DEPORTISTAS'!M457","v":"ADRIANA PÉREZ-ILZARBE ORTIZ"},{"$f":"'DATOS DEPORTISTAS'!X457","v":0},{"$f":"'DATOS DEPORTISTAS'!Y457","v":0}]
[{"$f":"'DATOS DEPORTISTAS'!V458","v":0},{"$f":"'DATOS DEPORTISTAS'!M458","v":"JOSÉ PIÑEDO TORRES"},{"$f":"'DATOS DEPORTISTAS'!X458","v":0},{"$f":"'DATOS DEPORTISTAS'!Y458","v":0}]
[{"$f":"'DATOS DEPORTISTAS'!V459","v":0},{"$f":"'DATOS DEPORTISTAS'!M459","v":"JULIA PIÑEDO TORRES"},{"$f":"'DATOS DEPORTISTAS'!X459","v":0},{"$f":"'DATOS DEPORTISTAS'!Y459","v":0}]
[{"$f":"'DATOS DEPORTISTAS'!V460","v":0},{"$f":"'DATOS DEPORTISTAS'!M460","v":"TIMOTHY JAMES PITT"},{"$f":"'DATOS DEPORTISTAS'!X460","v":0},{"$f":"'DATOS DEPORTISTAS'!Y460","v":0}]
[{"$f":"'DATOS DEPORTISTAS'!V461","v":0},{"$f":"'DATOS DEPORTISTAS'!M461","v":"JAVIER PLAZA LEGIDO"},{"$f":"'DATOS DEPORTISTAS'!X461","v":0},{"$f":"'DATOS DEPORTISTAS'!Y461","v":0}]
[{"$f":"'DATOS DEPORTISTAS'!V462","v":0},{"$f":"'DATOS DEPORTISTAS'!M462","v":"SUSANA PONCE USÓN"},{"$f":"'DATOS DEPORTISTAS'!X462","v":0},{"$f":"'DATOS DEPORTISTAS'!Y462","v":0}]
[{"$f":"'DATOS DEPORTISTAS'!V463","v":0},{"$f":"'DATOS DEPORTISTAS'!M463","v":"ÁNGEL PUEYO DIARTE"},{"$f":"'DATOS DEPORTISTAS'!X463","v":0},{"$f":"'DATOS DEPORTISTAS'!Y463","v":0}]
[{"$f":"'DATOS DEPORTISTAS'!V464","v":0},{"$f":"'DATOS DEPORTISTAS'!M464","v":"IRINA PUSCO VICO"},{"$f":"'DATOS DEPORTISTAS'!X464","v":0},{"$f":"'DATOS DEPORTISTAS'!Y464","v":0}]
[{"$f":"'DATOS DEPORTISTAS'!V465","v":0},{"$f":"'DATOS DEPORTISTAS'!M465","v":"JOSÉ MARÍA RAMÓN COSIALS"},{"$f":"'DATOS DEPORTISTAS'!X465","v":0},{"$f":"'DATOS DEPORTISTAS'!Y465","v":0}]
[{"$f":"'DATOS DEPORTISTAS'!V466","v":0},{"$f":"'DATOS DEPORTISTAS'!M466","v":"JOSÉ CARMELO RICO MORENO"},{"$f":"'DATOS DEPORTISTAS'!X466","v":0},{"$f":"'DATOS DEPORTISTAS'!Y466","v":0}]
[{"$f":"'DATOS DEPORTISTAS'!V467","v":0},{"$f":"'DATOS DEPORTISTAS'!M467","v":"ROSA RÍOS LÓPEZ"},{"$f":"'DATOS DEPORTISTAS'!X467","v":0},{"$f":"'DATOS DEPORTISTAS'!Y467","v":0}]
[{"$f":"'DATOS DEPORTISTAS'!V468","v":0},{"$f":"'DATOS DEPORTISTAS'!M468","v":"CARLOS ANDRES ROCA ESTEVE"},{"$f":"'DATOS DEPORTISTAS'!X468","v":0},{"$f":"'DATOS DEPORTISTAS'!Y468","v":0}]
[{"$f":"'DATOS DEPORTISTAS'!V469","v":0},{"$f":"'DATOS DEPORTISTAS'!M469","v":"CARLOS ROCA ESTEVE"},{"$f":"'DATOS DEPORTISTAS'!X469","v":0},{"$f":"'DATOS DEPORTISTAS'!Y469","v":0}]
[{"$f":"'DATOS DEPORTISTAS'!V470","v":0},{"$f":"'DATOS DEPORTISTAS'!M470","v":"LUIS JAVIER ROCA OLIVER"},{"$f":"'DATOS DEPORTISTAS'!X470","v":0},{"$f":"'DATOS DEPORTISTAS'!Y470","v":0}]
[{"$f":"'DATOS DEPORTISTAS'!V471","v":0},{"$f":"'DATOS DEPORTISTAS'!M471","v":"ÁXEL ROCA VENTURA"},{"$f":"'DATOS DEPORTISTAS'!X471","v":0},{"$f":"'DATOS DEPORTISTAS'!Y471","v":0}]
[{"$f":"'DATOS DEPORTISTAS'!V472","v":0},{"$f":"'DATOS DEPORTISTAS'!M472","v":"PAULA RODRÍGUEZ CAMBRA"},{"$f":"'DATOS DEPORTISTAS'!X472","v":0},{"$f":"'DATOS DEPORTISTAS'!Y472","v":0}]
[{"$f":"'DATOS DEPORTISTAS'!V473","v":0},{"$f":"'DATOS DEPORTISTAS'!M473","v":"SHEILA ROY PARLANTE"},{"$f":"'DATOS DEPORTISTAS'!X473","v":0},{"$f":"'DATOS DEPORTISTAS'!Y473","v":0}]
[{"$f":"'DATOS DEPORTISTAS'!V474","v":0},{"$f":"'DATOS DEPORTISTAS'!M474","v":"MIGUEL RUBIO LAMBEA"},{"$f":"'DATOS DEPORTISTAS'!X474","v":0},{"$f":"'DATOS DEPORTISTAS'!Y474","v":0}]
[{"$f":"'DATOS DEPORTISTAS'!V475","v":"C. DE REMO RETIRO 66"},{"$f":"'DATOS DEPORTISTAS'!M475","v":"SONSOLES RUIZ JOUVÉ"},{"$f":"'DATOS DEPORTISTAS'!X475","v":0},{"$f":"'DATOS DEPORTISTAS'!Y475","v":0}]
[{"$f":"'DATOS DEPORTISTAS'!V476","v":0},{"$f":"'DATOS DEPORTISTAS'!M476","v":"AITOR SALO LORÉS"},{"$f":"'DATOS DEPORTISTAS'!X476","v":0},{"$f":"'DATOS DEPORTISTAS'!Y476","v":0}]
[{"$f":"'DATOS DEPORTISTAS'!V477","v":0},{"$f":"'DATOS DEPORTISTAS'!M477","v":"ISABEL SÁNCHEZ DENIS"},{"$f":"'DATOS DEPORTISTAS'!X477","v":0},{"$f":"'DATOS DEPORTISTAS'!Y477","v":0}]
[{"$f":"'DATOS DEPORTISTAS'!V478","v":0},{"$f":"'DATOS DEPORTISTAS'!M478","v":"RUBÉN SÁNCHEZ LLOP"},{"$f":"'DATOS DEPORTISTAS'!X478","v":0},{"$f":"'DATOS DEPORTISTAS'!Y478","v":0}]
[{"$f":"'DATOS DEPORTISTAS'!V479","v":0},{"$f":"'DATOS DEPORTISTAS'!M479","v":"DIEGO SANCHEZ MIGUEL"},{"$f":"'DATOS DEPORTISTAS'!X479","v":0},{"$f":"'DATOS DEPORTISTAS'!Y479","v":0}]
[{"$f":"'DATOS DEPORTISTAS'!V480","v":0},{"$f":"'DATOS DEPORTISTAS'!M480","v":"ÁNGEL SÁNCHEZ SÁNCHEZ"},{"$f":"'DATOS DEPORTISTAS'!X480","v":0},{"$f":"'DATOS DEPORTISTAS'!Y480","v":0}]
[{"$f":"'DATOS DEPORTISTAS'!V481","v":0},{"$f":"'DATOS DEPORTISTAS'!M481","v":"CRISTINA SANDE CECCHI"},{"$f":"'DATOS DEPORTISTAS'!X481","v":0},{"$f":"'DATOS DEPORTISTAS'!Y481","v":0}]
[{"$f":"'DATOS DEPORTISTAS'!V482","v":0},{"$f":"'DATOS DEPORTISTAS'!M482","v":"ARIADNA SANJUÁN VERA"},{"$f":"'DATOS DEPORTISTAS'!X482","v":0},{"$f":"'DATOS DEPORTISTAS'!Y482","v":0}]
[{"$f":"'DATOS DEPORTISTAS'!V483","v":0},{"$f":"'DATOS DEPORTISTAS'!M483","v":"JOSÉ IGNACIO SANTA EUGENIA MERCADO"},{"$f":"'DATOS DEPORTISTAS'!X483","v":0},{"$f":"'DATOS DEPORTISTAS'!Y483","v":0}]
[{"$f":"'DATOS DEPORTISTAS'!V484","v":0},{"$f":"'DATOS DEPORTISTAS'!M484","v":"DANIEL JOAQUÍN SANTAMARÍA GARCÍA DE JALÓN"},{"$f":"'DATOS DEPORTISTAS'!X484","v":0},{"$f":"'DATOS DEPORTISTAS'!Y484","v":0}]
[{"$f":"'DATOS DEPORTISTAS'!V485","v":0},{"$f":"'DATOS DEPORTISTAS'!M485","v":"EDGAR SANTANA IBARZ"},{"$f":"'DATOS DEPORTISTAS'!X485","v":0},{"$f":"'DATOS DEPORTISTAS'!Y485","v":0}]
[{"$f":"'DATOS DEPORTISTAS'!V486","v":0},{"$f":"'DATOS DEPORTISTAS'!M486","v":"TAMARA SARATLIC"},{"$f":"'DATOS DEPORTISTAS'!X486","v":0},{"$f":"'DATOS DEPORTISTAS'!Y486","v":0}]
[{"$f":"'DATOS DEPORTISTAS'!V487","v":0},{"$f":"'DATOS DEPORTISTAS'!M487","v":"JOSÉ GABRIEL SEBASTIÁN BELANCHE"},{"$f":"'DATOS DEPORTISTAS'!X487","v":0},{"$f":"'DATOS DEPORTISTAS'!Y487","v":0}]
[{"$f":"'DATOS DEPORTISTAS'!V488","v":0},{"$f":"'DATOS DEPORTISTAS'!M488","v":"JORGE SEBASTIÁN NUEZ"},{"$f":"'DATOS DEPORTISTAS'!X488","v":0},{"$f":"'DATOS DEPORTISTAS'!Y488","v":0}]
[{"$f":"'DATOS DEPORTISTAS'!V489","v":0},{"$f":"'DATOS DEPORTISTAS'!M489","v":"NATALIA SERRANO GUALLAR"},{"$f":"'DATOS DEPORTISTAS'!X489","v":0},{"$f":"'DATOS DEPORTISTAS'!Y489","v":0}]
[{"$f":"'DATOS DEPORTISTAS'!V490","v":"C. DE REMO RETIRO 66"},{"$f":"'DATOS DEPORTISTAS'!M490","v":"PABLO SERRANO MARTÍNEZ"},{"$f":"'DATOS DEPORTISTAS'!X490","v":0},{"$f":"'DATOS DEPORTISTAS'!Y490","v":0}]
[{"$f":"'DATOS DEPORTISTAS'!V491","v":0},{"$f":"'DATOS DEPORTISTAS'!M491","v":"SARA SERVETO ORDUÑA"},{"$f":"'DATOS DEPORTISTAS'!X491","v":0},{"$f":"'DATOS DEPORTISTAS'!Y491","v":0}]
[{"$f":"'DATOS DEPORTISTAS'!V492","v":0},{"$f":"'DATOS DEPORTISTAS'!M492","v":"TOMÁS SEVIL DOMINGO"},{"$f":"'DATOS DEPORTISTAS'!X492","v":0},{"$f":"'DATOS DEPORTISTAS'!Y492","v":0}]
[{"$f":"'DATOS DEPORTISTAS'!V493","v":0},{"$f":"'DATOS DEPORTISTAS'!M493","v":"ROI SILVA CASAL"},{"$f":"'DATOS DEPORTISTAS'!X493","v":0},{"$f":"'DATOS DEPORTISTAS'!Y493","v":0}]
[{"$f":"'DATOS DEPORTISTAS'!V494","v":0},{"$f":"'DATOS DEPORTISTAS'!M494","v":"DANIIL SOLONETS"},{"$f":"'DATOS DEPORTISTAS'!X494","v":0},{"$f":"'DATOS DEPORTISTAS'!Y494","v":0}]
[{"$f":"'DATOS DEPORTISTAS'!V495","v":0},{"$f":"'DATOS DEPORTISTAS'!M495","v":"TEODORO TOBOSO MORENO"},{"$f":"'DATOS DEPORTISTAS'!X495","v":0},{"$f":"'DATOS DEPORTISTAS'!Y495","v":0}]
[{"$f":"'DATOS DEPORTISTAS'!V496","v":0},{"$f":"'DATOS DEPORTISTAS'!M496","v":"MARÍA ISABEL TOLOSANA ARBONES"},{"$f":"'DATOS DEPORTISTAS'!X496","v":0},{"$f":"'DATOS DEPORTISTAS'!Y496","v":0}]
[{"$f":"'DATOS DEPORTISTAS'!V497","v":0},{"$f":"'DATOS DEPORTISTAS'!M497","v":"GEORGIA TSAI BADENHOPE"},{"$f":"'DATOS DEPORTISTAS'!X497","v":0},{"$f":"'DATOS DEPORTISTAS'!Y497","v":0}]
[{"$f":"'DATOS DEPORTISTAS'!V498","v":"C.N. DE NAVARRA"},{"$f":"'DATOS DEPORTISTAS'!M498","v":"JOXEMIEL URRA LAMANA"},{"$f":"'DATOS DEPORTISTAS'!X498","v":0},{"$f":"'DATOS DEPORTISTAS'!Y498","v":0}]
[{"$f":"'DATOS DEPORTISTAS'!V499","v":0},{"$f":"'DATOS DEPORTISTAS'!M499","v":"MARÍA PILAR USED LAHOZ"},{"$f":"'DATOS DEPORTISTAS'!X499","v":0},{"$f":"'DATOS DEPORTISTAS'!Y499","v":0}]
[{"$f":"'DATOS DEPORTISTAS'!V500","v":0},{"$f":"'DATOS DEPORTISTAS'!M500","v":"ALEJANDRO MANUEL UTRILLA ABUELO"},{"$f":"'DATOS DEPORTISTAS'!X500","v":0},{"$f":"'DATOS DEPORTISTAS'!Y500","v":0}]
[{"$f":"'DATOS DEPORTISTAS'!V501","v":0},{"$f":"'DATOS DEPORTISTAS'!M501","v":"PABLO VAL CAMPILLO"},{"$f":"'DATOS DEPORTISTAS'!X501","v":0},{"$f":"'DATOS DEPORTISTAS'!Y501","v":0}]
[{"$f":"'DATOS DEPORTISTAS'!V502","v":0},{"$f":"'DATOS DEPORTISTAS'!M502","v":"DIEGO VALERO BOLEA"},{"$f":"'DATOS DEPORTISTAS'!X502","v":0},{"$f":"'DATOS DEPORTISTAS'!Y502","v":0}]
[{"$f":"'DATOS DEPORTISTAS'!V503","v":0},{"$f":"'DATOS DEPORTISTAS'!M503","v":"JORDI VALLES SANJUAN"},{"$f":"'DATOS DEPORTISTAS'!X503","v":0},{"$f":"'DATOS DEPORTISTAS'!Y503","v":0}]
[{"$f":"'DATOS DEPORTISTAS'!V504","v":0},{"$f":"'DATOS DEPORTISTAS'!M504","v":"KIARA VALVERDE ANDRÉS"},{"$f":"'DATOS DEPORTISTAS'!X504","v":0},{"$f":"'DATOS DEPORTISTAS'!Y504","v":0}]
[{"$f":"'DATOS DEPORTISTAS'!V505","v":0},{"$f":"'DATOS DEPORTISTAS'!M505","v":"ALEJANDRO VARGAS PITAR"},{"$f":"'DATOS DEPORTISTAS'!X505","v":0},{"$f":"'DATOS DEPORTISTAS'!Y505","v":0}]
[{"$f":"'DATOS DEPORTISTAS'!V506","v":0},{"$f":"'DATOS DEPORTISTAS'!M506","v":"MARTINA VELILLA PÉREZ"},{"$f":"'DATOS DEPORTISTAS'!X506","v":0},{"$f":"'DATOS DEPORTISTAS'!Y506","v":0}]
[{"$f":"'DATOS DEPORTISTAS'!V507","v":0},{"$f":"'DATOS DEPORTISTAS'!M507","v":"ARTURO VERGÉ TORRES"},{"$f":"'DATOS DEPORTISTAS'!X507","v":0},{"$f":"'DATOS DEPORTISTAS'!Y507","v":0}]
[{"$f":"'DATOS DEPORTISTAS'!V508","v":0},{"$f":"'DATOS DEPORTISTAS'!M508","v":"JOSÉ CARLOS VICENTE ESCOSA"},{"$f":"'DATOS DEPORTISTAS'!X508","v":0},{"$f":"'DATOS DEPORTISTAS'!Y508","v":0}]
[{"$f":"'DATOS DEPORTISTAS'!V509","v":0},{"$f":"'DATOS DEPORTISTAS'!M509","v":"JOSÉ ANTONIO VILELLA RIAU"},{"$f":"'DATOS DEPORTISTAS'!X509","v":0},{"$f":"'DATOS DEPORTISTAS'!Y509","v":0}]
[{"$f":"'DATOS DEPORTISTAS'!V510","v":0},{"$f":"'DATOS DEPORTISTAS'!M510","v":"VALENTÍN VILLALBA MULA"},{"$f":"'DATOS DEPORTISTAS'!X510","v":0},{"$f":"'DATOS DEPORTISTAS'!Y510","v":0}]
[{"$f":"'DATOS DEPORTISTAS'!R511","v":5},{"$f":"'DATOS DEPORTISTAS'!M511","v":"PEDRO VILLAR MARTÍNEZ"},{"$f":"'DATOS DEPORTISTAS'!U511","v":0},{"$f":"'DATOS DEPORTISTAS'!V511","v":0}]
[]
[]
[]
[]
[]
[]
[]
[]
[]
[]
[]
[]
[]
[]
[]
[]
[]
[]
["C. DE REMO RETIRO 66"]
[]
[]
[null,null,{"$f":"SUBTOTAL(9,C2:C529)","v":14},12]

{"sheet":"CENTRO NATACION HELIOS","index":9,"n_rows":510,"n_cols":34,"rows_kept":510,"cut":false,"hidden":true,"merged":[]}
[null,"CLUB","CAT.","NOMBRE COMPLETO"]
[null,{"$f":"'DATOS DEPORTISTAS'!V4","v":"F.A.R."},{"$f":"'DATOS DEPORTISTAS'!V4","v":"F.A.R."},{"$f":"'DATOS DEPORTISTAS'!M4","v":"PILAR ELVIRA ATIENZA"},null,null,"CLUB",null,"CATEGORIA"]
[null,{"$f":"'DATOS DEPORTISTAS'!V5","v":"F.A.R."},{"$f":"'DATOS DEPORTISTAS'!I5","v":"VETERANO"},{"$f":"'DATOS DEPORTISTAS'!M5","v":"MIGUEL GASCÓN GONZÁLEZ"},null,null,{"$f":"_xlfn._xlws.SORT(_xlfn.UNIQUE(Tabla12[CLUB]))","v":0},null,{"$f":"_xlfn._xlws.SORT(_xlfn.UNIQUE(Tabla12[CAT.]))","v":0}]
[null,{"$f":"'DATOS DEPORTISTAS'!V6","v":"F.A.R."},{"$f":"'DATOS DEPORTISTAS'!I6","v":"VETERANO"},{"$f":"'DATOS DEPORTISTAS'!M6","v":"JOSÉ JAVIER GONZÁLEZ-ARCE LABORDA"},null,null,"ARAGÓN REMO",null,"ALEVIN"]
[null,{"$f":"'DATOS DEPORTISTAS'!V7","v":"F.A.R."},{"$f":"'DATOS DEPORTISTAS'!I7","v":"VETERANO"},{"$f":"'DATOS DEPORTISTAS'!M7","v":"MARCOS GÓMEZ RODRÍGUEZ"},null,null,"C. DE REMO RETIRO 66",null,"BENJAMIN"]
[null,{"$f":"'DATOS DEPORTISTAS'!V8","v":"F.A.R."},{"$f":"'DATOS DEPORTISTAS'!I8","v":"VETERANO"},{"$f":"'DATOS DEPORTISTAS'!M8","v":"DANIEL CASORRÁN ROYO"},null,null,"C.N. DE NAVARRA",null,"CADETE"]
[null,{"$f":"'DATOS DEPORTISTAS'!V9","v":"F.A.R."},{"$f":"'DATOS DEPORTISTAS'!I9","v":"VETERANO"},{"$f":"'DATOS DEPORTISTAS'!M9","v":"JOSÉ MIGUEL LLOP ROCA"},null,null,"CAPRI MEQUINENZA",null,"F.A.R."]
[null,{"$f":"'DATOS DEPORTISTAS'!V10","v":"F.A.R."},{"$f":"'DATOS DEPORTISTAS'!I10","v":"VETERANO"},{"$f":"'DATOS DEPORTISTAS'!M10","v":"PEDRO JAVIER MORALES ALCUBIERRE"},null,null,"CENTRO NATACION HELIOS",null,"INFANTIL"]
[null,{"$f":"'DATOS DEPORTISTAS'!V11","v":"F.A.R."},{"$f":"'DATOS DEPORTISTAS'!I11","v":"VETERANO"},{"$f":"'DATOS DEPORTISTAS'!M11","v":"PEDRO IGNACIO MARTÍNEZ CABELLO"},null,null,"F.A.R.",null,"JUVENIL"]
[null,{"$f":"'DATOS DEPORTISTAS'!V12","v":"F.A.R."},{"$f":"'DATOS DEPORTISTAS'!I12","v":"VETERANO"},{"$f":"'DATOS DEPORTISTAS'!M12","v":"IGNACIO MARTÍNEZ BERMEJO"},null,null,"NAUTICO ZARAGOZA",null,"SENIOR"]
[null,{"$f":"'DATOS DEPORTISTAS'!V13","v":"F.A.R."},{"$f":"'DATOS DEPORTISTAS'!I13","v":"VETERANO"},{"$f":"'DATOS DEPORTISTAS'!M13","v":"MARÍA JOSÉ GALLARDO BENÍTEZ"},null,null,"OS NABATERS D.F.",null,"VETERANO"]
[null,{"$f":"'DATOS DEPORTISTAS'!V14","v":"F.A.R."},{"$f":"'DATOS DEPORTISTAS'!I14","v":"VETERANO"},{"$f":"'DATOS DEPORTISTAS'!M14","v":"ÁNGEL AGUILERA ANDRÉS"}]
[null,{"$f":"'DATOS DEPORTISTAS'!V15","v":"F.A.R."},{"$f":"'DATOS DEPORTISTAS'!I15","v":"VETERANO"},{"$f":"'DATOS DEPORTISTAS'!M15","v":"BEATRIZ CASTELLÓ AYED"}]
[null,{"$f":"'DATOS DEPORTISTAS'!V16","v":"F.A.R."},{"$f":"'DATOS DEPORTISTAS'!I16","v":0},{"$f":"'DATOS DEPORTISTAS'!M16","v":" "},null,null,null,"CLUB","CATEGORIA",null,"CLUB","CATEGORIA",null,null,"CLUB","CATEGORIA",null,null,"CLUB","CATEGORIA",null,null,"CLUB","CATEGORIA",null,null,"CLUB","CATEGORIA",null,null,null,"CLUB","CATEGORIA"]
[null,{"$f":"'DATOS DEPORTISTAS'!V17","v":"F.A.R."},{"$f":"'DATOS DEPORTISTAS'!I17","v":0},{"$f":"'DATOS DEPORTISTAS'!M17","v":" "},null,null,null,"CENTRO NATACION HELIOS","VETERANO",null,"CENTRO NATACION HELIOS","SENIOR",null,null,"CENTRO NATACION HELIOS","JUVENIL",null,null,"CENTRO NATACION HELIOS","CADETE",null,null,"CENTRO NATACION HELIOS","INFANTIL",null,null,"CENTRO NATACION HELIOS","ALEVIN",null,null,null,"CENTRO NATACION HELIOS","BENJAMIN"]
[null,{"$f":"'DATOS DEPORTISTAS'!V18","v":"F.A.R."},{"$f":"'DATOS DEPORTISTAS'!I18","v":0},{"$f":"'DATOS DEPORTISTAS'!M18","v":" "}]
[null,{"$f":"'DATOS DEPORTISTAS'!V19","v":"F.A.R."},{"$f":"'DATOS DEPORTISTAS'!I19","v":0},{"$f":"'DATOS DEPORTISTAS'!M19","v":" "}]
[null,{"$f":"'DATOS DEPORTISTAS'!V20","v":"F.A.R."},{"$f":"'DATOS DEPORTISTAS'!I20","v":0},{"$f":"'DATOS DEPORTISTAS'!M20","v":" "},null,null,"CLUB","CAT.","NOMBRE COMPLETO",null,"CLUB","CAT.","NOMBRE COMPLETO",null,"CLUB","CAT.","NOMBRE COMPLETO",null,"CLUB","CAT.","NOMBRE COMPLETO",null,"CLUB","CAT.","NOMBRE COMPLETO",null,"CLUB","CAT.","NOMBRE COMPLETO",null,null,"CLUB","CAT.","NOMBRE COMPLETO"]
[null,{"$f":"'DATOS DEPORTISTAS'!V21","v":"F.A.R."},{"$f":"'DATOS DEPORTISTAS'!I21","v":0},{"$f":"'DATOS DEPORTISTAS'!M21","v":" "},null,null,{"$f":"_xlfn._xlws.SORT(_xlfn._xlws.FILTER(FILTRADO,(Tabla12[CLUB]=H15)*(Tabla12[CAT.]=I15)),3,1)","v":"CENTRO NATACION HELIOS"},"VETERANO","ADRIÁN CASAS GUILLÉN",null,{"$f":"_xlfn._xlws.SORT(_xlfn._xlws.FILTER(FILTRADO,(Tabla12[CLUB]=K15)*(Tabla12[CAT.]=L15)),3,1)","v":"CENTRO NATACION HELIOS"},"SENIOR","ALBERTO GARCÍA RUIZ",null,{"$f":"_xlfn._xlws.SORT(_xlfn._xlws.FILTER(FILTRADO,(Tabla12[CLUB]=O15)*(Tabla12[CAT.]=P15)),3,1)","v":"CENTRO NATACION HELIOS"},"JUVENIL","ALEXANDER JURADO PÉREZ",null,{"$f":"_xlfn._xlws.SORT(_xlfn._xlws.FILTER(FILTRADO,(Tabla12[CLUB]=S15)*(Tabla12[CAT.]=T15)),3,1)","v":"CENTRO NATACION HELIOS"},"CADETE","ÁNGEL PERNÍA OYAGA",null,{"$f":"_xlfn._xlws.SORT(_xlfn._xlws.FILTER(FILTRADO,(Tabla12[CLUB]=W15)*(Tabla12[CAT.]=X15)),3,1)","v":"CENTRO NATACION HELIOS"},"INFANTIL","ERIC CAZADOR SERRANO",null,{"$f":"_xlfn._xlws.SORT(_xlfn._xlws.FILTER(FILTRADO,(Tabla12[CLUB]=AA15)*(Tabla12[CAT.]=AB15)),3,1)","v":"CENTRO NATACION HELIOS"},"ALEVIN","ALICIA LUNA MONTAGUD",null,null,{"$f":"_xlfn._xlws.SORT(_xlfn._xlws.FILTER(FILTRADO,(Tabla12[CLUB]=AF15)*(Tabla12[CAT.]=AG15)),3,1)","v":"CENTRO NATACION HELIOS"},"BENJAMIN","JORGE LUNA MONTAGUD"]
[null,{"$f":"'DATOS DEPORTISTAS'!V22","v":"F.A.R."},{"$f":"'DATOS DEPORTISTAS'!I22","v":0},{"$f":"'DATOS DEPORTISTAS'!M22","v":" "},null,null,"CENTRO NATACION HELIOS","VETERANO","ALFONSO MUNIESA FERRERO",null,"CENTRO NATACION HELIOS","SENIOR","CARLOS PONCE USÓN",null,"CENTRO NATACION HELIOS","JUVENIL","CARLOS ALONSO GUTIÉRREZ",null,"CENTRO NATACION HELIOS","CADETE","CHLOÉ MILLÁN GÓMEZ",null,"CENTRO NATACION HELIOS","INFANTIL","IAGO IGLESIAS DELGADO",null,"CENTRO NATACION HELIOS","ALEVIN","LUCÍA MONTANER ALFARO",null,null,"CENTRO NATACION HELIOS","BENJAMIN","UDAI CAZADOR SERRANO"]
[null,{"$f":"'DATOS DEPORTISTAS'!V23","v":"F.A.R."},{"$f":"'DATOS DEPORTISTAS'!I23","v":0},{"$f":"'DATOS DEPORTISTAS'!M23","v":" "},null,null,"CENTRO NATACION HELIOS","VETERANO","ALFREDO DIEZ SECO",null,"CENTRO NATACION HELIOS","SENIOR","CLAUDIA ALCÁZAR HERRERO",null,"CENTRO NATACION HELIOS","JUVENIL","DANIEL ARTURO ZAPATA LARROY",null,"CENTRO NATACION HELIOS","CADETE","DANIEL VELILLA PÉREZ",null,"CENTRO NATACION HELIOS","INFANTIL","JAVIER REMACHA PUSCO",null,"CENTRO NATACION HELIOS","ALEVIN","VALENTINA  ESPADA CIPRÉS",null,null,"CENTRO NATACION HELIOS","BENJAMIN","VÍCTOR LENNIKOV IGLESIAS"]
[null,{"$f":"'DATOS DEPORTISTAS'!V24","v":"ARAGÓN REMO"},{"$f":"'DATOS DEPORTISTAS'!I24","v":"VETERANO"},{"$f":"'DATOS DEPORTISTAS'!M24","v":"FERNANDO CARLOS MILLÁN MAINAR"},null,null,"CENTRO NATACION HELIOS","VETERANO","ANA CARMEN FUENTES LORENTE",null,"CENTRO NATACION HELIOS","SENIOR","DIEGO LASHERAS BLASCO",null,"CENTRO NATACION HELIOS","JUVENIL","GONZALO MONTAGUD GÓMEZ",null,"CENTRO NATACION HELIOS","CADETE","DIEGO JIMÉNEZ HORNOS",null,"CENTRO NATACION HELIOS","INFANTIL","JOAQUÍN JESÚS SORO FUENTES"]
[null,{"$f":"'DATOS DEPORTISTAS'!V25","v":"ARAGÓN REMO"},{"$f":"'DATOS DEPORTISTAS'!I25","v":"VETERANO"},{"$f":"'DATOS DEPORTISTAS'!M25","v":"SOFÍA EVA GÓMEZ GÓMEZ"},null,null,"CENTRO NATACION HELIOS","VETERANO","ANDRÉS BLANCO VELÁZQUEZ",null,"CENTRO NATACION HELIOS","SENIOR","FRANCISCO DE ASÍS LACRUZ SANZ",null,"CENTRO NATACION HELIOS","JUVENIL","KARLA REMACHA PUSCO",null,"CENTRO NATACION HELIOS","CADETE","FERNANDO MARTÍN RANERA",null,"CENTRO NATACION HELIOS","INFANTIL","JUAN TOVAR GODOY"]
[null,{"$f":"'DATOS DEPORTISTAS'!V26","v":"ARAGÓN REMO"},{"$f":"'DATOS DEPORTISTAS'!I26","v":"VETERANO"},{"$f":"'DATOS DEPORTISTAS'!M26","v":"DAVID SAN JOSÉ SANTAMARÍA"},null,null,"CENTRO NATACION HELIOS","VETERANO","ANDRÉS DÍAZ ROBLES",null,"CENTRO NATACION HELIOS","SENIOR","ÍÑIGO MIGUEL ZAPATA LARROY",null,"CENTRO NATACION HELIOS","JUVENIL","MARÍA ROMEO VICENTE",null,"CENTRO NATACION HELIOS","CADETE","GERMÁN GUTIÉRREZ GASPAR",null,"CENTRO NATACION HELIOS","INFANTIL","MARTÍN MILLÁN GÓMEZ"]
[null,{"$f":"'DATOS DEPORTISTAS'!V27","v":"OS NABATERS D.F."},{"$f":"'DATOS DEPORTISTAS'!I27","v":"CADETE"},{"$f":"'DATOS DEPORTISTAS'!M27","v":"REBECA ASO LÓPEZ"},null,null,"CENTRO NATACION HELIOS","VETERANO","CARLOS MILLÁN BLASCO",null,"CENTRO NATACION HELIOS","SENIOR","JAVIER ALBERTO LOPERENA GALLEGO",null,"CENTRO NATACION HELIOS","JUVENIL","PEDRO DIEZ GARCÍA",null,"CENTRO NATACION HELIOS","CADETE","IBÓN MEDINA ECHEVERRÍA",null,"CENTRO NATACION HELIOS","INFANTIL","SOFÍA MONTANER ALFARO"]
[null,{"$f":"'DATOS DEPORTISTAS'!V28","v":"OS NABATERS D.F."},{"$f":"'DATOS DEPORTISTAS'!I28","v":"CADETE"},{"$f":"'DATOS DEPORTISTAS'!M28","v":"DARÍO CANO JIMÉNEZ"},null,null,"CENTRO NATACION HELIOS","VETERANO","EMILIO ANASTASIO CILLEROS BLÁZQUEZ",null,"CENTRO NATACION HELIOS","SENIOR","JAVIER MUNIESA AGUAS",null,null,null,null,null,"CENTRO NATACION HELIOS","CADETE","IKER ALONSO ROCHE"]
[null,{"$f":"'DATOS DEPORTISTAS'!V29","v":"OS NABATERS D.F."},{"$f":"'DATOS DEPORTISTAS'!I29","v":"CADETE"},{"$f":"'DATOS DEPORTISTAS'!M29","v":"JOSÉ MANUEL FAÑA GRIÑÓN"},null,null,"CENTRO NATACION HELIOS","VETERANO","ESMERALDA AGUAS GARCIA",null,"CENTRO NATACION HELIOS","SENIOR","JUAN LERMA IRURETA",null,null,null,null,null,"CENTRO NATACION HELIOS","CADETE","IREK CABELLO PIETRZAK"]
[null,{"$f":"'DATOS DEPORTISTAS'!V30","v":"OS NABATERS D.F."},{"$f":"'DATOS DEPORTISTAS'!I30","v":"CADETE"},{"$f":"'DATOS DEPORTISTAS'!M30","v":"MIGUEL ABENIA CÁMARA"},null,null,"CENTRO NATACION HELIOS","VETERANO","EVA MARÍA ANGLÉS BEL",null,"CENTRO NATACION HELIOS","SENIOR","LUCAS MONTI SCHERZER",null,null,null,null,null,"CENTRO NATACION HELIOS","CADETE","ISABEL TOVAR GODOY"]
[null,{"$f":"'DATOS DEPORTISTAS'!V31","v":"OS NABATERS D.F."},{"$f":"'DATOS DEPORTISTAS'!I31","v":"CADETE"},{"$f":"'DATOS DEPORTISTAS'!M31","v":"CLAUDIA ASO LÓPEZ"},null,null,"CENTRO NATACION HELIOS","VETERANO","IVÁN LATAS JIMÉNEZ",null,"CENTRO NATACION HELIOS","SENIOR","MIGUEL BIEL CAMAÑES",null,null,null,null,null,"CENTRO NATACION HELIOS","CADETE","JONÁS CALZADA LARA"]
[null,{"$f":"'DATOS DEPORTISTAS'!V32","v":"OS NABATERS D.F."},{"$f":"'DATOS DEPORTISTAS'!I32","v":"JUVENIL"},{"$f":"'DATOS DEPORTISTAS'!M32","v":"SARA BAILO GARCÍA"},null,null,"CENTRO NATACION HELIOS","VETERANO","IVÁN PÉREZ RODRÍGUEZ",null,"CENTRO NATACION HELIOS","SENIOR","PABLO BRIZ ZAMORANO",null,null,null,null,null,"CENTRO NATACION HELIOS","CADETE","JOSÉ JAVIER LEAL SUÁREZ"]
[null,{"$f":"'DATOS DEPORTISTAS'!V33","v":"OS NABATERS D.F."},{"$f":"'DATOS DEPORTISTAS'!I33","v":"JUVENIL"},{"$f":"'DATOS DEPORTISTAS'!M33","v":"GERMÁN FAUBELL MACÍA"},null,null,"CENTRO NATACION HELIOS","VETERANO","JAVIER BARRACHINA RODRÍGUEZ",null,null,null,null,null,null,null,null,null,"CENTRO NATACION HELIOS","CADETE","MANUEL GIRONÉS BENAVENTE"]
[null,{"$f":"'DATOS DEPORTISTAS'!V34","v":"OS NABATERS D.F."},{"$f":"'DATOS DEPORTISTAS'!I34","v":"JUVENIL"},{"$f":"'DATOS DEPORTISTAS'!M34","v":"SARA MARTÍN RANERA"},null,null,"CENTRO NATACION HELIOS","VETERANO","JORGE OCTAVIO CALVO GRACIA",null,null,null,null,null,null,null,null,null,"CENTRO NATACION HELIOS","CADETE","MARCO MELÉNDEZ DEL PICO"]
[null,{"$f":"'DATOS DEPORTISTAS'!V35","v":"OS NABATERS D.F."},{"$f":"'DATOS DEPORTISTAS'!I35","v":"JUVENIL"},{"$f":"'DATOS DEPORTISTAS'!M35","v":"ADRIÁN AZNAR SAMPER"},null,null,"CENTRO NATACION HELIOS","VETERANO","JORGE PEIRÓ MESA",null,null,null,null,null,null,null,null,null,"CENTRO NATACION HELIOS","CADETE","MARTÍN MONTANER ALFARO"]
[null,{"$f":"'DATOS DEPORTISTAS'!V36","v":"OS NABATERS D.F."},{"$f":"'DATOS DEPORTISTAS'!I36","v":"JUVENIL"},{"$f":"'DATOS DEPORTISTAS'!M36","v":"GABRIELA LAPLANA DÍAZ"},null,null,"CENTRO NATACION HELIOS","VETERANO","JOSÉ LACASTA AISA",null,null,null,null,null,null,null,null,null,"CENTRO NATACION HELIOS","CADETE","NIL MARTÍN BERNARDOS"]
[null,{"$f":"'DATOS DEPORTISTAS'!V37","v":"OS NABATERS D.F."},{"$f":"'DATOS DEPORTISTAS'!I37","v":"JUVENIL"},{"$f":"'DATOS DEPORTISTAS'!M37","v":"ÁNGELA OLIVA CORTÉS"},null,null,"CENTRO NATACION HELIOS","VETERANO","JOSÉ MANUEL BIELSA ARTIDIELLO",null,null,null,null,null,null,null,null,null,"CENTRO NATACION HELIOS","CADETE","NOA FUERTES VALLÉS"]
[null,{"$f":"'DATOS DEPORTISTAS'!V38","v":"OS NABATERS D.F."},{"$f":"'DATOS DEPORTISTAS'!I38","v":"SENIOR"},{"$f":"'DATOS DEPORTISTAS'!M38","v":"RAQUEL HERNÁNDEZ ROYO"},null,null,"CENTRO NATACION HELIOS","VETERANO","JOSÉ MANUEL LABARTA PINILLA",null,null,null,null,null,null,null,null,null,"CENTRO NATACION HELIOS","CADETE","PABLO MALO VELA"]
[null,{"$f":"'DATOS DEPORTISTAS'!V39","v":"OS NABATERS D.F."},{"$f":"'DATOS DEPORTISTAS'!I39","v":"VETERANO"},{"$f":"'DATOS DEPORTISTAS'!M39","v":"ERNESTO SÁNCHEZ GARRIGÓS"},null,null,"CENTRO NATACION HELIOS","VETERANO","JOSÉ TABUENCA COLERA",null,null,null,null,null,null,null,null,null,"CENTRO NATACION HELIOS","CADETE","SANDRA DIEZ GARCÍA"]
[null,{"$f":"'DATOS DEPORTISTAS'!V40","v":"OS NABATERS D.F."},{"$f":"'DATOS DEPORTISTAS'!I40","v":"VETERANO"},{"$f":"'DATOS DEPORTISTAS'!M40","v":"ANA ARNAIZ LÓPEZ"},null,null,"CENTRO NATACION HELIOS","VETERANO","JUAN CARLOS CALAVIA RODRÍGUEZ",null,null,null,null,null,null,null,null,null,"CENTRO NATACION HELIOS","CADETE","VÍCTOR CINCA GARCÍA"]
[null,{"$f":"'DATOS DEPORTISTAS'!V41","v":"OS NABATERS D.F."},{"$f":"'DATOS DEPORTISTAS'!I41","v":"VETERANO"},{"$f":"'DATOS DEPORTISTAS'!M41","v":"ROBERTO NAVARRO CARRETERO"},null,null,"CENTRO NATACION HELIOS","VETERANO","JUAN JOSÉ SALAS IBÁÑEZ"]
[null,{"$f":"'DATOS DEPORTISTAS'!V42","v":"OS NABATERS D.F."},{"$f":"'DATOS DEPORTISTAS'!I42","v":"VETERANO"},{"$f":"'DATOS DEPORTISTAS'!M42","v":"SELMA PALACÍN ARTIGOSA"},null,null,"CENTRO NATACION HELIOS","VETERANO","JULIO BIELSA ARTIDIELLO"]
[null,{"$f":"'DATOS DEPORTISTAS'!V43","v":"OS NABATERS D.F."},{"$f":"'DATOS DEPORTISTAS'!I43","v":"VETERANO"},{"$f":"'DATOS DEPORTISTAS'!M43","v":"JOSÉ LUIS CAMBERO CENZANO"},null,null,"CENTRO NATACION HELIOS","VETERANO","LUCAS ANDRÉS RODRÍGUEZ"]
[null,{"$f":"'DATOS DEPORTISTAS'!V44","v":"OS NABATERS D.F."},{"$f":"'DATOS DEPORTISTAS'!I44","v":"VETERANO"},{"$f":"'DATOS DEPORTISTAS'!M44","v":"GABRIEL JOSÉ RUANO FERNÁNDEZ"},null,null,"CENTRO NATACION HELIOS","VETERANO","MARÍA LOURDES RODRÍGUEZ BRAÑA"]
[null,{"$f":"'DATOS DEPORTISTAS'!V45","v":"OS NABATERS D.F."},{"$f":"'DATOS DEPORTISTAS'!I45","v":"SENIOR"},{"$f":"'DATOS DEPORTISTAS'!M45","v":"GUILLÉN VICENTE MIRANDA"},null,null,"CENTRO NATACION HELIOS","VETERANO","MARÍA PILAR PEÑA HERRERO"]
[null,{"$f":"'DATOS DEPORTISTAS'!V46","v":"OS NABATERS D.F."},{"$f":"'DATOS DEPORTISTAS'!I46","v":"SENIOR"},{"$f":"'DATOS DEPORTISTAS'!M46","v":"JORGE PONCE USÓN"},null,null,"CENTRO NATACION HELIOS","VETERANO","MARTA PINTO SOLANA"]
[null,{"$f":"'DATOS DEPORTISTAS'!V47","v":"OS NABATERS D.F."},{"$f":"'DATOS DEPORTISTAS'!I47","v":"VETERANO"},{"$f":"'DATOS DEPORTISTAS'!M47","v":"MIGUEL BEA GONZÁLEZ"},null,null,"CENTRO NATACION HELIOS","VETERANO","MIGUEL ÁNGEL PÉREZ VICENTE"]
[null,{"$f":"'DATOS DEPORTISTAS'!V48","v":"CENTRO NATACION HELIOS"},{"$f":"'DATOS DEPORTISTAS'!I48","v":"VETERANO"},{"$f":"'DATOS DEPORTISTAS'!M48","v":"ADRIÁN CASAS GUILLÉN"},null,null,"CENTRO NATACION HELIOS","VETERANO","PEDRO BENITO ARANDA MARTÍNEZ"]
[null,{"$f":"'DATOS DEPORTISTAS'!V49","v":"CENTRO NATACION HELIOS"},{"$f":"'DATOS DEPORTISTAS'!I49","v":"SENIOR"},{"$f":"'DATOS DEPORTISTAS'!M49","v":"ALBERTO GARCÍA RUIZ"},null,null,"CENTRO NATACION HELIOS","VETERANO","PEDRO MARÍA NAVARRO SANGüESA"]
[null,{"$f":"'DATOS DEPORTISTAS'!V50","v":"CENTRO NATACION HELIOS"},{"$f":"'DATOS DEPORTISTAS'!I50","v":"JUVENIL"},{"$f":"'DATOS DEPORTISTAS'!M50","v":"ALEXANDER JURADO PÉREZ"},null,null,"CENTRO NATACION HELIOS","VETERANO","RAFAEL MONTANER MARTÍN"]
[null,{"$f":"'DATOS DEPORTISTAS'!V51","v":"CENTRO NATACION HELIOS"},{"$f":"'DATOS DEPORTISTAS'!I51","v":"VETERANO"},{"$f":"'DATOS DEPORTISTAS'!M51","v":"ALFONSO MUNIESA FERRERO"},null,null,"CENTRO NATACION HELIOS","VETERANO","VÍCTOR ESTÉBAN GRAN"]
[null,{"$f":"'DATOS DEPORTISTAS'!V52","v":"CENTRO NATACION HELIOS"},{"$f":"'DATOS DEPORTISTAS'!I52","v":"VETERANO"},{"$f":"'DATOS DEPORTISTAS'!M52","v":"ALFREDO DIEZ SECO"}]
[null,{"$f":"'DATOS DEPORTISTAS'!V53","v":"CENTRO NATACION HELIOS"},{"$f":"'DATOS DEPORTISTAS'!I53","v":"ALEVIN"},{"$f":"'DATOS DEPORTISTAS'!M53","v":"ALICIA LUNA MONTAGUD"}]
[null,{"$f":"'DATOS DEPORTISTAS'!V54","v":"CENTRO NATACION HELIOS"},{"$f":"'DATOS DEPORTISTAS'!I54","v":"VETERANO"},{"$f":"'DATOS DEPORTISTAS'!M54","v":"ANA CARMEN FUENTES LORENTE"}]
[null,{"$f":"'DATOS DEPORTISTAS'!V55","v":"CENTRO NATACION HELIOS"},{"$f":"'DATOS DEPORTISTAS'!I55","v":"VETERANO"},{"$f":"'DATOS DEPORTISTAS'!M55","v":"ANDRÉS BLANCO VELÁZQUEZ"}]
[null,{"$f":"'DATOS DEPORTISTAS'!V56","v":"CENTRO NATACION HELIOS"},{"$f":"'DATOS DEPORTISTAS'!I56","v":"VETERANO"},{"$f":"'DATOS DEPORTISTAS'!M56","v":"ANDRÉS DÍAZ ROBLES"}]
[null,{"$f":"'DATOS DEPORTISTAS'!V57","v":"CENTRO NATACION HELIOS"},{"$f":"'DATOS DEPORTISTAS'!I57","v":"CADETE"},{"$f":"'DATOS DEPORTISTAS'!M57","v":"ÁNGEL PERNÍA OYAGA"}]
[null,{"$f":"'DATOS DEPORTISTAS'!V58","v":"CENTRO NATACION HELIOS"},{"$f":"'DATOS DEPORTISTAS'!I58","v":"JUVENIL"},{"$f":"'DATOS DEPORTISTAS'!M58","v":"CARLOS ALONSO GUTIÉRREZ"}]
[null,{"$f":"'DATOS DEPORTISTAS'!V59","v":"CENTRO NATACION HELIOS"},{"$f":"'DATOS DEPORTISTAS'!I59","v":"VETERANO"},{"$f":"'DATOS DEPORTISTAS'!M59","v":"CARLOS MILLÁN BLASCO"}]
[null,{"$f":"'DATOS DEPORTISTAS'!V60","v":"CENTRO NATACION HELIOS"},{"$f":"'DATOS DEPORTISTAS'!I60","v":"SENIOR"},{"$f":"'DATOS DEPORTISTAS'!M60","v":"CARLOS PONCE USÓN"}]
[null,{"$f":"'DATOS DEPORTISTAS'!V61","v":"CENTRO NATACION HELIOS"},{"$f":"'DATOS DEPORTISTAS'!I61","v":"CADETE"},{"$f":"'DATOS DEPORTISTAS'!M61","v":"CHLOÉ MILLÁN GÓMEZ"}]
[null,{"$f":"'DATOS DEPORTISTAS'!V62","v":"CENTRO NATACION HELIOS"},{"$f":"'DATOS DEPORTISTAS'!I62","v":"SENIOR"},{"$f":"'DATOS DEPORTISTAS'!M62","v":"CLAUDIA ALCÁZAR HERRERO"}]
[null,{"$f":"'DATOS DEPORTISTAS'!V63","v":"CENTRO NATACION HELIOS"},{"$f":"'DATOS DEPORTISTAS'!I63","v":"JUVENIL"},{"$f":"'DATOS DEPORTISTAS'!M63","v":"DANIEL ARTURO ZAPATA LARROY"}]
[null,{"$f":"'DATOS DEPORTISTAS'!V64","v":"CENTRO NATACION HELIOS"},{"$f":"'DATOS DEPORTISTAS'!I64","v":"CADETE"},{"$f":"'DATOS DEPORTISTAS'!M64","v":"DANIEL VELILLA PÉREZ"}]
[null,{"$f":"'DATOS DEPORTISTAS'!V65","v":"CENTRO NATACION HELIOS"},{"$f":"'DATOS DEPORTISTAS'!I65","v":"CADETE"},{"$f":"'DATOS DEPORTISTAS'!M65","v":"DIEGO JIMÉNEZ HORNOS"}]
[null,{"$f":"'DATOS DEPORTISTAS'!V66","v":"CENTRO NATACION HELIOS"},{"$f":"'DATOS DEPORTISTAS'!I66","v":"SENIOR"},{"$f":"'DATOS DEPORTISTAS'!M66","v":"DIEGO LASHERAS BLASCO"}]
[null,{"$f":"'DATOS DEPORTISTAS'!V67","v":"CENTRO NATACION HELIOS"},{"$f":"'DATOS DEPORTISTAS'!I67","v":"VETERANO"},{"$f":"'DATOS DEPORTISTAS'!M67","v":"EMILIO ANASTASIO CILLEROS BLÁZQUEZ"}]
[null,{"$f":"'DATOS DEPORTISTAS'!V68","v":"CENTRO NATACION HELIOS"},{"$f":"'DATOS DEPORTISTAS'!I68","v":"INFANTIL"},{"$f":"'DATOS DEPORTISTAS'!M68","v":"ERIC CAZADOR SERRANO"}]
[null,{"$f":"'DATOS DEPORTISTAS'!V69","v":"CENTRO NATACION HELIOS"},{"$f":"'DATOS DEPORTISTAS'!I69","v":"VETERANO"},{"$f":"'DATOS DEPORTISTAS'!M69","v":"ESMERALDA AGUAS GARCIA"}]
[null,{"$f":"'DATOS DEPORTISTAS'!V70","v":"CENTRO NATACION HELIOS"},{"$f":"'DATOS DEPORTISTAS'!I70","v":"VETERANO"},{"$f":"'DATOS DEPORTISTAS'!M70","v":"EVA MARÍA ANGLÉS BEL"}]
[null,{"$f":"'DATOS DEPORTISTAS'!V71","v":"CENTRO NATACION HELIOS"},{"$f":"'DATOS DEPORTISTAS'!I71","v":"CADETE"},{"$f":"'DATOS DEPORTISTAS'!M71","v":"FERNANDO MARTÍN RANERA"}]
[null,{"$f":"'DATOS DEPORTISTAS'!V72","v":"CENTRO NATACION HELIOS"},{"$f":"'DATOS DEPORTISTAS'!I72","v":"SENIOR"},{"$f":"'DATOS DEPORTISTAS'!M72","v":"FRANCISCO DE ASÍS LACRUZ SANZ"}]
[null,{"$f":"'DATOS DEPORTISTAS'!V73","v":"CENTRO NATACION HELIOS"},{"$f":"'DATOS DEPORTISTAS'!I73","v":"CADETE"},{"$f":"'DATOS DEPORTISTAS'!M73","v":"GERMÁN GUTIÉRREZ GASPAR"}]
[null,{"$f":"'DATOS DEPORTISTAS'!V74","v":"CENTRO NATACION HELIOS"},{"$f":"'DATOS DEPORTISTAS'!I74","v":"JUVENIL"},{"$f":"'DATOS DEPORTISTAS'!M74","v":"GONZALO MONTAGUD GÓMEZ"}]
[null,{"$f":"'DATOS DEPORTISTAS'!V75","v":"CENTRO NATACION HELIOS"},{"$f":"'DATOS DEPORTISTAS'!I75","v":"INFANTIL"},{"$f":"'DATOS DEPORTISTAS'!M75","v":"IAGO IGLESIAS DELGADO"}]
[null,{"$f":"'DATOS DEPORTISTAS'!V76","v":"CENTRO NATACION HELIOS"},{"$f":"'DATOS DEPORTISTAS'!I76","v":"CADETE"},{"$f":"'DATOS DEPORTISTAS'!M76","v":"IBÓN MEDINA ECHEVERRÍA"}]
[null,{"$f":"'DATOS DEPORTISTAS'!V77","v":"CENTRO NATACION HELIOS"},{"$f":"'DATOS DEPORTISTAS'!I77","v":"CADETE"},{"$f":"'DATOS DEPORTISTAS'!M77","v":"IKER ALONSO ROCHE"}]
[null,{"$f":"'DATOS DEPORTISTAS'!V78","v":"CENTRO NATACION HELIOS"},{"$f":"'DATOS DEPORTISTAS'!I78","v":"SENIOR"},{"$f":"'DATOS DEPORTISTAS'!M78","v":"ÍÑIGO MIGUEL ZAPATA LARROY"}]
[null,{"$f":"'DATOS DEPORTISTAS'!V79","v":"CENTRO NATACION HELIOS"},{"$f":"'DATOS DEPORTISTAS'!I79","v":"CADETE"},{"$f":"'DATOS DEPORTISTAS'!M79","v":"IREK CABELLO PIETRZAK"}]
[null,{"$f":"'DATOS DEPORTISTAS'!V80","v":"CENTRO NATACION HELIOS"},{"$f":"'DATOS DEPORTISTAS'!I80","v":"CADETE"},{"$f":"'DATOS DEPORTISTAS'!M80","v":"ISABEL TOVAR GODOY"}]
[null,{"$f":"'DATOS DEPORTISTAS'!V81","v":"CENTRO NATACION HELIOS"},{"$f":"'DATOS DEPORTISTAS'!I81","v":"VETERANO"},{"$f":"'DATOS DEPORTISTAS'!M81","v":"IVÁN LATAS JIMÉNEZ"}]
[null,{"$f":"'DATOS DEPORTISTAS'!V82","v":"CENTRO NATACION HELIOS"},{"$f":"'DATOS DEPORTISTAS'!I82","v":"VETERANO"},{"$f":"'DATOS DEPORTISTAS'!M82","v":"IVÁN PÉREZ RODRÍGUEZ"}]
[null,{"$f":"'DATOS DEPORTISTAS'!V83","v":"CENTRO NATACION HELIOS"},{"$f":"'DATOS DEPORTISTAS'!I83","v":"VETERANO"},{"$f":"'DATOS DEPORTISTAS'!M83","v":"JAVIER BARRACHINA RODRÍGUEZ"}]
[null,{"$f":"'DATOS DEPORTISTAS'!V84","v":"CENTRO NATACION HELIOS"},{"$f":"'DATOS DEPORTISTAS'!I84","v":"SENIOR"},{"$f":"'DATOS DEPORTISTAS'!M84","v":"JAVIER ALBERTO LOPERENA GALLEGO"}]
[null,{"$f":"'DATOS DEPORTISTAS'!V85","v":"CENTRO NATACION HELIOS"},{"$f":"'DATOS DEPORTISTAS'!I85","v":"SENIOR"},{"$f":"'DATOS DEPORTISTAS'!M85","v":"JAVIER MUNIESA AGUAS"}]
[null,{"$f":"'DATOS DEPORTISTAS'!V86","v":"CENTRO NATACION HELIOS"},{"$f":"'DATOS DEPORTISTAS'!I86","v":"INFANTIL"},{"$f":"'DATOS DEPORTISTAS'!M86","v":"JAVIER REMACHA PUSCO"}]
[null,{"$f":"'DATOS DEPORTISTAS'!V87","v":"CENTRO NATACION HELIOS"},{"$f":"'DATOS DEPORTISTAS'!I87","v":"INFANTIL"},{"$f":"'DATOS DEPORTISTAS'!M87","v":"JOAQUÍN JESÚS SORO FUENTES"}]
[null,{"$f":"'DATOS DEPORTISTAS'!V88","v":"CENTRO NATACION HELIOS"},{"$f":"'DATOS DEPORTISTAS'!I88","v":"CADETE"},{"$f":"'DATOS DEPORTISTAS'!M88","v":"JONÁS CALZADA LARA"}]
[null,{"$f":"'DATOS DEPORTISTAS'!V89","v":"CENTRO NATACION HELIOS"},{"$f":"'DATOS DEPORTISTAS'!I89","v":"BENJAMIN"},{"$f":"'DATOS DEPORTISTAS'!M89","v":"JORGE LUNA MONTAGUD"}]
[null,{"$f":"'DATOS DEPORTISTAS'!V90","v":"CENTRO NATACION HELIOS"},{"$f":"'DATOS DEPORTISTAS'!I90","v":"VETERANO"},{"$f":"'DATOS DEPORTISTAS'!M90","v":"JORGE OCTAVIO CALVO GRACIA"}]
[null,{"$f":"'DATOS DEPORTISTAS'!V91","v":"CENTRO NATACION HELIOS"},{"$f":"'DATOS DEPORTISTAS'!I91","v":"VETERANO"},{"$f":"'DATOS DEPORTISTAS'!M91","v":"JORGE PEIRÓ MESA"}]
[null,{"$f":"'DATOS DEPORTISTAS'!V92","v":"CENTRO NATACION HELIOS"},{"$f":"'DATOS DEPORTISTAS'!I92","v":"CADETE"},{"$f":"'DATOS DEPORTISTAS'!M92","v":"JOSÉ JAVIER LEAL SUÁREZ"}]
[null,{"$f":"'DATOS DEPORTISTAS'!V93","v":"CENTRO NATACION HELIOS"},{"$f":"'DATOS DEPORTISTAS'!I93","v":"VETERANO"},{"$f":"'DATOS DEPORTISTAS'!M93","v":"JOSÉ LACASTA AISA"}]
[null,{"$f":"'DATOS DEPORTISTAS'!V94","v":"CENTRO NATACION HELIOS"},{"$f":"'DATOS DEPORTISTAS'!I94","v":"VETERANO"},{"$f":"'DATOS DEPORTISTAS'!M94","v":"JOSÉ MANUEL BIELSA ARTIDIELLO"}]
[null,{"$f":"'DATOS DEPORTISTAS'!V95","v":"CENTRO NATACION HELIOS"},{"$f":"'DATOS DEPORTISTAS'!I95","v":"VETERANO"},{"$f":"'DATOS DEPORTISTAS'!M95","v":"JOSÉ MANUEL LABARTA PINILLA"}]
[null,{"$f":"'DATOS DEPORTISTAS'!V96","v":"CENTRO NATACION HELIOS"},{"$f":"'DATOS DEPORTISTAS'!I96","v":"VETERANO"},{"$f":"'DATOS DEPORTISTAS'!M96","v":"JOSÉ TABUENCA COLERA"}]
[null,{"$f":"'DATOS DEPORTISTAS'!V97","v":"CENTRO NATACION HELIOS"},{"$f":"'DATOS DEPORTISTAS'!I97","v":"VETERANO"},{"$f":"'DATOS DEPORTISTAS'!M97","v":"JUAN CARLOS CALAVIA RODRÍGUEZ"}]
[null,{"$f":"'DATOS DEPORTISTAS'!V98","v":"CENTRO NATACION HELIOS"},{"$f":"'DATOS DEPORTISTAS'!I98","v":"VETERANO"},{"$f":"'DATOS DEPORTISTAS'!M98","v":"JUAN JOSÉ SALAS IBÁÑEZ"}]
[null,{"$f":"'DATOS DEPORTISTAS'!V99","v":"CENTRO NATACION HELIOS"},{"$f":"'DATOS DEPORTISTAS'!I99","v":"SENIOR"},{"$f":"'DATOS DEPORTISTAS'!M99","v":"JUAN LERMA IRURETA"}]
[null,{"$f":"'DATOS DEPORTISTAS'!V100","v":"CENTRO NATACION HELIOS"},{"$f":"'DATOS DEPORTISTAS'!I100","v":"INFANTIL"},{"$f":"'DATOS DEPORTISTAS'!M100","v":"JUAN TOVAR GODOY"}]
[null,{"$f":"'DATOS DEPORTISTAS'!V101","v":"CENTRO NATACION HELIOS"},{"$f":"'DATOS DEPORTISTAS'!I101","v":"VETERANO"},{"$f":"'DATOS DEPORTISTAS'!M101","v":"JULIO BIELSA ARTIDIELLO"}]
[null,{"$f":"'DATOS DEPORTISTAS'!V102","v":"CENTRO NATACION HELIOS"},{"$f":"'DATOS DEPORTISTAS'!I102","v":"JUVENIL"},{"$f":"'DATOS DEPORTISTAS'!M102","v":"KARLA REMACHA PUSCO"}]
[null,{"$f":"'DATOS DEPORTISTAS'!V103","v":"CENTRO NATACION HELIOS"},{"$f":"'DATOS DEPORTISTAS'!I103","v":"VETERANO"},{"$f":"'DATOS DEPORTISTAS'!M103","v":"MARÍA LOURDES RODRÍGUEZ BRAÑA"}]
[null,{"$f":"'DATOS DEPORTISTAS'!V104","v":"CENTRO NATACION HELIOS"},{"$f":"'DATOS DEPORTISTAS'!I104","v":"VETERANO"},{"$f":"'DATOS DEPORTISTAS'!M104","v":"LUCAS ANDRÉS RODRÍGUEZ"}]
[null,{"$f":"'DATOS DEPORTISTAS'!V105","v":"CENTRO NATACION HELIOS"},{"$f":"'DATOS DEPORTISTAS'!I105","v":"SENIOR"},{"$f":"'DATOS DEPORTISTAS'!M105","v":"LUCAS MONTI SCHERZER"}]
[null,{"$f":"'DATOS DEPORTISTAS'!V106","v":"CENTRO NATACION HELIOS"},{"$f":"'DATOS DEPORTISTAS'!I106","v":"ALEVIN"},{"$f":"'DATOS DEPORTISTAS'!M106","v":"LUCÍA MONTANER ALFARO"}]
[null,{"$f":"'DATOS DEPORTISTAS'!V107","v":"CENTRO NATACION HELIOS"},{"$f":"'DATOS DEPORTISTAS'!I107","v":"CADETE"},{"$f":"'DATOS DEPORTISTAS'!M107","v":"MANUEL GIRONÉS BENAVENTE"}]
[null,{"$f":"'DATOS DEPORTISTAS'!V108","v":"CENTRO NATACION HELIOS"},{"$f":"'DATOS DEPORTISTAS'!I108","v":"CADETE"},{"$f":"'DATOS DEPORTISTAS'!M108","v":"MARCO MELÉNDEZ DEL PICO"}]
[null,{"$f":"'DATOS DEPORTISTAS'!V109","v":"CENTRO NATACION HELIOS"},{"$f":"'DATOS DEPORTISTAS'!I109","v":"VETERANO"},{"$f":"'DATOS DEPORTISTAS'!M109","v":"MARÍA PILAR PEÑA HERRERO"}]
[null,{"$f":"'DATOS DEPORTISTAS'!V110","v":"CENTRO NATACION HELIOS"},{"$f":"'DATOS DEPORTISTAS'!I110","v":"JUVENIL"},{"$f":"'DATOS DEPORTISTAS'!M110","v":"MARÍA ROMEO VICENTE"}]
[null,{"$f":"'DATOS DEPORTISTAS'!V111","v":"CENTRO NATACION HELIOS"},{"$f":"'DATOS DEPORTISTAS'!I111","v":"VETERANO"},{"$f":"'DATOS DEPORTISTAS'!M111","v":"MARTA PINTO SOLANA"}]
[null,{"$f":"'DATOS DEPORTISTAS'!V112","v":"CENTRO NATACION HELIOS"},{"$f":"'DATOS DEPORTISTAS'!I112","v":"INFANTIL"},{"$f":"'DATOS DEPORTISTAS'!M112","v":"MARTÍN MILLÁN GÓMEZ"}]
[null,{"$f":"'DATOS DEPORTISTAS'!V113","v":"CENTRO NATACION HELIOS"},{"$f":"'DATOS DEPORTISTAS'!I113","v":"CADETE"},{"$f":"'DATOS DEPORTISTAS'!M113","v":"MARTÍN MONTANER ALFARO"}]
[null,{"$f":"'DATOS DEPORTISTAS'!V114","v":"CENTRO NATACION HELIOS"},{"$f":"'DATOS DEPORTISTAS'!I114","v":"VETERANO"},{"$f":"'DATOS DEPORTISTAS'!M114","v":"MIGUEL ÁNGEL PÉREZ VICENTE"}]
[null,{"$f":"'DATOS DEPORTISTAS'!V115","v":"CENTRO NATACION HELIOS"},{"$f":"'DATOS DEPORTISTAS'!I115","v":"SENIOR"},{"$f":"'DATOS DEPORTISTAS'!M115","v":"MIGUEL BIEL CAMAÑES"}]
[null,{"$f":"'DATOS DEPORTISTAS'!V116","v":"CENTRO NATACION HELIOS"},{"$f":"'DATOS DEPORTISTAS'!I116","v":"CADETE"},{"$f":"'DATOS DEPORTISTAS'!M116","v":"NIL MARTÍN BERNARDOS"}]
[null,{"$f":"'DATOS DEPORTISTAS'!V117","v":"CENTRO NATACION HELIOS"},{"$f":"'DATOS DEPORTISTAS'!I117","v":"CADETE"},{"$f":"'DATOS DEPORTISTAS'!M117","v":"NOA FUERTES VALLÉS"}]
[null,{"$f":"'DATOS DEPORTISTAS'!V118","v":"CENTRO NATACION HELIOS"},{"$f":"'DATOS DEPORTISTAS'!I118","v":"SENIOR"},{"$f":"'DATOS DEPORTISTAS'!M118","v":"PABLO BRIZ ZAMORANO"}]
[null,{"$f":"'DATOS DEPORTISTAS'!V119","v":"CENTRO NATACION HELIOS"},{"$f":"'DATOS DEPORTISTAS'!I119","v":"CADETE"},{"$f":"'DATOS DEPORTISTAS'!M119","v":"PABLO MALO VELA"}]
[null,{"$f":"'DATOS DEPORTISTAS'!V120","v":"CENTRO NATACION HELIOS"},{"$f":"'DATOS DEPORTISTAS'!I120","v":"VETERANO"},{"$f":"'DATOS DEPORTISTAS'!M120","v":"PEDRO BENITO ARANDA MARTÍNEZ"}]
[null,{"$f":"'DATOS DEPORTISTAS'!V121","v":"CENTRO NATACION HELIOS"},{"$f":"'DATOS DEPORTISTAS'!I121","v":"JUVENIL"},{"$f":"'DATOS DEPORTISTAS'!M121","v":"PEDRO DIEZ GARCÍA"}]
[null,{"$f":"'DATOS DEPORTISTAS'!V122","v":"CENTRO NATACION HELIOS"},{"$f":"'DATOS DEPORTISTAS'!I122","v":"VETERANO"},{"$f":"'DATOS DEPORTISTAS'!M122","v":"PEDRO MARÍA NAVARRO SANGüESA"}]
[null,{"$f":"'DATOS DEPORTISTAS'!V123","v":"CENTRO NATACION HELIOS"},{"$f":"'DATOS DEPORTISTAS'!I123","v":"VETERANO"},{"$f":"'DATOS DEPORTISTAS'!M123","v":"RAFAEL MONTANER MARTÍN"}]
[null,{"$f":"'DATOS DEPORTISTAS'!V124","v":"CENTRO NATACION HELIOS"},{"$f":"'DATOS DEPORTISTAS'!I124","v":"CADETE"},{"$f":"'DATOS DEPORTISTAS'!M124","v":"SANDRA DIEZ GARCÍA"}]
[null,{"$f":"'DATOS DEPORTISTAS'!V125","v":"CENTRO NATACION HELIOS"},{"$f":"'DATOS DEPORTISTAS'!I125","v":"INFANTIL"},{"$f":"'DATOS DEPORTISTAS'!M125","v":"SOFÍA MONTANER ALFARO"}]
[null,{"$f":"'DATOS DEPORTISTAS'!V126","v":"CENTRO NATACION HELIOS"},{"$f":"'DATOS DEPORTISTAS'!I126","v":"BENJAMIN"},{"$f":"'DATOS DEPORTISTAS'!M126","v":"UDAI CAZADOR SERRANO"}]
[null,{"$f":"'DATOS DEPORTISTAS'!V127","v":"CENTRO NATACION HELIOS"},{"$f":"'DATOS DEPORTISTAS'!I127","v":"ALEVIN"},{"$f":"'DATOS DEPORTISTAS'!M127","v":"VALENTINA  ESPADA CIPRÉS"}]
[null,{"$f":"'DATOS DEPORTISTAS'!V128","v":"CENTRO NATACION HELIOS"},{"$f":"'DATOS DEPORTISTAS'!I128","v":"CADETE"},{"$f":"'DATOS DEPORTISTAS'!M128","v":"VÍCTOR CINCA GARCÍA"}]
[null,{"$f":"'DATOS DEPORTISTAS'!V129","v":"CENTRO NATACION HELIOS"},{"$f":"'DATOS DEPORTISTAS'!I129","v":"BENJAMIN"},{"$f":"'DATOS DEPORTISTAS'!M129","v":"VÍCTOR LENNIKOV IGLESIAS"}]
[null,{"$f":"'DATOS DEPORTISTAS'!V130","v":"OS NABATERS D.F."},{"$f":"'DATOS DEPORTISTAS'!I130","v":"VETERANO"},{"$f":"'DATOS DEPORTISTAS'!M130","v":"SERGIO AURED ANTÓN"}]
[null,{"$f":"'DATOS DEPORTISTAS'!V131","v":"OS NABATERS D.F."},{"$f":"'DATOS DEPORTISTAS'!I131","v":"CADETE"},{"$f":"'DATOS DEPORTISTAS'!M131","v":"CARLA AURED CARBI"}]
[null,{"$f":"'DATOS DEPORTISTAS'!V132","v":"OS NABATERS D.F."},{"$f":"'DATOS DEPORTISTAS'!I132","v":"VETERANO"},{"$f":"'DATOS DEPORTISTAS'!M132","v":"IGNACIO BELTRÁN DIESTRE"}]
[null,{"$f":"'DATOS DEPORTISTAS'!V133","v":"OS NABATERS D.F."},{"$f":"'DATOS DEPORTISTAS'!I133","v":"CADETE"},{"$f":"'DATOS DEPORTISTAS'!M133","v":"LUIS FRANCISCO BOIRA GONZALO"}]
[null,{"$f":"'DATOS DEPORTISTAS'!V134","v":"OS NABATERS D.F."},{"$f":"'DATOS DEPORTISTAS'!I134","v":"VETERANO"},{"$f":"'DATOS DEPORTISTAS'!M134","v":"MERCEDES GIMÉNEZ HERRERO"}]
[null,{"$f":"'DATOS DEPORTISTAS'!V135","v":"OS NABATERS D.F."},{"$f":"'DATOS DEPORTISTAS'!I135","v":"VETERANO"},{"$f":"'DATOS DEPORTISTAS'!M135","v":"JOSÉ LUIS HERNÁNDEZ PASCUAL"}]
[null,{"$f":"'DATOS DEPORTISTAS'!V136","v":"OS NABATERS D.F."},{"$f":"'DATOS DEPORTISTAS'!I136","v":"CADETE"},{"$f":"'DATOS DEPORTISTAS'!M136","v":"BRUNO KOLLMANNSBERGER MARCÉN"}]
[null,{"$f":"'DATOS DEPORTISTAS'!V137","v":"OS NABATERS D.F."},{"$f":"'DATOS DEPORTISTAS'!I137","v":"INFANTIL"},{"$f":"'DATOS DEPORTISTAS'!M137","v":"DAVID MARCOS GARCÍA"}]
[null,{"$f":"'DATOS DEPORTISTAS'!V138","v":"OS NABATERS D.F."},{"$f":"'DATOS DEPORTISTAS'!I138","v":"VETERANO"},{"$f":"'DATOS DEPORTISTAS'!M138","v":"DAVID OLMO NADAL"}]
[null,{"$f":"'DATOS DEPORTISTAS'!V139","v":"OS NABATERS D.F."},{"$f":"'DATOS DEPORTISTAS'!I139","v":"VETERANO"},{"$f":"'DATOS DEPORTISTAS'!M139","v":"ABEL RICARDO OVALLES GUERRA"}]
[null,{"$f":"'DATOS DEPORTISTAS'!V140","v":"OS NABATERS D.F."},{"$f":"'DATOS DEPORTISTAS'!I140","v":"VETERANO"},{"$f":"'DATOS DEPORTISTAS'!M140","v":"MARÍA INÉS RIVERO MINNERY"}]
[null,{"$f":"'DATOS DEPORTISTAS'!V141","v":"OS NABATERS D.F."},{"$f":"'DATOS DEPORTISTAS'!I141","v":"VETERANO"},{"$f":"'DATOS DEPORTISTAS'!M141","v":"ABDÍAS SIMÓN TRIGUEROS"}]
[null,{"$f":"'DATOS DEPORTISTAS'!V142","v":"CAPRI MEQUINENZA"},{"$f":"'DATOS DEPORTISTAS'!I142","v":"VETERANO"},{"$f":"'DATOS DEPORTISTAS'!M142","v":"JORGE MANUEL AGUILAR OLIVER"}]
[null,{"$f":"'DATOS DEPORTISTAS'!V143","v":"CAPRI MEQUINENZA"},{"$f":"'DATOS DEPORTISTAS'!I143","v":"INFANTIL"},{"$f":"'DATOS DEPORTISTAS'!M143","v":"DIEGO AGUILAR ROMERO"}]
[null,{"$f":"'DATOS DEPORTISTAS'!V144","v":"CAPRI MEQUINENZA"},{"$f":"'DATOS DEPORTISTAS'!I144","v":"BENJAMIN"},{"$f":"'DATOS DEPORTISTAS'!M144","v":"MARÍA  AGUILAR ROMERO"}]
[null,{"$f":"'DATOS DEPORTISTAS'!V145","v":"CAPRI MEQUINENZA"},{"$f":"'DATOS DEPORTISTAS'!I145","v":"INFANTIL"},{"$f":"'DATOS DEPORTISTAS'!M145","v":"MARÍA ARROYO CABALLÉ"}]
[null,{"$f":"'DATOS DEPORTISTAS'!V146","v":"CAPRI MEQUINENZA"},{"$f":"'DATOS DEPORTISTAS'!I146","v":"INFANTIL"},{"$f":"'DATOS DEPORTISTAS'!M146","v":"IRENE BRUNA PALAU"}]
[null,{"$f":"'DATOS DEPORTISTAS'!V147","v":"CAPRI MEQUINENZA"},{"$f":"'DATOS DEPORTISTAS'!I147","v":"INFANTIL"},{"$f":"'DATOS DEPORTISTAS'!M147","v":"MIRIAM BRUNA PALAU"}]
[null,{"$f":"'DATOS DEPORTISTAS'!V148","v":"CAPRI MEQUINENZA"},{"$f":"'DATOS DEPORTISTAS'!I148","v":"ALEVIN"},{"$f":"'DATOS DEPORTISTAS'!M148","v":"IVÁN  CASTELLNOU SOROLLA"}]
[null,{"$f":"'DATOS DEPORTISTAS'!V149","v":"CAPRI MEQUINENZA"},{"$f":"'DATOS DEPORTISTAS'!I149","v":"VETERANO"},{"$f":"'DATOS DEPORTISTAS'!M149","v":"JORDI CASTELLÓ ROCA"}]
[null,{"$f":"'DATOS DEPORTISTAS'!V150","v":"CAPRI MEQUINENZA"},{"$f":"'DATOS DEPORTISTAS'!I150","v":"INFANTIL"},{"$f":"'DATOS DEPORTISTAS'!M150","v":"AROA CASTELLÓ VILA"}]
[null,{"$f":"'DATOS DEPORTISTAS'!V151","v":"CAPRI MEQUINENZA"},{"$f":"'DATOS DEPORTISTAS'!I151","v":"VETERANO"},{"$f":"'DATOS DEPORTISTAS'!M151","v":"CONCEPCIÓN CASTRO ARANDA"}]
[null,{"$f":"'DATOS DEPORTISTAS'!V152","v":"CAPRI MEQUINENZA"},{"$f":"'DATOS DEPORTISTAS'!I152","v":"INFANTIL"},{"$f":"'DATOS DEPORTISTAS'!M152","v":"MARINA CATALÁN MOYA"}]
[null,{"$f":"'DATOS DEPORTISTAS'!V153","v":"CAPRI MEQUINENZA"},{"$f":"'DATOS DEPORTISTAS'!I153","v":"BENJAMIN"},{"$f":"'DATOS DEPORTISTAS'!M153","v":"JOEL CHERTÓ JIMÉNEZ"}]
[null,{"$f":"'DATOS DEPORTISTAS'!V154","v":"CAPRI MEQUINENZA"},{"$f":"'DATOS DEPORTISTAS'!I154","v":"INFANTIL"},{"$f":"'DATOS DEPORTISTAS'!M154","v":"ALBA CUCHÍ NIUBÓ"}]
[null,{"$f":"'DATOS DEPORTISTAS'!V155","v":"CAPRI MEQUINENZA"},{"$f":"'DATOS DEPORTISTAS'!I155","v":"JUVENIL"},{"$f":"'DATOS DEPORTISTAS'!M155","v":"TIBERIU GABRIEL DAMIÁN"}]
[null,{"$f":"'DATOS DEPORTISTAS'!V156","v":"CAPRI MEQUINENZA"},{"$f":"'DATOS DEPORTISTAS'!I156","v":"ALEVIN"},{"$f":"'DATOS DEPORTISTAS'!M156","v":"JOKIN KOLDO ESCALONA VILLACAMPA"}]
[null,{"$f":"'DATOS DEPORTISTAS'!V157","v":"CAPRI MEQUINENZA"},{"$f":"'DATOS DEPORTISTAS'!I157","v":"CADETE"},{"$f":"'DATOS DEPORTISTAS'!M157","v":"AARÓN ESTEVE CASTELLÓ"}]
[null,{"$f":"'DATOS DEPORTISTAS'!V158","v":"CAPRI MEQUINENZA"},{"$f":"'DATOS DEPORTISTAS'!I158","v":"VETERANO"},{"$f":"'DATOS DEPORTISTAS'!M158","v":"LUIS ESTEVE CATALÁN"}]
[null,{"$f":"'DATOS DEPORTISTAS'!V159","v":"CAPRI MEQUINENZA"},{"$f":"'DATOS DEPORTISTAS'!I159","v":"ALEVIN"},{"$f":"'DATOS DEPORTISTAS'!M159","v":"ONA ESTRUGA LLOP"}]
[null,{"$f":"'DATOS DEPORTISTAS'!V160","v":"CAPRI MEQUINENZA"},{"$f":"'DATOS DEPORTISTAS'!I160","v":"VETERANO"},{"$f":"'DATOS DEPORTISTAS'!M160","v":"VÍCTOR ESTRUGA GIMENO"}]
[null,{"$f":"'DATOS DEPORTISTAS'!V161","v":"CAPRI MEQUINENZA"},{"$f":"'DATOS DEPORTISTAS'!I161","v":"BENJAMIN"},{"$f":"'DATOS DEPORTISTAS'!M161","v":"ENZO EXPÓSITO SORO"}]
[null,{"$f":"'DATOS DEPORTISTAS'!V162","v":"CAPRI MEQUINENZA"},{"$f":"'DATOS DEPORTISTAS'!I162","v":"INFANTIL"},{"$f":"'DATOS DEPORTISTAS'!M162","v":"IRIA EXPÓSITO SORO"}]
[null,{"$f":"'DATOS DEPORTISTAS'!V163","v":"CAPRI MEQUINENZA"},{"$f":"'DATOS DEPORTISTAS'!I163","v":"VETERANO"},{"$f":"'DATOS DEPORTISTAS'!M163","v":"Mª CARMEN GARCÍA ARANDA"}]
[null,{"$f":"'DATOS DEPORTISTAS'!V164","v":"CAPRI MEQUINENZA"},{"$f":"'DATOS DEPORTISTAS'!I164","v":"VETERANO"},{"$f":"'DATOS DEPORTISTAS'!M164","v":"MARÍA TERESA GODIA PI"}]
[null,{"$f":"'DATOS DEPORTISTAS'!V165","v":"CAPRI MEQUINENZA"},{"$f":"'DATOS DEPORTISTAS'!I165","v":"ALEVIN"},{"$f":"'DATOS DEPORTISTAS'!M165","v":"PAULA GÓMEZ CARMONA"}]
[null,{"$f":"'DATOS DEPORTISTAS'!V166","v":"CAPRI MEQUINENZA"},{"$f":"'DATOS DEPORTISTAS'!I166","v":"INFANTIL"},{"$f":"'DATOS DEPORTISTAS'!M166","v":"ABRIL GONZÁLEZ GARCÍA"}]
[null,{"$f":"'DATOS DEPORTISTAS'!V167","v":"CAPRI MEQUINENZA"},{"$f":"'DATOS DEPORTISTAS'!I167","v":"ALEVIN"},{"$f":"'DATOS DEPORTISTAS'!M167","v":"NAIA GUARDIOLA BARTOLOMÉ"}]
[null,{"$f":"'DATOS DEPORTISTAS'!V168","v":"CAPRI MEQUINENZA"},{"$f":"'DATOS DEPORTISTAS'!I168","v":"CADETE"},{"$f":"'DATOS DEPORTISTAS'!M168","v":"PAULO GUIMERA JANIK"}]
[null,{"$f":"'DATOS DEPORTISTAS'!V169","v":"CAPRI MEQUINENZA"},{"$f":"'DATOS DEPORTISTAS'!I169","v":"JUVENIL"},{"$f":"'DATOS DEPORTISTAS'!M169","v":"GISELA HIERRO GARCÍA"}]
[null,{"$f":"'DATOS DEPORTISTAS'!V170","v":"CAPRI MEQUINENZA"},{"$f":"'DATOS DEPORTISTAS'!I170","v":"CADETE"},{"$f":"'DATOS DEPORTISTAS'!M170","v":"IRATXE IBARZ BERENGUER"}]
[null,{"$f":"'DATOS DEPORTISTAS'!V171","v":"CAPRI MEQUINENZA"},{"$f":"'DATOS DEPORTISTAS'!I171","v":"VETERANO"},{"$f":"'DATOS DEPORTISTAS'!M171","v":"ROSA MARÍA LLOP RIAU"}]
[null,{"$f":"'DATOS DEPORTISTAS'!V172","v":"CAPRI MEQUINENZA"},{"$f":"'DATOS DEPORTISTAS'!I172","v":"JUVENIL"},{"$f":"'DATOS DEPORTISTAS'!M172","v":"AARÓN MÁRQUEZ GUARDIOLA"}]
[null,{"$f":"'DATOS DEPORTISTAS'!V173","v":"CAPRI MEQUINENZA"},{"$f":"'DATOS DEPORTISTAS'!I173","v":"ALEVIN"},{"$f":"'DATOS DEPORTISTAS'!M173","v":"ALBA MARTÍNEZ CLAVERO"}]
[null,{"$f":"'DATOS DEPORTISTAS'!V174","v":"CAPRI MEQUINENZA"},{"$f":"'DATOS DEPORTISTAS'!I174","v":"CADETE"},{"$f":"'DATOS DEPORTISTAS'!M174","v":"YERAY MARTÍNEZ CLAVERO"}]
[null,{"$f":"'DATOS DEPORTISTAS'!V175","v":"CAPRI MEQUINENZA"},{"$f":"'DATOS DEPORTISTAS'!I175","v":"CADETE"},{"$f":"'DATOS DEPORTISTAS'!M175","v":"SOFÍA MURZAKOVA"}]
[null,{"$f":"'DATOS DEPORTISTAS'!V176","v":"CAPRI MEQUINENZA"},{"$f":"'DATOS DEPORTISTAS'!I176","v":"VETERANO"},{"$f":"'DATOS DEPORTISTAS'!M176","v":"DAVID OLIVER CABALLÉ"}]
[null,{"$f":"'DATOS DEPORTISTAS'!V177","v":"CAPRI MEQUINENZA"},{"$f":"'DATOS DEPORTISTAS'!I177","v":"ALEVIN"},{"$f":"'DATOS DEPORTISTAS'!M177","v":"NOA PALAU FERRAGUT"}]
[null,{"$f":"'DATOS DEPORTISTAS'!V178","v":"CAPRI MEQUINENZA"},{"$f":"'DATOS DEPORTISTAS'!I178","v":"INFANTIL"},{"$f":"'DATOS DEPORTISTAS'!M178","v":"ISMAEL RAHIBI VIDALLET"}]
[null,{"$f":"'DATOS DEPORTISTAS'!V179","v":"CAPRI MEQUINENZA"},{"$f":"'DATOS DEPORTISTAS'!I179","v":"CADETE"},{"$f":"'DATOS DEPORTISTAS'!M179","v":"MOHAMED ADAM RAHIBI VIDALLET"}]
[null,{"$f":"'DATOS DEPORTISTAS'!V180","v":"CAPRI MEQUINENZA"},{"$f":"'DATOS DEPORTISTAS'!I180","v":"SENIOR"},{"$f":"'DATOS DEPORTISTAS'!M180","v":"JULIA RAMI CASTRO"}]
[null,{"$f":"'DATOS DEPORTISTAS'!V181","v":"CAPRI MEQUINENZA"},{"$f":"'DATOS DEPORTISTAS'!I181","v":"VETERANO"},{"$f":"'DATOS DEPORTISTAS'!M181","v":"SARA  ROMERO OLMOS"}]
[null,{"$f":"'DATOS DEPORTISTAS'!V182","v":"CAPRI MEQUINENZA"},{"$f":"'DATOS DEPORTISTAS'!I182","v":"ALEVIN"},{"$f":"'DATOS DEPORTISTAS'!M182","v":"IKER SANJUÁN SATORRES"}]
[null,{"$f":"'DATOS DEPORTISTAS'!V183","v":"CAPRI MEQUINENZA"},{"$f":"'DATOS DEPORTISTAS'!I183","v":"CADETE"},{"$f":"'DATOS DEPORTISTAS'!M183","v":"SOFÍA SERVETO ORDUÑA"}]
[null,{"$f":"'DATOS DEPORTISTAS'!V184","v":"CAPRI MEQUINENZA"},{"$f":"'DATOS DEPORTISTAS'!I184","v":"VETERANO"},{"$f":"'DATOS DEPORTISTAS'!M184","v":"MERITXELL SIMÓN MARTÍN"}]
[null,{"$f":"'DATOS DEPORTISTAS'!V185","v":"CAPRI MEQUINENZA"},{"$f":"'DATOS DEPORTISTAS'!I185","v":"CADETE"},{"$f":"'DATOS DEPORTISTAS'!M185","v":"CARLA TORRES GODIA"}]
[null,{"$f":"'DATOS DEPORTISTAS'!V186","v":"CAPRI MEQUINENZA"},{"$f":"'DATOS DEPORTISTAS'!I186","v":"JUVENIL"},{"$f":"'DATOS DEPORTISTAS'!M186","v":"PAULA VERA JARQUE"}]
[null,{"$f":"'DATOS DEPORTISTAS'!V187","v":"CAPRI MEQUINENZA"},{"$f":"'DATOS DEPORTISTAS'!I187","v":"CADETE"},{"$f":"'DATOS DEPORTISTAS'!M187","v":"ÁLEX VILELLA BERENGUER"}]
[null,{"$f":"'DATOS DEPORTISTAS'!V188","v":"CAPRI MEQUINENZA"},{"$f":"'DATOS DEPORTISTAS'!I188","v":"BENJAMIN"},{"$f":"'DATOS DEPORTISTAS'!M188","v":"SAÚL VIU NOGUÉS"}]
[null,{"$f":"'DATOS DEPORTISTAS'!V189","v":"CAPRI MEQUINENZA"},{"$f":"'DATOS DEPORTISTAS'!I189","v":"VETERANO"},{"$f":"'DATOS DEPORTISTAS'!M189","v":"PEDRO JOSÉ SERVETO PALOMAR"}]
[null,{"$f":"'DATOS DEPORTISTAS'!V190","v":"CAPRI MEQUINENZA"},{"$f":"'DATOS DEPORTISTAS'!I190","v":"VETERANO"},{"$f":"'DATOS DEPORTISTAS'!M190","v":"MARISOL CLAVERO GARCÍA"}]
[null,{"$f":"'DATOS DEPORTISTAS'!V191","v":"CAPRI MEQUINENZA"},{"$f":"'DATOS DEPORTISTAS'!I191","v":"VETERANO"},{"$f":"'DATOS DEPORTISTAS'!M191","v":"DAVID TORO SOLER"}]
[null,{"$f":"'DATOS DEPORTISTAS'!V192","v":"OS NABATERS D.F."},{"$f":"'DATOS DEPORTISTAS'!I192","v":"VETERANO"},{"$f":"'DATOS DEPORTISTAS'!M192","v":"ÁNGEL AGUILERA ANDRÉS"}]
[null,{"$f":"'DATOS DEPORTISTAS'!V193","v":"OS NABATERS D.F."},{"$f":"'DATOS DEPORTISTAS'!I193","v":"VETERANO"},{"$f":"'DATOS DEPORTISTAS'!M193","v":"JOSÉ CARMELO RICO"}]
[null,{"$f":"'DATOS DEPORTISTAS'!V194","v":"OS NABATERS D.F."},{"$f":"'DATOS DEPORTISTAS'!I194","v":"VETERANO"},{"$f":"'DATOS DEPORTISTAS'!M194","v":"ÁNGEL DE MIGUEL BENITO"}]
[null,{"$f":"'DATOS DEPORTISTAS'!V195","v":"OS NABATERS D.F."},{"$f":"'DATOS DEPORTISTAS'!I195","v":"VETERANO"},{"$f":"'DATOS DEPORTISTAS'!M195","v":"CARLOS MELGARES HIDALGO"}]
[null,{"$f":"'DATOS DEPORTISTAS'!V196","v":"OS NABATERS D.F."},{"$f":"'DATOS DEPORTISTAS'!I196","v":"VETERANO"},{"$f":"'DATOS DEPORTISTAS'!M196","v":"JOSÉ MARÍA EMBARBA LABORDA"}]
[null,{"$f":"'DATOS DEPORTISTAS'!V197","v":"OS NABATERS D.F."},{"$f":"'DATOS DEPORTISTAS'!I197","v":"VETERANO"},{"$f":"'DATOS DEPORTISTAS'!M197","v":"ANTONIO ANSELMO SANCHO NAVARRO"}]
[null,{"$f":"'DATOS DEPORTISTAS'!V198","v":"OS NABATERS D.F."},{"$f":"'DATOS DEPORTISTAS'!I198","v":"VETERANO"},{"$f":"'DATOS DEPORTISTAS'!M198","v":"PEDRO DANIEL PLOU ARTAL"}]
[null,{"$f":"'DATOS DEPORTISTAS'!V199","v":"OS NABATERS D.F."},{"$f":"'DATOS DEPORTISTAS'!I199","v":"VETERANO"},{"$f":"'DATOS DEPORTISTAS'!M199","v":"LUIS CARLOS BELLED LACASA"}]
[null,{"$f":"'DATOS DEPORTISTAS'!V200","v":"OS NABATERS D.F."},{"$f":"'DATOS DEPORTISTAS'!I200","v":"VETERANO"},{"$f":"'DATOS DEPORTISTAS'!M200","v":"ISCICIO NAVARRETE SÁNCHEZ"}]
[null,{"$f":"'DATOS DEPORTISTAS'!V201","v":"OS NABATERS D.F."},{"$f":"'DATOS DEPORTISTAS'!I201","v":"VETERANO"},{"$f":"'DATOS DEPORTISTAS'!M201","v":"JOSÉ IGNACIO MAGDALENA ABAD"}]
[null,{"$f":"'DATOS DEPORTISTAS'!V202","v":"OS NABATERS D.F."},{"$f":"'DATOS DEPORTISTAS'!I202","v":"VETERANO"},{"$f":"'DATOS DEPORTISTAS'!M202","v":"LUIS JAVIER MELERO PASCUAL"}]
[null,{"$f":"'DATOS DEPORTISTAS'!V203","v":"OS NABATERS D.F."},{"$f":"'DATOS DEPORTISTAS'!I203","v":"SENIOR"},{"$f":"'DATOS DEPORTISTAS'!M203","v":"SANTIAGO LAVILLA TENÍAS"}]
[null,{"$f":"'DATOS DEPORTISTAS'!V204","v":"OS NABATERS D.F."},{"$f":"'DATOS DEPORTISTAS'!I204","v":"SENIOR"},{"$f":"'DATOS DEPORTISTAS'!M204","v":"OMAR SEBASTIÁN BUSTÍN"}]
[null,{"$f":"'DATOS DEPORTISTAS'!V205","v":"OS NABATERS D.F."},{"$f":"'DATOS DEPORTISTAS'!I205","v":"SENIOR"},{"$f":"'DATOS DEPORTISTAS'!M205","v":"JESÚS YUS DÍEZ"}]
[null,{"$f":"'DATOS DEPORTISTAS'!V206","v":"OS NABATERS D.F."},{"$f":"'DATOS DEPORTISTAS'!I206","v":"SENIOR"},{"$f":"'DATOS DEPORTISTAS'!M206","v":"RICARDO SALILLAS MARTÍNEZ"}]
[null,{"$f":"'DATOS DEPORTISTAS'!V207","v":"OS NABATERS D.F."},{"$f":"'DATOS DEPORTISTAS'!I207","v":"SENIOR"},{"$f":"'DATOS DEPORTISTAS'!M207","v":"ITZIAR URQUIRI VIDAL"}]
[null,{"$f":"'DATOS DEPORTISTAS'!V208","v":"OS NABATERS D.F."},{"$f":"'DATOS DEPORTISTAS'!I208","v":"SENIOR"},{"$f":"'DATOS DEPORTISTAS'!M208","v":"ALICIA ROMERO DE LA ROSA"}]
[null,{"$f":"'DATOS DEPORTISTAS'!V209","v":"OS NABATERS D.F."},{"$f":"'DATOS DEPORTISTAS'!I209","v":"SENIOR"},{"$f":"'DATOS DEPORTISTAS'!M209","v":"ANA RUBIO EZPELETA"}]
[null,{"$f":"'DATOS DEPORTISTAS'!V210","v":"OS NABATERS D.F."},{"$f":"'DATOS DEPORTISTAS'!I210","v":"SENIOR"},{"$f":"'DATOS DEPORTISTAS'!M210","v":"NAOMI SANCHO BUSTÍN"}]
[null,{"$f":"'DATOS DEPORTISTAS'!V211","v":"OS NABATERS D.F."},{"$f":"'DATOS DEPORTISTAS'!I211","v":"SENIOR"},{"$f":"'DATOS DEPORTISTAS'!M211","v":"ALODIA SANCHO BUSTÍN"}]
[null,{"$f":"'DATOS DEPORTISTAS'!V212","v":"OS NABATERS D.F."},{"$f":"'DATOS DEPORTISTAS'!I212","v":"VETERANO"},{"$f":"'DATOS DEPORTISTAS'!M212","v":"ANDREA MATAIX MONTANER"}]
[null,{"$f":"'DATOS DEPORTISTAS'!V213","v":"CENTRO NATACION HELIOS"},{"$f":"'DATOS DEPORTISTAS'!I213","v":"VETERANO"},{"$f":"'DATOS DEPORTISTAS'!M213","v":"VÍCTOR ESTÉBAN GRAN"}]
[null,{"$f":"'DATOS DEPORTISTAS'!V214","v":"NAUTICO ZARAGOZA"},{"$f":"'DATOS DEPORTISTAS'!I214","v":"VETERANO"},{"$f":"'DATOS DEPORTISTAS'!M214","v":"JOSÉ MANUEL LARROY CALVO"}]
[null,{"$f":"'DATOS DEPORTISTAS'!V215","v":"NAUTICO ZARAGOZA"},{"$f":"'DATOS DEPORTISTAS'!I215","v":"VETERANO"},{"$f":"'DATOS DEPORTISTAS'!M215","v":"IGNACIO JOSÉ RUIZ IRIBARNE"}]
[null,{"$f":"'DATOS DEPORTISTAS'!V216","v":"OS NABATERS D.F."},{"$f":"'DATOS DEPORTISTAS'!I216","v":"SENIOR"},{"$f":"'DATOS DEPORTISTAS'!M216","v":"CARLOTA LAPLANA DÍAZ"}]
[null,{"$f":"'DATOS DEPORTISTAS'!V217","v":"OS NABATERS D.F."},{"$f":"'DATOS DEPORTISTAS'!I217","v":"SENIOR"},{"$f":"'DATOS DEPORTISTAS'!M217","v":"DAVID DÍEZ IBÁÑEZ"}]
[null,{"$f":"'DATOS DEPORTISTAS'!V218","v":"OS NABATERS D.F."},{"$f":"'DATOS DEPORTISTAS'!I218","v":"SENIOR"},{"$f":"'DATOS DEPORTISTAS'!M218","v":"ANDREA HERNANDO FERRER"}]
[null,{"$f":"'DATOS DEPORTISTAS'!V219","v":"OS NABATERS D.F."},{"$f":"'DATOS DEPORTISTAS'!I219","v":"SENIOR"},{"$f":"'DATOS DEPORTISTAS'!M219","v":"CELIA PEÑA ROMERO DE TEJADA"}]
[null,{"$f":"'DATOS DEPORTISTAS'!V220","v":"OS NABATERS D.F."},{"$f":"'DATOS DEPORTISTAS'!I220","v":"SENIOR"},{"$f":"'DATOS DEPORTISTAS'!M220","v":"DIEGO VELA JULIÁN"}]
[null,{"$f":"'DATOS DEPORTISTAS'!V221","v":"OS NABATERS D.F."},{"$f":"'DATOS DEPORTISTAS'!I221","v":"SENIOR"},{"$f":"'DATOS DEPORTISTAS'!M221","v":"JAIME PEÑA ROMERO DE TEJADA"}]
[null,{"$f":"'DATOS DEPORTISTAS'!V222","v":"OS NABATERS D.F."},{"$f":"'DATOS DEPORTISTAS'!I222","v":"SENIOR"},{"$f":"'DATOS DEPORTISTAS'!M222","v":"ALEJANDRO VILLACAMPA RÍOS"}]
[null,{"$f":"'DATOS DEPORTISTAS'!V223","v":"OS NABATERS D.F."},{"$f":"'DATOS DEPORTISTAS'!I223","v":"SENIOR"},{"$f":"'DATOS DEPORTISTAS'!M223","v":"MARÍA ALONSO GUTIÉRREZ"}]
[null,{"$f":"'DATOS DEPORTISTAS'!V224","v":"OS NABATERS D.F."},{"$f":"'DATOS DEPORTISTAS'!I224","v":"SENIOR"},{"$f":"'DATOS DEPORTISTAS'!M224","v":"ITZIAR MARURI GARCÍA"}]
[null,{"$f":"'DATOS DEPORTISTAS'!V225","v":"OS NABATERS D.F."},{"$f":"'DATOS DEPORTISTAS'!I225","v":"SENIOR"},{"$f":"'DATOS DEPORTISTAS'!M225","v":"ANTONIO ALMUDÉVAR ATIENZA"}]
[null,{"$f":"'DATOS DEPORTISTAS'!V226","v":"OS NABATERS D.F."},{"$f":"'DATOS DEPORTISTAS'!I226","v":"SENIOR"},{"$f":"'DATOS DEPORTISTAS'!M226","v":"BORJA COSA REDONDO"}]
[null,{"$f":"'DATOS DEPORTISTAS'!V227","v":"OS NABATERS D.F."},{"$f":"'DATOS DEPORTISTAS'!I227","v":"SENIOR"},{"$f":"'DATOS DEPORTISTAS'!M227","v":"CLARA ANDREU MARTÍN"}]
[null,{"$f":"'DATOS DEPORTISTAS'!V228","v":"OS NABATERS D.F."},{"$f":"'DATOS DEPORTISTAS'!I228","v":"SENIOR"},{"$f":"'DATOS DEPORTISTAS'!M228","v":"JORGE CALAVIA VALDOVINOS"}]
[null,{"$f":"'DATOS DEPORTISTAS'!V229","v":"OS NABATERS D.F."},{"$f":"'DATOS DEPORTISTAS'!I229","v":"SENIOR"},{"$f":"'DATOS DEPORTISTAS'!M229","v":"PEDRO OLLOQUI LÁZARO"}]
[null,{"$f":"'DATOS DEPORTISTAS'!V230","v":"OS NABATERS D.F."},{"$f":"'DATOS DEPORTISTAS'!I230","v":"SENIOR"},{"$f":"'DATOS DEPORTISTAS'!M230","v":"JUAN JOSÉ MUÑOZ LAHOZ"}]
[null,{"$f":"'DATOS DEPORTISTAS'!V231","v":"OS NABATERS D.F."},{"$f":"'DATOS DEPORTISTAS'!I231","v":"SENIOR"},{"$f":"'DATOS DEPORTISTAS'!M231","v":"ÁNGEL BERNAL LECINA"}]
[null,{"$f":"'DATOS DEPORTISTAS'!V232","v":"OS NABATERS D.F."},{"$f":"'DATOS DEPORTISTAS'!I232","v":"JUVENIL"},{"$f":"'DATOS DEPORTISTAS'!M232","v":"LIZANDRO DÍAZ TORNOE"}]
[null,{"$f":"'DATOS DEPORTISTAS'!V233","v":"CAPRI MEQUINENZA"},{"$f":"'DATOS DEPORTISTAS'!I233","v":"SENIOR"},{"$f":"'DATOS DEPORTISTAS'!M233","v":"CARLA MARÍA TEIRA ARBIOL"}]
[null,{"$f":"'DATOS DEPORTISTAS'!V234","v":"CAPRI MEQUINENZA"},{"$f":"'DATOS DEPORTISTAS'!I234","v":"SENIOR"},{"$f":"'DATOS DEPORTISTAS'!M234","v":"MIGUEL RUBIO LAMBEA"}]
[null,{"$f":"'DATOS DEPORTISTAS'!V235","v":"OS NABATERS D.F."},{"$f":"'DATOS DEPORTISTAS'!I235","v":"VETERANO"},{"$f":"'DATOS DEPORTISTAS'!M235","v":"WILNER MANUEL ESCOBAR PERNOLETE"}]
[null,{"$f":"'DATOS DEPORTISTAS'!V236","v":"CAPRI MEQUINENZA"},{"$f":"'DATOS DEPORTISTAS'!I236","v":"JUVENIL"},{"$f":"'DATOS DEPORTISTAS'!M236","v":"IVÁN GODIA SANCHO"}]
[null,{"$f":"'DATOS DEPORTISTAS'!V237","v":0},{"$f":"'DATOS DEPORTISTAS'!I237","v":"SENIOR"},{"$f":"'DATOS DEPORTISTAS'!M237","v":"ALEJANDRO ABECIA SEGARRA"}]
[null,{"$f":"'DATOS DEPORTISTAS'!V238","v":0},{"$f":"'DATOS DEPORTISTAS'!I238","v":"SENIOR"},{"$f":"'DATOS DEPORTISTAS'!M238","v":"ALEJANDRO ABRIL CASAMAYOR"}]
[null,{"$f":"'DATOS DEPORTISTAS'!V239","v":0},{"$f":"'DATOS DEPORTISTAS'!I239","v":"SENIOR"},{"$f":"'DATOS DEPORTISTAS'!M239","v":"MARÍA AGUD MONTAÑES"}]
[null,{"$f":"'DATOS DEPORTISTAS'!V240","v":0},{"$f":"'DATOS DEPORTISTAS'!I240","v":"VETERANO"},{"$f":"'DATOS DEPORTISTAS'!M240","v":"MIGUEL AJA BARQUÍN"}]
[null,{"$f":"'DATOS DEPORTISTAS'!V241","v":0},{"$f":"'DATOS DEPORTISTAS'!I241","v":"SENIOR"},{"$f":"'DATOS DEPORTISTAS'!M241","v":"PABLO ALONSO RAMOS"}]
[null,{"$f":"'DATOS DEPORTISTAS'!V242","v":0},{"$f":"'DATOS DEPORTISTAS'!I242","v":"SENIOR"},{"$f":"'DATOS DEPORTISTAS'!M242","v":"IGNACIO ALONSO ROMÁN"}]
[null,{"$f":"'DATOS DEPORTISTAS'!V243","v":0},{"$f":"'DATOS DEPORTISTAS'!I243","v":"ALEVIN"},{"$f":"'DATOS DEPORTISTAS'!M243","v":"LAURA ALONSO VIADER"}]
[null,{"$f":"'DATOS DEPORTISTAS'!V244","v":0},{"$f":"'DATOS DEPORTISTAS'!I244","v":"SENIOR"},{"$f":"'DATOS DEPORTISTAS'!M244","v":"CRISTINA ÁLVAREZ MORENO"}]
[null,{"$f":"'DATOS DEPORTISTAS'!V245","v":0},{"$f":"'DATOS DEPORTISTAS'!I245","v":"INFANTIL"},{"$f":"'DATOS DEPORTISTAS'!M245","v":"IRENE AMPOLLINI CUADRADO"}]
[null,{"$f":"'DATOS DEPORTISTAS'!V246","v":0},{"$f":"'DATOS DEPORTISTAS'!I246","v":"CADETE"},{"$f":"'DATOS DEPORTISTAS'!M246","v":"INÉS ANGULO AZNAR"}]
[null,{"$f":"'DATOS DEPORTISTAS'!V247","v":0},{"$f":"'DATOS DEPORTISTAS'!I247","v":"VETERANO"},{"$f":"'DATOS DEPORTISTAS'!M247","v":"FRANCISCO ANTORÁN MARTÍN"}]
[null,{"$f":"'DATOS DEPORTISTAS'!V248","v":0},{"$f":"'DATOS DEPORTISTAS'!I248","v":"VETERANO"},{"$f":"'DATOS DEPORTISTAS'!M248","v":"NOELIA ARA GRACIA"}]
[null,{"$f":"'DATOS DEPORTISTAS'!V249","v":0},{"$f":"'DATOS DEPORTISTAS'!I249","v":"VETERANO"},{"$f":"'DATOS DEPORTISTAS'!M249","v":"ANA MARÍA ARAGÜÉS GRIEGO"}]
[null,{"$f":"'DATOS DEPORTISTAS'!V250","v":0},{"$f":"'DATOS DEPORTISTAS'!I250","v":"SENIOR"},{"$f":"'DATOS DEPORTISTAS'!M250","v":"PAULA MARÍA ARNILLAS IBARZ"}]
[null,{"$f":"'DATOS DEPORTISTAS'!V251","v":0},{"$f":"'DATOS DEPORTISTAS'!I251","v":"SENIOR"},{"$f":"'DATOS DEPORTISTAS'!M251","v":"PAULA MARÍA ARNILLAS IBARZ"}]
[null,{"$f":"'DATOS DEPORTISTAS'!V252","v":0},{"$f":"'DATOS DEPORTISTAS'!I252","v":"SENIOR"},{"$f":"'DATOS DEPORTISTAS'!M252","v":"GUILLERMO JAVIER ARRIZABALAGA SOLANO"}]
[null,{"$f":"'DATOS DEPORTISTAS'!V253","v":0},{"$f":"'DATOS DEPORTISTAS'!I253","v":"JUVENIL"},{"$f":"'DATOS DEPORTISTAS'!M253","v":"GEORGE ATKIN"}]
[null,{"$f":"'DATOS DEPORTISTAS'!V254","v":0},{"$f":"'DATOS DEPORTISTAS'!I254","v":"VETERANO"},{"$f":"'DATOS DEPORTISTAS'!M254","v":"FERNANDO AZNAR INFANTE"}]
[null,{"$f":"'DATOS DEPORTISTAS'!V255","v":0},{"$f":"'DATOS DEPORTISTAS'!I255","v":"SENIOR"},{"$f":"'DATOS DEPORTISTAS'!M255","v":"PATRICIA BARAT CORTÉS"}]
[null,{"$f":"'DATOS DEPORTISTAS'!V256","v":0},{"$f":"'DATOS DEPORTISTAS'!I256","v":"VETERANO"},{"$f":"'DATOS DEPORTISTAS'!M256","v":"LLUIS ANTONI BARCELÓ LISO"}]
[null,{"$f":"'DATOS DEPORTISTAS'!V257","v":0},{"$f":"'DATOS DEPORTISTAS'!I257","v":"INFANTIL"},{"$f":"'DATOS DEPORTISTAS'!M257","v":"ETHAN NADIR BENAMAR"}]
[null,{"$f":"'DATOS DEPORTISTAS'!V258","v":0},{"$f":"'DATOS DEPORTISTAS'!I258","v":"VETERANO"},{"$f":"'DATOS DEPORTISTAS'!M258","v":"MÓNICA BERENGUER CÉSPEDES"}]
[null,{"$f":"'DATOS DEPORTISTAS'!V259","v":0},{"$f":"'DATOS DEPORTISTAS'!I259","v":"ALEVIN"},{"$f":"'DATOS DEPORTISTAS'!M259","v":"CARE BERENGUER SAGARRA"}]
[null,{"$f":"'DATOS DEPORTISTAS'!V260","v":0},{"$f":"'DATOS DEPORTISTAS'!I260","v":"JUVENIL"},{"$f":"'DATOS DEPORTISTAS'!M260","v":"ENRIQUE BERENGUER UTRILLA"}]
[null,{"$f":"'DATOS DEPORTISTAS'!V261","v":0},{"$f":"'DATOS DEPORTISTAS'!I261","v":"JUVENIL"},{"$f":"'DATOS DEPORTISTAS'!M261","v":"SALMA BERGES ISAM-ALÍ"}]
[null,{"$f":"'DATOS DEPORTISTAS'!V262","v":0},{"$f":"'DATOS DEPORTISTAS'!I262","v":"SENIOR"},{"$f":"'DATOS DEPORTISTAS'!M262","v":"HELENA BERNAL LACRUZ"}]
[null,{"$f":"'DATOS DEPORTISTAS'!V263","v":0},{"$f":"'DATOS DEPORTISTAS'!I263","v":"SENIOR"},{"$f":"'DATOS DEPORTISTAS'!M263","v":"MANUEL BERNAL LECINA"}]
[null,{"$f":"'DATOS DEPORTISTAS'!V264","v":0},{"$f":"'DATOS DEPORTISTAS'!I264","v":"VETERANO"},{"$f":"'DATOS DEPORTISTAS'!M264","v":"PATRICIA BETRIÁN HERRERA"}]
[null,{"$f":"'DATOS DEPORTISTAS'!V265","v":0},{"$f":"'DATOS DEPORTISTAS'!I265","v":"SENIOR"},{"$f":"'DATOS DEPORTISTAS'!M265","v":"SANTIAGO BLACKALLER MARTÍNEZ"}]
[null,{"$f":"'DATOS DEPORTISTAS'!V266","v":0},{"$f":"'DATOS DEPORTISTAS'!I266","v":"INFANTIL"},{"$f":"'DATOS DEPORTISTAS'!M266","v":"ELOY BLAS SORO"}]
[null,{"$f":"'DATOS DEPORTISTAS'!V267","v":0},{"$f":"'DATOS DEPORTISTAS'!I267","v":"SENIOR"},{"$f":"'DATOS DEPORTISTAS'!M267","v":"DIEGO BLASCO GIMENO"}]
[null,{"$f":"'DATOS DEPORTISTAS'!V268","v":0},{"$f":"'DATOS DEPORTISTAS'!I268","v":"VETERANO"},{"$f":"'DATOS DEPORTISTAS'!M268","v":"MARÍA ISABEL BLASCO OLIETE"}]
[null,{"$f":"'DATOS DEPORTISTAS'!V269","v":"C. DE REMO RETIRO 66"},{"$f":"'DATOS DEPORTISTAS'!I269","v":"VETERANO"},{"$f":"'DATOS DEPORTISTAS'!M269","v":"SOFÍA BLÁZQUEZ UGALDE"}]
[null,{"$f":"'DATOS DEPORTISTAS'!V270","v":0},{"$f":"'DATOS DEPORTISTAS'!I270","v":"INFANTIL"},{"$f":"'DATOS DEPORTISTAS'!M270","v":"IOANA BOGA"}]
[null,{"$f":"'DATOS DEPORTISTAS'!V271","v":0},{"$f":"'DATOS DEPORTISTAS'!I271","v":"SENIOR"},{"$f":"'DATOS DEPORTISTAS'!M271","v":"LUCÍA BOLEA PALOMAR"}]
[null,{"$f":"'DATOS DEPORTISTAS'!V272","v":0},{"$f":"'DATOS DEPORTISTAS'!I272","v":"JUVENIL"},{"$f":"'DATOS DEPORTISTAS'!M272","v":"MARTÍN BOLEA PALOMAR"}]
[null,{"$f":"'DATOS DEPORTISTAS'!V273","v":0},{"$f":"'DATOS DEPORTISTAS'!I273","v":"VETERANO"},{"$f":"'DATOS DEPORTISTAS'!M273","v":"ABEL BORBÓN RODRÍGUEZ"}]
[null,{"$f":"'DATOS DEPORTISTAS'!V274","v":0},{"$f":"'DATOS DEPORTISTAS'!I274","v":"VETERANO"},{"$f":"'DATOS DEPORTISTAS'!M274","v":"FRANCISCO JAVIER BORDETAS OTO"}]
[null,{"$f":"'DATOS DEPORTISTAS'!V275","v":0},{"$f":"'DATOS DEPORTISTAS'!I275","v":"SENIOR"},{"$f":"'DATOS DEPORTISTAS'!M275","v":"ELISA BRAVO VIÑUALES"}]
[null,{"$f":"'DATOS DEPORTISTAS'!V276","v":0},{"$f":"'DATOS DEPORTISTAS'!I276","v":"SENIOR"},{"$f":"'DATOS DEPORTISTAS'!M276","v":"ESTHER BRIZ ZAMORANO"}]
[null,{"$f":"'DATOS DEPORTISTAS'!V277","v":0},{"$f":"'DATOS DEPORTISTAS'!I277","v":"VETERANO"},{"$f":"'DATOS DEPORTISTAS'!M277","v":"SARA BUIL LANGARITA"}]
[null,{"$f":"'DATOS DEPORTISTAS'!V278","v":0},{"$f":"'DATOS DEPORTISTAS'!I278","v":"VETERANO"},{"$f":"'DATOS DEPORTISTAS'!M278","v":"RAQUEL CABALLÉ SILVESTRE"}]
[null,{"$f":"'DATOS DEPORTISTAS'!V279","v":0},{"$f":"'DATOS DEPORTISTAS'!I279","v":"VETERANO"},{"$f":"'DATOS DEPORTISTAS'!M279","v":"IRVING MOISÉS CALLES CARRILLO"}]
[null,{"$f":"'DATOS DEPORTISTAS'!V280","v":"C.N. DE NAVARRA"},{"$f":"'DATOS DEPORTISTAS'!I280","v":"VETERANO"},{"$f":"'DATOS DEPORTISTAS'!M280","v":"JOSÉ IGNACIO CALVENTE VELLOSO"}]
[null,{"$f":"'DATOS DEPORTISTAS'!V281","v":0},{"$f":"'DATOS DEPORTISTAS'!I281","v":"SENIOR"},{"$f":"'DATOS DEPORTISTAS'!M281","v":"MANUEL CALVO BOLSA"}]
[null,{"$f":"'DATOS DEPORTISTAS'!V282","v":0},{"$f":"'DATOS DEPORTISTAS'!I282","v":"VETERANO"},{"$f":"'DATOS DEPORTISTAS'!M282","v":"INMACULADA CANTOS SIMÓN"}]
[null,{"$f":"'DATOS DEPORTISTAS'!V283","v":0},{"$f":"'DATOS DEPORTISTAS'!I283","v":"VETERANO"},{"$f":"'DATOS DEPORTISTAS'!M283","v":"BEATRIZ CARNICER LISO"}]
[null,{"$f":"'DATOS DEPORTISTAS'!V284","v":0},{"$f":"'DATOS DEPORTISTAS'!I284","v":"VETERANO"},{"$f":"'DATOS DEPORTISTAS'!M284","v":"VÍCTOR CARRIÓN DE LAS HERAS"}]
[null,{"$f":"'DATOS DEPORTISTAS'!V285","v":0},{"$f":"'DATOS DEPORTISTAS'!I285","v":"ALEVIN"},{"$f":"'DATOS DEPORTISTAS'!M285","v":"EFRÉN CATALÁN LLOP"}]
[null,{"$f":"'DATOS DEPORTISTAS'!V286","v":0},{"$f":"'DATOS DEPORTISTAS'!I286","v":"INFANTIL"},{"$f":"'DATOS DEPORTISTAS'!M286","v":"VÍCTOR CATALÁN LLOP"}]
[null,{"$f":"'DATOS DEPORTISTAS'!V287","v":0},{"$f":"'DATOS DEPORTISTAS'!I287","v":"JUVENIL"},{"$f":"'DATOS DEPORTISTAS'!M287","v":"ANAIS CATALÁN MONTULL"}]
[null,{"$f":"'DATOS DEPORTISTAS'!V288","v":0},{"$f":"'DATOS DEPORTISTAS'!I288","v":"VETERANO"},{"$f":"'DATOS DEPORTISTAS'!M288","v":"JOSÉ MANUEL CERDÁN TORCAL"}]
[null,{"$f":"'DATOS DEPORTISTAS'!V289","v":0},{"$f":"'DATOS DEPORTISTAS'!I289","v":"JUVENIL"},{"$f":"'DATOS DEPORTISTAS'!M289","v":"KHALID CHALHI"}]
[null,{"$f":"'DATOS DEPORTISTAS'!V290","v":0},{"$f":"'DATOS DEPORTISTAS'!I290","v":"VETERANO"},{"$f":"'DATOS DEPORTISTAS'!M290","v":"CLAIRE CHARRIERE"}]
[null,{"$f":"'DATOS DEPORTISTAS'!V291","v":"C. DE REMO RETIRO 66"},{"$f":"'DATOS DEPORTISTAS'!I291","v":"VETERANO"},{"$f":"'DATOS DEPORTISTAS'!M291","v":"CRISTIAN CHILLÓN RACHL"}]
[null,{"$f":"'DATOS DEPORTISTAS'!V292","v":0},{"$f":"'DATOS DEPORTISTAS'!I292","v":"VETERANO"},{"$f":"'DATOS DEPORTISTAS'!M295","v":"RAUL ANGEL CORTÉS MORENO"}]
[null,{"$f":"'DATOS DEPORTISTAS'!V293","v":0},{"$f":"'DATOS DEPORTISTAS'!I293","v":"SENIOR"},{"$f":"'DATOS DEPORTISTAS'!M296","v":"ALICIA CORTÍ BETRIÁN"}]
[null,{"$f":"'DATOS DEPORTISTAS'!V294","v":0},{"$f":"'DATOS DEPORTISTAS'!I294","v":"VETERANO"},{"$f":"'DATOS DEPORTISTAS'!M297","v":"YAGO CORTÍ BETRIÁN"}]
[null,{"$f":"'DATOS DEPORTISTAS'!V295","v":0},{"$f":"'DATOS DEPORTISTAS'!I295","v":"SENIOR"},{"$f":"'DATOS DEPORTISTAS'!M298","v":"MIGUEL CORZÁN LÓPEZ"}]
[null,{"$f":"'DATOS DEPORTISTAS'!V296","v":0},{"$f":"'DATOS DEPORTISTAS'!I296","v":"VETERANO"},{"$f":"'DATOS DEPORTISTAS'!M299","v":"MONTSERRAT CRESPO SETIÉN"}]
[null,{"$f":"'DATOS DEPORTISTAS'!V297","v":0},{"$f":"'DATOS DEPORTISTAS'!I297","v":"ALEVIN"},{"$f":"'DATOS DEPORTISTAS'!M300","v":"ERIK CUCHI PEÑALVER"}]
[null,{"$f":"'DATOS DEPORTISTAS'!V298","v":0},{"$f":"'DATOS DEPORTISTAS'!I298","v":"SENIOR"},{"$f":"'DATOS DEPORTISTAS'!M301","v":"LUCÍA DE LA LASTRA LANZA"}]
[null,{"$f":"'DATOS DEPORTISTAS'!V299","v":0},{"$f":"'DATOS DEPORTISTAS'!I299","v":"VETERANO"},{"$f":"'DATOS DEPORTISTAS'!M302","v":"VICENTE DE LEÓN AZNAR"}]
[null,{"$f":"'DATOS DEPORTISTAS'!V300","v":0},{"$f":"'DATOS DEPORTISTAS'!I300","v":"INFANTIL"},{"$f":"'DATOS DEPORTISTAS'!M303","v":"JOSÉ IGNACIO DUESO BELVER"}]
[null,{"$f":"'DATOS DEPORTISTAS'!V301","v":0},{"$f":"'DATOS DEPORTISTAS'!I301","v":"SENIOR"},{"$f":"'DATOS DEPORTISTAS'!M304","v":"MARÍA DUESO BELVER"}]
[null,{"$f":"'DATOS DEPORTISTAS'!V302","v":0},{"$f":"'DATOS DEPORTISTAS'!I302","v":"VETERANO"},{"$f":"'DATOS DEPORTISTAS'!M305","v":"CHLOÉ EHRET GARCÍA"}]
[null,{"$f":"'DATOS DEPORTISTAS'!V303","v":0},{"$f":"'DATOS DEPORTISTAS'!I303","v":"SENIOR"},{"$f":"'DATOS DEPORTISTAS'!M306","v":"MAELYA  EHRET GARCÍA"}]
[null,{"$f":"'DATOS DEPORTISTAS'!V304","v":0},{"$f":"'DATOS DEPORTISTAS'!I304","v":"SENIOR"},{"$f":"'DATOS DEPORTISTAS'!M307","v":"SARA EPGORGI ZOUGARI"}]
[null,{"$f":"'DATOS DEPORTISTAS'!V305","v":0},{"$f":"'DATOS DEPORTISTAS'!I305","v":"INFANTIL"},{"$f":"'DATOS DEPORTISTAS'!M308","v":"MARTA FERNANDA ESCALONA COLOMÉ"}]
[null,{"$f":"'DATOS DEPORTISTAS'!V306","v":0},{"$f":"'DATOS DEPORTISTAS'!I306","v":"CADETE"},{"$f":"'DATOS DEPORTISTAS'!M309","v":"FRANCISCO ESCARTÍN GUERRERO"}]
[null,{"$f":"'DATOS DEPORTISTAS'!V307","v":0},{"$f":"'DATOS DEPORTISTAS'!I307","v":"JUVENIL"},{"$f":"'DATOS DEPORTISTAS'!M310","v":"WILNER MANUEL ESCOBAR PERNOLETE"}]
[null,{"$f":"'DATOS DEPORTISTAS'!V308","v":0},{"$f":"'DATOS DEPORTISTAS'!I308","v":"VETERANO"},{"$f":"'DATOS DEPORTISTAS'!M311","v":"ABRIL ESTEBAN GARCÍA"}]
[null,{"$f":"'DATOS DEPORTISTAS'!V309","v":0},{"$f":"'DATOS DEPORTISTAS'!I309","v":"VETERANO"},{"$f":"'DATOS DEPORTISTAS'!M312","v":"RUTH ESTEBAN MARÍN"}]
[null,{"$f":"'DATOS DEPORTISTAS'!V310","v":0},{"$f":"'DATOS DEPORTISTAS'!I310","v":"VETERANO"},{"$f":"'DATOS DEPORTISTAS'!M313","v":"ALICIA PILAR ESTEVAN EIXARCH"}]
[null,{"$f":"'DATOS DEPORTISTAS'!V311","v":0},{"$f":"'DATOS DEPORTISTAS'!I311","v":"SENIOR"},{"$f":"'DATOS DEPORTISTAS'!M314","v":"ERIC ESTEVE NEVADO"}]
[null,{"$f":"'DATOS DEPORTISTAS'!V312","v":0},{"$f":"'DATOS DEPORTISTAS'!I312","v":"VETERANO"},{"$f":"'DATOS DEPORTISTAS'!M315","v":"MARTINA ESTEVE NEVADO"}]
[null,{"$f":"'DATOS DEPORTISTAS'!V313","v":0},{"$f":"'DATOS DEPORTISTAS'!I313","v":"VETERANO"},{"$f":"'DATOS DEPORTISTAS'!M316","v":"AUDALD ESTRADA ROLDÁN"}]
[null,{"$f":"'DATOS DEPORTISTAS'!V314","v":0},{"$f":"'DATOS DEPORTISTAS'!I314","v":"JUVENIL"},{"$f":"'DATOS DEPORTISTAS'!M317","v":"LLUC ESTRADA ROLDÁN"}]
[null,{"$f":"'DATOS DEPORTISTAS'!V315","v":0},{"$f":"'DATOS DEPORTISTAS'!I315","v":"ALEVIN"},{"$f":"'DATOS DEPORTISTAS'!M318","v":"PAULA FALCÓ FLETA"}]
[null,{"$f":"'DATOS DEPORTISTAS'!V316","v":0},{"$f":"'DATOS DEPORTISTAS'!I316","v":"CADETE"},{"$f":"'DATOS DEPORTISTAS'!M319","v":"NICOLÁS FAURE MARTÍN"}]
[null,{"$f":"'DATOS DEPORTISTAS'!V317","v":0},{"$f":"'DATOS DEPORTISTAS'!I317","v":"INFANTIL"},{"$f":"'DATOS DEPORTISTAS'!M320","v":"DENIS FERNÁNDEZ DELGADO"}]
[null,null,null,{"$f":"'DATOS DEPORTISTAS'!M318","v":"PAULA FALCÓ FLETA"}]
[null,null,null,{"$f":"'DATOS DEPORTISTAS'!M319","v":"NICOLÁS FAURE MARTÍN"}]
[null,null,null,{"$f":"'DATOS DEPORTISTAS'!M320","v":"DENIS FERNÁNDEZ DELGADO"}]
[null,null,null,{"$f":"'DATOS DEPORTISTAS'!M321","v":"ALBERTO FERNÁNDEZ DÍEZ"}]
[null,null,null,{"$f":"'DATOS DEPORTISTAS'!M322","v":"LAURA FERNÁNDEZ GRASA"}]
[null,null,null,{"$f":"'DATOS DEPORTISTAS'!M323","v":"ALBERTO FERNÁNDEZ SANZ"}]
[null,null,null,{"$f":"'DATOS DEPORTISTAS'!M324","v":"LUCAS FERRANDO QUÍLEZ"}]
[null,null,null,{"$f":"'DATOS DEPORTISTAS'!M325","v":"CARLOS FERRER MÍNGUEZ"}]
[null,null,null,{"$f":"'DATOS DEPORTISTAS'!M326","v":"LAURA FORNOS NAVARRO"}]
[null,null,null,{"$f":"'DATOS DEPORTISTAS'!M327","v":"JORGE FRANCÉS VINTANED"}]
[null,null,null,{"$f":"'DATOS DEPORTISTAS'!M328","v":"VALENTINA  FRISA MORET"}]
[null,null,null,{"$f":"'DATOS DEPORTISTAS'!M329","v":"DANIEL GALE LECHÓN"}]
[null,null,null,{"$f":"'DATOS DEPORTISTAS'!M330","v":"CARMEN GÁLVEZ ARIAS"}]
[null,null,null,{"$f":"'DATOS DEPORTISTAS'!M331","v":"ALBERTO GARAICOECHEA SÁNCHEZ"}]
[null,null,null,{"$f":"'DATOS DEPORTISTAS'!M332","v":"EMMA GARCÉS LÓPEZ"}]
[null,null,null,{"$f":"'DATOS DEPORTISTAS'!M333","v":"KARIM GARCIA BECHDJ"}]
[null,null,null,{"$f":"'DATOS DEPORTISTAS'!M334","v":"FERNANDO GARCÍA CEITEGUI"}]
[null,null,null,{"$f":"'DATOS DEPORTISTAS'!M335","v":"JAVIER GARCÍA DE PABLO"}]
[null,null,null,{"$f":"'DATOS DEPORTISTAS'!M336","v":"VICTORIA GARCIA ESCANDE"}]
[null,null,null,{"$f":"'DATOS DEPORTISTAS'!M337","v":"ÍÑIGO GARCÍA SEGADO"}]
[null,null,null,{"$f":"'DATOS DEPORTISTAS'!M338","v":"RODRIGO GARCÍA SEGADO"}]
[null,null,null,{"$f":"'DATOS DEPORTISTAS'!M339","v":"JAVIER GARI ABELLA"}]
[null,null,null,{"$f":"'DATOS DEPORTISTAS'!M340","v":"EDGAR GARÍ MURILLO"}]
[null,null,null,{"$f":"'DATOS DEPORTISTAS'!M341","v":"MARTA  GAYA JORNET"}]
[null,null,null,{"$f":"'DATOS DEPORTISTAS'!M342","v":"VÍCTOR GIL GIL"}]
[null,null,null,{"$f":"'DATOS DEPORTISTAS'!M343","v":"ISMAEL  GIL MIGUEL"}]
[null,null,null,{"$f":"'DATOS DEPORTISTAS'!M344","v":"SHELTER SASKIA GIMBEL-SHERR"}]
[null,null,null,{"$f":"'DATOS DEPORTISTAS'!M345","v":"JAIME GIMENO FERRER"}]
[null,null,null,{"$f":"'DATOS DEPORTISTAS'!M346","v":"PALOMA GIMENO RIAU"}]
[null,null,null,{"$f":"'DATOS DEPORTISTAS'!M347","v":"ERIKA GODIA NICOLAU"}]
[null,null,null,{"$f":"'DATOS DEPORTISTAS'!M348","v":"ALEXIA GODIA PI"}]
[null,null,null,{"$f":"'DATOS DEPORTISTAS'!M349","v":"MARÍA PILAR GODIA PI"}]
[null,null,null,{"$f":"'DATOS DEPORTISTAS'!M350","v":"IVÁN GODIA SANCHO"}]
[null,null,null,{"$f":"'DATOS DEPORTISTAS'!M351","v":"JOSÉ GODIA VIVES"}]
[null,null,null,{"$f":"'DATOS DEPORTISTAS'!M352","v":"MARÍA CRISTINA GÓMEZ DE MENA"}]
[null,null,null,{"$f":"'DATOS DEPORTISTAS'!M353","v":"JUNCAL GÓMEZ RIVERO"}]
[null,null,null,{"$f":"'DATOS DEPORTISTAS'!M354","v":"XIMENA GÓMEZ SALINAS"}]
[null,null,null,{"$f":"'DATOS DEPORTISTAS'!M355","v":"NICOLÁS GONZÁLEZ FERNÁNCEZ"}]
[null,null,null,{"$f":"'DATOS DEPORTISTAS'!M356","v":"MARÍA JESÚS GONZALVO ITURRIAGA"}]
[null,null,null,{"$f":"'DATOS DEPORTISTAS'!M357","v":"KIARA GRACIA ALUTIZ"}]
[null,null,null,{"$f":"'DATOS DEPORTISTAS'!M358","v":"MARÍA TERESA GRAU JALLE"}]
[null,null,null,{"$f":"'DATOS DEPORTISTAS'!M359","v":"SARA GRESA MUÑOZ"}]
[null,null,null,{"$f":"'DATOS DEPORTISTAS'!M360","v":"AFRICA GUARDIOLA BARTOLOMÉ"}]
[null,null,null,{"$f":"'DATOS DEPORTISTAS'!M361","v":"FRANCISCO HERNÁNDEZ RODRÍGUEZ"}]
[null,null,null,{"$f":"'DATOS DEPORTISTAS'!M362","v":"VÍCTOR HERRAIZ LÓPEZ"}]
[null,null,null,{"$f":"'DATOS DEPORTISTAS'!M363","v":"BRUNO HERRERO GARCÍA"}]
[null,null,null,{"$f":"'DATOS DEPORTISTAS'!M364","v":"JORDI HIERRO PÁEZ"}]
[null,null,null,{"$f":"'DATOS DEPORTISTAS'!M365","v":"ALEIX IBARZ BERENGUER"}]
[null,null,null,{"$f":"'DATOS DEPORTISTAS'!M366","v":"JOSÉ MANUEL IBARZ IBARZ"}]
[null,null,null,{"$f":"'DATOS DEPORTISTAS'!M367","v":"SOFÍA IBARZ TEIRA"}]
[null,null,null,{"$f":"'DATOS DEPORTISTAS'!M368","v":"PAÚL INEVA SALILLAS"}]
[null,null,null,{"$f":"'DATOS DEPORTISTAS'!M369","v":"LAURA JAVIERRE LÓPEZ"}]
[null,null,null,{"$f":"'DATOS DEPORTISTAS'!M370","v":"LUCÍA JÚDEZ PÉREZ"}]
[null,null,null,{"$f":"'DATOS DEPORTISTAS'!M371","v":"PABLO JURADO PÉREZ"}]
[null,null,null,{"$f":"'DATOS DEPORTISTAS'!M372","v":"CÉSAR JUSTE ECHEVERRÍA"}]
[null,null,null,{"$f":"'DATOS DEPORTISTAS'!M373","v":"HÉCTOR JUSTE IBARZ"}]
[null,null,null,{"$f":"'DATOS DEPORTISTAS'!M374","v":"CHRISTIAN KLEINGRIES FORCÉN"}]
[null,null,null,{"$f":"'DATOS DEPORTISTAS'!M375","v":"NICOL KOGUT"}]
[null,null,null,{"$f":"'DATOS DEPORTISTAS'!M376","v":"CLEMENTE FERNANDO LABORDA VAL"}]
[null,null,null,{"$f":"'DATOS DEPORTISTAS'!M377","v":"SANTIAGO LACASTA TORRES"}]
[null,null,null,{"$f":"'DATOS DEPORTISTAS'!M378","v":"VICTORIA LAPUENTE MARTÍN"}]
[null,null,null,{"$f":"'DATOS DEPORTISTAS'!M379","v":"JOSÉ LARIO MARÍN"}]
[null,null,null,{"$f":"'DATOS DEPORTISTAS'!M380","v":"MARTA LARIO MARTÍNEZ"}]
[null,null,null,{"$f":"'DATOS DEPORTISTAS'!M381","v":"SUSANA LÁZARO MUÑOZ"}]
[null,null,null,{"$f":"'DATOS DEPORTISTAS'!M382","v":"MARCOS LÁZARO SANTABÁRBARA"}]
[null,null,null,{"$f":"'DATOS DEPORTISTAS'!M383","v":"ASHER LEFKOFF"}]
[null,null,null,{"$f":"'DATOS DEPORTISTAS'!M384","v":"LEYRE LEGAZ LAFUENTE"}]
[null,null,null,{"$f":"'DATOS DEPORTISTAS'!M385","v":"ÁFRICA LERMA CLAVERO"}]
[null,null,null,{"$f":"'DATOS DEPORTISTAS'!M386","v":"JORGE LITE BARÓN"}]
[null,null,null,{"$f":"'DATOS DEPORTISTAS'!M387","v":"MERITXELL LLOP CALLIZO"}]
[null,null,null,{"$f":"'DATOS DEPORTISTAS'!M388","v":"JESÚS LOGROÑO VISCASILLAS"}]
[null,null,null,{"$f":"'DATOS DEPORTISTAS'!M389","v":"JUDITH LONCÁ RIAU"}]
[null,null,null,{"$f":"'DATOS DEPORTISTAS'!M390","v":"IRENE LÓPEZ BOSQUE"}]
[null,null,null,{"$f":"'DATOS DEPORTISTAS'!M391","v":"ALBA LÓPEZ DE LEÓN"}]
[null,null,null,{"$f":"'DATOS DEPORTISTAS'!M392","v":"ALONSO LÓPEZ DE LEÓN"}]
[null,null,null,{"$f":"'DATOS DEPORTISTAS'!M393","v":"GERARD LORA GRANADOS"}]
[null,null,null,{"$f":"'DATOS DEPORTISTAS'!M394","v":"PAULA LORDA BESTUÉ"}]
[null,null,null,{"$f":"'DATOS DEPORTISTAS'!M395","v":"SERGIO LORENTE CORTÉS"}]
[null,null,null,{"$f":"'DATOS DEPORTISTAS'!M396","v":"PEDRO ALEJANDRO LORENZ CALVO"}]
[null,null,null,{"$f":"'DATOS DEPORTISTAS'!M397","v":"MARCOS LUNA IBARZ"}]
[null,null,null,{"$f":"'DATOS DEPORTISTAS'!M398","v":"SEBASTIÁN ALEJANDRO LUNA VALOROSO"}]
[null,null,null,{"$f":"'DATOS DEPORTISTAS'!M399","v":"SERGIO MAGALLÓN TEJERO"}]
[null,null,null,{"$f":"'DATOS DEPORTISTAS'!M400","v":"ALBA MANERO HERRERO"}]
[null,null,null,{"$f":"'DATOS DEPORTISTAS'!M401","v":"CYNTHIA MANOSALVAS PILLAJO"}]
[null,null,null,{"$f":"'DATOS DEPORTISTAS'!M402","v":"GABRIELA MANZANARES GÓMEZ"}]
[null,null,null,{"$f":"'DATOS DEPORTISTAS'!M403","v":"PILAR MARCÉN GUTIÉRREZ"}]
[null,null,null,{"$f":"'DATOS DEPORTISTAS'!M404","v":"LARA MARGUERITE DEMANDE"}]
[null,null,null,{"$f":"'DATOS DEPORTISTAS'!M405","v":"LUCÍA MÁRQUEZ GUARDIOLA"}]
[null,null,null,{"$f":"'DATOS DEPORTISTAS'!M406","v":"ÓSCAR MARTÍN TORRES"}]
[null,null,null,{"$f":"'DATOS DEPORTISTAS'!M407","v":"GUILLERMO MARTÍNEZ ALFRANCA"}]
[null,null,null,{"$f":"'DATOS DEPORTISTAS'!M408","v":"PEDRO IGNACIO MARTÍNEZ CABELLO"}]
[null,null,null,{"$f":"'DATOS DEPORTISTAS'!M409","v":"MARINA MARTÍNEZ FERNÁNDEZ"}]
[null,null,null,{"$f":"'DATOS DEPORTISTAS'!M410","v":"SARA MARTÍNEZ GARCÍA"}]
[null,null,null,{"$f":"'DATOS DEPORTISTAS'!M411","v":"MARCOS MARTÍNEZ IBÁÑEZ"}]
[null,null,null,{"$f":"'DATOS DEPORTISTAS'!M412","v":"CARLA MARTÍNEZ MINGUILLÓN"}]
[null,null,null,{"$f":"'DATOS DEPORTISTAS'!M413","v":"ENCARNA  MARTÍNEZ SOLA"}]
[null,null,null,{"$f":"'DATOS DEPORTISTAS'!M414","v":"DAVID MARTÍNEZ TORRES"}]
[null,null,null,{"$f":"'DATOS DEPORTISTAS'!M415","v":"ELENA MARTÍNEZ TORRES"}]
[null,null,null,{"$f":"'DATOS DEPORTISTAS'!M416","v":"JAVIER MELENDO SANJUAN"}]
[null,null,null,{"$f":"'DATOS DEPORTISTAS'!M417","v":"MARIAN-MADALIN MIHAI"}]
[null,null,null,{"$f":"'DATOS DEPORTISTAS'!M418","v":"DARÍO MILLÁN GUÍU"}]
[null,null,null,{"$f":"'DATOS DEPORTISTAS'!M419","v":"JULIA MODREGO CANTORNA"}]
[null,null,null,{"$f":"'DATOS DEPORTISTAS'!M420","v":"PAOLA MOLINA ALONSO"}]
[null,null,null,{"$f":"'DATOS DEPORTISTAS'!M421","v":"PATRICIA MOLINA McGHEE"}]
[null,null,null,{"$f":"'DATOS DEPORTISTAS'!M422","v":"SUSANA MONTERO REGUILÓN"}]
[null,null,null,{"$f":"'DATOS DEPORTISTAS'!M423","v":"CLAUDIA MONTILLA GALLEGO"}]
[null,null,null,{"$f":"'DATOS DEPORTISTAS'!M424","v":"ÁLVARO MORELLA BARREDA"}]
[null,null,null,{"$f":"'DATOS DEPORTISTAS'!M425","v":"EDUARDO MORELLA BARREDA"}]
[null,null,null,{"$f":"'DATOS DEPORTISTAS'!M426","v":"CARLOS ALBERTO MUNIESA FERRERO"}]
[null,null,null,{"$f":"'DATOS DEPORTISTAS'!M427","v":"MARÍA INMACULADA MUNIESA NAVARRO"}]
[null,null,null,{"$f":"'DATOS DEPORTISTAS'!M428","v":"JUAN MUÑOZ LÓPEZ"}]
[null,null,null,{"$f":"'DATOS DEPORTISTAS'!M429","v":"PATRICIA MUÑOZ OCHOA"}]
[null,null,null,{"$f":"'DATOS DEPORTISTAS'!M430","v":"PATRICIA MURIAGO PÉREZ-LIZANU"}]
[null,null,null,{"$f":"'DATOS DEPORTISTAS'!M431","v":"JUDITH MURILLO AGUILAR"}]
[null,null,null,{"$f":"'DATOS DEPORTISTAS'!M432","v":"IVÁN NAVARRO VILLACAMPA"}]
[null,null,null,{"$f":"'DATOS DEPORTISTAS'!M433","v":"LEÓN NEBRA MARTÍNEZ"}]
[null,null,null,{"$f":"'DATOS DEPORTISTAS'!M434","v":"JUAN RAMÓN NIETO SÁNCHEZ"}]
[null,null,null,{"$f":"'DATOS DEPORTISTAS'!M435","v":"RAÚL NOGUERAS PUEYO"}]
[null,null,null,{"$f":"'DATOS DEPORTISTAS'!M436","v":"LORENA NOGUÉS NICOLÁS"}]
[null,null,null,{"$f":"'DATOS DEPORTISTAS'!M437","v":"NAJAT NOUALI EL GUENNOUNI"}]
[null,null,null,{"$f":"'DATOS DEPORTISTAS'!M438","v":"MARA NOVIALS OLIVER"}]
[null,null,null,{"$f":"'DATOS DEPORTISTAS'!M439","v":"DAVID NUÑO PARACUELLOS"}]
[null,null,null,{"$f":"'DATOS DEPORTISTAS'!M440","v":"MARC OLIVER IBARZ"}]
[null,null,null,{"$f":"'DATOS DEPORTISTAS'!M441","v":"MARINO OLIVEROS BLANCO"}]
[null,null,null,{"$f":"'DATOS DEPORTISTAS'!M442","v":"INÉS ORDUNA GARCÍA"}]
[null,null,null,{"$f":"'DATOS DEPORTISTAS'!M443","v":"MARKEL OTEGUI SANTOLARIA"}]
[null,null,null,{"$f":"'DATOS DEPORTISTAS'!M444","v":"MONTSERRAT PALAU LARA"}]
[null,null,null,{"$f":"'DATOS DEPORTISTAS'!M445","v":"HUGO PASCUAL BIARGE"}]
[null,null,null,{"$f":"'DATOS DEPORTISTAS'!M446","v":"HUGO PASCUAL GRACIA"}]
[null,null,null,{"$f":"'DATOS DEPORTISTAS'!M447","v":"JOSÉ PASTOR ASENSIO"}]
[null,null,null,{"$f":"'DATOS DEPORTISTAS'!M448","v":"MARÍA ÁNGELES PASTOR MONTAÑO"}]
[null,null,null,{"$f":"'DATOS DEPORTISTAS'!M449","v":"RUBÉN PELEGRÍN ROMERO"}]
[null,null,null,{"$f":"'DATOS DEPORTISTAS'!M450","v":"ANA PEÑA ROMERO DE TEJADA"}]
[null,null,null,{"$f":"'DATOS DEPORTISTAS'!M451","v":"JORGE PEQUERUL SARIÑENA"}]
[null,null,null,{"$f":"'DATOS DEPORTISTAS'!M452","v":"ALEXANDRA PÉREZ BERNAD"}]
[null,null,null,{"$f":"'DATOS DEPORTISTAS'!M453","v":"LEIRE PÉREZ DE ACHA"}]
[null,null,null,{"$f":"'DATOS DEPORTISTAS'!M454","v":"MARÍA JOSÉ PÉREZ MALLÉN"}]
[null,null,null,{"$f":"'DATOS DEPORTISTAS'!M455","v":"EIDER PÉREZ MORENO"}]
[null,null,null,{"$f":"'DATOS DEPORTISTAS'!M456","v":"BELTRÁN PÉREZ VÁZQUEZ"}]
[null,null,null,{"$f":"'DATOS DEPORTISTAS'!M457","v":"ADRIANA PÉREZ-ILZARBE ORTIZ"}]
[null,null,null,{"$f":"'DATOS DEPORTISTAS'!M458","v":"JOSÉ PIÑEDO TORRES"}]
[null,null,null,{"$f":"'DATOS DEPORTISTAS'!M459","v":"JULIA PIÑEDO TORRES"}]
[null,null,null,{"$f":"'DATOS DEPORTISTAS'!M460","v":"TIMOTHY JAMES PITT"}]
[null,null,null,{"$f":"'DATOS DEPORTISTAS'!M461","v":"JAVIER PLAZA LEGIDO"}]
[null,null,null,{"$f":"'DATOS DEPORTISTAS'!M462","v":"SUSANA PONCE USÓN"}]
[null,null,null,{"$f":"'DATOS DEPORTISTAS'!M463","v":"ÁNGEL PUEYO DIARTE"}]
[null,null,null,{"$f":"'DATOS DEPORTISTAS'!M464","v":"IRINA PUSCO VICO"}]
[null,null,null,{"$f":"'DATOS DEPORTISTAS'!M465","v":"JOSÉ MARÍA RAMÓN COSIALS"}]
[null,null,null,{"$f":"'DATOS DEPORTISTAS'!M466","v":"JOSÉ CARMELO RICO MORENO"}]
[null,null,null,{"$f":"'DATOS DEPORTISTAS'!M467","v":"ROSA RÍOS LÓPEZ"}]
[null,null,null,{"$f":"'DATOS DEPORTISTAS'!M468","v":"CARLOS ANDRES ROCA ESTEVE"}]
[null,null,null,{"$f":"'DATOS DEPORTISTAS'!M469","v":"CARLOS ROCA ESTEVE"}]
[null,null,null,{"$f":"'DATOS DEPORTISTAS'!M470","v":"LUIS JAVIER ROCA OLIVER"}]
[null,null,null,{"$f":"'DATOS DEPORTISTAS'!M471","v":"ÁXEL ROCA VENTURA"}]
[null,null,null,{"$f":"'DATOS DEPORTISTAS'!M472","v":"PAULA RODRÍGUEZ CAMBRA"}]
[null,null,null,{"$f":"'DATOS DEPORTISTAS'!M473","v":"SHEILA ROY PARLANTE"}]
[null,null,null,{"$f":"'DATOS DEPORTISTAS'!M474","v":"MIGUEL RUBIO LAMBEA"}]
[null,null,null,{"$f":"'DATOS DEPORTISTAS'!M475","v":"SONSOLES RUIZ JOUVÉ"}]
[null,null,null,{"$f":"'DATOS DEPORTISTAS'!M476","v":"AITOR SALO LORÉS"}]
[null,null,null,{"$f":"'DATOS DEPORTISTAS'!M477","v":"ISABEL SÁNCHEZ DENIS"}]
[null,null,null,{"$f":"'DATOS DEPORTISTAS'!M478","v":"RUBÉN SÁNCHEZ LLOP"}]
[null,null,null,{"$f":"'DATOS DEPORTISTAS'!M479","v":"DIEGO SANCHEZ MIGUEL"}]
[null,null,null,{"$f":"'DATOS DEPORTISTAS'!M480","v":"ÁNGEL SÁNCHEZ SÁNCHEZ"}]
[null,null,null,{"$f":"'DATOS DEPORTISTAS'!M481","v":"CRISTINA SANDE CECCHI"}]
[null,null,null,{"$f":"'DATOS DEPORTISTAS'!M482","v":"ARIADNA SANJUÁN VERA"}]
[null,null,null,{"$f":"'DATOS DEPORTISTAS'!M483","v":"JOSÉ IGNACIO SANTA EUGENIA MERCADO"}]
[null,null,null,{"$f":"'DATOS DEPORTISTAS'!M484","v":"DANIEL JOAQUÍN SANTAMARÍA GARCÍA DE JALÓN"}]
[null,null,null,{"$f":"'DATOS DEPORTISTAS'!M485","v":"EDGAR SANTANA IBARZ"}]
[null,null,null,{"$f":"'DATOS DEPORTISTAS'!M486","v":"TAMARA SARATLIC"}]
[null,null,null,{"$f":"'DATOS DEPORTISTAS'!M487","v":"JOSÉ GABRIEL SEBASTIÁN BELANCHE"}]
[null,null,null,{"$f":"'DATOS DEPORTISTAS'!M488","v":"JORGE SEBASTIÁN NUEZ"}]
[null,null,null,{"$f":"'DATOS DEPORTISTAS'!M489","v":"NATALIA SERRANO GUALLAR"}]
[null,null,null,{"$f":"'DATOS DEPORTISTAS'!M490","v":"PABLO SERRANO MARTÍNEZ"}]
[null,null,null,{"$f":"'DATOS DEPORTISTAS'!M491","v":"SARA SERVETO ORDUÑA"}]
[null,null,null,{"$f":"'DATOS DEPORTISTAS'!M492","v":"TOMÁS SEVIL DOMINGO"}]
[null,null,null,{"$f":"'DATOS DEPORTISTAS'!M493","v":"ROI SILVA CASAL"}]
[null,null,null,{"$f":"'DATOS DEPORTISTAS'!M494","v":"DANIIL SOLONETS"}]
[null,null,null,{"$f":"'DATOS DEPORTISTAS'!M495","v":"TEODORO TOBOSO MORENO"}]
[null,null,null,{"$f":"'DATOS DEPORTISTAS'!M496","v":"MARÍA ISABEL TOLOSANA ARBONES"}]
[null,null,null,{"$f":"'DATOS DEPORTISTAS'!M497","v":"GEORGIA TSAI BADENHOPE"}]
[null,null,null,{"$f":"'DATOS DEPORTISTAS'!M498","v":"JOXEMIEL URRA LAMANA"}]
[null,null,null,{"$f":"'DATOS DEPORTISTAS'!M499","v":"MARÍA PILAR USED LAHOZ"}]
[null,null,null,{"$f":"'DATOS DEPORTISTAS'!M500","v":"ALEJANDRO MANUEL UTRILLA ABUELO"}]
[null,null,null,{"$f":"'DATOS DEPORTISTAS'!M501","v":"PABLO VAL CAMPILLO"}]
[null,null,null,{"$f":"'DATOS DEPORTISTAS'!M502","v":"DIEGO VALERO BOLEA"}]
[null,null,null,{"$f":"'DATOS DEPORTISTAS'!M503","v":"JORDI VALLES SANJUAN"}]
[null,null,null,{"$f":"'DATOS DEPORTISTAS'!M504","v":"KIARA VALVERDE ANDRÉS"}]
[null,null,null,{"$f":"'DATOS DEPORTISTAS'!M505","v":"ALEJANDRO VARGAS PITAR"}]
[null,null,null,{"$f":"'DATOS DEPORTISTAS'!M506","v":"MARTINA VELILLA PÉREZ"}]
[null,null,null,{"$f":"'DATOS DEPORTISTAS'!M507","v":"ARTURO VERGÉ TORRES"}]
[null,null,null,{"$f":"'DATOS DEPORTISTAS'!M508","v":"JOSÉ CARLOS VICENTE ESCOSA"}]
[null,null,null,{"$f":"'DATOS DEPORTISTAS'!M509","v":"JOSÉ ANTONIO VILELLA RIAU"}]
[null,null,null,{"$f":"'DATOS DEPORTISTAS'!M510","v":"VALENTÍN VILLALBA MULA"}]
[null,null,null,{"$f":"'DATOS DEPORTISTAS'!M511","v":"PEDRO VILLAR MARTÍNEZ"}]
[null,null,null,{"$f":"'DATOS DEPORTISTAS'!M512","v":"GERMÁN VILLORO ANGLÉS"}]

{"sheet":"NAUTICO ZARAGOZA","index":10,"n_rows":21,"n_cols":29,"rows_kept":21,"cut":false,"hidden":true,"merged":[]}
[]
[null,null,null,null,null,null,"CLUB",null,"CATEGORIA"]
[null,null,null,null,null,null,{"$f":"_xlfn._xlws.SORT(_xlfn.UNIQUE(Tabla12[CLUB]))","v":0},null,{"$f":"_xlfn._xlws.SORT(_xlfn.UNIQUE(Tabla12[CAT.]))","v":0}]
[null,null,null,null,null,null,"ARAGÓN REMO",null,"ALEVIN"]
[null,null,null,null,null,null,"C. DE REMO RETIRO 66",null,"BENJAMIN"]
[null,null,null,null,null,null,"C.N. DE NAVARRA",null,"CADETE"]
[null,null,null,null,null,null,"CAPRI MEQUINENZA",null,"F.A.R."]
[null,null,null,null,null,null,"CENTRO NATACION HELIOS",null,"INFANTIL"]
[null,null,null,null,null,null,"F.A.R.",null,"JUVENIL"]
[null,null,null,null,null,null,"NAUTICO ZARAGOZA",null,"SENIOR"]
[null,null,null,null,null,null,"OS NABATERS D.F.",null,"VETERANO"]
[]
[]
[]
[null,null,"CLUB","CATEGORIA",null,null,"CLUB","CATEGORIA",null,null,"CLUB","CATEGORIA",null,null,"CLUB","CATEGORIA",null,null,"CLUB","CATEGORIA",null,null,"CLUB","CATEGORIA",null,null,"CLUB","CATEGORIA"]
[null,null,"NAUTICO ZARAGOZA","VETERANO",null,null,"NAUTICO ZARAGOZA","SENIOR",null,null,"NAUTICO ZARAGOZA","JUVENIL",null,null,"NAUTICO ZARAGOZA","CADETE",null,null,"NAUTICO ZARAGOZA","INFANTIL",null,null,"NAUTICO ZARAGOZA","ALEVIN",null,null,"NAUTICO ZARAGOZA","BENJAMIN"]
[]
[]
[null,null,"CLUB","CAT.","NOMBRE COMPLETO",null,"CLUB","CAT.","NOMBRE COMPLETO",null,"CLUB","CAT.","NOMBRE COMPLETO",null,"CLUB","CAT.","NOMBRE COMPLETO",null,"CLUB","CAT.","NOMBRE COMPLETO",null,"CLUB","CAT.","NOMBRE COMPLETO",null,"CLUB","CAT.","NOMBRE COMPLETO"]
[null,null,{"$f":"_xlfn._xlws.SORT(_xlfn._xlws.FILTER(FILTRADO,(Tabla12[CLUB]=C16)*(Tabla12[CAT.]=D16)),3,1)","v":"NAUTICO ZARAGOZA"},"VETERANO","IGNACIO JOSÉ RUIZ IRIBARNE",null,{"$f":"_xlfn._xlws.SORT(_xlfn._xlws.FILTER(FILTRADO,(Tabla12[CLUB]=G16)*(Tabla12[CAT.]=H16)),3,1)","v":{"$error":"#VALUE!"}},null,null,null,{"$f":"_xlfn._xlws.SORT(_xlfn._xlws.FILTER(FILTRADO,(Tabla12[CLUB]=K16)*(Tabla12[CAT.]=L16)),3,1)","v":{"$error":"#VALUE!"}},null,null,null,{"$f":"_xlfn._xlws.SORT(_xlfn._xlws.FILTER(FILTRADO,(Tabla12[CLUB]=O16)*(Tabla12[CAT.]=P16)),3,1)","v":{"$error":"#VALUE!"}},null,null,null,{"$f":"_xlfn._xlws.SORT(_xlfn._xlws.FILTER(FILTRADO,(Tabla12[CLUB]=S16)*(Tabla12[CAT.]=T16)),3,1)","v":{"$error":"#VALUE!"}},null,null,null,{"$f":"_xlfn._xlws.SORT(_xlfn._xlws.FILTER(FILTRADO,(Tabla12[CLUB]=W16)*(Tabla12[CAT.]=X16)),3,1)","v":{"$error":"#VALUE!"}},null,null,null,{"$f":"_xlfn._xlws.SORT(_xlfn._xlws.FILTER(FILTRADO,(Tabla12[CLUB]=AA16)*(Tabla12[CAT.]=AB16)),3,1)","v":{"$error":"#VALUE!"}}]
[null,null,"NAUTICO ZARAGOZA","VETERANO","JOSÉ MANUEL LARROY CALVO"]

{"sheet":"OS NABATERS","index":11,"n_rows":47,"n_cols":29,"rows_kept":47,"cut":false,"hidden":true,"merged":[]}
[]
[null,null,null,null,null,null,"CLUB",null,"CATEGORIA"]
[null,null,null,null,null,null,{"$f":"_xlfn._xlws.SORT(_xlfn.UNIQUE(Tabla12[CLUB]))","v":0},null,{"$f":"_xlfn._xlws.SORT(_xlfn.UNIQUE(Tabla12[CAT.]))","v":0}]
[null,null,null,null,null,null,"ARAGÓN REMO",null,"ALEVIN"]
[null,null,null,null,null,null,"C. DE REMO RETIRO 66",null,"BENJAMIN"]
[null,null,null,null,null,null,"C.N. DE NAVARRA",null,"CADETE"]
[null,null,null,null,null,null,"CAPRI MEQUINENZA",null,"F.A.R."]
[null,null,null,null,null,null,"CENTRO NATACION HELIOS",null,"INFANTIL"]
[null,null,null,null,null,null,"F.A.R.",null,"JUVENIL"]
[null,null,null,null,null,null,"NAUTICO ZARAGOZA",null,"SENIOR"]
[null,null,null,null,null,null,"OS NABATERS D.F.",null,"VETERANO"]
[]
[]
[]
[null,null,"CLUB","CATEGORIA",null,null,"CLUB","CATEGORIA",null,null,"CLUB","CATEGORIA",null,null,"CLUB","CATEGORIA",null,null,"CLUB","CATEGORIA",null,null,"CLUB","CATEGORIA",null,null,"CLUB","CATEGORIA"]
[null,null,"OS NABATERS D.F.","VETERANO",null,null,"OS NABATERS D.F.","SENIOR",null,null,"OS NABATERS D.F.","JUVENIL",null,null,"OS NABATERS D.F.","CADETE",null,null,"OS NABATERS D.F.","INFANTIL",null,null,"OS NABATERS D.F.","ALEVIN",null,null,"OS NABATERS D.F.","BENJAMIN"]
[]
[]
[null,null,"CLUB","CAT.","NOMBRE COMPLETO",null,"CLUB","CAT.","NOMBRE COMPLETO",null,"CLUB","CAT.","NOMBRE COMPLETO",null,"CLUB","CAT.","NOMBRE COMPLETO",null,"CLUB","CAT.","NOMBRE COMPLETO",null,"CLUB","CAT.","NOMBRE COMPLETO",null,"CLUB","CAT.","NOMBRE COMPLETO"]
[null,null,{"$f":"_xlfn._xlws.SORT(_xlfn._xlws.FILTER(FILTRADO,(Tabla12[CLUB]=C16)*(Tabla12[CAT.]=D16)),3,1)","v":"OS NABATERS D.F."},"VETERANO","ABDÍAS SIMÓN TRIGUEROS",null,{"$f":"_xlfn._xlws.SORT(_xlfn._xlws.FILTER(FILTRADO,(Tabla12[CLUB]=G16)*(Tabla12[CAT.]=H16)),3,1)","v":"OS NABATERS D.F."},"SENIOR","ALEJANDRO VILLACAMPA RÍOS",null,{"$f":"_xlfn._xlws.SORT(_xlfn._xlws.FILTER(FILTRADO,(Tabla12[CLUB]=K16)*(Tabla12[CAT.]=L16)),3,1)","v":"OS NABATERS D.F."},"JUVENIL","ADRIÁN AZNAR SAMPER",null,{"$f":"_xlfn._xlws.SORT(_xlfn._xlws.FILTER(FILTRADO,(Tabla12[CLUB]=O16)*(Tabla12[CAT.]=P16)),3,1)","v":"OS NABATERS D.F."},"CADETE","BRUNO KOLLMANNSBERGER MARCÉN",null,{"$f":"_xlfn._xlws.SORT(_xlfn._xlws.FILTER(FILTRADO,(Tabla12[CLUB]=S16)*(Tabla12[CAT.]=T16)),3,1)","v":"OS NABATERS D.F."},"INFANTIL","DAVID MARCOS GARCÍA",null,{"$f":"_xlfn._xlws.SORT(_xlfn._xlws.FILTER(FILTRADO,(Tabla12[CLUB]=W16)*(Tabla12[CAT.]=X16)),3,1)","v":{"$error":"#VALUE!"}},null,null,null,{"$f":"_xlfn._xlws.SORT(_xlfn._xlws.FILTER(FILTRADO,(Tabla12[CLUB]=AA16)*(Tabla12[CAT.]=AB16)),3,1)","v":{"$error":"#VALUE!"}}]
[null,null,"OS NABATERS D.F.","VETERANO","ABEL RICARDO OVALLES GUERRA",null,"OS NABATERS D.F.","SENIOR","ALICIA ROMERO DE LA ROSA",null,"OS NABATERS D.F.","JUVENIL","ÁNGELA OLIVA CORTÉS",null,"OS NABATERS D.F.","CADETE","CARLA AURED CARBI"]
[null,null,"OS NABATERS D.F.","VETERANO","ANA ARNAIZ LÓPEZ",null,"OS NABATERS D.F.","SENIOR","ALODIA SANCHO BUSTÍN",null,"OS NABATERS D.F.","JUVENIL","GABRIELA LAPLANA DÍAZ",null,"OS NABATERS D.F.","CADETE","CLAUDIA ASO LÓPEZ"]
[null,null,"OS NABATERS D.F.","VETERANO","ANDREA MATAIX MONTANER",null,"OS NABATERS D.F.","SENIOR","ANA RUBIO EZPELETA",null,"OS NABATERS D.F.","JUVENIL","GERMÁN FAUBELL MACÍA",null,"OS NABATERS D.F.","CADETE","DARÍO CANO JIMÉNEZ"]
[null,null,"OS NABATERS D.F.","VETERANO","ÁNGEL AGUILERA ANDRÉS",null,"OS NABATERS D.F.","SENIOR","ANDREA HERNANDO FERRER",null,"OS NABATERS D.F.","JUVENIL","LIZANDRO DÍAZ TORNOE",null,"OS NABATERS D.F.","CADETE","JOSÉ MANUEL FAÑA GRIÑÓN"]
[null,null,"OS NABATERS D.F.","VETERANO","ÁNGEL DE MIGUEL BENITO",null,"OS NABATERS D.F.","SENIOR","ÁNGEL BERNAL LECINA",null,"OS NABATERS D.F.","JUVENIL","SARA BAILO GARCÍA",null,"OS NABATERS D.F.","CADETE","LUIS FRANCISCO BOIRA GONZALO"]
[null,null,"OS NABATERS D.F.","VETERANO","ANTONIO ANSELMO SANCHO NAVARRO",null,"OS NABATERS D.F.","SENIOR","ANTONIO ALMUDÉVAR ATIENZA",null,"OS NABATERS D.F.","JUVENIL","SARA MARTÍN RANERA",null,"OS NABATERS D.F.","CADETE","MIGUEL ABENIA CÁMARA"]
[null,null,"OS NABATERS D.F.","VETERANO","CARLOS MELGARES HIDALGO",null,"OS NABATERS D.F.","SENIOR","BORJA COSA REDONDO",null,null,null,null,null,"OS NABATERS D.F.","CADETE","REBECA ASO LÓPEZ"]
[null,null,"OS NABATERS D.F.","VETERANO","DAVID OLMO NADAL",null,"OS NABATERS D.F.","SENIOR","CARLOTA LAPLANA DÍAZ"]
[null,null,"OS NABATERS D.F.","VETERANO","ERNESTO SÁNCHEZ GARRIGÓS",null,"OS NABATERS D.F.","SENIOR","CELIA PEÑA ROMERO DE TEJADA"]
[null,null,"OS NABATERS D.F.","VETERANO","GABRIEL JOSÉ RUANO FERNÁNDEZ",null,"OS NABATERS D.F.","SENIOR","CLARA ANDREU MARTÍN"]
[null,null,"OS NABATERS D.F.","VETERANO","IGNACIO BELTRÁN DIESTRE",null,"OS NABATERS D.F.","SENIOR","DAVID DÍEZ IBÁÑEZ"]
[null,null,"OS NABATERS D.F.","VETERANO","ISCICIO NAVARRETE SÁNCHEZ",null,"OS NABATERS D.F.","SENIOR","DIEGO VELA JULIÁN"]
[null,null,"OS NABATERS D.F.","VETERANO","JOSÉ CARMELO RICO",null,"OS NABATERS D.F.","SENIOR","GUILLÉN VICENTE MIRANDA"]
[null,null,"OS NABATERS D.F.","VETERANO","JOSÉ IGNACIO MAGDALENA ABAD",null,"OS NABATERS D.F.","SENIOR","ITZIAR MARURI GARCÍA"]
[null,null,"OS NABATERS D.F.","VETERANO","JOSÉ LUIS CAMBERO CENZANO",null,"OS NABATERS D.F.","SENIOR","ITZIAR URQUIRI VIDAL"]
[null,null,"OS NABATERS D.F.","VETERANO","JOSÉ LUIS HERNÁNDEZ PASCUAL",null,"OS NABATERS D.F.","SENIOR","JAIME PEÑA ROMERO DE TEJADA"]
[null,null,"OS NABATERS D.F.","VETERANO","JOSÉ MARÍA EMBARBA LABORDA",null,"OS NABATERS D.F.","SENIOR","JESÚS YUS DÍEZ"]
[null,null,"OS NABATERS D.F.","VETERANO","LUIS CARLOS BELLED LACASA",null,"OS NABATERS D.F.","SENIOR","JORGE CALAVIA VALDOVINOS"]
[null,null,"OS NABATERS D.F.","VETERANO","LUIS JAVIER MELERO PASCUAL",null,"OS NABATERS D.F.","SENIOR","JORGE PONCE USÓN"]
[null,null,"OS NABATERS D.F.","VETERANO","MARÍA INÉS RIVERO MINNERY",null,"OS NABATERS D.F.","SENIOR","JUAN JOSÉ MUÑOZ LAHOZ"]
[null,null,"OS NABATERS D.F.","VETERANO","MERCEDES GIMÉNEZ HERRERO",null,"OS NABATERS D.F.","SENIOR","MARÍA ALONSO GUTIÉRREZ"]
[null,null,"OS NABATERS D.F.","VETERANO","MIGUEL BEA GONZÁLEZ",null,"OS NABATERS D.F.","SENIOR","NAOMI SANCHO BUSTÍN"]
[null,null,"OS NABATERS D.F.","VETERANO","PEDRO DANIEL PLOU ARTAL",null,"OS NABATERS D.F.","SENIOR","OMAR SEBASTIÁN BUSTÍN"]
[null,null,"OS NABATERS D.F.","VETERANO","ROBERTO NAVARRO CARRETERO",null,"OS NABATERS D.F.","SENIOR","PEDRO OLLOQUI LÁZARO"]
[null,null,"OS NABATERS D.F.","VETERANO","SELMA PALACÍN ARTIGOSA",null,"OS NABATERS D.F.","SENIOR","RAQUEL HERNÁNDEZ ROYO"]
[null,null,"OS NABATERS D.F.","VETERANO","SERGIO AURED ANTÓN",null,"OS NABATERS D.F.","SENIOR","RICARDO SALILLAS MARTÍNEZ"]
[null,null,"OS NABATERS D.F.","VETERANO","WILNER MANUEL ESCOBAR PERNOLETE",null,"OS NABATERS D.F.","SENIOR","SANTIAGO LAVILLA TENÍAS"]

{"sheet":"CAPRI MEQUINENZA","index":12,"n_rows":33,"n_cols":29,"rows_kept":33,"cut":false,"hidden":true,"merged":[]}
[]
[null,null,null,null,null,null,"CLUB",null,"CATEGORIA"]
[null,null,null,null,null,null,{"$f":"_xlfn._xlws.SORT(_xlfn.UNIQUE(Tabla12[CLUB]))","v":0},null,{"$f":"_xlfn._xlws.SORT(_xlfn.UNIQUE(Tabla12[CAT.]))","v":0}]
[null,null,null,null,null,null,"ARAGÓN REMO",null,"ALEVIN"]
[null,null,null,null,null,null,"C. DE REMO RETIRO 66",null,"BENJAMIN"]
[null,null,null,null,null,null,"C.N. DE NAVARRA",null,"CADETE"]
[null,null,null,null,null,null,"CAPRI MEQUINENZA",null,"F.A.R."]
[null,null,null,null,null,null,"CENTRO NATACION HELIOS",null,"INFANTIL"]
[null,null,null,null,null,null,"F.A.R.",null,"JUVENIL"]
[null,null,null,null,null,null,"NAUTICO ZARAGOZA",null,"SENIOR"]
[null,null,null,null,null,null,"OS NABATERS D.F.",null,"VETERANO"]
[]
[]
[]
[null,null,"CLUB","CATEGORIA",null,null,"CLUB","CATEGORIA",null,null,"CLUB","CATEGORIA",null,null,"CLUB","CATEGORIA",null,null,"CLUB","CATEGORIA",null,null,"CLUB","CATEGORIA",null,null,"CLUB","CATEGORIA"]
[null,null,"CAPRI MEQUINENZA","VETERANO",null,null,"CAPRI MEQUINENZA","SENIOR",null,null,"CAPRI MEQUINENZA","JUVENIL",null,null,"CAPRI MEQUINENZA","CADETE",null,null,"CAPRI MEQUINENZA","INFANTIL",null,null,"CAPRI MEQUINENZA","ALEVIN",null,null,"CAPRI MEQUINENZA","BENJAMIN"]
[]
[]
[null,null,"CLUB","CAT.","NOMBRE COMPLETO",null,"CLUB","CAT.","NOMBRE COMPLETO",null,"CLUB","CAT.","NOMBRE COMPLETO",null,"CLUB","CAT.","NOMBRE COMPLETO",null,"CLUB","CAT.","NOMBRE COMPLETO",null,"CLUB","CAT.","NOMBRE COMPLETO",null,"CLUB","CAT.","NOMBRE COMPLETO"]
[null,null,{"$f":"_xlfn._xlws.SORT(_xlfn._xlws.FILTER(FILTRADO,(Tabla12[CLUB]=C16)*(Tabla12[CAT.]=D16)),3,1)","v":"CAPRI MEQUINENZA"},"VETERANO","CONCEPCIÓN CASTRO ARANDA",null,{"$f":"_xlfn._xlws.SORT(_xlfn._xlws.FILTER(FILTRADO,(Tabla12[CLUB]=G16)*(Tabla12[CAT.]=H16)),3,1)","v":"CAPRI MEQUINENZA"},"SENIOR","CARLA MARÍA TEIRA ARBIOL",null,{"$f":"_xlfn._xlws.SORT(_xlfn._xlws.FILTER(FILTRADO,(Tabla12[CLUB]=K16)*(Tabla12[CAT.]=L16)),3,1)","v":"CAPRI MEQUINENZA"},"JUVENIL","AARÓN MÁRQUEZ GUARDIOLA",null,{"$f":"_xlfn._xlws.SORT(_xlfn._xlws.FILTER(FILTRADO,(Tabla12[CLUB]=O16)*(Tabla12[CAT.]=P16)),3,1)","v":"CAPRI MEQUINENZA"},"CADETE","AARÓN ESTEVE CASTELLÓ",null,{"$f":"_xlfn._xlws.SORT(_xlfn._xlws.FILTER(FILTRADO,(Tabla12[CLUB]=S16)*(Tabla12[CAT.]=T16)),3,1)","v":"CAPRI MEQUINENZA"},"INFANTIL","ABRIL GONZÁLEZ GARCÍA",null,{"$f":"_xlfn._xlws.SORT(_xlfn._xlws.FILTER(FILTRADO,(Tabla12[CLUB]=W16)*(Tabla12[CAT.]=X16)),3,1)","v":"CAPRI MEQUINENZA"},"ALEVIN","ALBA MARTÍNEZ CLAVERO",null,{"$f":"_xlfn._xlws.SORT(_xlfn._xlws.FILTER(FILTRADO,(Tabla12[CLUB]=AA16)*(Tabla12[CAT.]=AB16)),3,1)","v":"CAPRI MEQUINENZA"},"BENJAMIN","ENZO EXPÓSITO SORO"]
[null,null,"CAPRI MEQUINENZA","VETERANO","DAVID OLIVER CABALLÉ",null,"CAPRI MEQUINENZA","SENIOR","JULIA RAMI CASTRO",null,"CAPRI MEQUINENZA","JUVENIL","GISELA HIERRO GARCÍA",null,"CAPRI MEQUINENZA","CADETE","ÁLEX VILELLA BERENGUER",null,"CAPRI MEQUINENZA","INFANTIL","ALBA CUCHÍ NIUBÓ",null,"CAPRI MEQUINENZA","ALEVIN","IKER SANJUÁN SATORRES",null,"CAPRI MEQUINENZA","BENJAMIN","JOEL CHERTÓ JIMÉNEZ"]
[null,null,"CAPRI MEQUINENZA","VETERANO","DAVID TORO SOLER",null,"CAPRI MEQUINENZA","SENIOR","MIGUEL RUBIO LAMBEA",null,"CAPRI MEQUINENZA","JUVENIL","IVÁN GODIA SANCHO",null,"CAPRI MEQUINENZA","CADETE","CARLA TORRES GODIA",null,"CAPRI MEQUINENZA","INFANTIL","AROA CASTELLÓ VILA",null,"CAPRI MEQUINENZA","ALEVIN","IVÁN  CASTELLNOU SOROLLA",null,"CAPRI MEQUINENZA","BENJAMIN","MARÍA  AGUILAR ROMERO"]
[null,null,"CAPRI MEQUINENZA","VETERANO","JORDI CASTELLÓ ROCA",null,null,null,null,null,"CAPRI MEQUINENZA","JUVENIL","PAULA VERA JARQUE",null,"CAPRI MEQUINENZA","CADETE","IRATXE IBARZ BERENGUER",null,"CAPRI MEQUINENZA","INFANTIL","DIEGO AGUILAR ROMERO",null,"CAPRI MEQUINENZA","ALEVIN","JOKIN KOLDO ESCALONA VILLACAMPA",null,"CAPRI MEQUINENZA","BENJAMIN","SAÚL VIU NOGUÉS"]
[null,null,"CAPRI MEQUINENZA","VETERANO","JORGE MANUEL AGUILAR OLIVER",null,null,null,null,null,"CAPRI MEQUINENZA","JUVENIL","TIBERIU GABRIEL DAMIÁN",null,"CAPRI MEQUINENZA","CADETE","MOHAMED ADAM RAHIBI VIDALLET",null,"CAPRI MEQUINENZA","INFANTIL","IRENE BRUNA PALAU",null,"CAPRI MEQUINENZA","ALEVIN","NAIA GUARDIOLA BARTOLOMÉ"]
[null,null,"CAPRI MEQUINENZA","VETERANO","LUIS ESTEVE CATALÁN",null,null,null,null,null,null,null,null,null,"CAPRI MEQUINENZA","CADETE","PAULO GUIMERA JANIK",null,"CAPRI MEQUINENZA","INFANTIL","IRIA EXPÓSITO SORO",null,"CAPRI MEQUINENZA","ALEVIN","NOA PALAU FERRAGUT"]
[null,null,"CAPRI MEQUINENZA","VETERANO","Mª CARMEN GARCÍA ARANDA",null,null,null,null,null,null,null,null,null,"CAPRI MEQUINENZA","CADETE","SOFÍA MURZAKOVA",null,"CAPRI MEQUINENZA","INFANTIL","ISMAEL RAHIBI VIDALLET",null,"CAPRI MEQUINENZA","ALEVIN","ONA ESTRUGA LLOP"]
[null,null,"CAPRI MEQUINENZA","VETERANO","MARÍA TERESA GODIA PI",null,null,null,null,null,null,null,null,null,"CAPRI MEQUINENZA","CADETE","SOFÍA SERVETO ORDUÑA",null,"CAPRI MEQUINENZA","INFANTIL","MARÍA ARROYO CABALLÉ",null,"CAPRI MEQUINENZA","ALEVIN","PAULA GÓMEZ CARMONA"]
[null,null,"CAPRI MEQUINENZA","VETERANO","MARISOL CLAVERO GARCÍA",null,null,null,null,null,null,null,null,null,"CAPRI MEQUINENZA","CADETE","YERAY MARTÍNEZ CLAVERO",null,"CAPRI MEQUINENZA","INFANTIL","MARINA CATALÁN MOYA"]
[null,null,"CAPRI MEQUINENZA","VETERANO","MERITXELL SIMÓN MARTÍN",null,null,null,null,null,null,null,null,null,null,null,null,null,"CAPRI MEQUINENZA","INFANTIL","MIRIAM BRUNA PALAU"]
[null,null,"CAPRI MEQUINENZA","VETERANO","PEDRO JOSÉ SERVETO PALOMAR"]
[null,null,"CAPRI MEQUINENZA","VETERANO","ROSA MARÍA LLOP RIAU"]
[null,null,"CAPRI MEQUINENZA","VETERANO","SARA  ROMERO OLMOS"]
[null,null,"CAPRI MEQUINENZA","VETERANO","VÍCTOR ESTRUGA GIMENO"]

{"sheet":"REMO MEQUINENZA","index":13,"n_rows":20,"n_cols":29,"rows_kept":20,"cut":false,"hidden":true,"merged":[]}
[]
[null,null,null,null,null,null,"CLUB",null,"CATEGORIA"]
[null,null,null,null,null,null,{"$f":"_xlfn._xlws.SORT(_xlfn.UNIQUE(Tabla12[CLUB]))","v":0},null,{"$f":"_xlfn._xlws.SORT(_xlfn.UNIQUE(Tabla12[CAT.]))","v":0}]
[null,null,null,null,null,null,"ARAGÓN REMO",null,"ALEVIN"]
[null,null,null,null,null,null,"C. DE REMO RETIRO 66",null,"BENJAMIN"]
[null,null,null,null,null,null,"C.N. DE NAVARRA",null,"CADETE"]
[null,null,null,null,null,null,"CAPRI MEQUINENZA",null,"F.A.R."]
[null,null,null,null,null,null,"CENTRO NATACION HELIOS",null,"INFANTIL"]
[null,null,null,null,null,null,"F.A.R.",null,"JUVENIL"]
[null,null,null,null,null,null,"NAUTICO ZARAGOZA",null,"SENIOR"]
[null,null,null,null,null,null,"OS NABATERS D.F.",null,"VETERANO"]
[]
[]
[]
[null,null,"CLUB","CATEGORIA",null,null,"CLUB","CATEGORIA",null,null,"CLUB","CATEGORIA",null,null,"CLUB","CATEGORIA",null,null,"CLUB","CATEGORIA",null,null,"CLUB","CATEGORIA",null,null,"CLUB","CATEGORIA"]
[null,null,"REMO MEQUINENZA","VETERANO",null,null,"REMO MEQUINENZA","SENIOR",null,null,"REMO MEQUINENZA","JUVENIL",null,null,"REMO MEQUINENZA","CADETE",null,null,"REMO MEQUINENZA","INFANTIL",null,null,"REMO MEQUINENZA","ALEVIN",null,null,"REMO MEQUINENZA","BENJAMIN"]
[]
[]
[null,null,"CLUB","CAT.","NOMBRE COMPLETO",null,"CLUB","CAT.","NOMBRE COMPLETO",null,"CLUB","CAT.","NOMBRE COMPLETO",null,"CLUB","CAT.","NOMBRE COMPLETO",null,"CLUB","CAT.","NOMBRE COMPLETO",null,"CLUB","CAT.","NOMBRE COMPLETO",null,"CLUB","CAT.","NOMBRE COMPLETO"]
[null,null,{"$f":"_xlfn._xlws.SORT(_xlfn._xlws.FILTER(FILTRADO,(Tabla12[CLUB]=C16)*(Tabla12[CAT.]=D16)),3,1)","v":{"$error":"#VALUE!"}},null,null,null,{"$f":"_xlfn._xlws.SORT(_xlfn._xlws.FILTER(FILTRADO,(Tabla12[CLUB]=G16)*(Tabla12[CAT.]=H16)),3,1)","v":{"$error":"#VALUE!"}},null,null,null,{"$f":"_xlfn._xlws.SORT(_xlfn._xlws.FILTER(FILTRADO,(Tabla12[CLUB]=K16)*(Tabla12[CAT.]=L16)),3,1)","v":{"$error":"#VALUE!"}},null,null,null,{"$f":"_xlfn._xlws.SORT(_xlfn._xlws.FILTER(FILTRADO,(Tabla12[CLUB]=O16)*(Tabla12[CAT.]=P16)),3,1)","v":{"$error":"#VALUE!"}},null,null,null,{"$f":"_xlfn._xlws.SORT(_xlfn._xlws.FILTER(FILTRADO,(Tabla12[CLUB]=S16)*(Tabla12[CAT.]=T16)),3,1)","v":{"$error":"#VALUE!"}},null,null,null,{"$f":"_xlfn._xlws.SORT(_xlfn._xlws.FILTER(FILTRADO,(Tabla12[CLUB]=W16)*(Tabla12[CAT.]=X16)),3,1)","v":{"$error":"#VALUE!"}},null,null,null,{"$f":"_xlfn._xlws.SORT(_xlfn._xlws.FILTER(FILTRADO,(Tabla12[CLUB]=AA16)*(Tabla12[CAT.]=AB16)),3,1)","v":{"$error":"#VALUE!"}}]

{"sheet":"REMO ZARAGOZA","index":14,"n_rows":20,"n_cols":29,"rows_kept":20,"cut":false,"hidden":true,"merged":[]}
[]
[null,null,null,null,null,null,"CLUB",null,"CATEGORIA"]
[null,null,null,null,null,null,{"$f":"_xlfn._xlws.SORT(_xlfn.UNIQUE(Tabla12[CLUB]))","v":0},null,{"$f":"_xlfn._xlws.SORT(_xlfn.UNIQUE(Tabla12[CAT.]))","v":0}]
[null,null,null,null,null,null,"ARAGÓN REMO",null,"ALEVIN"]
[null,null,null,null,null,null,"C. DE REMO RETIRO 66",null,"BENJAMIN"]
[null,null,null,null,null,null,"C.N. DE NAVARRA",null,"CADETE"]
[null,null,null,null,null,null,"CAPRI MEQUINENZA",null,"F.A.R."]
[null,null,null,null,null,null,"CENTRO NATACION HELIOS",null,"INFANTIL"]
[null,null,null,null,null,null,"F.A.R.",null,"JUVENIL"]
[null,null,null,null,null,null,"NAUTICO ZARAGOZA",null,"SENIOR"]
[null,null,null,null,null,null,"OS NABATERS D.F.",null,"VETERANO"]
[]
[]
[]
[null,null,"CLUB","CATEGORIA",null,null,"CLUB","CATEGORIA",null,null,"CLUB","CATEGORIA",null,null,"CLUB","CATEGORIA",null,null,"CLUB","CATEGORIA",null,null,"CLUB","CATEGORIA",null,null,"CLUB","CATEGORIA"]
[null,null,"REMO ZARAGOZA","VETERANO",null,null,"REMO ZARAGOZA","SENIOR",null,null,"REMO ZARAGOZA","JUVENIL",null,null,"REMO ZARAGOZA","CADETE",null,null,"REMO ZARAGOZA","INFANTIL",null,null,"REMO ZARAGOZA","ALEVIN",null,null,"REMO ZARAGOZA","BENJAMIN"]
[]
[]
[null,null,"CLUB","CAT.","NOMBRE COMPLETO",null,"CLUB","CAT.","NOMBRE COMPLETO",null,"CLUB","CAT.","NOMBRE COMPLETO",null,"CLUB","CAT.","NOMBRE COMPLETO",null,"CLUB","CAT.","NOMBRE COMPLETO",null,"CLUB","CAT.","NOMBRE COMPLETO",null,"CLUB","CAT.","NOMBRE COMPLETO"]
[null,null,{"$f":"_xlfn._xlws.SORT(_xlfn._xlws.FILTER(FILTRADO,(Tabla12[CLUB]=C16)*(Tabla12[CAT.]=D16)),3,1)","v":{"$error":"#VALUE!"}},null,null,null,{"$f":"_xlfn._xlws.SORT(_xlfn._xlws.FILTER(FILTRADO,(Tabla12[CLUB]=G16)*(Tabla12[CAT.]=H16)),3,1)","v":{"$error":"#VALUE!"}},null,null,null,{"$f":"_xlfn._xlws.SORT(_xlfn._xlws.FILTER(FILTRADO,(Tabla12[CLUB]=K16)*(Tabla12[CAT.]=L16)),3,1)","v":{"$error":"#VALUE!"}},null,null,null,{"$f":"_xlfn._xlws.SORT(_xlfn._xlws.FILTER(FILTRADO,(Tabla12[CLUB]=O16)*(Tabla12[CAT.]=P16)),3,1)","v":{"$error":"#VALUE!"}},null,null,null,{"$f":"_xlfn._xlws.SORT(_xlfn._xlws.FILTER(FILTRADO,(Tabla12[CLUB]=S16)*(Tabla12[CAT.]=T16)),3,1)","v":{"$error":"#VALUE!"}},null,null,null,{"$f":"_xlfn._xlws.SORT(_xlfn._xlws.FILTER(FILTRADO,(Tabla12[CLUB]=W16)*(Tabla12[CAT.]=X16)),3,1)","v":{"$error":"#VALUE!"}},null,null,null,{"$f":"_xlfn._xlws.SORT(_xlfn._xlws.FILTER(FILTRADO,(Tabla12[CLUB]=AA16)*(Tabla12[CAT.]=AB16)),3,1)","v":{"$error":"#VALUE!"}}]